Workbook

Sheet شيت
T6: عدد مواد الرسوب
D7: المواد الدراسية
A8: رقم الجلوس | B8: اسم الطالب | C8: الصف | D8: الرياضيات | E8: الدراسات الاجتماعية | F8: الحوسبة وتكنولوجيا المعلومات | G8: الكيمياء | H8: الفيزياء | I8: الأحياء | J8: التربية الإسلامية | K8: اللغة العربية | L8: اللغة الإنجليزية | M8: المجموع الكلي | N8: نتيجة الطالب | O8: النسبة المئوية | P8: التقدير العام للطالب | Q8: الترتيب | R8: مواد الدور الثاني | T8: =COUNTIF(T11:T247,"x") -> 83 | U8: =COUNTIF(U11:U247,"x") -> 68 | V8: 52 | W8: 82 | X8: 45 | Y8: 110 | Z8: 49 | AA8: 55 | AB8: 69 | AP8: ترتيب الأوائل | AV8: العشر الأوائل
T9: الرياضيات | U9: الدراسات الاجتماعية | V9: الحوسبة وتكنولوجيا المعلومات | W9: الكيمياء | X9: الفيزياء | Y9: الأحياء | Z9: التربية الإسلامية | AA9: اللغة العربية | AB9: اللغة الإنجليزية | AF9: الرياضيات | AG9: الدراسات الاجتماعية | AH9: الحوسبة وتكنولوجيا المعلومات | AI9: الكيمياء | AJ9: الفيزياء | AK9: الأحياء | AL9: التربية الإسلامية | AM9: اللغة العربية | AN9: اللغة الإنجليزية
D10: 30 | E10: 30 | F10: 30 | G10: 30 | H10: 30 | I10: 30 | J10: 30 | K10: 30 | L10: 30 | M10: =SUM(D10:L10) -> 270 | AP10: رقم الجلوس | AQ10: اسم الطالب | AR10: المجموع | AS10: الترتيب | AT10: النتيجة | AV10: م | AW10: رقم الجلوس | AX10: اسم الطالب | AY10: المجموع | AZ10: الترتيب | BA10: مجموع | BB10: المركز
A11: =ROW()-10 -> 1 | B11: احمد حسن احمد سليمان الهيل | C11: 10 - 1 | D11: 22 | E11: 19 | F11: 22 | G11: 19 | H11: 19 | I11: 19 | J11: 19 | K11: 22 | L11: 25 | M11: =IF(B11="","",IF(AND(D11="غ",E11="غ",F11="غ",G11="غ",H11="غ",I11="غ",J11="غ",K11="غ",L11="غ"),"غ",SUM(D11,E11,F11,G11,H11,I11,J11,K11,L11))) -> 186 | N11: =IF(B11="","",AE11) -> ناجح | O11: =IF(B11="","",IF(M11="غ","غ",M11/$M$10*100/100)) -> 0.6888888889 | P11: =IF(M11="","",IF(M11="غ","غ",IF(M11=0,"دون المستوى",IF(M11/$M$10*100>=85,"ممتاز",IF(M11/$M$10*100>=75,"جيد جدا",IF(M11/$M$10*100>=65,"جيد",IF(M11/$M$10*100>=50,"مقبول",IF(M11/$M$10*100<50,"دون المستوى")))))))) -> جيد | R11: =CONCATENATE(AF11,AG11,AH11,AI11,AJ11,AK11,AL11,AM11,AN11) ->  | T11: =IF($B11="","",IF(OR(D11<15,D11="",D11="غ",D11="صفر"=""),"x","")) ->  | U11: =IF($B11="","",IF(OR(E11<15,E11="",E11="غ",E11="صفر"=""),"x","")) ->  | AC11: =IF(B11="","",COUNTBLANK(T11:AB11)) -> 9 | AD11: =IF(B11="","",COUNTIF(T11:AB11,"x")) -> 0 | AE11: =IF(B11="","",IF(AC11=9,"ناجح","دور ثانى")) -> ناجح | AF11: =IF(T11="x","الرياضيات / ","") ->  | AG11: =IF(U11="x","الدراسات الاجتماعية / ","") ->  | AH11: =IF(V11="x","الحوسبة وتكنولوجيا المعلومات / ","") ->  | AI11: =IF(W11="x","الكيمياء / ","") ->  | AJ11: =IF(X11="x","الفيزياء / ","") ->  | AK11: =IF(Y11="x","الأحياء / ","") ->  | AL11: =IF(Z11="x","التربية الإسلامية / ","") ->  | AM11: =IF(AA11="x","اللغة العربية / ","") ->  | AN11: =IF(AB11="x","اللغة الإنجليزية / ","") ->  | AP11: =A11 -> 1 | AQ11: =B11 -> احمد حسن احمد سليمان الهيل | AR11: =IF(M11="","",IF(M11="غ","غ",M11+1/ROW()*0.001)) -> 186.0000909 | AS11: =IFERROR(IF(M11=" "," ",IF(M11="غ","غ",RANK(M11,$M$11:$M$247))),"") -> 94 | AT11: =AE11 -> ناجح | AV11: 1 | AW11: =INDEX($AP$11:$AP$247,MATCH(BA11,$AR$11:$AR$247,0)) -> 6 | AX11: =INDEX($AQ$11:$AQ$247,MATCH(BA11,$AR$11:$AR$247,0)) -> خالد مصعب خضر عبدالله تايه | AY11: =IF(BA11=" "," ",ROUNDDOWN(BA11,1)) -> 267 | AZ11: =RANK(AY11,$AY$11:$AY$20) -> 1 | BA11: =IF(AR11=" "," ",LARGE($AR$11:$AR$247,AV11)) -> 267.0000625 | BB11: =IF(AZ11=1,"الأول"," ") -> الأول
A12: =ROW()-10 -> 2 | B12: احمد عبداللاه احمد يحيى عبدالاله | C12: 10 - 1 | D12: 24.5 | E12: 24.5 | F12: 26 | G12: 22.5 | H12: 29 | I12: 16 | J12: 30 | K12: 29 | L12: 22.5 | M12: 224 | N12: ناجح | O12: 0.8296296296 | P12: =IF(M12="","",IF(M12="غ","غ",IF(M12=0,"دون المستوى",IF(M12/$M$10*100>=85,"ممتاز",IF(M12/$M$10*100>=75,"جيد جدا",IF(M12/$M$10*100>=65,"جيد",IF(M12/$M$10*100>=50,"مقبول",IF(M12/$M$10*100<50,"دون المستوى")))))))) -> جيد جدا | R12: =CONCATENATE(AF12,AG12,AH12,AI12,AJ12,AK12,AL12,AM12,AN12) ->  | T12: =IF($B12="","",IF(OR(D12<15,D12="",D12="غ",D12="صفر"=""),"x","")) ->  | U12: =IF($B12="","",IF(OR(E12<15,E12="",E12="غ",E12="صفر"=""),"x","")) ->  | V12: =IF($B12="","",IF(OR(F12<15,F12="",F12="غ",F12="صفر"=""),"x","")) ->  | W12: =IF($B12="","",IF(OR(G12<15,G12="",G12="غ",G12="صفر"=""),"x","")) ->  | X12: =IF($B12="","",IF(OR(H12<15,H12="",H12="غ",H12="صفر"=""),"x","")) ->  | Y12: =IF($B12="","",IF(OR(I12<15,I12="",I12="غ",I12="صفر"=""),"x","")) ->  | Z12: =IF($B12="","",IF(OR(J12<15,J12="",J12="غ",J12="صفر"=""),"x","")) ->  | AA12: =IF($B12="","",IF(OR(K12<15,K12="",K12="غ",K12="صفر"=""),"x","")) ->  | AB12: =IF($B12="","",IF(OR(L12<15,L12="",L12="غ",L12="صفر"=""),"x","")) ->  | AC12: =IF(B12="","",COUNTBLANK(T12:AB12)) -> 9 | AD12: =IF(B12="","",COUNTIF(T12:AB12,"x")) -> 0 | AE12: =IF(B12="","",IF(AC12=9,"ناجح","دور ثانى")) -> ناجح | AF12: =IF(T12="x","الرياضيات / ","") ->  | AG12: =IF(U12="x","الدراسات الاجتماعية / ","") ->  | AH12: =IF(V12="x","الحوسبة وتكنولوجيا المعلومات / ","") ->  | AI12: =IF(W12="x","الكيمياء / ","") ->  | AJ12: =IF(X12="x","الفيزياء / ","") ->  | AK12: =IF(Y12="x","الأحياء / ","") ->  | AL12: =IF(Z12="x","التربية الإسلامية / ","") ->  | AM12: =IF(AA12="x","اللغة العربية / ","") ->  | AN12: =IF(AB12="x","اللغة الإنجليزية / ","") ->  | AP12: 2 | AQ12: احمد عبداللاه احمد يحيى عبدالاله | AR12: 224.0000833 | AS12: =IFERROR(IF(M12=" "," ",IF(M12="غ","غ",RANK(M12,$M$11:$M$247))),"") -> 48 | AT12: =AE12 -> ناجح | AV12: 2 | AW12: =INDEX($AP$11:$AP$247,MATCH(BA12,$AR$11:$AR$247,0)) -> 29 | AX12: =INDEX($AQ$11:$AQ$247,MATCH(BA12,$AR$11:$AR$247,0)) -> محمود عادل عبدالمحسن محمد | AY12: 260 | AZ12: 2 | BA12: =IF(AR12=" "," ",LARGE($AR$11:$AR$247,AV12)) -> 260.0000256 | BB12: =IF(AZ12=AZ11,BB11&" مكرر ",IF(AZ12=2," الثاني "," ")) -> الثاني
A13: 3 | B13: احمد محمود احمد عبدالسميع عثمان | C13: 10 - 1 | D13: 28 | E13: 30 | F13: 29.5 | G13: 29 | H13: 28 | I13: 28 | J13: 29 | K13: 26 | L13: 25.5 | M13: 253 | N13: ناجح | O13: 0.937037037 | P13: ممتاز | AC13: 9 | AD13: 0 | AE13: ناجح | AP13: 3 | AQ13: احمد محمود احمد عبدالسميع عثمان | AR13: 253.0000769 | AS13: 11 | AT13: ناجح | AV13: 3 | AW13: 19 | AX13: عمر هشام على بحيرى ابوالخير | AY13: 259.5 | AZ13: 3 | BA13: 259.5000345 | BB13: =IF(AZ13=AZ12,BB12&" مكرر ",IF(AZ13=3," الثالث "," ")) -> الثالث
A14: 4 | B14: جمال عبدالغفار كمال على | C14: 10 - 1 | D14: 24.5 | E14: 27 | F14: 27 | G14: 22.5 | H14: 25 | I14: 23 | J14: 27.5 | K14: 29 | L14: 22.5 | M14: 228 | N14: ناجح | O14: 0.8444444444 | P14: جيد جدا | AC14: 9 | AD14: 0 | AE14: ناجح | AP14: 4 | AQ14: جمال عبدالغفار كمال على | AR14: 228.0000714 | AS14: 42 | AT14: ناجح | AV14: 4 | AW14: 36 | AX14: أحمد اقبال ابواصبع | AY14: 258.5 | AZ14: 4 | BA14: 258.5000217 | BB14: =IF(AZ14=AZ13,BB13&" "&" مكرر",IF(AZ14=4," الرابع "," ")) -> الرابع
A15: 5 | B15: حسن محمد العبود الصالح | C15: 10 - 1 | D15: 25.5 | E15: 30 | F15: 27 | G15: 27 | H15: 30 | I15: 27 | J15: 30 | K15: 28 | L15: 18.5 | M15: 243 | N15: ناجح | O15: 0.9 | P15: ممتاز | AC15: 9 | AD15: 0 | AE15: ناجح | AP15: 5 | AQ15: حسن محمد العبود الصالح | AR15: 243.0000667 | AS15: 23 | AT15: ناجح | AV15: 5 | AW15: 229 | AX15: محمد راشد عبدالمحسن راشد الهميمى | AY15: 258 | AZ15: 5 | BA15: 258.0000042 | BB15: =IF(AZ15=AZ14,BB14&" "&" مكرر",IF(AZ15=5," الخامس "," ")) -> الخامس
A16: 6 | B16: خالد مصعب خضر عبدالله تايه | C16: 10 - 1 | D16: 29.5 | E16: 30 | F16: 29 | G16: 30 | H16: 30 | I16: 30 | J16: 30 | K16: 29 | L16: 29.5 | M16: 267 | N16: ناجح | O16: 0.9888888889 | P16: ممتاز | AC16: 9 | AD16: 0 | AE16: ناجح | AP16: 6 | AQ16: خالد مصعب خضر عبدالله تايه | AR16: 267.0000625 | AS16: 1 | AT16: ناجح | AV16: 6 | AW16: 26 | AX16: محمد عمر عبدالرحيم على | AY16: 257.5 | AZ16: 6 | BA16: 257.5000278 | BB16: =IF(AZ16=AZ15,BB15&"مكرر",IF(AZ16=6," السادس "," ")) -> السادس
A17: 7 | B17: سيف سعيد احمد عبدالمجيد عبدالرحيم | C17: 10 - 1 | D17: 27.5 | E17: 28 | F17: 24.5 | G17: 28 | H17: 28 | I17: 24 | J17: 28 | K17: 27 | L17: 25.5 | M17: 240.5 | N17: ناجح | O17: 0.8907407407 | P17: ممتاز | AC17: 9 | AD17: 0 | AE17: ناجح | AP17: 7 | AQ17: سيف سعيد احمد عبدالمجيد عبدالرحيم | AR17: 240.5000588 | AS17: 27 | AT17: ناجح | AV17: 7 | AW17: 27 | AX17: محمد عمر فتحى عبدالتواب عبدالمقصود | AY17: 257.5 | AZ17: 6 | BA17: 257.500027 | BB17: =IF(AZ17=AZ16,BB16&"مكرر",IF(AZ17=7," السابع "," ")) -> السادس مكرر
A18: 8 | B18: شعيب خالد شعيب جاب الله | C18: 10 - 1 | D18: 22 | E18: 28 | F18: 29 | G18: 21 | H18: 30 | I18: 28 | J18: 29 | K18: 26 | L18: 28.5 | M18: 241.5 | N18: ناجح | O18: 0.8944444444 | P18: ممتاز | AC18: 9 | AD18: 0 | AE18: ناجح | AP18: 8 | AQ18: شعيب خالد شعيب جاب الله | AR18: 241.5000556 | AS18: 25 | AT18: ناجح | AV18: 8 | AW18: 23 | AX18: محمد عبدالله السيد بيومي حسن | AY18: 256 | AZ18: 8 | BA18: 256.0000303 | BB18: =IF(AZ18=AZ17,BB17&"مكرر",IF(AZ18=8,"الثامن"," ")) -> الثامن
A19: 9 | B19: عادل سعيد فتحي مصطفى عوض الله | C19: 10 - 1 | D19: 27 | E19: 30 | F19: 27 | G19: 23.5 | H19: 28 | I19: 19 | J19: 30 | K19: 30 | L19: 24 | M19: 238.5 | N19: ناجح | O19: 0.8833333333 | P19: ممتاز | AC19: 9 | AD19: 0 | AE19: ناجح | AP19: 9 | AQ19: عادل سعيد فتحي مصطفى عوض الله | AR19: 238.5000526 | AS19: 29 | AT19: ناجح | AV19: 9 | AW19: 20 | AX19: فادي عدنان احمد عبدالجليل | AY19: 255 | AZ19: 9 | BA19: 255.0000333 | BB19: =IF(AZ19=AZ18,BB18&" مكرر",IF(AZ19=9,"التاسع"," ")) -> التاسع
A20: 10 | B20: عامر محمد عمر عجيز | C20: 10 - 1 | D20: 23 | E20: 19.5 | F20: 29 | G20: 19.5 | H20: 30 | I20: 26 | J20: 30 | K20: 27 | L20: 24 | M20: 228 | N20: ناجح | O20: 0.8444444444 | P20: جيد جدا | AC20: 9 | AD20: 0 | AE20: ناجح | AP20: 10 | AQ20: عامر محمد عمر عجيز | AR20: 228.00005 | AS20: 42 | AT20: ناجح | AV20: 10 | AW20: 126 | AX20: عمر محمد محمود ابوزاهر | AY20: 254.5 | AZ20: 10 | BA20: 254.5000074 | BB20: =IF(AZ20=AZ19,BB19&" مكرر",IF(AZ20=10,"العاشر"," ")) -> العاشر
A21: 11 | B21: عبدالرحمن خالد محمد سليمان الشيخ | C21: 10 - 1 | D21: 26.5 | E21: 27 | F21: 20 | G21: 28 | H21: 30 | I21: 29 | J21: 30 | K21: 29 | L21: 29.5 | M21: 249 | N21: ناجح | O21: 0.9222222222 | P21: ممتاز | AC21: 9 | AD21: 0 | AE21: ناجح | AP21: 11 | AQ21: عبدالرحمن خالد محمد سليمان الشيخ | AR21: 249.0000476 | AS21: 18 | AT21: ناجح
A22: 12 | B22: عبدالرحمن قارى محمد اقبال | C22: 10 - 1 | D22: 27 | E22: 25 | F22: 20.5 | G22: 29 | H22: 30 | I22: 22 | J22: 28 | K22: 30 | L22: 26.5 | M22: 238 | N22: ناجح | O22: 0.8814814815 | P22: ممتاز | AC22: 9 | AD22: 0 | AE22: ناجح | AP22: 12 | AQ22: عبدالرحمن قارى محمد اقبال | AR22: 238.0000455 | AS22: 30 | AT22: ناجح
A23: 13 | B23: عبدالله فتحي سيد محمد جمعه | C23: 10 - 1 | D23: 3 | E23: 30 | F23: 30 | G23: 26.5 | H23: 30 | I23: 28 | J23: 30 | K23: 30 | L23: 24.5 | M23: 232 | N23: دور ثانى | O23: 0.8592592593 | P23: ممتاز | R23: الرياضيات / | T23: x | AC23: 8 | AD23: 1 | AE23: دور ثانى | AF23: الرياضيات / | AP23: 13 | AQ23: عبدالله فتحي سيد محمد جمعه | AR23: 232.0000435 | AS23: 35 | AT23: دور ثانى
A24: 14 | B24: عدنان محمد رضا كرار سليمان | C24: 10 - 1 | D24: 30 | E24: 27 | F24: 20.5 | G24: 24 | H24: 24 | I24: 21 | J24: 28.5 | K24: 30 | L24: 23.5 | M24: 228.5 | N24: ناجح | O24: 0.8462962963 | P24: جيد جدا | AC24: 9 | AD24: 0 | AE24: ناجح | AP24: 14 | AQ24: عدنان محمد رضا كرار سليمان | AR24: 228.5000417 | AS24: 41 | AT24: ناجح
A25: 15 | B25: على هصام حامد على الحبابى | C25: 10 - 1 | D25: 26 | E25: 21 | F25: 26 | G25: 25 | H25: 25 | I25: 25 | J25: 24 | K25: 20 | L25: 19 | M25: 211 | N25: ناجح | O25: 0.7814814815 | P25: جيد جدا | AC25: 9 | AD25: 0 | AE25: ناجح | AP25: 15 | AQ25: على هصام حامد على الحبابى | AR25: 211.00004 | AS25: 61 | AT25: ناجح
A26: 16 | B26: عمر عبدالباسط ابراهيم محمد | C26: 10 - 1 | D26: 26.5 | E26: 23.5 | F26: 28.5 | G26: 25 | H26: 30 | I26: 14.5 | J26: 26.5 | K26: 27 | L26: 29.5 | M26: 231 | N26: دور ثانى | O26: 0.8555555556 | P26: ممتاز | R26: الأحياء / | Y26: x | AC26: 8 | AD26: 1 | AE26: دور ثانى | AK26: الأحياء / | AP26: 16 | AQ26: عمر عبدالباسط ابراهيم محمد | AR26: 231.0000385 | AS26: 38 | AT26: دور ثانى
A27: 17 | B27: عمر فؤاد اسماعيل ثابت | C27: 10 - 1 | D27: 24.5 | E27: 24 | F27: 27 | G27: 26 | H27: 27 | I27: 22.5 | J27: 26 | K27: 30 | L27: 25.5 | M27: 232.5 | N27: ناجح | O27: 0.8611111111 | P27: ممتاز | AC27: 9 | AD27: 0 | AE27: ناجح | AP27: 17 | AQ27: عمر فؤاد اسماعيل ثابت | AR27: 232.500037 | AS27: 34 | AT27: ناجح
A28: 18 | B28: عمر مصطفى محمد عوه | C28: 10 - 1 | D28: 26 | E28: 29 | F28: 22.5 | G28: 30 | H28: 27 | I28: 22.5 | J28: 30 | K28: 28 | L28: 27.5 | M28: 242.5 | N28: ناجح | O28: 0.8981481481 | P28: ممتاز | AC28: 9 | AD28: 0 | AE28: ناجح | AP28: 18 | AQ28: عمر مصطفى محمد عوه | AR28: 242.5000357 | AS28: 24 | AT28: ناجح
A29: 19 | B29: عمر هشام على بحيرى ابوالخير | C29: 10 - 1 | D29: 30 | E29: 30 | F29: 27 | G29: 28 | H29: 30 | I29: 28 | J29: 30 | K29: 29 | L29: 27.5 | M29: 259.5 | N29: ناجح | O29: 0.9611111111 | P29: ممتاز | AC29: 9 | AD29: 0 | AE29: ناجح | AP29: 19 | AQ29: عمر هشام على بحيرى ابوالخير | AR29: 259.5000345 | AS29: 3 | AT29: ناجح
A30: 20 | B30: فادي عدنان احمد عبدالجليل | C30: 10 - 1 | D30: 29 | E30: 30 | F30: 28.5 | G30: 27 | H30: 28 | I30: 29 | J30: 30 | K30: 25 | L30: 28.5 | M30: 255 | N30: ناجح | O30: 0.9444444444 | P30: ممتاز | AC30: 9 | AD30: 0 | AE30: ناجح | AP30: 20 | AQ30: فادي عدنان احمد عبدالجليل | AR30: 255.0000333 | AS30: 9 | AT30: ناجح
A31: 21 | B31: مازن محمود السيد عبدالله عبدالوهاب | C31: 10 - 1 | D31: 28 | E31: 29 | F31: 29.5 | G31: 25 | H31: 24 | I31: 26 | J31: 30 | K31: 25 | L31: 19 | M31: 235.5 | N31: ناجح | O31: 0.8722222222 | P31: ممتاز | AC31: 9 | AD31: 0 | AE31: ناجح | AP31: 21 | AQ31: مازن محمود السيد عبدالله عبدالوهاب | AR31: 235.5000323 | AS31: 31 | AT31: ناجح
A32: 22 | B32: محمد احمد محمود شناق | C32: 10 - 1 | D32: 27.5 | E32: 27 | F32: 26 | G32: 27 | H32: 28 | I32: 26 | J32: 29 | K32: 26 | L32: 29.5 | M32: 246 | N32: ناجح | O32: 0.9111111111 | P32: ممتاز | AC32: 9 | AD32: 0 | AE32: ناجح | AP32: 22 | AQ32: محمد احمد محمود شناق | AR32: 246.0000313 | AS32: 22 | AT32: ناجح
A33: 23 | B33: محمد عبدالله السيد بيومي حسن | C33: 10 - 1 | D33: 30 | E33: 26 | F33: 26.5 | G33: 30 | H33: 30 | I33: 29 | J33: 30 | K33: 27 | L33: 27.5 | M33: 256 | N33: ناجح | O33: 0.9481481481 | P33: ممتاز | AC33: 9 | AD33: 0 | AE33: ناجح | AP33: 23 | AQ33: محمد عبدالله السيد بيومي حسن | AR33: 256.0000303 | AS33: 8 | AT33: ناجح
A34: 24 | B34: محمد عقيل عدنان سيد احمد | C34: 10 - 1 | D34: 23.5 | E34: 30 | F34: 26.5 | G34: 26 | H34: 30 | I34: 26 | J34: 25.5 | K34: 27 | L34: 26.5 | M34: 241 | N34: ناجح | O34: 0.8925925926 | P34: ممتاز | AC34: 9 | AD34: 0 | AE34: ناجح | AP34: 24 | AQ34: محمد عقيل عدنان سيد احمد | AR34: 241.0000294 | AS34: 26 | AT34: ناجح
A35: 25 | B35: محمد علي عطيت الله ابراهيم عبداللاه | C35: 10 - 1 | D35: 24 | E35: 30 | F35: 23.5 | G35: 24 | H35: 30 | I35: 25 | J35: 29 | K35: 27 | L35: 19.5 | M35: 232 | N35: ناجح | O35: 0.8592592593 | P35: ممتاز | AC35: 9 | AD35: 0 | AE35: ناجح | AP35: 25 | AQ35: محمد علي عطيت الله ابراهيم عبداللاه | AR35: 232.0000286 | AS35: 35 | AT35: ناجح
A36: 26 | B36: محمد عمر عبدالرحيم على | C36: 10 - 1 | D36: 30 | E36: 30 | F36: 29.5 | G36: 29 | H36: 30 | I36: 24.5 | J36: 28 | K36: 30 | L36: 26.5 | M36: 257.5 | N36: ناجح | O36: 0.9537037037 | P36: ممتاز | AC36: 9 | AD36: 0 | AE36: ناجح | AP36: 26 | AQ36: محمد عمر عبدالرحيم على | AR36: 257.5000278 | AS36: 6 | AT36: ناجح
A37: 27 | B37: محمد عمر فتحى عبدالتواب عبدالمقصود | C37: 10 - 1 | D37: 30 | E37: 30 | F37: 28 | G37: 28 | H37: 28 | I37: 27 | J37: 29 | K37: 30 | L37: 27.5 | M37: 257.5 | N37: ناجح | O37: 0.9537037037 | P37: ممتاز | AC37: 9 | AD37: 0 | AE37: ناجح | AP37: 27 | AQ37: محمد عمر فتحى عبدالتواب عبدالمقصود | AR37: 257.500027 | AS37: 6 | AT37: ناجح
A38: 28 | B38: محمود حبيب الله | C38: 10 - 1 | D38: 28 | E38: 30 | F38: 27 | G38: 22.5 | H38: 28 | I38: 28 | J38: 30 | K38: 30 | L38: 29.5 | M38: 253 | N38: ناجح | O38: 0.937037037 | P38: ممتاز | AC38: 9 | AD38: 0 | AE38: ناجح | AP38: 28 | AQ38: محمود حبيب الله | AR38: 253.0000263 | AS38: 11 | AT38: ناجح
A39: 29 | B39: محمود عادل عبدالمحسن محمد | C39: 10 - 1 | D39: 28.5 | E39: 30 | F39: 29.5 | G39: 30 | H39: 30 | I39: 27 | J39: 29.5 | K39: 27 | L39: 28.5 | M39: 260 | N39: ناجح | O39: 0.962962963 | P39: ممتاز | AC39: 9 | AD39: 0 | AE39: ناجح | AP39: 29 | AQ39: محمود عادل عبدالمحسن محمد | AR39: 260.0000256 | AS39: 2 | AT39: ناجح
A40: 30 | B40: معتز احمد كامل على خوالده | C40: 10 - 1 | D40: 30 | E40: 30 | F40: 28 | G40: غ | H40: 28 | I40: 26 | J40: 29 | K40: 29 | L40: 25 | M40: 225 | N40: دور ثانى | O40: 0.8333333333 | P40: جيد جدا | R40: الكيمياء / | W40: x | AC40: 8 | AD40: 1 | AE40: دور ثانى | AI40: الكيمياء / | AP40: 30 | AQ40: معتز احمد كامل على خوالده | AR40: 225.000025 | AS40: 45 | AT40: دور ثانى
A41: 31 | B41: مهنا احمد محمد سيف النعيمى | C41: 10 - 1 | D41: غ | E41: 12 | F41: غ | G41: 8 | H41: 8 | I41: 8 | J41: غ | K41: 17 | L41: 18 | M41: 71 | N41: دور ثانى | O41: 0.262962963 | P41: دون المستوى | R41: الرياضيات / الدراسات الاجتماعية / الحوسبة وتكنولوجيا المعلومات / الكيمياء / الفيزياء / الأحياء / التربية الإسلامية / | T41: x | U41: x | V41: x | W41: x | X41: x | Y41: x | Z41: x | AC41: 2 | AD41: 7 | AE41: دور ثانى | AF41: الرياضيات / | AG41: الدراسات الاجتماعية / | AH41: الحوسبة وتكنولوجيا المعلومات / | AI41: الكيمياء / | AJ41: الفيزياء / | AK41: الأحياء / | AL41: التربية الإسلامية / | AP41: 31 | AQ41: مهنا احمد محمد سيف النعيمى | AR41: 71.00002439 | AS41: 224 | AT41: دور ثانى
A42: 32 | B42: مؤمن شريف محمد التاج | C42: 10 - 1 | D42: 29.5 | E42: 30 | F42: 29.5 | G42: غ | H42: 28 | I42: 29 | J42: 30 | K42: 30 | L42: 24.5 | M42: 230.5 | N42: دور ثانى | O42: 0.8537037037 | P42: ممتاز | R42: الكيمياء / | W42: x | AC42: 8 | AD42: 1 | AE42: دور ثانى | AI42: الكيمياء / | AP42: 32 | AQ42: مؤمن شريف محمد التاج | AR42: 230.5000238 | AS42: 39 | AT42: دور ثانى
A43: 33 | B43: ياسين احمد صلاح عبداللطيف | C43: 10 - 1 | D43: غ | E43: غ | F43: غ | G43: غ | H43: غ | I43: غ | J43: غ | K43: غ | L43: غ | M43: غ | N43: دور ثانى | O43: غ | P43: غ | R43: الرياضيات / الدراسات الاجتماعية / الحوسبة وتكنولوجيا المعلومات / الكيمياء / الفيزياء / الأحياء / التربية الإسلامية / اللغة العربية / اللغة الإنجليزية / | T43: x | U43: x | V43: x | W43: x | X43: x | Y43: x | Z43: x | AA43: x | AB43: x | AC43: 0 | AD43: 9 | AE43: دور ثانى | AF43: الرياضيات / | AG43: الدراسات الاجتماعية / | AH43: الحوسبة وتكنولوجيا المعلومات / | AI43: الكيمياء / | AJ43: الفيزياء / | AK43: الأحياء / | AL43: التربية الإسلامية / | AM43: اللغة العربية / | AN43: اللغة الإنجليزية / | AP43: =A43 -> 33 | AQ43: =B43 -> ياسين احمد صلاح عبداللطيف | AR43: =IF(M43="","",IF(M43="غ","غ",M43+1/ROW()*0.001)) -> غ | AS43: غ | AT43: دور ثانى
A44: 34 | B44: يوسف محمد سليمان موسى عامر | C44: 10 - 1 | D44: 26.5 | E44: 30 | F44: 30 | G44: 27 | H44: 28 | I44: 22 | J44: 29 | K44: 30 | L44: 27 | M44: 249.5 | N44: ناجح | O44: 0.9240740741 | P44: ممتاز | AC44: 9 | AD44: 0 | AE44: ناجح | AP44: 34 | AQ44: يوسف محمد سليمان موسى عامر | AR44: 249.5000227 | AS44: 17 | AT44: ناجح
A45: 35 | B45: احمد اسامه جميل ابوالعلا | C45: 10 - 2 | D45: 29 | E45: 24.5 | F45: 26.5 | G45: 25 | H45: 30 | I45: 26 | J45: 26 | K45: 24.5 | L45: 23 | M45: 234.5 | N45: ناجح | O45: 0.8685185185 | P45: ممتاز | AC45: 9 | AD45: 0 | AE45: ناجح | AP45: 35 | AQ45: احمد اسامه جميل ابوالعلا | AR45: 234.5000222 | AS45: 32 | AT45: ناجح
A46: 36 | B46: أحمد اقبال ابواصبع | C46: 10 - 2 | D46: 29 | E46: 30 | F46: 28.5 | G46: 28 | H46: 30 | I46: 29 | J46: 28 | K46: 28.5 | L46: 27.5 | M46: 258.5 | N46: ناجح | O46: 0.9574074074 | P46: ممتاز | AC46: 9 | AD46: 0 | AE46: ناجح | AP46: 36 | AQ46: أحمد اقبال ابواصبع | AR46: 258.5000217 | AS46: 4 | AT46: ناجح
A47: 37 | B47: احمد شريف ابراهيم الدسوقى عوض | C47: 10 - 2 | D47: 25 | E47: 21 | F47: 28.5 | G47: 17 | H47: 29 | I47: 23 | J47: 26.5 | K47: 26.5 | L47: 28 | M47: 224.5 | N47: ناجح | O47: 0.8314814815 | P47: جيد جدا | AC47: 9 | AD47: 0 | AE47: ناجح | AP47: 37 | AQ47: احمد شريف ابراهيم الدسوقى عوض | AR47: 224.5000213 | AS47: 47 | AT47: ناجح
A48: 38 | B48: امين بن المنذر بن عثمان | C48: 10 - 2 | D48: 19 | E48: 19 | F48: 20 | G48: 18 | H48: 18 | I48: 18 | J48: 19 | K48: 20 | L48: 24 | M48: 175 | N48: ناجح | O48: 0.6481481481 | P48: مقبول | AC48: 9 | AD48: 0 | AE48: ناجح | AP48: 38 | AQ48: امين بن المنذر بن عثمان | AR48: 175.0000208 | AS48: 105 | AT48: ناجح
A49: 39 | B49: براء اشرف سعيد زكي السيد | C49: 10 - 2 | D49: 29 | E49: 22 | F49: 19.5 | G49: 22 | H49: 26 | I49: 19.5 | J49: 23 | K49: 22 | L49: 27 | M49: 210 | N49: ناجح | O49: 0.7777777778 | P49: جيد جدا | AC49: 9 | AD49: 0 | AE49: ناجح | AP49: 39 | AQ49: براء اشرف سعيد زكي السيد | AR49: 210.0000204 | AS49: 63 | AT49: ناجح
A50: 40 | B50: بريك سالم دغش الجربوعى المرى | C50: 10 - 2 | D50: 18 | E50: 24 | F50: 17 | G50: 14.5 | H50: 23 | I50: 21 | J50: 18 | K50: 17 | L50: 22 | M50: 174.5 | N50: دور ثانى | O50: 0.6462962963 | P50: مقبول | R50: الكيمياء / | W50: x | AC50: 8 | AD50: 1 | AE50: دور ثانى | AI50: الكيمياء / | AP50: 40 | AQ50: بريك سالم دغش الجربوعى المرى | AR50: 174.50002 | AS50: 107 | AT50: دور ثانى
A51: 41 | B51: جوين عماد عبدالحليم داود | C51: 10 - 2 | D51: 21.5 | E51: 16 | F51: 22 | G51: 21.5 | H51: 28 | I51: 18.5 | J51: 21 | K51: 19 | L51: 25 | M51: 192.5 | N51: ناجح | O51: 0.712962963 | P51: جيد | AC51: 9 | AD51: 0 | AE51: ناجح | AP51: 41 | AQ51: جوين عماد عبدالحليم داود | AR51: 192.5000196 | AS51: 90 | AT51: ناجح
A52: 42 | B52: حمد ناجى مسعد احمد الطيرى | C52: 10 - 2 | D52: 28.5 | E52: 21 | F52: 27.5 | G52: 27.5 | H52: 30 | I52: 20 | J52: 23 | K52: 23 | L52: 19 | M52: 219.5 | N52: ناجح | O52: 0.812962963 | P52: جيد جدا | AC52: 9 | AD52: 0 | AE52: ناجح | AP52: 42 | AQ52: حمد ناجى مسعد احمد الطيرى | AR52: 219.5000192 | AS52: 52 | AT52: ناجح
A53: 43 | B53: خالد طارق عبدالرحمن فوزي رامون | C53: 10 - 2 | D53: غ | E53: غ | F53: غ | G53: غ | H53: غ | I53: غ | J53: غ | K53: غ | L53: غ | M53: غ | N53: دور ثانى | O53: غ | P53: غ | R53: الرياضيات / الدراسات الاجتماعية / الحوسبة وتكنولوجيا المعلومات / الكيمياء / الفيزياء / الأحياء / التربية الإسلامية / اللغة العربية / اللغة الإنجليزية / | T53: x | U53: x | V53: x | W53: x | X53: x | Y53: x | Z53: x | AA53: x | AB53: x | AC53: 0 | AD53: 9 | AE53: دور ثانى | AF53: الرياضيات / | AG53: الدراسات الاجتماعية / | AH53: الحوسبة وتكنولوجيا المعلومات / | AI53: الكيمياء / | AJ53: الفيزياء / | AK53: الأحياء / | AL53: التربية الإسلامية / | AM53: اللغة العربية / | AN53: اللغة الإنجليزية / | AP53: 43 | AQ53: خالد طارق عبدالرحمن فوزي رامون | AR53: غ | AS53: غ | AT53: دور ثانى
A54: 44 | B54: خالد ناصر محمد ناصر الدهيمى | C54: 10 - 2 | D54: 14 | E54: 27 | F54: 19.5 | G54: 19.5 | H54: 23 | I54: 25 | J54: 25 | K54: 24.5 | L54: 26 | M54: 203.5 | N54: دور ثانى | O54: 0.7537037037 | P54: جيد جدا | R54: الرياضيات / | T54: x | AC54: 8 | AD54: 1 | AE54: دور ثانى | AF54: الرياضيات / | AP54: 44 | AQ54: خالد ناصر محمد ناصر الدهيمى | AR54: 203.5000185 | AS54: 75 | AT54: دور ثانى
A55: 45 | B55: راشد حمد على البكرى اليافعى | C55: 10 - 2 | D55: 23 | E55: 24 | F55: 20 | G55: 19.5 | H55: 23 | I55: 17.5 | J55: 22.5 | K55: 23.5 | L55: 21 | M55: 194 | N55: ناجح | O55: 0.7185185185 | P55: جيد | AC55: 9 | AD55: 0 | AE55: ناجح | AP55: 45 | AQ55: راشد حمد على البكرى اليافعى | AR55: 194.0000182 | AS55: 88 | AT55: ناجح
A56: 46 | B56: رامي سعد فراج فرج علي | C56: 10 - 2 | D56: 18 | E56: 24 | F56: 27.5 | G56: 23 | H56: 25 | I56: 23.5 | J56: 26 | K56: 28 | L56: 26 | M56: 221 | N56: ناجح | O56: 0.8185185185 | P56: جيد جدا | AC56: 9 | AD56: 0 | AE56: ناجح | AP56: 46 | AQ56: رامي سعد فراج فرج علي | AR56: 221.0000179 | AS56: 50 | AT56: ناجح
A57: 47 | B57: زكي واءلئ شحده عطيه ابوعيده | C57: 10 - 2 | D57: 24.5 | E57: 28 | F57: 27 | G57: 20 | H57: 26 | I57: 20 | J57: 19.5 | K57: 20 | L57: 26 | M57: 211 | N57: ناجح | O57: 0.7814814815 | P57: جيد جدا | AC57: 9 | AD57: 0 | AE57: ناجح | AP57: 47 | AQ57: زكي واءلئ شحده عطيه ابوعيده | AR57: 211.0000175 | AS57: 61 | AT57: ناجح
A58: 48 | B58: زيد محمود احمد خشان | C58: 10 - 2 | D58: 23.5 | E58: 29 | F58: 21 | G58: 20.5 | H58: 29 | I58: 14 | J58: 29 | K58: 25.5 | L58: 24 | M58: 215.5 | N58: دور ثانى | O58: 0.7981481481 | P58: جيد جدا | R58: الأحياء / | Y58: x | AC58: 8 | AD58: 1 | AE58: دور ثانى | AK58: الأحياء / | AP58: 48 | AQ58: زيد محمود احمد خشان | AR58: 215.5000172 | AS58: 56 | AT58: دور ثانى
A59: 49 | B59: سالم محمد سالم البطى الكعبى | C59: 10 - 2 | D59: 8 | E59: 27 | F59: 21 | G59: 16 | H59: 22 | I59: 19 | J59: 19.5 | K59: 20 | L59: 14 | M59: 166.5 | N59: دور ثانى | O59: 0.6166666667 | P59: مقبول | R59: الرياضيات / اللغة الإنجليزية / | T59: x | AB59: x | AC59: 7 | AD59: 2 | AE59: دور ثانى | AF59: الرياضيات / | AN59: اللغة الإنجليزية / | AP59: 49 | AQ59: سالم محمد سالم البطى الكعبى | AR59: 166.5000169 | AS59: 116 | AT59: دور ثانى
A60: 50 | B60: سلمان محمد اسلام ناصر احمد | C60: 10 - 2 | D60: 17 | E60: 16 | F60: 25.5 | G60: 15.5 | H60: 24 | I60: 25 | J60: 22 | K60: 20 | L60: 18 | M60: 183 | N60: ناجح | O60: 0.6777777778 | P60: جيد | AC60: 9 | AD60: 0 | AE60: ناجح | AP60: 50 | AQ60: سلمان محمد اسلام ناصر احمد | AR60: 183.0000167 | AS60: 99 | AT60: ناجح
A61: 51 | B61: سيف فهد موسى حسن على | C61: 10 - 2 | D61: 14.5 | E61: 24 | F61: 24 | G61: 17.5 | H61: 17 | I61: 22 | J61: 21.5 | K61: 15.5 | L61: 18 | M61: 174 | N61: دور ثانى | O61: 0.6444444444 | P61: مقبول | R61: الرياضيات / | T61: x | AC61: 8 | AD61: 1 | AE61: دور ثانى | AF61: الرياضيات / | AP61: 51 | AQ61: =B61 -> سيف فهد موسى حسن على | AR61: =IF(M61="","",IF(M61="غ","غ",M61+1/ROW()*0.001)) -> 174.0000164 | AS61: 108 | AT61: دور ثانى
A62: 52 | B62: عبدالرحمن اشرف فتحى سالم نصار | C62: 10 - 2 | D62: غ | E62: غ | F62: غ | G62: غ | H62: غ | I62: غ | J62: غ | K62: غ | L62: غ | M62: غ | N62: دور ثانى | O62: غ | P62: غ | R62: الرياضيات / الدراسات الاجتماعية / الحوسبة وتكنولوجيا المعلومات / الكيمياء / الفيزياء / الأحياء / التربية الإسلامية / اللغة العربية / اللغة الإنجليزية / | T62: x | U62: x | V62: x | W62: x | X62: x | Y62: x | Z62: x | AA62: x | AB62: x | AC62: 0 | AD62: 9 | AE62: دور ثانى | AF62: الرياضيات / | AG62: الدراسات الاجتماعية / | AH62: الحوسبة وتكنولوجيا المعلومات / | AI62: الكيمياء / | AJ62: الفيزياء / | AK62: الأحياء / | AL62: التربية الإسلامية / | AM62: اللغة العربية / | AN62: اللغة الإنجليزية / | AP62: 52 | AQ62: عبدالرحمن اشرف فتحى سالم نصار | AR62: غ | AS62: غ | AT62: دور ثانى
A63: 53 | B63: عبدالرحمن جمال على صالح سيد | C63: 10 - 2 | D63: 23.5 | E63: 28 | F63: 18 | G63: 13.5 | H63: 27 | I63: 22 | J63: 24.5 | K63: 21 | L63: 25 | M63: 202.5 | N63: دور ثانى | O63: 0.75 | P63: جيد جدا | R63: الكيمياء / | W63: x | AC63: 8 | AD63: 1 | AE63: دور ثانى | AI63: الكيمياء / | AP63: 53 | AQ63: عبدالرحمن جمال على صالح سيد | AR63: 202.5000159 | AS63: 77 | AT63: دور ثانى
A64: 54 | B64: عبدالرحمن محمد محسن البكري | C64: 10 - 2 | D64: 21.5 | E64: 26.5 | F64: 22 | G64: 18 | H64: 24 | I64: 19 | J64: 26.5 | K64: 18 | L64: 21 | M64: 196.5 | N64: ناجح | O64: 0.7277777778 | P64: جيد | AC64: 9 | AD64: 0 | AE64: ناجح | AP64: 54 | AQ64: عبدالرحمن محمد محسن البكري | AR64: 196.5000156 | AS64: 86 | AT64: ناجح
A65: 55 | B65: عبدالرحمن هيثم اديب ابودلو | C65: 10 - 2 | D65: 28 | E65: 26 | F65: 27.5 | G65: 22.5 | H65: 28 | I65: 24 | J65: 26 | K65: 24 | L65: 19 | M65: 225 | N65: ناجح | O65: 0.8333333333 | P65: جيد جدا | AC65: 9 | AD65: 0 | AE65: ناجح | AP65: 55 | AQ65: عبدالرحمن هيثم اديب ابودلو | AR65: 225.0000154 | AS65: 45 | AT65: ناجح
A66: 56 | B66: عبدالرحيم محمد رشيد الديرشوى | C66: 10 - 2 | D66: 13.5 | E66: 26 | F66: 20 | G66: 22 | H66: 25 | I66: 27.5 | J66: 24.5 | K66: 23.5 | L66: 18 | M66: 200 | N66: دور ثانى | O66: 0.7407407407 | P66: جيد | R66: الرياضيات / | T66: x | AC66: 8 | AD66: 1 | AE66: دور ثانى | AF66: الرياضيات / | AP66: 56 | AQ66: عبدالرحيم محمد رشيد الديرشوى | AR66: 200.0000152 | AS66: 82 | AT66: دور ثانى
A67: 57 | B67: عبدالعزيز عوض احمد محمد اليافعى | C67: 10 - 2 | D67: 17 | E67: 23 | F67: 16 | G67: 11 | H67: 25 | I67: 14.5 | J67: 25.5 | K67: 21 | L67: 19 | M67: 172 | N67: دور ثانى | O67: 0.637037037 | P67: مقبول | R67: الكيمياء / الأحياء / | W67: x | Y67: x | AC67: 7 | AD67: 2 | AE67: دور ثانى | AI67: الكيمياء / | AK67: الأحياء / | AP67: 57 | AQ67: عبدالعزيز عوض احمد محمد اليافعى | AR67: 172.0000149 | AS67: 110 | AT67: دور ثانى
A68: 58 | B68: على عبدالحافظ على منصر منيف | C68: 10 - 2 | D68: 27 | E68: 25 | F68: 25.5 | G68: 20 | H68: 28 | I68: 19 | J68: 29 | K68: 24 | L68: 17 | M68: 214.5 | N68: ناجح | O68: 0.7944444444 | P68: جيد جدا | AC68: 9 | AD68: 0 | AE68: ناجح | AP68: 58 | AQ68: على عبدالحافظ على منصر منيف | AR68: 214.5000147 | AS68: 58 | AT68: ناجح
A69: 59 | B69: على نائل محمد عبدالله الخالدى | C69: 10 - 2 | D69: 20 | E69: 20.5 | F69: غ | G69: 6 | H69: 10.5 | I69: 17 | J69: 16.5 | K69: 13 | L69: 24 | M69: 127.5 | N69: دور ثانى | O69: 0.4722222222 | P69: دون المستوى | R69: الحوسبة وتكنولوجيا المعلومات / الكيمياء / الفيزياء / اللغة العربية / | V69: x | W69: x | X69: x | AA69: x | AC69: 5 | AD69: 4 | AE69: دور ثانى | AH69: الحوسبة وتكنولوجيا المعلومات / | AI69: الكيمياء / | AJ69: الفيزياء / | AM69: اللغة العربية / | AP69: 59 | AQ69: على نائل محمد عبدالله الخالدى | AR69: 127.5000145 | AS69: 180 | AT69: دور ثانى
A70: 60 | B70: فيصل محمد راشد جخدب الهميمى | C70: 10 - 2 | D70: 25.5 | E70: 28 | F70: 29.5 | G70: 29 | H70: 27 | I70: 21.5 | J70: 24 | K70: 23.5 | L70: 24 | M70: 232 | N70: ناجح | O70: 0.8592592593 | P70: ممتاز | AC70: 9 | AD70: 0 | AE70: ناجح | AP70: 60 | AQ70: فيصل محمد راشد جخدب الهميمى | AR70: 232.0000143 | AS70: 35 | AT70: ناجح
A71: 61 | B71: قيس محمد داود ابراهيم ابوديه | C71: 10 - 2 | D71: 25.5 | E71: 29 | F71: 26.5 | G71: 29 | H71: 30 | I71: 28 | J71: 30 | K71: 27 | L71: 27 | M71: 252 | N71: ناجح | O71: 0.9333333333 | P71: ممتاز | AC71: 9 | AD71: 0 | AE71: ناجح | AP71: 61 | AQ71: قيس محمد داود ابراهيم ابوديه | AR71: 252.0000141 | AS71: 13 | AT71: ناجح
A72: 62 | B72: لؤي ايهاب محمد احمد محمد | C72: 10 - 2 | D72: 24 | E72: 26.5 | F72: 18.5 | G72: 27 | H72: 27 | I72: 25 | J72: 24 | K72: 22 | L72: 27 | M72: 221 | N72: ناجح | O72: 0.8185185185 | P72: جيد جدا | AC72: 9 | AD72: 0 | AE72: ناجح | AP72: 62 | AQ72: لؤي ايهاب محمد احمد محمد | AR72: 221.0000139 | AS72: 50 | AT72: ناجح
A73: 63 | B73: محمد على راشد محمد انديله | C73: 10 - 2 | D73: 26 | E73: 22 | F73: 27 | G73: 20 | H73: 24 | I73: 20 | J73: 23 | K73: 19 | L73: 23 | M73: 204 | N73: ناجح | O73: 0.7555555556 | P73: جيد جدا | AC73: 9 | AD73: 0 | AE73: ناجح | AP73: 63 | AQ73: محمد على راشد محمد انديله | AR73: 204.0000137 | AS73: 72 | AT73: ناجح
A74: 64 | B74: محمد محمود فاروق العبد | C74: 10 - 2 | D74: 17.5 | E74: 25 | F74: 26 | G74: 14.5 | H74: 20 | I74: 17 | J74: 25 | K74: 22.5 | L74: 26 | M74: 193.5 | N74: دور ثانى | O74: 0.7166666667 | P74: جيد | R74: الكيمياء / | W74: x | AC74: 8 | AD74: 1 | AE74: دور ثانى | AI74: الكيمياء / | AP74: 64 | AQ74: محمد محمود فاروق العبد | AR74: 193.5000135 | AS74: 89 | AT74: دور ثانى
A75: 65 | B75: محمدخير حسين رغفان | C75: 10 - 2 | D75: 25 | E75: 28 | F75: 24.5 | G75: 21 | H75: 27 | I75: 24 | J75: 27 | K75: 20 | L75: 27 | M75: =IF(B75="","",IF(AND(D75="غ",E75="غ",F75="غ",G75="غ",H75="غ",I75="غ",J75="غ",K75="غ",L75="غ"),"غ",SUM(D75,E75,F75,G75,H75,I75,J75,K75,L75))) -> 223.5 | N75: =IF(B75="","",AE75) -> ناجح | O75: =IF(B75="","",IF(M75="غ","غ",M75/$M$10*100/100)) -> 0.8277777778 | P75: جيد جدا | AC75: 9 | AD75: 0 | AE75: ناجح | AP75: 65 | AQ75: محمدخير حسين رغفان | AR75: 223.5000133 | AS75: 49 | AT75: ناجح
A76: =ROW()-10 -> 66 | B76: وليد الامين عثمان | C76: 10 - 2 | D76: 22.5 | E76: 20.5 | F76: 27.5 | G76: 18 | H76: 27 | I76: 24 | J76: 25 | K76: 21 | L76: 23 | M76: 208.5 | N76: ناجح | O76: 0.7722222222 | P76: =IF(M76="","",IF(M76="غ","غ",IF(M76=0,"دون المستوى",IF(M76/$M$10*100>=85,"ممتاز",IF(M76/$M$10*100>=75,"جيد جدا",IF(M76/$M$10*100>=65,"جيد",IF(M76/$M$10*100>=50,"مقبول",IF(M76/$M$10*100<50,"دون المستوى")))))))) -> جيد جدا | R76: =CONCATENATE(AF76,AG76,AH76,AI76,AJ76,AK76,AL76,AM76,AN76) ->  | T76: =IF($B76="","",IF(OR(D76<15,D76="",D76="غ",D76="صفر"=""),"x","")) ->  | U76: =IF($B76="","",IF(OR(E76<15,E76="",E76="غ",E76="صفر"=""),"x","")) ->  | V76: =IF($B76="","",IF(OR(F76<15,F76="",F76="غ",F76="صفر"=""),"x","")) ->  | W76: =IF($B76="","",IF(OR(G76<15,G76="",G76="غ",G76="صفر"=""),"x","")) ->  | X76: =IF($B76="","",IF(OR(H76<15,H76="",H76="غ",H76="صفر"=""),"x","")) ->  | Y76: =IF($B76="","",IF(OR(I76<15,I76="",I76="غ",I76="صفر"=""),"x","")) ->  | Z76: =IF($B76="","",IF(OR(J76<15,J76="",J76="غ",J76="صفر"=""),"x","")) ->  | AA76: =IF($B76="","",IF(OR(K76<15,K76="",K76="غ",K76="صفر"=""),"x","")) ->  | AB76: =IF($B76="","",IF(OR(L76<15,L76="",L76="غ",L76="صفر"=""),"x","")) ->  | AC76: =IF(B76="","",COUNTBLANK(T76:AB76)) -> 9 | AD76: =IF(B76="","",COUNTIF(T76:AB76,"x")) -> 0 | AE76: =IF(B76="","",IF(AC76=9,"ناجح","دور ثانى")) -> ناجح | AF76: =IF(T76="x","الرياضيات / ","") ->  | AG76: =IF(U76="x","الدراسات الاجتماعية / ","") ->  | AH76: =IF(V76="x","الحوسبة وتكنولوجيا المعلومات / ","") ->  | AI76: =IF(W76="x","الكيمياء / ","") ->  | AJ76: =IF(X76="x","الفيزياء / ","") ->  | AK76: =IF(Y76="x","الأحياء / ","") ->  | AL76: =IF(Z76="x","التربية الإسلامية / ","") ->  | AM76: =IF(AA76="x","اللغة العربية / ","") ->  | AN76: =IF(AB76="x","اللغة الإنجليزية / ","") ->  | AP76: 66 | AQ76: وليد الامين عثمان | AR76: 208.5000132 | AS76: =IFERROR(IF(M76=" "," ",IF(M76="غ","غ",RANK(M76,$M$11:$M$247))),"") -> 66 | AT76: =AE76 -> ناجح
A77: 67 | B77: يزيد سامح حسنى محيسن | C77: 10 - 2 | D77: 30 | E77: 30 | F77: 27.5 | G77: 30 | H77: 30 | I77: 29 | J77: 26 | K77: 26 | L77: 22 | M77: 250.5 | N77: ناجح | O77: 0.9277777778 | P77: ممتاز | AC77: 9 | AD77: 0 | AE77: ناجح | AP77: 67 | AQ77: يزيد سامح حسنى محيسن | AR77: 250.500013 | AS77: 14 | AT77: ناجح
A78: 68 | B78: يوسف محمد عطيه عطيه حسن | C78: 10 - 2 | D78: 29 | E78: 27 | F78: 28 | G78: 30 | H78: 29 | I78: 30 | J78: 23 | K78: 27 | L78: 26 | M78: 249 | N78: ناجح | O78: 0.9222222222 | P78: ممتاز | AC78: 9 | AD78: 0 | AE78: ناجح | AP78: 68 | AQ78: يوسف محمد عطيه عطيه حسن | AR78: 249.0000128 | AS78: 18 | AT78: ناجح
A79: 69 | B79: احمد حافظ محمد ابوالكلام كبيرالدين | C79: 10 - 3 | D79: 9.5 | E79: 18.5 | F79: 20.5 | G79: 12 | H79: 16 | I79: 11 | J79: 20 | K79: 15 | L79: 17 | M79: 139.5 | N79: دور ثانى | O79: 0.5166666667 | P79: مقبول | R79: الرياضيات / الكيمياء / الأحياء / | T79: x | W79: x | Y79: x | AC79: 6 | AD79: 3 | AE79: دور ثانى | AF79: الرياضيات / | AI79: الكيمياء / | AK79: الأحياء / | AP79: 69 | AQ79: احمد حافظ محمد ابوالكلام كبيرالدين | AR79: 139.5000127 | AS79: 159 | AT79: دور ثانى
A80: 70 | B80: احمد محمد احمد قنبر بلال | C80: 10 - 3 | D80: 16 | E80: 24 | F80: 22.5 | G80: 11 | H80: 16 | I80: 14 | J80: 17.5 | K80: 8 | L80: 12.5 | M80: 141.5 | N80: دور ثانى | O80: 0.5240740741 | P80: مقبول | R80: الكيمياء / الأحياء / اللغة العربية / اللغة الإنجليزية / | W80: x | Y80: x | AA80: x | AB80: x | AC80: 5 | AD80: 4 | AE80: دور ثانى | AI80: الكيمياء / | AK80: الأحياء / | AM80: اللغة العربية / | AN80: اللغة الإنجليزية / | AP80: 70 | AQ80: احمد محمد احمد قنبر بلال | AR80: 141.5000125 | AS80: 157 | AT80: دور ثانى
A81: 71 | B81: امان رشيد خان جول جنان | C81: 10 - 3 | D81: 12.5 | E81: 15.5 | F81: 21.5 | G81: 11 | H81: 10.5 | I81: 14 | J81: 13 | K81: 13 | L81: 15 | M81: 126 | N81: دور ثانى | O81: 0.4666666667 | P81: دون المستوى | R81: الرياضيات / الكيمياء / الفيزياء / الأحياء / التربية الإسلامية / اللغة العربية / | T81: x | W81: x | X81: x | Y81: x | Z81: x | AA81: x | AC81: 3 | AD81: 6 | AE81: دور ثانى | AF81: الرياضيات / | AI81: الكيمياء / | AJ81: الفيزياء / | AK81: الأحياء / | AL81: التربية الإسلامية / | AM81: اللغة العربية / | AP81: 71 | AQ81: امان رشيد خان جول جنان | AR81: 126.0000123 | AS81: 182 | AT81: دور ثانى
A82: 72 | B82: ايسر جهاد عبدالفتاح كراز | C82: 10 - 3 | D82: 5 | E82: 18.5 | F82: 24.5 | G82: 15 | H82: 10.5 | I82: 14 | J82: 16 | K82: 15 | L82: 8 | M82: 126.5 | N82: دور ثانى | O82: 0.4685185185 | P82: دون المستوى | R82: الرياضيات / الفيزياء / الأحياء / اللغة الإنجليزية / | T82: x | X82: x | Y82: x | AB82: x | AC82: 5 | AD82: 4 | AE82: دور ثانى | AF82: الرياضيات / | AJ82: الفيزياء / | AK82: الأحياء / | AN82: اللغة الإنجليزية / | AP82: 72 | AQ82: ايسر جهاد عبدالفتاح كراز | AR82: 126.5000122 | AS82: 181 | AT82: دور ثانى
A83: 73 | B83: بخيت مبخوت سالم سعيد خوار | C83: 10 - 3 | D83: 22.5 | E83: 16 | F83: 25.5 | G83: 17.5 | H83: 21 | I83: 13 | J83: 14 | K83: 17 | L83: 14.5 | M83: 161 | N83: دور ثانى | O83: 0.5962962963 | P83: مقبول | R83: الأحياء / التربية الإسلامية / اللغة الإنجليزية / | Y83: x | Z83: x | AB83: x | AC83: 6 | AD83: 3 | AE83: دور ثانى | AK83: الأحياء / | AL83: التربية الإسلامية / | AN83: اللغة الإنجليزية / | AP83: 73 | AQ83: بخيت مبخوت سالم سعيد خوار | AR83: 161.000012 | AS83: 127 | AT83: دور ثانى
A84: 74 | B84: تميم محمد ابراهيم محمد فلامرزى | C84: 10 - 3 | D84: 10.5 | E84: 8 | F84: 19.5 | G84: 14 | H84: 15 | I84: 7.5 | J84: 11 | K84: 13 | L84: 12 | M84: 110.5 | N84: دور ثانى | O84: 0.4092592593 | P84: دون المستوى | R84: الرياضيات / الدراسات الاجتماعية / الكيمياء / الأحياء / التربية الإسلامية / اللغة العربية / اللغة الإنجليزية / | T84: x | U84: x | W84: x | Y84: x | Z84: x | AA84: x | AB84: x | AC84: 2 | AD84: 7 | AE84: دور ثانى | AF84: الرياضيات / | AG84: الدراسات الاجتماعية / | AI84: الكيمياء / | AK84: الأحياء / | AL84: التربية الإسلامية / | AM84: اللغة العربية / | AN84: اللغة الإنجليزية / | AP84: 74 | AQ84: تميم محمد ابراهيم محمد فلامرزى | AR84: 110.5000119 | AS84: 204 | AT84: دور ثانى
A85: 75 | B85: جابر سعد سالم النابت المرى | C85: 10 - 3 | D85: 11 | E85: 19 | F85: 18.5 | G85: 13 | H85: 15.5 | I85: 6.5 | J85: 14 | K85: 15 | L85: 9.5 | M85: 122 | N85: دور ثانى | O85: 0.4518518519 | P85: دون المستوى | R85: الرياضيات / الكيمياء / الأحياء / التربية الإسلامية / اللغة الإنجليزية / | T85: x | W85: x | Y85: x | Z85: x | AB85: x | AC85: 4 | AD85: 5 | AE85: دور ثانى | AF85: الرياضيات / | AI85: الكيمياء / | AK85: الأحياء / | AL85: التربية الإسلامية / | AN85: اللغة الإنجليزية / | AP85: 75 | AQ85: جابر سعد سالم النابت المرى | AR85: 122.0000118 | AS85: 187 | AT85: دور ثانى
A86: 76 | B86: جاسم عبدالله خالد عبدالله الكثيرى | C86: 10 - 3 | D86: 19 | E86: 17.5 | F86: 18 | G86: 9.5 | H86: 15 | I86: 13 | J86: 15.5 | K86: 16 | L86: 6 | M86: 129.5 | N86: دور ثانى | O86: 0.4796296296 | P86: دون المستوى | R86: الكيمياء / الأحياء / اللغة الإنجليزية / | W86: x | Y86: x | AB86: x | AC86: 6 | AD86: 3 | AE86: دور ثانى | AI86: الكيمياء / | AK86: الأحياء / | AN86: اللغة الإنجليزية / | AP86: 76 | AQ86: جاسم عبدالله خالد عبدالله الكثيرى | AR86: 129.5000116 | AS86: 174 | AT86: دور ثانى
A87: 77 | B87: حمد راشد حمد ال شابل المرى | C87: 10 - 3 | D87: 20 | E87: 16 | F87: 16 | G87: 12 | H87: 19 | I87: 11 | J87: 20 | K87: 18.5 | L87: 8.5 | M87: 141 | N87: دور ثانى | O87: 0.5222222222 | P87: مقبول | R87: الكيمياء / الأحياء / اللغة الإنجليزية / | W87: x | Y87: x | AB87: x | AC87: 6 | AD87: 3 | AE87: دور ثانى | AI87: الكيمياء / | AK87: الأحياء / | AN87: اللغة الإنجليزية / | AP87: 77 | AQ87: حمد راشد حمد ال شابل المرى | AR87: 141.0000115 | AS87: 158 | AT87: دور ثانى
A88: 78 | B88: خالد حسين بلوج زنى | C88: 10 - 3 | D88: 7.5 | E88: 5.5 | F88: 20.5 | G88: 6 | H88: 11 | I88: 8 | J88: 14.5 | K88: 14 | L88: 14 | M88: 101 | N88: دور ثانى | O88: 0.3740740741 | P88: دون المستوى | R88: الرياضيات / الدراسات الاجتماعية / الكيمياء / الفيزياء / الأحياء / التربية الإسلامية / اللغة العربية / اللغة الإنجليزية / | T88: x | U88: x | W88: x | X88: x | Y88: x | Z88: x | AA88: x | AB88: x | AC88: 1 | AD88: 8 | AE88: دور ثانى | AF88: الرياضيات / | AG88: الدراسات الاجتماعية / | AI88: الكيمياء / | AJ88: الفيزياء / | AK88: الأحياء / | AL88: التربية الإسلامية / | AM88: اللغة العربية / | AN88: اللغة الإنجليزية / | AP88: 78 | AQ88: خالد حسين بلوج زنى | AR88: 101.0000114 | AS88: 213 | AT88: دور ثانى
A89: 79 | B89: خلف فرحان عقيل الرويلى العنزى | C89: 10 - 3 | D89: 13 | E89: 13.5 | F89: 21.5 | G89: 7 | H89: 14.5 | I89: 11 | J89: 12 | K89: 9 | L89: 10 | M89: 111.5 | N89: دور ثانى | O89: 0.412962963 | P89: دون المستوى | R89: الرياضيات / الدراسات الاجتماعية / الكيمياء / الفيزياء / الأحياء / التربية الإسلامية / اللغة العربية / اللغة الإنجليزية / | T89: x | U89: x | W89: x | X89: x | Y89: x | Z89: x | AA89: x | AB89: x | AC89: 1 | AD89: 8 | AE89: دور ثانى | AF89: الرياضيات / | AG89: الدراسات الاجتماعية / | AI89: الكيمياء / | AJ89: الفيزياء / | AK89: الأحياء / | AL89: التربية الإسلامية / | AM89: اللغة العربية / | AN89: اللغة الإنجليزية / | AP89: 79 | AQ89: خلف فرحان عقيل الرويلى العنزى | AR89: 111.5000112 | AS89: 200 | AT89: دور ثانى
A90: 80 | B90: راشد خالد على محمد النديله | C90: 10 - 3 | D90: 24 | E90: 12 | F90: 21 | G90: 17.5 | H90: 23 | I90: 18 | J90: 19 | K90: 20 | L90: 16.5 | M90: 171 | N90: دور ثانى | O90: 0.6333333333 | P90: مقبول | R90: الدراسات الاجتماعية / | U90: x | AC90: 8 | AD90: 1 | AE90: دور ثانى | AG90: الدراسات الاجتماعية / | AP90: 80 | AQ90: راشد خالد على محمد النديله | AR90: 171.0000111 | AS90: 111 | AT90: دور ثانى
A91: 81 | B91: سالم سعد سالم النابت المرى | C91: 10 - 3 | D91: 4.5 | E91: 15 | F91: 19 | G91: 13 | H91: 18.5 | I91: 11.5 | J91: 11 | K91: 12 | L91: 6.5 | M91: 111 | N91: دور ثانى | O91: 0.4111111111 | P91: دون المستوى | R91: الرياضيات / الكيمياء / الأحياء / التربية الإسلامية / اللغة العربية / اللغة الإنجليزية / | T91: x | W91: x | Y91: x | Z91: x | AA91: x | AB91: x | AC91: 3 | AD91: 6 | AE91: دور ثانى | AF91: الرياضيات / | AI91: الكيمياء / | AK91: الأحياء / | AL91: التربية الإسلامية / | AM91: اللغة العربية / | AN91: اللغة الإنجليزية / | AP91: 81 | AQ91: سالم سعد سالم النابت المرى | AR91: 111.000011 | AS91: 202 | AT91: دور ثانى
A92: 82 | B92: سالم على محمد سالم خوار | C92: 10 - 3 | D92: 10 | E92: 15 | F92: 20.5 | G92: 9 | H92: 17 | I92: 8 | J92: 13.5 | K92: 14 | L92: غ | M92: 107 | N92: دور ثانى | O92: 0.3962962963 | P92: دون المستوى | R92: الرياضيات / الكيمياء / الأحياء / التربية الإسلامية / اللغة العربية / اللغة الإنجليزية / | T92: x | W92: x | Y92: x | Z92: x | AA92: x | AB92: x | AC92: 3 | AD92: 6 | AE92: دور ثانى | AF92: الرياضيات / | AI92: الكيمياء / | AK92: الأحياء / | AL92: التربية الإسلامية / | AM92: اللغة العربية / | AN92: اللغة الإنجليزية / | AP92: 82 | AQ92: سالم على محمد سالم خوار | AR92: 107.0000109 | AS92: 208 | AT92: دور ثانى
A93: 83 | B93: سعيد حسين ناصر ال شافعه المرى | C93: 10 - 3 | D93: 16.5 | E93: 13.5 | F93: 21.5 | G93: 9 | H93: 16 | I93: 12 | J93: 18.5 | K93: 16 | L93: 16 | M93: 139 | N93: دور ثانى | O93: 0.5148148148 | P93: مقبول | R93: الدراسات الاجتماعية / الكيمياء / الأحياء / | U93: x | W93: x | Y93: x | AC93: 6 | AD93: 3 | AE93: دور ثانى | AG93: الدراسات الاجتماعية / | AI93: الكيمياء / | AK93: الأحياء / | AP93: 83 | AQ93: =B93 -> سعيد حسين ناصر ال شافعه المرى | AR93: 139.0000108 | AS93: 162 | AT93: دور ثانى
A94: 84 | B94: شاهين علي | C94: 10 - 3 | D94: 20 | E94: 10 | F94: 22 | G94: 8 | H94: 13 | I94: 10 | J94: 12 | K94: 11 | L94: 24.5 | M94: 130.5 | N94: دور ثانى | O94: 0.4833333333 | P94: دون المستوى | R94: الدراسات الاجتماعية / الكيمياء / الفيزياء / الأحياء / التربية الإسلامية / اللغة العربية / | U94: x | W94: x | X94: x | Y94: x | Z94: x | AA94: x | AC94: 3 | AD94: 6 | AE94: دور ثانى | AG94: الدراسات الاجتماعية / | AI94: الكيمياء / | AJ94: الفيزياء / | AK94: الأحياء / | AL94: التربية الإسلامية / | AM94: اللغة العربية / | AP94: 84 | AQ94: شاهين علي | AR94: 130.5000106 | AS94: 171 | AT94: دور ثانى
A95: 85 | B95: عبدالرحمن فرج محمد المشعلى القحطانى | C95: 10 - 3 | D95: 15.5 | E95: 12.5 | F95: 21 | G95: 12 | H95: 26 | I95: 13 | J95: 26.5 | K95: 18 | L95: 17.5 | M95: 162 | N95: دور ثانى | O95: 0.6 | P95: مقبول | R95: الدراسات الاجتماعية / الكيمياء / الأحياء / | U95: x | W95: x | Y95: x | AC95: 6 | AD95: 3 | AE95: دور ثانى | AG95: الدراسات الاجتماعية / | AI95: الكيمياء / | AK95: الأحياء / | AP95: 85 | AQ95: عبدالرحمن فرج محمد المشعلى القحطانى | AR95: 162.0000105 | AS95: 125 | AT95: دور ثانى
A96: 86 | B96: عبدالرشيد حسين عبدي | C96: 10 - 3 | D96: 12 | E96: 16.5 | F96: 22 | G96: 7 | H96: 16 | I96: 7.5 | J96: 12 | K96: 15 | L96: 8 | M96: 116 | N96: دور ثانى | O96: 0.4296296296 | P96: دون المستوى | R96: الرياضيات / الكيمياء / الأحياء / التربية الإسلامية / اللغة الإنجليزية / | T96: x | W96: x | Y96: x | Z96: x | AB96: x | AC96: 4 | AD96: 5 | AE96: دور ثانى | AF96: الرياضيات / | AI96: الكيمياء / | AK96: الأحياء / | AL96: التربية الإسلامية / | AN96: اللغة الإنجليزية / | AP96: 86 | AQ96: عبدالرشيد حسين عبدي | AR96: 116.0000104 | AS96: 194 | AT96: دور ثانى
A97: 87 | B97: عبدالله سعيد بخيت سعيد خوار | C97: 10 - 3 | D97: 15 | E97: 11.5 | F97: 14 | G97: 13.5 | H97: 20 | I97: 13.5 | J97: 18.5 | K97: 22 | L97: 15.5 | M97: 143.5 | N97: دور ثانى | O97: 0.5314814815 | P97: مقبول | R97: الدراسات الاجتماعية / الحوسبة وتكنولوجيا المعلومات / الكيمياء / الأحياء / | U97: x | V97: x | W97: x | Y97: x | AC97: 5 | AD97: 4 | AE97: دور ثانى | AG97: الدراسات الاجتماعية / | AH97: الحوسبة وتكنولوجيا المعلومات / | AI97: الكيمياء / | AK97: الأحياء / | AP97: 87 | AQ97: عبدالله سعيد بخيت سعيد خوار | AR97: 143.5000103 | AS97: 155 | AT97: دور ثانى
A98: 88 | B98: عبدالله سعيد عبدالله آل نابت المرى | C98: 10 - 3 | D98: 22.5 | E98: 15.5 | F98: 15 | G98: 15.5 | H98: 22.5 | I98: 11 | J98: 14 | K98: 14 | L98: 16.5 | M98: 146.5 | N98: دور ثانى | O98: 0.5425925926 | P98: مقبول | R98: الأحياء / التربية الإسلامية / اللغة العربية / | Y98: x | Z98: x | AA98: x | AC98: 6 | AD98: 3 | AE98: دور ثانى | AK98: الأحياء / | AL98: التربية الإسلامية / | AM98: اللغة العربية / | AP98: 88 | AQ98: عبدالله سعيد عبدالله آل نابت المرى | AR98: 146.5000102 | AS98: 152 | AT98: دور ثانى
A99: 89 | B99: عبدالله عادل خصيف | C99: 10 - 3 | D99: غ | E99: غ | F99: غ | G99: غ | H99: غ | I99: غ | J99: غ | K99: غ | L99: غ | M99: غ | N99: دور ثانى | O99: غ | P99: غ | R99: الرياضيات / الدراسات الاجتماعية / الحوسبة وتكنولوجيا المعلومات / الكيمياء / الفيزياء / الأحياء / التربية الإسلامية / اللغة العربية / اللغة الإنجليزية / | T99: x | U99: x | V99: x | W99: x | X99: x | Y99: x | Z99: x | AA99: x | AB99: x | AC99: 0 | AD99: 9 | AE99: دور ثانى | AF99: الرياضيات / | AG99: الدراسات الاجتماعية / | AH99: الحوسبة وتكنولوجيا المعلومات / | AI99: الكيمياء / | AJ99: الفيزياء / | AK99: الأحياء / | AL99: التربية الإسلامية / | AM99: اللغة العربية / | AN99: اللغة الإنجليزية / | AP99: 89 | AQ99: عبدالله عادل خصيف | AR99: غ | AS99: غ | AT99: دور ثانى
A100: 90 | B100: عبدالله مبارك سالم بطى الكعبى | C100: 10 - 3 | D100: 20.5 | E100: 21 | F100: 18 | G100: 16.5 | H100: 29 | I100: 13 | J100: 16 | K100: 17.5 | L100: 19 | M100: 170.5 | N100: دور ثانى | O100: 0.6314814815 | P100: مقبول | R100: الأحياء / | Y100: x | AC100: 8 | AD100: 1 | AE100: دور ثانى | AK100: الأحياء / | AP100: 90 | AQ100: عبدالله مبارك سالم بطى الكعبى | AR100: 170.50001 | AS100: 112 | AT100: دور ثانى
A101: 91 | B101: على عجيم على عجيم الحبابى | C101: 10 - 3 | D101: 15 | E101: 26.5 | F101: 21 | G101: 19 | H101: 19 | I101: 11.5 | J101: 12 | K101: 15 | L101: 19 | M101: 158 | N101: دور ثانى | O101: 0.5851851852 | P101: مقبول | R101: الأحياء / التربية الإسلامية / | Y101: x | Z101: x | AC101: 7 | AD101: 2 | AE101: دور ثانى | AK101: الأحياء / | AL101: التربية الإسلامية / | AP101: 91 | AQ101: على عجيم على عجيم الحبابى | AR101: 158.0000099 | AS101: 132 | AT101: دور ثانى
A102: 92 | B102: على فهد على احمد محمد | C102: 10 - 3 | D102: 15 | E102: 10.5 | F102: 15 | G102: 9 | H102: 18 | I102: 9 | J102: 17 | K102: 19 | L102: 16.5 | M102: 129 | N102: دور ثانى | O102: 0.4777777778 | P102: دون المستوى | R102: الدراسات الاجتماعية / الكيمياء / الأحياء / | U102: x | W102: x | Y102: x | AC102: 6 | AD102: 3 | AE102: دور ثانى | AG102: الدراسات الاجتماعية / | AI102: الكيمياء / | AK102: الأحياء / | AP102: 92 | AQ102: على فهد على احمد محمد | AR102: 129.0000098 | AS102: 176 | AT102: دور ثانى
A103: 93 | B103: عمر عبيدالله روح الامين مريضا | C103: 10 - 3 | D103: 11 | E103: 8.5 | F103: 19.5 | G103: 10 | H103: 9 | I103: 10.5 | J103: 18.5 | K103: 13 | L103: 25.5 | M103: 125.5 | N103: دور ثانى | O103: 0.4648148148 | P103: دون المستوى | R103: الرياضيات / الدراسات الاجتماعية / الكيمياء / الفيزياء / الأحياء / اللغة العربية / | T103: x | U103: x | W103: x | X103: x | Y103: x | AA103: x | AC103: 3 | AD103: 6 | AE103: دور ثانى | AF103: الرياضيات / | AG103: الدراسات الاجتماعية / | AI103: الكيمياء / | AJ103: الفيزياء / | AK103: الأحياء / | AM103: اللغة العربية / | AP103: 93 | AQ103: عمر عبيدالله روح الامين مريضا | AR103: 125.5000097 | AS103: 183 | AT103: دور ثانى
A104: 94 | B104: ماجد صلاح خميس يوسف ابراهيم | C104: 10 - 3 | D104: غ | E104: غ | F104: غ | G104: غ | H104: غ | I104: 6 | J104: 11 | K104: غ | L104: 5 | M104: 22 | N104: دور ثانى | O104: 0.08148148148 | P104: دون المستوى | R104: الرياضيات / الدراسات الاجتماعية / الحوسبة وتكنولوجيا المعلومات / الكيمياء / الفيزياء / الأحياء / التربية الإسلامية / اللغة العربية / اللغة الإنجليزية / | T104: x | U104: x | V104: x | W104: x | X104: x | Y104: x | Z104: x | AA104: x | AB104: x | AC104: 0 | AD104: 9 | AE104: دور ثانى | AF104: الرياضيات / | AG104: الدراسات الاجتماعية / | AH104: الحوسبة وتكنولوجيا المعلومات / | AI104: الكيمياء / | AJ104: الفيزياء / | AK104: الأحياء / | AL104: التربية الإسلامية / | AM104: اللغة العربية / | AN104: اللغة الإنجليزية / | AP104: 94 | AQ104: ماجد صلاح خميس يوسف ابراهيم | AR104: 22.00000962 | AS104: 227 | AT104: دور ثانى
A105: 95 | B105: محمد عبدالله عبدالله ابراهيم الخليفى | C105: 10 - 3 | D105: 19.5 | E105: 14.5 | F105: 23 | G105: 15.5 | H105: 13 | I105: 5 | J105: 13 | K105: 12 | L105: 15.5 | M105: 131 | N105: دور ثانى | O105: 0.4851851852 | P105: دون المستوى | R105: الدراسات الاجتماعية / الفيزياء / الأحياء / التربية الإسلامية / اللغة العربية / | U105: x | X105: x | Y105: x | Z105: x | AA105: x | AC105: 4 | AD105: 5 | AE105: دور ثانى | AG105: الدراسات الاجتماعية / | AJ105: الفيزياء / | AK105: الأحياء / | AL105: التربية الإسلامية / | AM105: اللغة العربية / | AP105: 95 | AQ105: محمد عبدالله عبدالله ابراهيم الخليفى | AR105: 131.0000095 | AS105: 170 | AT105: دور ثانى
A106: 96 | B106: محمد عبدالله محمد جاسم السويدى | C106: 10 - 3 | D106: 22.5 | E106: 13 | F106: 17 | G106: 19 | H106: 11 | I106: 0 | J106: 14.5 | K106: 17 | L106: 16.5 | M106: 130.5 | N106: دور ثانى | O106: 0.4833333333 | P106: دون المستوى | R106: الدراسات الاجتماعية / الفيزياء / الأحياء / التربية الإسلامية / | U106: x | X106: x | Y106: x | Z106: x | AC106: 5 | AD106: 4 | AE106: دور ثانى | AG106: الدراسات الاجتماعية / | AJ106: الفيزياء / | AK106: الأحياء / | AL106: التربية الإسلامية / | AP106: 96 | AQ106: محمد عبدالله محمد جاسم السويدى | AR106: 130.5000094 | AS106: 171 | AT106: دور ثانى
A107: 97 | B107: محمدزين عبدالحميد المبارك على | C107: 10 - 3 | D107: 12 | E107: 14.5 | F107: 13 | G107: 16 | H107: 15 | I107: 8 | J107: 12 | K107: 17 | L107: 14.5 | M107: 122 | N107: دور ثانى | O107: 0.4518518519 | P107: دون المستوى | R107: الرياضيات / الدراسات الاجتماعية / الحوسبة وتكنولوجيا المعلومات / الأحياء / التربية الإسلامية / اللغة الإنجليزية / | T107: x | U107: x | V107: x | Y107: x | Z107: x | AB107: x | AC107: 3 | AD107: 6 | AE107: دور ثانى | AF107: الرياضيات / | AG107: الدراسات الاجتماعية / | AH107: الحوسبة وتكنولوجيا المعلومات / | AK107: الأحياء / | AL107: التربية الإسلامية / | AN107: اللغة الإنجليزية / | AP107: =A107 -> 97 | AQ107: محمدزين عبدالحميد المبارك على | AR107: 122.0000093 | AS107: 187 | AT107: دور ثانى
A108: 98 | B108: محمود اسعد الحاج الخلف | C108: 10 - 3 | D108: 10.5 | E108: 17.5 | F108: 16 | G108: 7 | H108: 19 | I108: 12 | J108: 17.5 | K108: 17.5 | L108: 18 | M108: 135 | N108: دور ثانى | O108: 0.5 | P108: مقبول | R108: الرياضيات / الكيمياء / الأحياء / | T108: x | W108: x | Y108: x | AC108: 6 | AD108: 3 | AE108: دور ثانى | AF108: الرياضيات / | AI108: الكيمياء / | AK108: الأحياء / | AP108: 98 | AQ108: محمود اسعد الحاج الخلف | AR108: 135.0000093 | AS108: 166 | AT108: دور ثانى
A109: 99 | B109: مسفر سعد محمد ذفال الحبابى | C109: 10 - 3 | D109: غ | E109: غ | F109: غ | G109: غ | H109: غ | I109: 12 | J109: 13 | K109: غ | L109: 13 | M109: 38 | N109: دور ثانى | O109: 0.1407407407 | P109: دون المستوى | R109: الرياضيات / الدراسات الاجتماعية / الحوسبة وتكنولوجيا المعلومات / الكيمياء / الفيزياء / الأحياء / التربية الإسلامية / اللغة العربية / اللغة الإنجليزية / | T109: x | U109: x | V109: x | W109: x | X109: x | Y109: x | Z109: x | AA109: x | AB109: x | AC109: 0 | AD109: 9 | AE109: دور ثانى | AF109: الرياضيات / | AG109: الدراسات الاجتماعية / | AH109: الحوسبة وتكنولوجيا المعلومات / | AI109: الكيمياء / | AJ109: الفيزياء / | AK109: الأحياء / | AL109: التربية الإسلامية / | AM109: اللغة العربية / | AN109: اللغة الإنجليزية / | AP109: 99 | AQ109: مسفر سعد محمد ذفال الحبابى | AR109: 38.00000917 | AS109: 226 | AT109: دور ثانى
A110: 100 | B110: ناصر جهان بخش مرادك درزاده | C110: 10 - 3 | D110: 7.5 | E110: 7 | F110: 20 | G110: 15 | H110: 11 | I110: 13.5 | J110: 15.5 | K110: 17.5 | L110: 14 | M110: 121 | N110: دور ثانى | O110: 0.4481481481 | P110: دون المستوى | R110: الرياضيات / الدراسات الاجتماعية / الفيزياء / الأحياء / اللغة الإنجليزية / | T110: x | U110: x | X110: x | Y110: x | AB110: x | AC110: 4 | AD110: 5 | AE110: دور ثانى | AF110: الرياضيات / | AG110: الدراسات الاجتماعية / | AJ110: الفيزياء / | AK110: الأحياء / | AN110: اللغة الإنجليزية / | AP110: 100 | AQ110: ناصر جهان بخش مرادك درزاده | AR110: 121.0000091 | AS110: 190 | AT110: دور ثانى
A111: 101 | B111: ناصر محمد خالد احمد الغانم | C111: 10 - 3 | D111: 8 | E111: 10 | F111: 20 | G111: 11 | H111: 20 | I111: 9.5 | J111: 17 | K111: 14 | L111: 12 | M111: 121.5 | N111: دور ثانى | O111: 0.45 | P111: دون المستوى | R111: الرياضيات / الدراسات الاجتماعية / الكيمياء / الأحياء / اللغة العربية / اللغة الإنجليزية / | T111: x | U111: x | W111: x | Y111: x | AA111: x | AB111: x | AC111: 3 | AD111: 6 | AE111: دور ثانى | AF111: الرياضيات / | AG111: الدراسات الاجتماعية / | AI111: الكيمياء / | AK111: الأحياء / | AM111: اللغة العربية / | AN111: اللغة الإنجليزية / | AP111: 101 | AQ111: ناصر محمد خالد احمد الغانم | AR111: 121.500009 | AS111: 189 | AT111: دور ثانى
A112: 102 | B112: يوسف صالح على عبدالعزيز على | C112: 10 - 3 | D112: 23 | E112: 10 | F112: 18.5 | G112: 16.5 | H112: 23 | I112: 15.5 | J112: 10 | K112: 16 | L112: 23.5 | M112: 156 | N112: دور ثانى | O112: 0.5777777778 | P112: مقبول | R112: الدراسات الاجتماعية / التربية الإسلامية / | U112: x | Z112: x | AC112: 7 | AD112: 2 | AE112: دور ثانى | AG112: الدراسات الاجتماعية / | AL112: التربية الإسلامية / | AP112: 102 | AQ112: يوسف صالح على عبدالعزيز على | AR112: 156.0000089 | AS112: 137 | AT112: دور ثانى
A113: 103 | B113: احمد رائد سليمان المومني | C113: 10 - 4 | D113: 11.5 | E113: 21 | F113: 27 | G113: 11.5 | H113: 20 | I113: 10.5 | J113: 22 | K113: 22 | L113: 18.5 | M113: 164 | N113: دور ثانى | O113: 0.6074074074 | P113: مقبول | R113: الرياضيات / الكيمياء / الأحياء / | T113: x | W113: x | Y113: x | AC113: 6 | AD113: 3 | AE113: دور ثانى | AF113: الرياضيات / | AI113: الكيمياء / | AK113: الأحياء / | AP113: 103 | AQ113: احمد رائد سليمان المومني | AR113: 164.0000088 | AS113: 120 | AT113: دور ثانى
A114: 104 | B114: أحمد نافذ حماده حموده | C114: 10 - 4 | D114: 12 | E114: 22 | F114: 18 | G114: 20.5 | H114: 17 | I114: 12 | J114: 23 | K114: 17.5 | L114: 18 | M114: 160 | N114: دور ثانى | O114: 0.5925925926 | P114: مقبول | R114: الرياضيات / الأحياء / | T114: x | Y114: x | AC114: 7 | AD114: 2 | AE114: دور ثانى | AF114: الرياضيات / | AK114: الأحياء / | AP114: 104 | AQ114: أحمد نافذ حماده حموده | AR114: 160.0000088 | AS114: 128 | AT114: دور ثانى
A115: 105 | B115: أحمد يوسف خالد يوسف شراب | C115: 10 - 4 | D115: 16.5 | E115: 20 | F115: 16 | G115: 19.5 | H115: 18 | I115: 15 | J115: 22 | K115: 19.5 | L115: 17.5 | M115: 164 | N115: ناجح | O115: 0.6074074074 | P115: مقبول | AC115: 9 | AD115: 0 | AE115: ناجح | AP115: 105 | AQ115: أحمد يوسف خالد يوسف شراب | AR115: 164.0000087 | AS115: 120 | AT115: ناجح
A116: 106 | B116: تميم سالم راشد الصعاق المرى | C116: 10 - 4 | D116: 14 | E116: 11 | F116: 17 | G116: 13.5 | H116: 20 | I116: 6 | J116: 17 | K116: 14.5 | L116: 6.5 | M116: 119.5 | N116: دور ثانى | O116: 0.4425925926 | P116: دون المستوى | R116: الرياضيات / الدراسات الاجتماعية / الكيمياء / الأحياء / اللغة العربية / اللغة الإنجليزية / | T116: x | U116: x | W116: x | Y116: x | AA116: x | AB116: x | AC116: 3 | AD116: 6 | AE116: دور ثانى | AF116: الرياضيات / | AG116: الدراسات الاجتماعية / | AI116: الكيمياء / | AK116: الأحياء / | AM116: اللغة العربية / | AN116: اللغة الإنجليزية / | AP116: 106 | AQ116: تميم سالم راشد الصعاق المرى | AR116: 119.5000086 | AS116: 192 | AT116: دور ثانى
A117: 107 | B117: جابر سعيد جابر سالم اليربوعى | C117: 10 - 4 | D117: 13.5 | E117: 12.5 | F117: 19 | G117: 17 | H117: 7 | I117: 8 | J117: 15 | K117: 15 | L117: غ | M117: 107 | N117: دور ثانى | O117: 0.3962962963 | P117: دون المستوى | R117: الرياضيات / الدراسات الاجتماعية / الفيزياء / الأحياء / اللغة الإنجليزية / | T117: x | U117: x | X117: x | Y117: x | AB117: x | AC117: 4 | AD117: 5 | AE117: دور ثانى | AF117: الرياضيات / | AG117: الدراسات الاجتماعية / | AJ117: الفيزياء / | AK117: الأحياء / | AN117: اللغة الإنجليزية / | AP117: 107 | AQ117: جابر سعيد جابر سالم اليربوعى | AR117: 107.0000085 | AS117: 208 | AT117: دور ثانى
A118: 108 | B118: جاسم محمود محمد عبداللهي | C118: 10 - 4 | D118: 20.5 | E118: 26 | F118: 16 | G118: 20 | H118: 20 | I118: 14 | J118: 24 | K118: 23.5 | L118: 18 | M118: 182 | N118: دور ثانى | O118: 0.6740740741 | P118: جيد | R118: الأحياء / | Y118: x | AC118: 8 | AD118: 1 | AE118: دور ثانى | AK118: الأحياء / | AP118: 108 | AQ118: جاسم محمود محمد عبداللهي | AR118: 182.0000085 | AS118: 100 | AT118: دور ثانى
A119: 109 | B119: جاسم ناصر جاسم محمد المفتاح | C119: 10 - 4 | D119: 23.5 | E119: 19.5 | F119: 17.5 | G119: 17 | H119: 26 | I119: 19.5 | J119: 17.5 | K119: 21 | L119: 29.5 | M119: 191 | N119: ناجح | O119: 0.7074074074 | P119: جيد | AC119: 9 | AD119: 0 | AE119: ناجح | AP119: 109 | AQ119: جاسم ناصر جاسم محمد المفتاح | AR119: 191.0000084 | AS119: 91 | AT119: ناجح
A120: 110 | B120: حمد محمد بخيت تويم المرى | C120: 10 - 4 | D120: 19 | E120: 15.5 | F120: 11 | G120: 12 | H120: 20 | I120: 7 | J120: 20.5 | K120: 18 | L120: 16.5 | M120: 139.5 | N120: دور ثانى | O120: 0.5166666667 | P120: مقبول | R120: الحوسبة وتكنولوجيا المعلومات / الكيمياء / الأحياء / | V120: x | W120: x | Y120: x | AC120: 6 | AD120: 3 | AE120: دور ثانى | AH120: الحوسبة وتكنولوجيا المعلومات / | AI120: الكيمياء / | AK120: الأحياء / | AP120: 110 | AQ120: حمد محمد بخيت تويم المرى | AR120: 139.5000083 | AS120: 159 | AT120: دور ثانى
A121: 111 | B121: خالد سعيد محمد البريكان المرى | C121: 10 - 4 | D121: 14 | E121: 24 | F121: 18.5 | G121: 22 | H121: 22 | I121: 21 | J121: 24 | K121: 23 | L121: 15.5 | M121: 184 | N121: دور ثانى | O121: 0.6814814815 | P121: جيد | R121: الرياضيات / | T121: x | AC121: 8 | AD121: 1 | AE121: دور ثانى | AF121: الرياضيات / | AP121: 111 | AQ121: خالد سعيد محمد البريكان المرى | AR121: 184.0000083 | AS121: 97 | AT121: دور ثانى
A122: 112 | B122: خميس محمد سيف خميس الريامي | C122: 10 - 4 | D122: 18 | E122: 19.5 | F122: 21.5 | G122: 17 | H122: 15 | I122: 11.5 | J122: 24.5 | K122: 15 | L122: 12.5 | M122: 154.5 | N122: دور ثانى | O122: 0.5722222222 | P122: مقبول | R122: الأحياء / اللغة الإنجليزية / | Y122: x | AB122: x | AC122: 7 | AD122: 2 | AE122: دور ثانى | AK122: الأحياء / | AN122: اللغة الإنجليزية / | AP122: 112 | AQ122: خميس محمد سيف خميس الريامي | AR122: 154.5000082 | AS122: 139 | AT122: دور ثانى
A123: 113 | B123: راشد حمد راشد سالم خادم | C123: 10 - 4 | D123: 14.5 | E123: 9.5 | F123: 19 | G123: 7.5 | H123: 13 | I123: 8.5 | J123: 13 | K123: 8 | L123: غ | M123: 93 | N123: دور ثانى | O123: 0.3444444444 | P123: دون المستوى | R123: الرياضيات / الدراسات الاجتماعية / الكيمياء / الفيزياء / الأحياء / التربية الإسلامية / اللغة العربية / اللغة الإنجليزية / | T123: x | U123: x | W123: x | X123: x | Y123: x | Z123: x | AA123: x | AB123: x | AC123: 1 | AD123: 8 | AE123: دور ثانى | AF123: الرياضيات / | AG123: الدراسات الاجتماعية / | AI123: الكيمياء / | AJ123: الفيزياء / | AK123: الأحياء / | AL123: التربية الإسلامية / | AM123: اللغة العربية / | AN123: اللغة الإنجليزية / | AP123: 113 | AQ123: راشد حمد راشد سالم خادم | AR123: 93.00000813 | AS123: 219 | AT123: دور ثانى
A124: 114 | B124: سالم حمد سالم اليربوعى المرى | C124: 10 - 4 | D124: غ | E124: غ | F124: غ | G124: غ | H124: غ | I124: غ | J124: غ | K124: غ | L124: غ | M124: غ | N124: دور ثانى | O124: غ | P124: غ | R124: الرياضيات / الدراسات الاجتماعية / الحوسبة وتكنولوجيا المعلومات / الكيمياء / الفيزياء / الأحياء / التربية الإسلامية / اللغة العربية / اللغة الإنجليزية / | T124: x | U124: x | V124: x | W124: x | X124: x | Y124: x | Z124: x | AA124: x | AB124: x | AC124: 0 | AD124: 9 | AE124: دور ثانى | AF124: الرياضيات / | AG124: الدراسات الاجتماعية / | AH124: الحوسبة وتكنولوجيا المعلومات / | AI124: الكيمياء / | AJ124: الفيزياء / | AK124: الأحياء / | AL124: التربية الإسلامية / | AM124: اللغة العربية / | AN124: اللغة الإنجليزية / | AP124: 114 | AQ124: سالم حمد سالم اليربوعى المرى | AR124: غ | AS124: غ | AT124: دور ثانى
A125: 115 | B125: سليمان حسن علي سليمان موسى | C125: 10 - 4 | D125: 17.5 | E125: 16 | F125: 19.5 | G125: 16 | H125: 18.5 | I125: 13.5 | J125: 26 | K125: 19 | L125: 15.5 | M125: 161.5 | N125: دور ثانى | O125: 0.5981481481 | P125: مقبول | R125: الأحياء / | Y125: x | AC125: 8 | AD125: 1 | AE125: دور ثانى | AK125: الأحياء / | AP125: 115 | AQ125: =B125 -> سليمان حسن علي سليمان موسى | AR125: =IF(M125="","",IF(M125="غ","غ",M125+1/ROW()*0.001)) -> 161.500008 | AS125: 126 | AT125: دور ثانى
A126: 116 | B126: شعيب عبدي قرني قلديد | C126: 10 - 4 | D126: 10 | E126: 11.5 | F126: 17 | G126: 13 | H126: 19 | I126: 11.5 | J126: 20 | K126: 17.5 | L126: 9.5 | M126: 129 | N126: دور ثانى | O126: 0.4777777778 | P126: دون المستوى | R126: الرياضيات / الدراسات الاجتماعية / الكيمياء / الأحياء / اللغة الإنجليزية / | T126: x | U126: x | W126: x | Y126: x | AB126: x | AC126: 4 | AD126: 5 | AE126: دور ثانى | AF126: الرياضيات / | AG126: الدراسات الاجتماعية / | AI126: الكيمياء / | AK126: الأحياء / | AN126: اللغة الإنجليزية / | AP126: 116 | AQ126: شعيب عبدي قرني قلديد | AR126: 129.0000079 | AS126: 176 | AT126: دور ثانى
A127: 117 | B127: عابدين حافظ عابدين موسى | C127: 10 - 4 | D127: 10 | E127: 18.5 | F127: 20.5 | G127: 15 | H127: 19 | I127: 11.5 | J127: 18 | K127: 17.5 | L127: 18.5 | M127: 148.5 | N127: دور ثانى | O127: 0.55 | P127: مقبول | R127: الرياضيات / الأحياء / | T127: x | Y127: x | AC127: 7 | AD127: 2 | AE127: دور ثانى | AF127: الرياضيات / | AK127: الأحياء / | AP127: 117 | AQ127: عابدين حافظ عابدين موسى | AR127: 148.5000079 | AS127: 149 | AT127: دور ثانى
A128: 118 | B128: عبدالرحمن صبرى عثمان محسن اليهرى | C128: 10 - 4 | D128: 17.5 | E128: 24 | F128: 21 | G128: 15.5 | H128: 22 | I128: 12.5 | J128: 21 | K128: 17.5 | L128: 12 | M128: 163 | N128: دور ثانى | O128: 0.6037037037 | P128: مقبول | R128: الأحياء / اللغة الإنجليزية / | Y128: x | AB128: x | AC128: 7 | AD128: 2 | AE128: دور ثانى | AK128: الأحياء / | AN128: اللغة الإنجليزية / | AP128: 118 | AQ128: عبدالرحمن صبرى عثمان محسن اليهرى | AR128: 163.0000078 | AS128: 123 | AT128: دور ثانى
A129: 119 | B129: عبدالله سالم محمد سالم خوار | C129: 10 - 4 | D129: 9 | E129: 17 | F129: 20.5 | G129: 24 | H129: 13.5 | I129: 8 | J129: 14 | K129: 9 | L129: غ | M129: 115 | N129: دور ثانى | O129: 0.4259259259 | P129: دون المستوى | R129: الرياضيات / الفيزياء / الأحياء / التربية الإسلامية / اللغة العربية / اللغة الإنجليزية / | T129: x | X129: x | Y129: x | Z129: x | AA129: x | AB129: x | AC129: 3 | AD129: 6 | AE129: دور ثانى | AF129: الرياضيات / | AJ129: الفيزياء / | AK129: الأحياء / | AL129: التربية الإسلامية / | AM129: اللغة العربية / | AN129: اللغة الإنجليزية / | AP129: 119 | AQ129: عبدالله سالم محمد سالم خوار | AR129: 115.0000078 | AS129: 196 | AT129: دور ثانى
A130: 120 | B130: عبدالله ضيف الله برمان الدوسري | C130: 10 - 4 | D130: 25 | E130: 26.5 | F130: 23 | G130: 26 | H130: 23 | I130: 24.5 | J130: 27 | K130: 21 | L130: 23.5 | M130: 219.5 | N130: ناجح | O130: 0.812962963 | P130: جيد جدا | AC130: 9 | AD130: 0 | AE130: ناجح | AP130: 120 | AQ130: عبدالله ضيف الله برمان الدوسري | AR130: 219.5000077 | AS130: 52 | AT130: ناجح
A131: 121 | B131: عدي فريد احمد حسين | C131: 10 - 4 | D131: 22 | E131: 27 | F131: 26 | G131: 22.5 | H131: 18.5 | I131: 19 | J131: 20.5 | K131: 25 | L131: 19.5 | M131: 200 | N131: ناجح | O131: 0.7407407407 | P131: جيد | AC131: 9 | AD131: 0 | AE131: ناجح | AP131: 121 | AQ131: عدي فريد احمد حسين | AR131: 200.0000076 | AS131: 82 | AT131: ناجح
A132: 122 | B132: عزيز خالد سالم ابو شنار | C132: 10 - 4 | D132: 18 | E132: 20.5 | F132: 20.5 | G132: 26.5 | H132: 20 | I132: 20 | J132: 24.5 | K132: 27 | L132: 24 | M132: 201 | N132: ناجح | O132: 0.7444444444 | P132: جيد | AC132: 9 | AD132: 0 | AE132: ناجح | AP132: 122 | AQ132: عزيز خالد سالم ابو شنار | AR132: 201.0000076 | AS132: 80 | AT132: ناجح
A133: 123 | B133: على محمد عويض الصقور المرى | C133: 10 - 4 | D133: 12 | E133: 13 | F133: 15.5 | G133: 16 | H133: 10.5 | I133: 11 | J133: 17 | K133: 18 | L133: 17.5 | M133: 130.5 | N133: دور ثانى | O133: 0.4833333333 | P133: دون المستوى | R133: الرياضيات / الدراسات الاجتماعية / الفيزياء / الأحياء / | T133: x | U133: x | X133: x | Y133: x | AC133: 5 | AD133: 4 | AE133: دور ثانى | AF133: الرياضيات / | AG133: الدراسات الاجتماعية / | AJ133: الفيزياء / | AK133: الأحياء / | AP133: 123 | AQ133: على محمد عويض الصقور المرى | AR133: 130.5000075 | AS133: 171 | AT133: دور ثانى
A134: 124 | B134: علي عاطف سالم ابراهيم سالم | C134: 10 - 4 | D134: 11.5 | E134: 19 | F134: 20 | G134: 16 | H134: 7 | I134: 13 | J134: 24 | K134: 21 | L134: 24 | M134: 155.5 | N134: دور ثانى | O134: 0.5759259259 | P134: مقبول | R134: الرياضيات / الفيزياء / الأحياء / | T134: x | X134: x | Y134: x | AC134: 6 | AD134: 3 | AE134: دور ثانى | AF134: الرياضيات / | AJ134: الفيزياء / | AK134: الأحياء / | AP134: 124 | AQ134: علي عاطف سالم ابراهيم سالم | AR134: 155.5000075 | AS134: 138 | AT134: دور ثانى
A135: 125 | B135: علي محمد عبدالله احمد شمس | C135: 10 - 4 | D135: 20.5 | E135: 12 | F135: 17.5 | G135: 24 | H135: 18 | I135: 16 | J135: 21 | K135: 21.5 | L135: 17.5 | M135: 168 | N135: دور ثانى | O135: 0.6222222222 | P135: مقبول | R135: الدراسات الاجتماعية / | U135: x | AC135: 8 | AD135: 1 | AE135: دور ثانى | AG135: الدراسات الاجتماعية / | AP135: 125 | AQ135: علي محمد عبدالله احمد شمس | AR135: 168.0000074 | AS135: 114 | AT135: دور ثانى
A136: 126 | B136: عمر محمد محمود ابوزاهر | C136: 10 - 4 | D136: 30 | E136: 29 | F136: 26 | G136: 30 | H136: 30 | I136: 29 | J136: 29 | K136: 29 | L136: 22.5 | M136: 254.5 | N136: ناجح | O136: 0.9425925926 | P136: ممتاز | AC136: 9 | AD136: 0 | AE136: ناجح | AP136: 126 | AQ136: عمر محمد محمود ابوزاهر | AR136: 254.5000074 | AS136: 10 | AT136: ناجح
A137: 127 | B137: فهد سويد سلطان محمد الخوار | C137: 10 - 4 | D137: 10 | E137: 19 | F137: 18 | G137: 10.5 | H137: 12 | I137: 7.5 | J137: 20 | K137: 15 | L137: 17.5 | M137: 129.5 | N137: دور ثانى | O137: 0.4796296296 | P137: دون المستوى | R137: الرياضيات / الكيمياء / الفيزياء / الأحياء / | T137: x | W137: x | X137: x | Y137: x | AC137: 5 | AD137: 4 | AE137: دور ثانى | AF137: الرياضيات / | AI137: الكيمياء / | AJ137: الفيزياء / | AK137: الأحياء / | AP137: 127 | AQ137: فهد سويد سلطان محمد الخوار | AR137: 129.5000073 | AS137: 174 | AT137: دور ثانى
A138: 128 | B138: محمد حافظ محمد ابوالكلام كبيرالدين | C138: 10 - 4 | D138: 8 | E138: 24 | F138: 22 | G138: 12 | H138: 16 | I138: 16 | J138: 20 | K138: 20.5 | L138: 21.5 | M138: 160 | N138: دور ثانى | O138: 0.5925925926 | P138: مقبول | R138: الرياضيات / الكيمياء / | T138: x | W138: x | AC138: 7 | AD138: 2 | AE138: دور ثانى | AF138: الرياضيات / | AI138: الكيمياء / | AP138: 128 | AQ138: محمد حافظ محمد ابوالكلام كبيرالدين | AR138: 160.0000072 | AS138: 128 | AT138: دور ثانى
A139: 129 | B139: محمد حسن حسن ناجى الجدره | C139: 10 - 4 | D139: 17 | E139: 20.5 | F139: 19 | G139: 12 | H139: 14 | I139: 14 | J139: 22.5 | K139: 19.5 | L139: 16 | M139: =IF(B139="","",IF(AND(D139="غ",E139="غ",F139="غ",G139="غ",H139="غ",I139="غ",J139="غ",K139="غ",L139="غ"),"غ",SUM(D139,E139,F139,G139,H139,I139,J139,K139,L139))) -> 154.5 | N139: =IF(B139="","",AE139) -> دور ثانى | O139: =IF(B139="","",IF(M139="غ","غ",M139/$M$10*100/100)) -> 0.5722222222 | P139: مقبول | R139: الكيمياء / الفيزياء / الأحياء / | W139: x | X139: x | Y139: x | AC139: 6 | AD139: 3 | AE139: دور ثانى | AI139: الكيمياء / | AJ139: الفيزياء / | AK139: الأحياء / | AP139: 129 | AQ139: محمد حسن حسن ناجى الجدره | AR139: 154.5000072 | AS139: 139 | AT139: دور ثانى
A140: =ROW()-10 -> 130 | B140: محمد حمد محمد صالح الصرامى | C140: 10 - 4 | D140: 12 | E140: 10 | F140: 19.5 | G140: 14 | H140: 24 | I140: 10 | J140: 24 | K140: 20 | L140: 21 | M140: 154.5 | N140: دور ثانى | O140: 0.5722222222 | P140: =IF(M140="","",IF(M140="غ","غ",IF(M140=0,"دون المستوى",IF(M140/$M$10*100>=85,"ممتاز",IF(M140/$M$10*100>=75,"جيد جدا",IF(M140/$M$10*100>=65,"جيد",IF(M140/$M$10*100>=50,"مقبول",IF(M140/$M$10*100<50,"دون المستوى")))))))) -> مقبول | R140: =CONCATENATE(AF140,AG140,AH140,AI140,AJ140,AK140,AL140,AM140,AN140) -> الرياضيات / الدراسات الاجتماعية / الكيمياء / الأحياء / | T140: =IF($B140="","",IF(OR(D140<15,D140="",D140="غ",D140="صفر"=""),"x","")) -> x | U140: =IF($B140="","",IF(OR(E140<15,E140="",E140="غ",E140="صفر"=""),"x","")) -> x | V140: =IF($B140="","",IF(OR(F140<15,F140="",F140="غ",F140="صفر"=""),"x","")) ->  | W140: =IF($B140="","",IF(OR(G140<15,G140="",G140="غ",G140="صفر"=""),"x","")) -> x | X140: =IF($B140="","",IF(OR(H140<15,H140="",H140="غ",H140="صفر"=""),"x","")) ->  | Y140: =IF($B140="","",IF(OR(I140<15,I140="",I140="غ",I140="صفر"=""),"x","")) -> x | Z140: =IF($B140="","",IF(OR(J140<15,J140="",J140="غ",J140="صفر"=""),"x","")) ->  | AA140: =IF($B140="","",IF(OR(K140<15,K140="",K140="غ",K140="صفر"=""),"x","")) ->  | AB140: =IF($B140="","",IF(OR(L140<15,L140="",L140="غ",L140="صفر"=""),"x","")) ->  | AC140: =IF(B140="","",COUNTBLANK(T140:AB140)) -> 5 | AD140: =IF(B140="","",COUNTIF(T140:AB140,"x")) -> 4 | AE140: =IF(B140="","",IF(AC140=9,"ناجح","دور ثانى")) -> دور ثانى | AF140: =IF(T140="x","الرياضيات / ","") -> الرياضيات / | AG140: =IF(U140="x","الدراسات الاجتماعية / ","") -> الدراسات الاجتماعية / | AH140: =IF(V140="x","الحوسبة وتكنولوجيا المعلومات / ","") ->  | AI140: =IF(W140="x","الكيمياء / ","") -> الكيمياء / | AJ140: =IF(X140="x","الفيزياء / ","") ->  | AK140: =IF(Y140="x","الأحياء / ","") -> الأحياء / | AL140: =IF(Z140="x","التربية الإسلامية / ","") ->  | AM140: =IF(AA140="x","اللغة العربية / ","") ->  | AN140: =IF(AB140="x","اللغة الإنجليزية / ","") ->  | AP140: 130 | AQ140: محمد حمد محمد صالح الصرامى | AR140: 154.5000071 | AS140: =IFERROR(IF(M140=" "," ",IF(M140="غ","غ",RANK(M140,$M$11:$M$247))),"") -> 139 | AT140: =AE140 -> دور ثانى
A141: 131 | B141: محمد عبدالعزيز عبدالكريم يحى يعقوب | C141: 10 - 4 | D141: 22.5 | E141: 19.5 | F141: 23 | G141: 25.5 | H141: 24 | I141: 24 | J141: 24 | K141: 20 | L141: 26.5 | M141: 209 | N141: ناجح | O141: 0.7740740741 | P141: جيد جدا | AC141: 9 | AD141: 0 | AE141: ناجح | AP141: 131 | AQ141: محمد عبدالعزيز عبدالكريم يحى يعقوب | AR141: 209.0000071 | AS141: 65 | AT141: ناجح
A142: 132 | B142: محمد عبدالله بخيت محمد المهيري | C142: 10 - 4 | D142: 26.5 | E142: 28 | F142: 16 | G142: 24.5 | H142: 17 | I142: 26 | J142: 24.5 | K142: 22 | L142: 25.5 | M142: 210 | N142: ناجح | O142: 0.7777777778 | P142: جيد جدا | AC142: 9 | AD142: 0 | AE142: ناجح | AP142: 132 | AQ142: محمد عبدالله بخيت محمد المهيري | AR142: 210.000007 | AS142: 63 | AT142: ناجح
A143: 133 | B143: محمد هشام حامد على ابوخطيطه | C143: 10 - 4 | D143: 29.5 | E143: 25 | F143: 26.5 | G143: 29.5 | H143: 30 | I143: 29 | J143: 26 | K143: 27.5 | L143: 27 | M143: 250 | N143: ناجح | O143: 0.9259259259 | P143: ممتاز | AC143: 9 | AD143: 0 | AE143: ناجح | AP143: 133 | AQ143: محمد هشام حامد على ابوخطيطه | AR143: 250.000007 | AS143: 15 | AT143: ناجح
A144: 134 | B144: محمد يوسف محمد ابراهيم محمد | C144: 10 - 4 | D144: 5 | E144: 16.5 | F144: 15 | G144: 10.5 | H144: 11.5 | I144: 10 | J144: 17 | K144: 16 | L144: 11.5 | M144: 113 | N144: دور ثانى | O144: 0.4185185185 | P144: دون المستوى | R144: الرياضيات / الكيمياء / الفيزياء / الأحياء / اللغة الإنجليزية / | T144: x | W144: x | X144: x | Y144: x | AB144: x | AC144: 4 | AD144: 5 | AE144: دور ثانى | AF144: الرياضيات / | AI144: الكيمياء / | AJ144: الفيزياء / | AK144: الأحياء / | AN144: اللغة الإنجليزية / | AP144: 134 | AQ144: محمد يوسف محمد ابراهيم محمد | AR144: 113.0000069 | AS144: 198 | AT144: دور ثانى
A145: 135 | B145: محمد يونس محمد زحمت كش | C145: 10 - 4 | D145: 11.5 | E145: 17.5 | F145: 15 | G145: 17.5 | H145: 21 | I145: 13 | J145: 21.5 | K145: 15 | L145: 14.5 | M145: 146.5 | N145: دور ثانى | O145: 0.5425925926 | P145: مقبول | R145: الرياضيات / الأحياء / اللغة الإنجليزية / | T145: x | Y145: x | AB145: x | AC145: 6 | AD145: 3 | AE145: دور ثانى | AF145: الرياضيات / | AK145: الأحياء / | AN145: اللغة الإنجليزية / | AP145: 135 | AQ145: محمد يونس محمد زحمت كش | AR145: 146.5000069 | AS145: 152 | AT145: دور ثانى
A146: 136 | B146: بدر ناصر جابر سهل المرى | C146: 10 - 5 | D146: 20.5 | E146: 11 | F146: 16 | G146: 13 | H146: 18 | I146: 17 | J146: 12 | K146: 16 | L146: 16 | M146: 139.5 | N146: دور ثانى | O146: 0.5166666667 | P146: مقبول | R146: الدراسات الاجتماعية / الكيمياء / التربية الإسلامية / | U146: x | W146: x | Z146: x | AC146: 6 | AD146: 3 | AE146: دور ثانى | AG146: الدراسات الاجتماعية / | AI146: الكيمياء / | AL146: التربية الإسلامية / | AP146: 136 | AQ146: بدر ناصر جابر سهل المرى | AR146: 139.5000068 | AS146: 159 | AT146: دور ثانى
A147: 137 | B147: حزام زيد راشد المري | C147: 10 - 5 | D147: 12 | E147: 16 | F147: 10.5 | G147: 16 | H147: 19 | I147: 19.5 | J147: 14 | K147: 14 | L147: 15 | M147: 136 | N147: دور ثانى | O147: 0.5037037037 | P147: مقبول | R147: الرياضيات / الحوسبة وتكنولوجيا المعلومات / التربية الإسلامية / اللغة العربية / | T147: x | V147: x | Z147: x | AA147: x | AC147: 5 | AD147: 4 | AE147: دور ثانى | AF147: الرياضيات / | AH147: الحوسبة وتكنولوجيا المعلومات / | AL147: التربية الإسلامية / | AM147: اللغة العربية / | AP147: 137 | AQ147: حزام زيد راشد المري | AR147: 136.0000068 | AS147: 165 | AT147: دور ثانى
A148: 138 | B148: حسن محمود ابراهيم علي البنا | C148: 10 - 5 | D148: 29 | E148: 28 | F148: 28.5 | G148: 29 | H148: 28 | I148: 27 | J148: 29 | K148: 26.5 | L148: 22 | M148: 247 | N148: ناجح | O148: 0.9148148148 | P148: ممتاز | AC148: 9 | AD148: 0 | AE148: ناجح | AP148: 138 | AQ148: حسن محمود ابراهيم علي البنا | AR148: 247.0000068 | AS148: 20 | AT148: ناجح
A149: 139 | B149: حمد سعيد سويلم سعد الخوار | C149: 10 - 5 | D149: 15 | E149: 9 | F149: 6.5 | G149: 8 | H149: 15 | I149: 2 | J149: 13.5 | K149: 12.5 | L149: 15.5 | M149: 97 | N149: دور ثانى | O149: 0.3592592593 | P149: دون المستوى | R149: الدراسات الاجتماعية / الحوسبة وتكنولوجيا المعلومات / الكيمياء / الأحياء / التربية الإسلامية / اللغة العربية / | U149: x | V149: x | W149: x | Y149: x | Z149: x | AA149: x | AC149: 3 | AD149: 6 | AE149: دور ثانى | AG149: الدراسات الاجتماعية / | AH149: الحوسبة وتكنولوجيا المعلومات / | AI149: الكيمياء / | AK149: الأحياء / | AL149: التربية الإسلامية / | AM149: اللغة العربية / | AP149: 139 | AQ149: حمد سعيد سويلم سعد الخوار | AR149: 97.00000671 | AS149: 218 | AT149: دور ثانى
A150: 140 | B150: حمد مبارك مفتاح فرج العبدالله | C150: 10 - 5 | D150: 9 | E150: 8 | F150: 14.5 | G150: 13 | H150: 11 | I150: 9.5 | J150: 16 | K150: 12 | L150: 8 | M150: 101 | N150: دور ثانى | O150: 0.3740740741 | P150: دون المستوى | R150: الرياضيات / الدراسات الاجتماعية / الحوسبة وتكنولوجيا المعلومات / الكيمياء / الفيزياء / الأحياء / اللغة العربية / اللغة الإنجليزية / | T150: x | U150: x | V150: x | W150: x | X150: x | Y150: x | AA150: x | AB150: x | AC150: 1 | AD150: 8 | AE150: دور ثانى | AF150: الرياضيات / | AG150: الدراسات الاجتماعية / | AH150: الحوسبة وتكنولوجيا المعلومات / | AI150: الكيمياء / | AJ150: الفيزياء / | AK150: الأحياء / | AM150: اللغة العربية / | AN150: اللغة الإنجليزية / | AP150: 140 | AQ150: حمد مبارك مفتاح فرج العبدالله | AR150: 101.0000067 | AS150: 213 | AT150: دور ثانى
A151: 141 | B151: خالد عزيز حسن عبدربه حسن | C151: 10 - 5 | D151: 20 | E151: 17 | F151: 15 | G151: 9 | H151: 21 | I151: 20.5 | J151: 23 | K151: 21.5 | L151: 18 | M151: 165 | N151: دور ثانى | O151: 0.6111111111 | P151: مقبول | R151: الكيمياء / | W151: x | AC151: 8 | AD151: 1 | AE151: دور ثانى | AI151: الكيمياء / | AP151: 141 | AQ151: خالد عزيز حسن عبدربه حسن | AR151: 165.0000066 | AS151: 117 | AT151: دور ثانى
A152: 142 | B152: دغش بريك دغش الجربوعى المرى | C152: 10 - 5 | D152: 12.5 | E152: 19 | F152: 21 | G152: 22 | H152: 17 | I152: 18.5 | J152: 16 | K152: 18.5 | L152: 15 | M152: 159.5 | N152: دور ثانى | O152: 0.5907407407 | P152: مقبول | R152: الرياضيات / | T152: x | AC152: 8 | AD152: 1 | AE152: دور ثانى | AF152: الرياضيات / | AP152: 142 | AQ152: دغش بريك دغش الجربوعى المرى | AR152: 159.5000066 | AS152: 130 | AT152: دور ثانى
A153: 143 | B153: راشد حمد ناصر المري | C153: 10 - 5 | D153: 8 | E153: 18 | F153: 17 | G153: 15.5 | H153: 22 | I153: 13.5 | J153: 19.5 | K153: 17 | L153: 20 | M153: 150.5 | N153: دور ثانى | O153: 0.5574074074 | P153: مقبول | R153: الرياضيات / الأحياء / | T153: x | Y153: x | AC153: 7 | AD153: 2 | AE153: دور ثانى | AF153: الرياضيات / | AK153: الأحياء / | AP153: 143 | AQ153: راشد حمد ناصر المري | AR153: 150.5000065 | AS153: 146 | AT153: دور ثانى
A154: 144 | B154: راشد شريف خان عيسى خان | C154: 10 - 5 | D154: 19 | E154: 16 | F154: 8.5 | G154: 16 | H154: 19 | I154: 16 | J154: 17 | K154: 16 | L154: 23 | M154: 150.5 | N154: دور ثانى | O154: 0.5574074074 | P154: مقبول | R154: الحوسبة وتكنولوجيا المعلومات / | V154: x | AC154: 8 | AD154: 1 | AE154: دور ثانى | AH154: الحوسبة وتكنولوجيا المعلومات / | AP154: 144 | AQ154: راشد شريف خان عيسى خان | AR154: 150.5000065 | AS154: 146 | AT154: دور ثانى
A155: 145 | B155: زياد مصطفى كامل محمد ابوالبها | C155: 10 - 5 | D155: 29.5 | E155: 25.5 | F155: 22 | G155: 20 | H155: 28 | I155: 23 | J155: 20 | K155: 23.5 | L155: 25.5 | M155: 217 | N155: ناجح | O155: 0.8037037037 | P155: جيد جدا | AC155: 9 | AD155: 0 | AE155: ناجح | AP155: 145 | AQ155: زياد مصطفى كامل محمد ابوالبها | AR155: 217.0000065 | AS155: 54 | AT155: ناجح
A156: 146 | B156: سالم محمد راشد طفله الفهيده | C156: 10 - 5 | D156: 8.5 | E156: 11 | F156: 18.5 | G156: 8 | H156: 13 | I156: 5 | J156: 16 | K156: 10 | L156: 10 | M156: 100 | N156: دور ثانى | O156: 0.3703703704 | P156: دون المستوى | R156: الرياضيات / الدراسات الاجتماعية / الكيمياء / الفيزياء / الأحياء / اللغة العربية / اللغة الإنجليزية / | T156: x | U156: x | W156: x | X156: x | Y156: x | AA156: x | AB156: x | AC156: 2 | AD156: 7 | AE156: دور ثانى | AF156: الرياضيات / | AG156: الدراسات الاجتماعية / | AI156: الكيمياء / | AJ156: الفيزياء / | AK156: الأحياء / | AM156: اللغة العربية / | AN156: اللغة الإنجليزية / | AP156: 146 | AQ156: سالم محمد راشد طفله الفهيده | AR156: 100.0000064 | AS156: 215 | AT156: دور ثانى
A157: 147 | B157: سعد حمد سعد البويصم المرى | C157: 10 - 5 | D157: 16 | E157: 15 | F157: 13.5 | G157: 15 | H157: 20 | I157: 13.5 | J157: 19 | K157: 20.5 | L157: 16 | M157: 148.5 | N157: دور ثانى | O157: 0.55 | P157: مقبول | R157: الحوسبة وتكنولوجيا المعلومات / الأحياء / | V157: x | Y157: x | AC157: 7 | AD157: 2 | AE157: دور ثانى | AH157: الحوسبة وتكنولوجيا المعلومات / | AK157: الأحياء / | AP157: 147 | AQ157: =B157 -> سعد حمد سعد البويصم المرى | AR157: 148.5000064 | AS157: 149 | AT157: دور ثانى
A158: 148 | B158: سعيد محمد سالم عمار خوار | C158: 10 - 5 | D158: 23 | E158: 21 | F158: 22 | G158: 21.5 | H158: 26 | I158: 26.5 | J158: 25 | K158: 21.5 | L158: 20.5 | M158: 207 | N158: ناجح | O158: 0.7666666667 | P158: جيد جدا | AC158: 9 | AD158: 0 | AE158: ناجح | AP158: 148 | AQ158: سعيد محمد سالم عمار خوار | AR158: 207.0000063 | AS158: 69 | AT158: ناجح
A159: 149 | B159: صلاح عارف احمد عبده جمن | C159: 10 - 5 | D159: 15 | E159: 18 | F159: 15 | G159: 13.5 | H159: 21 | I159: 20 | J159: 19 | K159: 20 | L159: 23 | M159: 164.5 | N159: دور ثانى | O159: 0.6092592593 | P159: مقبول | R159: الكيمياء / | W159: x | AC159: 8 | AD159: 1 | AE159: دور ثانى | AI159: الكيمياء / | AP159: 149 | AQ159: صلاح عارف احمد عبده جمن | AR159: 164.5000063 | AS159: 119 | AT159: دور ثانى
A160: 150 | B160: عبدالعزيز نايف عبدالله نايف | C160: 10 - 5 | D160: 17 | E160: 22 | F160: 26.5 | G160: 21 | H160: 26 | I160: 20 | J160: 26.5 | K160: 26 | L160: 13 | M160: 198 | N160: دور ثانى | O160: 0.7333333333 | P160: جيد | R160: اللغة الإنجليزية / | AB160: x | AC160: 8 | AD160: 1 | AE160: دور ثانى | AN160: اللغة الإنجليزية / | AP160: 150 | AQ160: عبدالعزيز نايف عبدالله نايف | AR160: 198.0000063 | AS160: 84 | AT160: دور ثانى
A161: 151 | B161: عبدالله عبدالرحمن | C161: 10 - 5 | D161: 15.5 | E161: 15 | F161: 14.5 | G161: 16.5 | H161: 22 | I161: 12 | J161: 15 | K161: 20 | L161: 20 | M161: 150.5 | N161: دور ثانى | O161: 0.5574074074 | P161: مقبول | R161: الحوسبة وتكنولوجيا المعلومات / الأحياء / | V161: x | Y161: x | AC161: 7 | AD161: 2 | AE161: دور ثانى | AH161: الحوسبة وتكنولوجيا المعلومات / | AK161: الأحياء / | AP161: 151 | AQ161: عبدالله عبدالرحمن | AR161: 150.5000062 | AS161: 146 | AT161: دور ثانى
A162: 152 | B162: عبدالله فهد عبدالله عبدالعزيز الرميحى | C162: 10 - 5 | D162: 22 | E162: 24 | F162: 20 | G162: 20 | H162: 24 | I162: 21.5 | J162: 25.5 | K162: 23 | L162: 23 | M162: 203 | N162: ناجح | O162: 0.7518518519 | P162: جيد جدا | AC162: 9 | AD162: 0 | AE162: ناجح | AP162: 152 | AQ162: عبدالله فهد عبدالله عبدالعزيز الرميحى | AR162: 203.0000062 | AS162: 76 | AT162: ناجح
A163: 153 | B163: عبدالله فؤاد حازم شريف | C163: 10 - 5 | D163: 26.5 | E163: 21.5 | F163: 20.5 | G163: 24 | H163: 24 | I163: 26 | J163: 24 | K163: 21.5 | L163: 20.5 | M163: 208.5 | N163: ناجح | O163: 0.7722222222 | P163: جيد جدا | AC163: 9 | AD163: 0 | AE163: ناجح | AP163: 153 | AQ163: عبدالله فؤاد حازم شريف | AR163: 208.5000061 | AS163: 66 | AT163: ناجح
A164: 154 | B164: عبدالمحسن عادل عبدالمحسن محمد الدهنيم | C164: 10 - 5 | D164: 14 | E164: 19 | F164: 14.5 | G164: 15 | H164: 18.5 | I164: 18 | J164: 17 | K164: 17 | L164: 18 | M164: 151 | N164: دور ثانى | O164: 0.5592592593 | P164: مقبول | R164: الرياضيات / الحوسبة وتكنولوجيا المعلومات / | T164: x | V164: x | AC164: 7 | AD164: 2 | AE164: دور ثانى | AF164: الرياضيات / | AH164: الحوسبة وتكنولوجيا المعلومات / | AP164: 154 | AQ164: عبدالمحسن عادل عبدالمحسن محمد الدهنيم | AR164: 151.0000061 | AS164: 144 | AT164: دور ثانى
A165: 155 | B165: على حسن مبخوت سعيد الراشدى | C165: 10 - 5 | D165: 16 | E165: 10.5 | F165: 8.5 | G165: 14 | H165: 17.5 | I165: 12 | J165: 9.5 | K165: 16 | L165: 11 | M165: 115 | N165: دور ثانى | O165: 0.4259259259 | P165: دون المستوى | R165: الدراسات الاجتماعية / الحوسبة وتكنولوجيا المعلومات / الكيمياء / الأحياء / التربية الإسلامية / اللغة الإنجليزية / | U165: x | V165: x | W165: x | Y165: x | Z165: x | AB165: x | AC165: 3 | AD165: 6 | AE165: دور ثانى | AG165: الدراسات الاجتماعية / | AH165: الحوسبة وتكنولوجيا المعلومات / | AI165: الكيمياء / | AK165: الأحياء / | AL165: التربية الإسلامية / | AN165: اللغة الإنجليزية / | AP165: 155 | AQ165: على حسن مبخوت سعيد الراشدى | AR165: 115.0000061 | AS165: 196 | AT165: دور ثانى
A166: 156 | B166: على سالم ظافر ال حثيث الاحبابى | C166: 10 - 5 | D166: 23 | E166: 23 | F166: 21.5 | G166: 17.5 | H166: 28 | I166: 12.5 | J166: 15.5 | K166: 19 | L166: 17.5 | M166: 177.5 | N166: دور ثانى | O166: 0.6574074074 | P166: جيد | R166: الأحياء / | Y166: x | AC166: 8 | AD166: 1 | AE166: دور ثانى | AK166: الأحياء / | AP166: 156 | AQ166: على سالم ظافر ال حثيث الاحبابى | AR166: 177.500006 | AS166: 104 | AT166: دور ثانى
A167: 157 | B167: عمر شادي نعيم زهران | C167: 10 - 5 | D167: غ | E167: غ | F167: غ | G167: غ | H167: غ | I167: غ | J167: غ | K167: غ | L167: غ | M167: غ | N167: دور ثانى | O167: غ | P167: غ | R167: الرياضيات / الدراسات الاجتماعية / الحوسبة وتكنولوجيا المعلومات / الكيمياء / الفيزياء / الأحياء / التربية الإسلامية / اللغة العربية / اللغة الإنجليزية / | T167: x | U167: x | V167: x | W167: x | X167: x | Y167: x | Z167: x | AA167: x | AB167: x | AC167: 0 | AD167: 9 | AE167: دور ثانى | AF167: الرياضيات / | AG167: الدراسات الاجتماعية / | AH167: الحوسبة وتكنولوجيا المعلومات / | AI167: الكيمياء / | AJ167: الفيزياء / | AK167: الأحياء / | AL167: التربية الإسلامية / | AM167: اللغة العربية / | AN167: اللغة الإنجليزية / | AP167: 157 | AQ167: عمر شادي نعيم زهران | AR167: غ | AS167: غ | AT167: دور ثانى
A168: 158 | B168: غانم حمد صالح سعيد القريصى | C168: 10 - 5 | D168: 10 | E168: 7 | F168: 11.5 | G168: 9 | H168: 9 | I168: 11 | J168: 11 | K168: 9 | L168: 9 | M168: 86.5 | N168: دور ثانى | O168: 0.3203703704 | P168: دون المستوى | R168: الرياضيات / الدراسات الاجتماعية / الحوسبة وتكنولوجيا المعلومات / الكيمياء / الفيزياء / الأحياء / التربية الإسلامية / اللغة العربية / اللغة الإنجليزية / | T168: x | U168: x | V168: x | W168: x | X168: x | Y168: x | Z168: x | AA168: x | AB168: x | AC168: 0 | AD168: 9 | AE168: دور ثانى | AF168: الرياضيات / | AG168: الدراسات الاجتماعية / | AH168: الحوسبة وتكنولوجيا المعلومات / | AI168: الكيمياء / | AJ168: الفيزياء / | AK168: الأحياء / | AL168: التربية الإسلامية / | AM168: اللغة العربية / | AN168: اللغة الإنجليزية / | AP168: 158 | AQ168: غانم حمد صالح سعيد القريصى | AR168: 86.50000595 | AS168: 221 | AT168: دور ثانى
A169: 159 | B169: فهد سعد سعيد بخيت الخوار | C169: 10 - 5 | D169: 13.5 | E169: 12.5 | F169: 21.5 | G169: 10 | H169: 17 | I169: 10 | J169: 10 | K169: 13 | L169: 8.5 | M169: 116 | N169: دور ثانى | O169: 0.4296296296 | P169: دون المستوى | R169: الرياضيات / الدراسات الاجتماعية / الكيمياء / الأحياء / التربية الإسلامية / اللغة العربية / اللغة الإنجليزية / | T169: x | U169: x | W169: x | Y169: x | Z169: x | AA169: x | AB169: x | AC169: 2 | AD169: 7 | AE169: دور ثانى | AF169: الرياضيات / | AG169: الدراسات الاجتماعية / | AI169: الكيمياء / | AK169: الأحياء / | AL169: التربية الإسلامية / | AM169: اللغة العربية / | AN169: اللغة الإنجليزية / | AP169: 159 | AQ169: فهد سعد سعيد بخيت الخوار | AR169: 116.0000059 | AS169: 194 | AT169: دور ثانى
A170: 160 | B170: قصي محمد داود ابراهيم ابوديه | C170: 10 - 5 | D170: 11.5 | E170: 26.5 | F170: 18 | G170: 20 | H170: 20 | I170: 17.5 | J170: 22.5 | K170: 21 | L170: 13 | M170: 170 | N170: دور ثانى | O170: 0.6296296296 | P170: مقبول | R170: الرياضيات / اللغة الإنجليزية / | T170: x | AB170: x | AC170: 7 | AD170: 2 | AE170: دور ثانى | AF170: الرياضيات / | AN170: اللغة الإنجليزية / | AP170: 160 | AQ170: قصي محمد داود ابراهيم ابوديه | AR170: 170.0000059 | AS170: 113 | AT170: دور ثانى
A171: 161 | B171: محمد امين بن عادل قنوني | C171: 10 - 5 | D171: 15.5 | E171: 22 | F171: 14.5 | G171: 9.5 | H171: 26 | I171: 12 | J171: 18.5 | K171: 24 | L171: 15 | M171: 157 | N171: دور ثانى | O171: 0.5814814815 | P171: مقبول | R171: الحوسبة وتكنولوجيا المعلومات / الكيمياء / الأحياء / | V171: x | W171: x | Y171: x | AC171: 6 | AD171: 3 | AE171: دور ثانى | AH171: الحوسبة وتكنولوجيا المعلومات / | AI171: الكيمياء / | AK171: الأحياء / | AP171: =A171 -> 161 | AQ171: محمد امين بن عادل قنوني | AR171: 157.0000058 | AS171: 134 | AT171: دور ثانى
A172: 162 | B172: محمد جابر محمد الصعاق المرى | C172: 10 - 5 | D172: 16.5 | E172: 18.5 | F172: 15 | G172: 21.5 | H172: 17 | I172: 17 | J172: 22 | K172: 22 | L172: 18 | M172: 167.5 | N172: ناجح | O172: 0.6203703704 | P172: مقبول | AC172: 9 | AD172: 0 | AE172: ناجح | AP172: 162 | AQ172: محمد جابر محمد الصعاق المرى | AR172: 167.5000058 | AS172: 115 | AT172: ناجح
A173: 163 | B173: محمد سعيد جابر سالم اليربوعى | C173: 10 - 5 | D173: غ | E173: غ | F173: غ | G173: غ | H173: غ | I173: غ | J173: غ | K173: غ | L173: غ | M173: غ | N173: دور ثانى | O173: غ | P173: غ | R173: الرياضيات / الدراسات الاجتماعية / الحوسبة وتكنولوجيا المعلومات / الكيمياء / الفيزياء / الأحياء / التربية الإسلامية / اللغة العربية / اللغة الإنجليزية / | T173: x | U173: x | V173: x | W173: x | X173: x | Y173: x | Z173: x | AA173: x | AB173: x | AC173: 0 | AD173: 9 | AE173: دور ثانى | AF173: الرياضيات / | AG173: الدراسات الاجتماعية / | AH173: الحوسبة وتكنولوجيا المعلومات / | AI173: الكيمياء / | AJ173: الفيزياء / | AK173: الأحياء / | AL173: التربية الإسلامية / | AM173: اللغة العربية / | AN173: اللغة الإنجليزية / | AP173: 163 | AQ173: محمد سعيد جابر سالم اليربوعى | AR173: غ | AS173: غ | AT173: دور ثانى
A174: 164 | B174: محمد طارق الحاج | C174: 10 - 5 | D174: 20.5 | E174: 23 | F174: 18.5 | G174: 17 | H174: 21.5 | I174: 19 | J174: 20 | K174: 13 | L174: 20 | M174: 172.5 | N174: دور ثانى | O174: 0.6388888889 | P174: مقبول | R174: اللغة العربية / | AA174: x | AC174: 8 | AD174: 1 | AE174: دور ثانى | AM174: اللغة العربية / | AP174: 164 | AQ174: محمد طارق الحاج | AR174: 172.5000057 | AS174: 109 | AT174: دور ثانى
A175: 165 | B175: محمد عبدالله شيخ محمد | C175: 10 - 5 | D175: 17 | E175: 21 | F175: 13 | G175: 24 | H175: 28 | I175: 23 | J175: 24.5 | K175: 22 | L175: 22 | M175: 194.5 | N175: دور ثانى | O175: 0.7203703704 | P175: جيد | R175: الحوسبة وتكنولوجيا المعلومات / | V175: x | AC175: 8 | AD175: 1 | AE175: دور ثانى | AH175: الحوسبة وتكنولوجيا المعلومات / | AP175: 165 | AQ175: محمد عبدالله شيخ محمد | AR175: 194.5000057 | AS175: 87 | AT175: دور ثانى
A176: 166 | B176: محمد محسن محمد دخيل اليربوعى | C176: 10 - 5 | D176: 8.5 | E176: 13 | F176: 11 | G176: 5.5 | H176: 11 | I176: 8 | J176: 6 | K176: 13 | L176: 9 | M176: 85 | N176: دور ثانى | O176: 0.3148148148 | P176: دون المستوى | R176: الرياضيات / الدراسات الاجتماعية / الحوسبة وتكنولوجيا المعلومات / الكيمياء / الفيزياء / الأحياء / التربية الإسلامية / اللغة العربية / اللغة الإنجليزية / | T176: x | U176: x | V176: x | W176: x | X176: x | Y176: x | Z176: x | AA176: x | AB176: x | AC176: 0 | AD176: 9 | AE176: دور ثانى | AF176: الرياضيات / | AG176: الدراسات الاجتماعية / | AH176: الحوسبة وتكنولوجيا المعلومات / | AI176: الكيمياء / | AJ176: الفيزياء / | AK176: الأحياء / | AL176: التربية الإسلامية / | AM176: اللغة العربية / | AN176: اللغة الإنجليزية / | AP176: 166 | AQ176: محمد محسن محمد دخيل اليربوعى | AR176: 85.00000568 | AS176: 222 | AT176: دور ثانى
A177: 167 | B177: مصطفى اسامه محمد زهدي سيد | C177: 10 - 5 | D177: 24.5 | E177: 25.5 | F177: 26.5 | G177: 23.5 | H177: 26 | I177: 19 | J177: 22.5 | K177: 18.5 | L177: 26 | M177: 212 | N177: ناجح | O177: 0.7851851852 | P177: جيد جدا | AC177: 9 | AD177: 0 | AE177: ناجح | AP177: 167 | AQ177: مصطفى اسامه محمد زهدي سيد | AR177: 212.0000056 | AS177: 59 | AT177: ناجح
A178: 168 | B178: مهند عمر سمير كلباني | C178: 10 - 5 | D178: 23 | E178: 21.5 | F178: 21 | G178: 16.5 | H178: 27 | I178: 22 | J178: 19.5 | K178: 24 | L178: 27 | M178: 201.5 | N178: ناجح | O178: 0.7462962963 | P178: جيد | AC178: 9 | AD178: 0 | AE178: ناجح | AP178: 168 | AQ178: مهند عمر سمير كلباني | AR178: 201.5000056 | AS178: 79 | AT178: ناجح
A179: 169 | B179: نصر على نصر على النصر | C179: 10 - 5 | D179: 7 | E179: 16 | F179: 16 | G179: 9 | H179: 15 | I179: 12.5 | J179: 12 | K179: 14 | L179: 10 | M179: 111.5 | N179: دور ثانى | O179: 0.412962963 | P179: دون المستوى | R179: الرياضيات / الكيمياء / الأحياء / التربية الإسلامية / اللغة العربية / اللغة الإنجليزية / | T179: x | W179: x | Y179: x | Z179: x | AA179: x | AB179: x | AC179: 3 | AD179: 6 | AE179: دور ثانى | AF179: الرياضيات / | AI179: الكيمياء / | AK179: الأحياء / | AL179: التربية الإسلامية / | AM179: اللغة العربية / | AN179: اللغة الإنجليزية / | AP179: 169 | AQ179: نصر على نصر على النصر | AR179: 111.5000056 | AS179: 200 | AT179: دور ثانى
A180: 170 | B180: حمد اصغر خان نواب خان | C180: 10 - 6 | D180: 7 | E180: 6 | F180: غ | G180: 4 | H180: 10 | I180: 6.5 | J180: 8 | K180: 7 | L180: 19 | M180: 67.5 | N180: دور ثانى | O180: 0.25 | P180: دون المستوى | R180: الرياضيات / الدراسات الاجتماعية / الحوسبة وتكنولوجيا المعلومات / الكيمياء / الفيزياء / الأحياء / التربية الإسلامية / اللغة العربية / | T180: x | U180: x | V180: x | W180: x | X180: x | Y180: x | Z180: x | AA180: x | AC180: 1 | AD180: 8 | AE180: دور ثانى | AF180: الرياضيات / | AG180: الدراسات الاجتماعية / | AH180: الحوسبة وتكنولوجيا المعلومات / | AI180: الكيمياء / | AJ180: الفيزياء / | AK180: الأحياء / | AL180: التربية الإسلامية / | AM180: اللغة العربية / | AP180: 170 | AQ180: حمد اصغر خان نواب خان | AR180: 67.50000556 | AS180: 225 | AT180: دور ثانى
A181: 171 | B181: خالد سلطان حسن عباس الجمالى | C181: 10 - 6 | D181: 21.5 | E181: 15.5 | F181: 26 | G181: 12 | H181: 20 | I181: 14 | J181: 17 | K181: 13 | L181: 18 | M181: 157 | N181: دور ثانى | O181: 0.5814814815 | P181: مقبول | R181: الكيمياء / الأحياء / اللغة العربية / | W181: x | Y181: x | AA181: x | AC181: 6 | AD181: 3 | AE181: دور ثانى | AI181: الكيمياء / | AK181: الأحياء / | AM181: اللغة العربية / | AP181: 171 | AQ181: خالد سلطان حسن عباس الجمالى | AR181: 157.0000055 | AS181: 134 | AT181: دور ثانى
A182: 172 | B182: شفيع فهد على شفيع الفهيده | C182: 10 - 6 | D182: 28 | E182: 29 | F182: 28 | G182: 23 | H182: 30 | I182: 23 | J182: 26.5 | K182: 26 | L182: 21 | M182: 234.5 | N182: ناجح | O182: 0.8685185185 | P182: ممتاز | AC182: 9 | AD182: 0 | AE182: ناجح | AP182: 172 | AQ182: شفيع فهد على شفيع الفهيده | AR182: 234.5000055 | AS182: 32 | AT182: ناجح
A183: 173 | B183: عبدالرجمن يارمحمد معين خان | C183: 10 - 6 | D183: 19.5 | E183: 10 | F183: 1 | G183: 17 | H183: 24 | I183: 14 | J183: 18.5 | K183: 15 | L183: 13.5 | M183: 132.5 | N183: دور ثانى | O183: 0.4907407407 | P183: دون المستوى | R183: الدراسات الاجتماعية / الحوسبة وتكنولوجيا المعلومات / الأحياء / اللغة الإنجليزية / | U183: x | V183: x | Y183: x | AB183: x | AC183: 5 | AD183: 4 | AE183: دور ثانى | AG183: الدراسات الاجتماعية / | AH183: الحوسبة وتكنولوجيا المعلومات / | AK183: الأحياء / | AN183: اللغة الإنجليزية / | AP183: 173 | AQ183: عبدالرجمن يارمحمد معين خان | AR183: 132.5000055 | AS183: 169 | AT183: دور ثانى
A184: 174 | B184: عبدالرحمن جاسم محمد قاسم العمادى | C184: 10 - 6 | D184: 19.5 | E184: 15.5 | F184: 9 | G184: 10 | H184: 17 | I184: 14.5 | J184: 15 | K184: 13 | L184: 19.5 | M184: 133 | N184: دور ثانى | O184: 0.4925925926 | P184: دون المستوى | R184: الحوسبة وتكنولوجيا المعلومات / الكيمياء / الأحياء / اللغة العربية / | V184: x | W184: x | Y184: x | AA184: x | AC184: 5 | AD184: 4 | AE184: دور ثانى | AH184: الحوسبة وتكنولوجيا المعلومات / | AI184: الكيمياء / | AK184: الأحياء / | AM184: اللغة العربية / | AP184: 174 | AQ184: عبدالرحمن جاسم محمد قاسم العمادى | AR184: 133.0000054 | AS184: 168 | AT184: دور ثانى
A185: 175 | B185: عبدالرحمن حسين عبدي | C185: 10 - 6 | D185: 18 | E185: 7 | F185: 3 | G185: 8 | H185: 15 | I185: 9.5 | J185: 17.5 | K185: 12 | L185: 21 | M185: 111 | N185: دور ثانى | O185: 0.4111111111 | P185: دون المستوى | R185: الدراسات الاجتماعية / الحوسبة وتكنولوجيا المعلومات / الكيمياء / الأحياء / اللغة العربية / | U185: x | V185: x | W185: x | Y185: x | AA185: x | AC185: 4 | AD185: 5 | AE185: دور ثانى | AG185: الدراسات الاجتماعية / | AH185: الحوسبة وتكنولوجيا المعلومات / | AI185: الكيمياء / | AK185: الأحياء / | AM185: اللغة العربية / | AP185: 175 | AQ185: عبدالرحمن حسين عبدي | AR185: 111.0000054 | AS185: 202 | AT185: دور ثانى
A186: 176 | B186: عبدالرحمن محماس غزاى المقاطى العتيبى | C186: 10 - 6 | D186: 11.5 | E186: 10 | F186: غ | G186: 9 | H186: 12 | I186: 8.5 | J186: 18 | K186: 20 | L186: 9 | M186: 98 | N186: دور ثانى | O186: 0.362962963 | P186: دون المستوى | R186: الرياضيات / الدراسات الاجتماعية / الحوسبة وتكنولوجيا المعلومات / الكيمياء / الفيزياء / الأحياء / اللغة الإنجليزية / | T186: x | U186: x | V186: x | W186: x | X186: x | Y186: x | AB186: x | AC186: 2 | AD186: 7 | AE186: دور ثانى | AF186: الرياضيات / | AG186: الدراسات الاجتماعية / | AH186: الحوسبة وتكنولوجيا المعلومات / | AI186: الكيمياء / | AJ186: الفيزياء / | AK186: الأحياء / | AN186: اللغة الإنجليزية / | AP186: 176 | AQ186: عبدالرحمن محماس غزاى المقاطى العتيبى | AR186: 98.00000538 | AS186: 217 | AT186: دور ثانى
A187: 177 | B187: عبدالرحمن مرتضى عبدالعال ساتى الحسن | C187: 10 - 6 | D187: 28 | E187: 18 | F187: 26 | G187: 24 | H187: 29 | I187: 20 | J187: 19 | K187: 15.5 | L187: 24.5 | M187: 204 | N187: ناجح | O187: 0.7555555556 | P187: جيد جدا | AC187: 9 | AD187: 0 | AE187: ناجح | AP187: 177 | AQ187: عبدالرحمن مرتضى عبدالعال ساتى الحسن | AR187: 204.0000053 | AS187: 72 | AT187: ناجح
A188: 178 | B188: عبدالعزيز جهان بخش مرادك درزاده | C188: 10 - 6 | D188: 14 | E188: 7 | F188: 8 | G188: 10 | H188: 16 | I188: 12.5 | J188: 16.5 | K188: 11 | L188: 15 | M188: 110 | N188: دور ثانى | O188: 0.4074074074 | P188: دون المستوى | R188: الرياضيات / الدراسات الاجتماعية / الحوسبة وتكنولوجيا المعلومات / الكيمياء / الأحياء / اللغة العربية / | T188: x | U188: x | V188: x | W188: x | Y188: x | AA188: x | AC188: 3 | AD188: 6 | AE188: دور ثانى | AF188: الرياضيات / | AG188: الدراسات الاجتماعية / | AH188: الحوسبة وتكنولوجيا المعلومات / | AI188: الكيمياء / | AK188: الأحياء / | AM188: اللغة العربية / | AP188: 178 | AQ188: عبدالعزيز جهان بخش مرادك درزاده | AR188: 110.0000053 | AS188: 205 | AT188: دور ثانى
A189: 179 | B189: عبدالعزيز سلطان حسن سالم الكثيرى | C189: 10 - 6 | D189: 20.5 | E189: 16.5 | F189: 16 | G189: 21 | H189: 19 | I189: 13 | J189: 22 | K189: 17 | L189: 17.5 | M189: 162.5 | N189: دور ثانى | O189: 0.6018518519 | P189: مقبول | R189: الأحياء / | Y189: x | AC189: 8 | AD189: 1 | AE189: دور ثانى | AK189: الأحياء / | AP189: 179 | AQ189: =B189 -> عبدالعزيز سلطان حسن سالم الكثيرى | AR189: =IF(M189="","",IF(M189="غ","غ",M189+1/ROW()*0.001)) -> 162.5000053 | AS189: 124 | AT189: دور ثانى
A190: 180 | B190: عبدالغني عثمان عمر ورسمة | C190: 10 - 6 | D190: 18 | E190: 18.5 | F190: 1.5 | G190: 16 | H190: 17 | I190: 14 | J190: 18 | K190: 12 | L190: 13.5 | M190: 128.5 | N190: دور ثانى | O190: 0.4759259259 | P190: دون المستوى | R190: الحوسبة وتكنولوجيا المعلومات / الأحياء / اللغة العربية / اللغة الإنجليزية / | V190: x | Y190: x | AA190: x | AB190: x | AC190: 5 | AD190: 4 | AE190: دور ثانى | AH190: الحوسبة وتكنولوجيا المعلومات / | AK190: الأحياء / | AM190: اللغة العربية / | AN190: اللغة الإنجليزية / | AP190: 180 | AQ190: عبدالغني عثمان عمر ورسمة | AR190: 128.5000053 | AS190: 179 | AT190: دور ثانى
A191: 181 | B191: عبدالقادر انس العمر | C191: 10 - 6 | D191: 30 | E191: 30 | F191: 26 | G191: 29 | H191: 28 | I191: 30 | J191: 28 | K191: 28 | L191: 17.5 | M191: 246.5 | N191: ناجح | O191: 0.912962963 | P191: ممتاز | AC191: 9 | AD191: 0 | AE191: ناجح | AP191: 181 | AQ191: عبدالقادر انس العمر | AR191: 246.5000052 | AS191: 21 | AT191: ناجح
A192: 182 | B192: عبدالله جاسم على محمد القايد | C192: 10 - 6 | D192: 25.5 | E192: 17 | F192: 12.5 | G192: 15 | H192: 18 | I192: 10 | J192: 22.5 | K192: 15 | L192: 18.5 | M192: 154 | N192: دور ثانى | O192: 0.5703703704 | P192: مقبول | R192: الحوسبة وتكنولوجيا المعلومات / الأحياء / | V192: x | Y192: x | AC192: 7 | AD192: 2 | AE192: دور ثانى | AH192: الحوسبة وتكنولوجيا المعلومات / | AK192: الأحياء / | AP192: 182 | AQ192: عبدالله جاسم على محمد القايد | AR192: 154.0000052 | AS192: 143 | AT192: دور ثانى
A193: 183 | B193: عبدالله حمد سالم العيسائى اليافعى | C193: 10 - 6 | D193: 24.5 | E193: 21 | F193: 21.5 | G193: 24 | H193: 29 | I193: 21 | J193: 24 | K193: 18 | L193: 23 | M193: 206 | N193: ناجح | O193: 0.762962963 | P193: جيد جدا | AC193: 9 | AD193: 0 | AE193: ناجح | AP193: 183 | AQ193: عبدالله حمد سالم العيسائى اليافعى | AR193: 206.0000052 | AS193: 70 | AT193: ناجح
A194: 184 | B194: عبدالله على عبدالمحسن راشد الهميمى | C194: 10 - 6 | D194: 27.5 | E194: 20.5 | F194: 29 | G194: 28 | H194: 27 | I194: 22 | J194: 21 | K194: 20 | L194: 21.5 | M194: 216.5 | N194: ناجح | O194: 0.8018518519 | P194: جيد جدا | AC194: 9 | AD194: 0 | AE194: ناجح | AP194: 184 | AQ194: عبدالله على عبدالمحسن راشد الهميمى | AR194: 216.5000052 | AS194: 55 | AT194: ناجح
A195: 185 | B195: عبدالله محماس غزاى المقاطى العتيبى | C195: 10 - 6 | D195: 12.5 | E195: 11 | F195: 9.5 | G195: 21 | H195: 19 | I195: 9.5 | J195: 12 | K195: 19 | L195: 7.5 | M195: 121 | N195: دور ثانى | O195: 0.4481481481 | P195: دون المستوى | R195: الرياضيات / الدراسات الاجتماعية / الحوسبة وتكنولوجيا المعلومات / الأحياء / التربية الإسلامية / اللغة الإنجليزية / | T195: x | U195: x | V195: x | Y195: x | Z195: x | AB195: x | AC195: 3 | AD195: 6 | AE195: دور ثانى | AF195: الرياضيات / | AG195: الدراسات الاجتماعية / | AH195: الحوسبة وتكنولوجيا المعلومات / | AK195: الأحياء / | AL195: التربية الإسلامية / | AN195: اللغة الإنجليزية / | AP195: 185 | AQ195: عبدالله محماس غزاى المقاطى العتيبى | AR195: 121.0000051 | AS195: 190 | AT195: دور ثانى
A196: 186 | B196: عبدالله ناصر عبده السعدى اليافعى | C196: 10 - 6 | D196: 25 | E196: 18 | F196: 12 | G196: 19 | H196: 24 | I196: 16 | J196: 23 | K196: 17 | L196: 25 | M196: 179 | N196: دور ثانى | O196: 0.662962963 | P196: جيد | R196: الحوسبة وتكنولوجيا المعلومات / | V196: x | AC196: 8 | AD196: 1 | AE196: دور ثانى | AH196: الحوسبة وتكنولوجيا المعلومات / | AP196: 186 | AQ196: عبدالله ناصر عبده السعدى اليافعى | AR196: 179.0000051 | AS196: 103 | AT196: دور ثانى
A197: 187 | B197: على احمد عبدالله احمد العبدالله | C197: 10 - 6 | D197: 23.5 | E197: 22 | F197: 20.5 | G197: 22 | H197: 20.5 | I197: 16.5 | J197: 20 | K197: 17 | L197: 18.5 | M197: 180.5 | N197: ناجح | O197: 0.6685185185 | P197: جيد | AC197: 9 | AD197: 0 | AE197: ناجح | AP197: 187 | AQ197: على احمد عبدالله احمد العبدالله | AR197: 180.5000051 | AS197: 102 | AT197: ناجح
A198: 188 | B198: على فهد على شفيع الفهيده | C198: 10 - 6 | D198: 17 | E198: 28 | F198: 7 | G198: 14 | H198: 23 | I198: 18.5 | J198: 19 | K198: 19 | L198: 18 | M198: 163.5 | N198: دور ثانى | O198: 0.6055555556 | P198: مقبول | R198: الحوسبة وتكنولوجيا المعلومات / الكيمياء / | V198: x | W198: x | AC198: 7 | AD198: 2 | AE198: دور ثانى | AH198: الحوسبة وتكنولوجيا المعلومات / | AI198: الكيمياء / | AP198: 188 | AQ198: على فهد على شفيع الفهيده | AR198: 163.5000051 | AS198: 122 | AT198: دور ثانى
A199: 189 | B199: فارس وليد محي الدين | C199: 10 - 6 | D199: 15.5 | E199: 14.5 | F199: 21.5 | G199: 15 | H199: 18 | I199: 10.5 | J199: 16 | K199: 18 | L199: 25.5 | M199: 154.5 | N199: دور ثانى | O199: 0.5722222222 | P199: مقبول | R199: الدراسات الاجتماعية / الأحياء / | U199: x | Y199: x | AC199: 7 | AD199: 2 | AE199: دور ثانى | AG199: الدراسات الاجتماعية / | AK199: الأحياء / | AP199: 189 | AQ199: فارس وليد محي الدين | AR199: 154.500005 | AS199: 139 | AT199: دور ثانى
A200: 190 | B200: قطبى ياسر القطبي ادريس | C200: 10 - 6 | D200: غ | E200: غ | F200: غ | G200: غ | H200: غ | I200: غ | J200: غ | K200: غ | L200: غ | M200: غ | N200: دور ثانى | O200: غ | P200: غ | R200: الرياضيات / الدراسات الاجتماعية / الحوسبة وتكنولوجيا المعلومات / الكيمياء / الفيزياء / الأحياء / التربية الإسلامية / اللغة العربية / اللغة الإنجليزية / | T200: x | U200: x | V200: x | W200: x | X200: x | Y200: x | Z200: x | AA200: x | AB200: x | AC200: 0 | AD200: 9 | AE200: دور ثانى | AF200: الرياضيات / | AG200: الدراسات الاجتماعية / | AH200: الحوسبة وتكنولوجيا المعلومات / | AI200: الكيمياء / | AJ200: الفيزياء / | AK200: الأحياء / | AL200: التربية الإسلامية / | AM200: اللغة العربية / | AN200: اللغة الإنجليزية / | AP200: 190 | AQ200: قطبى ياسر القطبي ادريس | AR200: غ | AS200: غ | AT200: دور ثانى
A201: 191 | B201: محمد الفاضل يوسف محمد | C201: 10 - 6 | D201: 21 | E201: 21 | F201: 17 | G201: 25 | H201: 18 | I201: 20 | J201: 25 | K201: 20 | L201: 23.5 | M201: 190.5 | N201: ناجح | O201: 0.7055555556 | P201: جيد | AC201: 9 | AD201: 0 | AE201: ناجح | AP201: 191 | AQ201: محمد الفاضل يوسف محمد | AR201: 190.500005 | AS201: 92 | AT201: ناجح
A202: 192 | B202: محمد جابر حسين على الجرحب | C202: 10 - 6 | D202: 18.5 | E202: 21 | F202: 24 | G202: 12 | H202: 16 | I202: 17 | J202: 18 | K202: 17 | L202: 14.5 | M202: 158 | N202: دور ثانى | O202: 0.5851851852 | P202: مقبول | R202: الكيمياء / اللغة الإنجليزية / | W202: x | AB202: x | AC202: 7 | AD202: 2 | AE202: دور ثانى | AI202: الكيمياء / | AN202: اللغة الإنجليزية / | AP202: 192 | AQ202: محمد جابر حسين على الجرحب | AR202: 158.000005 | AS202: 132 | AT202: دور ثانى
A203: 193 | B203: محمد حمد حسين بن عباس الخزاعى | C203: 10 - 6 | D203: 30 | E203: 26 | F203: 20 | G203: 25 | H203: 22 | I203: 16 | J203: 22 | K203: 20 | L203: 26.5 | M203: =IF(B203="","",IF(AND(D203="غ",E203="غ",F203="غ",G203="غ",H203="غ",I203="غ",J203="غ",K203="غ",L203="غ"),"غ",SUM(D203,E203,F203,G203,H203,I203,J203,K203,L203))) -> 207.5 | N203: =IF(B203="","",AE203) -> ناجح | O203: =IF(B203="","",IF(M203="غ","غ",M203/$M$10*100/100)) -> 0.7685185185 | P203: جيد جدا | AC203: 9 | AD203: 0 | AE203: ناجح | AP203: 193 | AQ203: محمد حمد حسين بن عباس الخزاعى | AR203: 207.5000049 | AS203: 68 | AT203: ناجح
A204: =ROW()-10 -> 194 | B204: محمد على سالم حمد جبران | C204: 10 - 6 | D204: 5.5 | E204: 13 | F204: 7 | G204: 3 | H204: 16 | I204: 12 | J204: 17 | K204: 13.5 | L204: 12.5 | M204: 99.5 | N204: دور ثانى | O204: 0.3685185185 | P204: =IF(M204="","",IF(M204="غ","غ",IF(M204=0,"دون المستوى",IF(M204/$M$10*100>=85,"ممتاز",IF(M204/$M$10*100>=75,"جيد جدا",IF(M204/$M$10*100>=65,"جيد",IF(M204/$M$10*100>=50,"مقبول",IF(M204/$M$10*100<50,"دون المستوى")))))))) -> دون المستوى | R204: =CONCATENATE(AF204,AG204,AH204,AI204,AJ204,AK204,AL204,AM204,AN204) -> الرياضيات / الدراسات الاجتماعية / الحوسبة وتكنولوجيا المعلومات / الكيمياء / الأحياء / اللغة العربية / اللغة الإنجليزية / | T204: =IF($B204="","",IF(OR(D204<15,D204="",D204="غ",D204="صفر"=""),"x","")) -> x | U204: =IF($B204="","",IF(OR(E204<15,E204="",E204="غ",E204="صفر"=""),"x","")) -> x | V204: =IF($B204="","",IF(OR(F204<15,F204="",F204="غ",F204="صفر"=""),"x","")) -> x | W204: =IF($B204="","",IF(OR(G204<15,G204="",G204="غ",G204="صفر"=""),"x","")) -> x | X204: =IF($B204="","",IF(OR(H204<15,H204="",H204="غ",H204="صفر"=""),"x","")) ->  | Y204: =IF($B204="","",IF(OR(I204<15,I204="",I204="غ",I204="صفر"=""),"x","")) -> x | Z204: =IF($B204="","",IF(OR(J204<15,J204="",J204="غ",J204="صفر"=""),"x","")) ->  | AA204: =IF($B204="","",IF(OR(K204<15,K204="",K204="غ",K204="صفر"=""),"x","")) -> x | AB204: =IF($B204="","",IF(OR(L204<15,L204="",L204="غ",L204="صفر"=""),"x","")) -> x | AC204: =IF(B204="","",COUNTBLANK(T204:AB204)) -> 2 | AD204: =IF(B204="","",COUNTIF(T204:AB204,"x")) -> 7 | AE204: =IF(B204="","",IF(AC204=9,"ناجح","دور ثانى")) -> دور ثانى | AF204: =IF(T204="x","الرياضيات / ","") -> الرياضيات / | AG204: =IF(U204="x","الدراسات الاجتماعية / ","") -> الدراسات الاجتماعية / | AH204: =IF(V204="x","الحوسبة وتكنولوجيا المعلومات / ","") -> الحوسبة وتكنولوجيا المعلومات / | AI204: =IF(W204="x","الكيمياء / ","") -> الكيمياء / | AJ204: =IF(X204="x","الفيزياء / ","") ->  | AK204: =IF(Y204="x","الأحياء / ","") -> الأحياء / | AL204: =IF(Z204="x","التربية الإسلامية / ","") ->  | AM204: =IF(AA204="x","اللغة العربية / ","") -> اللغة العربية / | AN204: =IF(AB204="x","اللغة الإنجليزية / ","") -> اللغة الإنجليزية / | AP204: 194 | AQ204: محمد على سالم حمد جبران | AR204: 99.5000049 | AS204: =IFERROR(IF(M204=" "," ",IF(M204="غ","غ",RANK(M204,$M$11:$M$247))),"") -> 216 | AT204: =AE204 -> دور ثانى
A205: 195 | B205: محمد محمود صلاح الدين محمود محمد | C205: 10 - 6 | D205: 29 | E205: 19 | F205: 28.5 | G205: 20.5 | H205: 22 | I205: 21 | J205: 23 | K205: 19 | L205: 18.5 | M205: 200.5 | N205: ناجح | O205: 0.7425925926 | P205: جيد | AC205: 9 | AD205: 0 | AE205: ناجح | AP205: 195 | AQ205: محمد محمود صلاح الدين محمود محمد | AR205: 200.5000049 | AS205: 81 | AT205: ناجح
... 42 more rows

Sheet ناجح
E3: الناجحون
A8: رقم الجلوس | B8: اسم الطالب | C8: الصف | D8: الرياضيات | E8: الدراسات الاجتماعية | F8: الحوسبة وتكنولوجيا المعلومات | G8: الكيمياء | H8: الفيزياء | I8: الأحياء | J8: التربية الإسلامية | K8: اللغة العربية | L8: اللغة الإنجليزية | M8: المجموع الكلي | N8: نتيجة الطالب | O8: النسبة المئوية | P8: التقدير العام للطالب
D10: 30 | E10: 30 | F10: 30 | G10: 30 | H10: 30 | I10: 30 | J10: 30 | K10: 30 | L10: 30 | M10: =SUM(D10:L10) -> 270
A11: 1 | B11: احمد حسن احمد سليمان الهيل | C11: 10 - 1 | D11: 22 | E11: 19 | F11: 22 | G11: 19 | H11: 19 | I11: 19 | J11: 19 | K11: 22 | L11: 25 | M11: 186 | N11: ناجح | O11: 0.6888888889 | P11: جيد
A12: 2 | B12: احمد عبداللاه احمد يحيى عبدالاله | C12: 10 - 1 | D12: 24.5 | E12: 24.5 | F12: 26 | G12: 22.5 | H12: 29 | I12: 16 | J12: 30 | K12: 29 | L12: 22.5 | M12: 224 | N12: ناجح | O12: 0.8296296296 | P12: جيد جدا
A13: 3 | B13: احمد محمود احمد عبدالسميع عثمان | C13: 10 - 1 | D13: 28 | E13: 30 | F13: 29.5 | G13: 29 | H13: 28 | I13: 28 | J13: 29 | K13: 26 | L13: 25.5 | M13: 253 | N13: ناجح | O13: 0.937037037 | P13: ممتاز
A14: 4 | B14: جمال عبدالغفار كمال على | C14: 10 - 1 | D14: 24.5 | E14: 27 | F14: 27 | G14: 22.5 | H14: 25 | I14: 23 | J14: 27.5 | K14: 29 | L14: 22.5 | M14: 228 | N14: ناجح | O14: 0.8444444444 | P14: جيد جدا
A15: 5 | B15: حسن محمد العبود الصالح | C15: 10 - 1 | D15: 25.5 | E15: 30 | F15: 27 | G15: 27 | H15: 30 | I15: 27 | J15: 30 | K15: 28 | L15: 18.5 | M15: 243 | N15: ناجح | O15: 0.9 | P15: ممتاز
A16: 6 | B16: خالد مصعب خضر عبدالله تايه | C16: 10 - 1 | D16: 29.5 | E16: 30 | F16: 29 | G16: 30 | H16: 30 | I16: 30 | J16: 30 | K16: 29 | L16: 29.5 | M16: 267 | N16: ناجح | O16: 0.9888888889 | P16: ممتاز
A17: 7 | B17: سيف سعيد احمد عبدالمجيد عبدالرحيم | C17: 10 - 1 | D17: 27.5 | E17: 28 | F17: 24.5 | G17: 28 | H17: 28 | I17: 24 | J17: 28 | K17: 27 | L17: 25.5 | M17: 240.5 | N17: ناجح | O17: 0.8907407407 | P17: ممتاز
A18: 8 | B18: شعيب خالد شعيب جاب الله | C18: 10 - 1 | D18: 22 | E18: 28 | F18: 29 | G18: 21 | H18: 30 | I18: 28 | J18: 29 | K18: 26 | L18: 28.5 | M18: 241.5 | N18: ناجح | O18: 0.8944444444 | P18: ممتاز
A19: 9 | B19: عادل سعيد فتحي مصطفى عوض الله | C19: 10 - 1 | D19: 27 | E19: 30 | F19: 27 | G19: 23.5 | H19: 28 | I19: 19 | J19: 30 | K19: 30 | L19: 24 | M19: 238.5 | N19: ناجح | O19: 0.8833333333 | P19: ممتاز
A20: 10 | B20: عامر محمد عمر عجيز | C20: 10 - 1 | D20: 23 | E20: 19.5 | F20: 29 | G20: 19.5 | H20: 30 | I20: 26 | J20: 30 | K20: 27 | L20: 24 | M20: 228 | N20: ناجح | O20: 0.8444444444 | P20: جيد جدا
A21: 11 | B21: عبدالرحمن خالد محمد سليمان الشيخ | C21: 10 - 1 | D21: 26.5 | E21: 27 | F21: 20 | G21: 28 | H21: 30 | I21: 29 | J21: 30 | K21: 29 | L21: 29.5 | M21: 249 | N21: ناجح | O21: 0.9222222222 | P21: ممتاز
A22: 12 | B22: عبدالرحمن قارى محمد اقبال | C22: 10 - 1 | D22: 27 | E22: 25 | F22: 20.5 | G22: 29 | H22: 30 | I22: 22 | J22: 28 | K22: 30 | L22: 26.5 | M22: 238 | N22: ناجح | O22: 0.8814814815 | P22: ممتاز
A23: 13 | B23: عدنان محمد رضا كرار سليمان | C23: 10 - 1 | D23: 30 | E23: 27 | F23: 20.5 | G23: 24 | H23: 24 | I23: 21 | J23: 28.5 | K23: 30 | L23: 23.5 | M23: 228.5 | N23: ناجح | O23: 0.8462962963 | P23: جيد جدا
A24: 14 | B24: على هصام حامد على الحبابى | C24: 10 - 1 | D24: 26 | E24: 21 | F24: 26 | G24: 25 | H24: 25 | I24: 25 | J24: 24 | K24: 20 | L24: 19 | M24: 211 | N24: ناجح | O24: 0.7814814815 | P24: جيد جدا
A25: 15 | B25: عمر فؤاد اسماعيل ثابت | C25: 10 - 1 | D25: 24.5 | E25: 24 | F25: 27 | G25: 26 | H25: 27 | I25: 22.5 | J25: 26 | K25: 30 | L25: 25.5 | M25: 232.5 | N25: ناجح | O25: 0.8611111111 | P25: ممتاز
A26: 16 | B26: عمر مصطفى محمد عوه | C26: 10 - 1 | D26: 26 | E26: 29 | F26: 22.5 | G26: 30 | H26: 27 | I26: 22.5 | J26: 30 | K26: 28 | L26: 27.5 | M26: 242.5 | N26: ناجح | O26: 0.8981481481 | P26: ممتاز
A27: 17 | B27: عمر هشام على بحيرى ابوالخير | C27: 10 - 1 | D27: 30 | E27: 30 | F27: 27 | G27: 28 | H27: 30 | I27: 28 | J27: 30 | K27: 29 | L27: 27.5 | M27: 259.5 | N27: ناجح | O27: 0.9611111111 | P27: ممتاز
A28: 18 | B28: فادي عدنان احمد عبدالجليل | C28: 10 - 1 | D28: 29 | E28: 30 | F28: 28.5 | G28: 27 | H28: 28 | I28: 29 | J28: 30 | K28: 25 | L28: 28.5 | M28: 255 | N28: ناجح | O28: 0.9444444444 | P28: ممتاز
A29: 19 | B29: مازن محمود السيد عبدالله عبدالوهاب | C29: 10 - 1 | D29: 28 | E29: 29 | F29: 29.5 | G29: 25 | H29: 24 | I29: 26 | J29: 30 | K29: 25 | L29: 19 | M29: 235.5 | N29: ناجح | O29: 0.8722222222 | P29: ممتاز
A30: 20 | B30: محمد احمد محمود شناق | C30: 10 - 1 | D30: 27.5 | E30: 27 | F30: 26 | G30: 27 | H30: 28 | I30: 26 | J30: 29 | K30: 26 | L30: 29.5 | M30: 246 | N30: ناجح | O30: 0.9111111111 | P30: ممتاز
A31: 21 | B31: محمد عبدالله السيد بيومي حسن | C31: 10 - 1 | D31: 30 | E31: 26 | F31: 26.5 | G31: 30 | H31: 30 | I31: 29 | J31: 30 | K31: 27 | L31: 27.5 | M31: 256 | N31: ناجح | O31: 0.9481481481 | P31: ممتاز
A32: 22 | B32: محمد عقيل عدنان سيد احمد | C32: 10 - 1 | D32: 23.5 | E32: 30 | F32: 26.5 | G32: 26 | H32: 30 | I32: 26 | J32: 25.5 | K32: 27 | L32: 26.5 | M32: 241 | N32: ناجح | O32: 0.8925925926 | P32: ممتاز
A33: 23 | B33: محمد علي عطيت الله ابراهيم عبداللاه | C33: 10 - 1 | D33: 24 | E33: 30 | F33: 23.5 | G33: 24 | H33: 30 | I33: 25 | J33: 29 | K33: 27 | L33: 19.5 | M33: 232 | N33: ناجح | O33: 0.8592592593 | P33: ممتاز
A34: 24 | B34: محمد عمر عبدالرحيم على | C34: 10 - 1 | D34: 30 | E34: 30 | F34: 29.5 | G34: 29 | H34: 30 | I34: 24.5 | J34: 28 | K34: 30 | L34: 26.5 | M34: 257.5 | N34: ناجح | O34: 0.9537037037 | P34: ممتاز
A35: 25 | B35: محمد عمر فتحى عبدالتواب عبدالمقصود | C35: 10 - 1 | D35: 30 | E35: 30 | F35: 28 | G35: 28 | H35: 28 | I35: 27 | J35: 29 | K35: 30 | L35: 27.5 | M35: 257.5 | N35: ناجح | O35: 0.9537037037 | P35: ممتاز
A36: 26 | B36: محمود حبيب الله | C36: 10 - 1 | D36: 28 | E36: 30 | F36: 27 | G36: 22.5 | H36: 28 | I36: 28 | J36: 30 | K36: 30 | L36: 29.5 | M36: 253 | N36: ناجح | O36: 0.937037037 | P36: ممتاز
A37: 27 | B37: محمود عادل عبدالمحسن محمد | C37: 10 - 1 | D37: 28.5 | E37: 30 | F37: 29.5 | G37: 30 | H37: 30 | I37: 27 | J37: 29.5 | K37: 27 | L37: 28.5 | M37: 260 | N37: ناجح | O37: 0.962962963 | P37: ممتاز
A38: 28 | B38: يوسف محمد سليمان موسى عامر | C38: 10 - 1 | D38: 26.5 | E38: 30 | F38: 30 | G38: 27 | H38: 28 | I38: 22 | J38: 29 | K38: 30 | L38: 27 | M38: 249.5 | N38: ناجح | O38: 0.9240740741 | P38: ممتاز
A39: 29 | B39: احمد اسامه جميل ابوالعلا | C39: 10 - 2 | D39: 29 | E39: 24.5 | F39: 26.5 | G39: 25 | H39: 30 | I39: 26 | J39: 26 | K39: 24.5 | L39: 23 | M39: 234.5 | N39: ناجح | O39: 0.8685185185 | P39: ممتاز
A40: 30 | B40: أحمد اقبال ابواصبع | C40: 10 - 2 | D40: 29 | E40: 30 | F40: 28.5 | G40: 28 | H40: 30 | I40: 29 | J40: 28 | K40: 28.5 | L40: 27.5 | M40: 258.5 | N40: ناجح | O40: 0.9574074074 | P40: ممتاز
A41: 31 | B41: احمد شريف ابراهيم الدسوقى عوض | C41: 10 - 2 | D41: 25 | E41: 21 | F41: 28.5 | G41: 17 | H41: 29 | I41: 23 | J41: 26.5 | K41: 26.5 | L41: 28 | M41: 224.5 | N41: ناجح | O41: 0.8314814815 | P41: جيد جدا
A42: 32 | B42: امين بن المنذر بن عثمان | C42: 10 - 2 | D42: 19 | E42: 19 | F42: 20 | G42: 18 | H42: 18 | I42: 18 | J42: 19 | K42: 20 | L42: 24 | M42: 175 | N42: ناجح | O42: 0.6481481481 | P42: مقبول
A43: 33 | B43: براء اشرف سعيد زكي السيد | C43: 10 - 2 | D43: 29 | E43: 22 | F43: 19.5 | G43: 22 | H43: 26 | I43: 19.5 | J43: 23 | K43: 22 | L43: 27 | M43: 210 | N43: ناجح | O43: 0.7777777778 | P43: جيد جدا
A44: 34 | B44: جوين عماد عبدالحليم داود | C44: 10 - 2 | D44: 21.5 | E44: 16 | F44: 22 | G44: 21.5 | H44: 28 | I44: 18.5 | J44: 21 | K44: 19 | L44: 25 | M44: 192.5 | N44: ناجح | O44: 0.712962963 | P44: جيد
A45: 35 | B45: حمد ناجى مسعد احمد الطيرى | C45: 10 - 2 | D45: 28.5 | E45: 21 | F45: 27.5 | G45: 27.5 | H45: 30 | I45: 20 | J45: 23 | K45: 23 | L45: 19 | M45: 219.5 | N45: ناجح | O45: 0.812962963 | P45: جيد جدا
A46: 36 | B46: راشد حمد على البكرى اليافعى | C46: 10 - 2 | D46: 23 | E46: 24 | F46: 20 | G46: 19.5 | H46: 23 | I46: 17.5 | J46: 22.5 | K46: 23.5 | L46: 21 | M46: 194 | N46: ناجح | O46: 0.7185185185 | P46: جيد
A47: 37 | B47: رامي سعد فراج فرج علي | C47: 10 - 2 | D47: 18 | E47: 24 | F47: 27.5 | G47: 23 | H47: 25 | I47: 23.5 | J47: 26 | K47: 28 | L47: 26 | M47: 221 | N47: ناجح | O47: 0.8185185185 | P47: جيد جدا
A48: 38 | B48: زكي واءلئ شحده عطيه ابوعيده | C48: 10 - 2 | D48: 24.5 | E48: 28 | F48: 27 | G48: 20 | H48: 26 | I48: 20 | J48: 19.5 | K48: 20 | L48: 26 | M48: 211 | N48: ناجح | O48: 0.7814814815 | P48: جيد جدا
A49: 39 | B49: سلمان محمد اسلام ناصر احمد | C49: 10 - 2 | D49: 17 | E49: 16 | F49: 25.5 | G49: 15.5 | H49: 24 | I49: 25 | J49: 22 | K49: 20 | L49: 18 | M49: 183 | N49: ناجح | O49: 0.6777777778 | P49: جيد
A50: 40 | B50: عبدالرحمن محمد محسن البكري | C50: 10 - 2 | D50: 21.5 | E50: 26.5 | F50: 22 | G50: 18 | H50: 24 | I50: 19 | J50: 26.5 | K50: 18 | L50: 21 | M50: 196.5 | N50: ناجح | O50: 0.7277777778 | P50: جيد
A51: 41 | B51: عبدالرحمن هيثم اديب ابودلو | C51: 10 - 2 | D51: 28 | E51: 26 | F51: 27.5 | G51: 22.5 | H51: 28 | I51: 24 | J51: 26 | K51: 24 | L51: 19 | M51: 225 | N51: ناجح | O51: 0.8333333333 | P51: جيد جدا
A52: 42 | B52: على عبدالحافظ على منصر منيف | C52: 10 - 2 | D52: 27 | E52: 25 | F52: 25.5 | G52: 20 | H52: 28 | I52: 19 | J52: 29 | K52: 24 | L52: 17 | M52: 214.5 | N52: ناجح | O52: 0.7944444444 | P52: جيد جدا
A53: 43 | B53: فيصل محمد راشد جخدب الهميمى | C53: 10 - 2 | D53: 25.5 | E53: 28 | F53: 29.5 | G53: 29 | H53: 27 | I53: 21.5 | J53: 24 | K53: 23.5 | L53: 24 | M53: 232 | N53: ناجح | O53: 0.8592592593 | P53: ممتاز
A54: 44 | B54: قيس محمد داود ابراهيم ابوديه | C54: 10 - 2 | D54: 25.5 | E54: 29 | F54: 26.5 | G54: 29 | H54: 30 | I54: 28 | J54: 30 | K54: 27 | L54: 27 | M54: 252 | N54: ناجح | O54: 0.9333333333 | P54: ممتاز
A55: 45 | B55: لؤي ايهاب محمد احمد محمد | C55: 10 - 2 | D55: 24 | E55: 26.5 | F55: 18.5 | G55: 27 | H55: 27 | I55: 25 | J55: 24 | K55: 22 | L55: 27 | M55: 221 | N55: ناجح | O55: 0.8185185185 | P55: جيد جدا
A56: 46 | B56: محمد على راشد محمد انديله | C56: 10 - 2 | D56: 26 | E56: 22 | F56: 27 | G56: 20 | H56: 24 | I56: 20 | J56: 23 | K56: 19 | L56: 23 | M56: 204 | N56: ناجح | O56: 0.7555555556 | P56: جيد جدا
A57: 47 | B57: محمدخير حسين رغفان | C57: 10 - 2 | D57: 25 | E57: 28 | F57: 24.5 | G57: 21 | H57: 27 | I57: 24 | J57: 27 | K57: 20 | L57: 27 | M57: 223.5 | N57: ناجح | O57: 0.8277777778 | P57: جيد جدا
A58: 48 | B58: وليد الامين عثمان | C58: 10 - 2 | D58: 22.5 | E58: 20.5 | F58: 27.5 | G58: 18 | H58: 27 | I58: 24 | J58: 25 | K58: 21 | L58: 23 | M58: 208.5 | N58: ناجح | O58: 0.7722222222 | P58: جيد جدا
A59: 49 | B59: يزيد سامح حسنى محيسن | C59: 10 - 2 | D59: 30 | E59: 30 | F59: 27.5 | G59: 30 | H59: 30 | I59: 29 | J59: 26 | K59: 26 | L59: 22 | M59: 250.5 | N59: ناجح | O59: 0.9277777778 | P59: ممتاز
A60: 50 | B60: يوسف محمد عطيه عطيه حسن | C60: 10 - 2 | D60: 29 | E60: 27 | F60: 28 | G60: 30 | H60: 29 | I60: 30 | J60: 23 | K60: 27 | L60: 26 | M60: 249 | N60: ناجح | O60: 0.9222222222 | P60: ممتاز
A61: 51 | B61: أحمد يوسف خالد يوسف شراب | C61: 10 - 4 | D61: 16.5 | E61: 20 | F61: 16 | G61: 19.5 | H61: 18 | I61: 15 | J61: 22 | K61: 19.5 | L61: 17.5 | M61: 164 | N61: ناجح | O61: 0.6074074074 | P61: مقبول
A62: 52 | B62: جاسم ناصر جاسم محمد المفتاح | C62: 10 - 4 | D62: 23.5 | E62: 19.5 | F62: 17.5 | G62: 17 | H62: 26 | I62: 19.5 | J62: 17.5 | K62: 21 | L62: 29.5 | M62: 191 | N62: ناجح | O62: 0.7074074074 | P62: جيد
A63: 53 | B63: عبدالله ضيف الله برمان الدوسري | C63: 10 - 4 | D63: 25 | E63: 26.5 | F63: 23 | G63: 26 | H63: 23 | I63: 24.5 | J63: 27 | K63: 21 | L63: 23.5 | M63: 219.5 | N63: ناجح | O63: 0.812962963 | P63: جيد جدا
A64: 54 | B64: عدي فريد احمد حسين | C64: 10 - 4 | D64: 22 | E64: 27 | F64: 26 | G64: 22.5 | H64: 18.5 | I64: 19 | J64: 20.5 | K64: 25 | L64: 19.5 | M64: 200 | N64: ناجح | O64: 0.7407407407 | P64: جيد
A65: 55 | B65: عزيز خالد سالم ابو شنار | C65: 10 - 4 | D65: 18 | E65: 20.5 | F65: 20.5 | G65: 26.5 | H65: 20 | I65: 20 | J65: 24.5 | K65: 27 | L65: 24 | M65: 201 | N65: ناجح | O65: 0.7444444444 | P65: جيد
A66: 56 | B66: عمر محمد محمود ابوزاهر | C66: 10 - 4 | D66: 30 | E66: 29 | F66: 26 | G66: 30 | H66: 30 | I66: 29 | J66: 29 | K66: 29 | L66: 22.5 | M66: 254.5 | N66: ناجح | O66: 0.9425925926 | P66: ممتاز
A67: 57 | B67: محمد عبدالعزيز عبدالكريم يحى يعقوب | C67: 10 - 4 | D67: 22.5 | E67: 19.5 | F67: 23 | G67: 25.5 | H67: 24 | I67: 24 | J67: 24 | K67: 20 | L67: 26.5 | M67: 209 | N67: ناجح | O67: 0.7740740741 | P67: جيد جدا
A68: 58 | B68: محمد عبدالله بخيت محمد المهيري | C68: 10 - 4 | D68: 26.5 | E68: 28 | F68: 16 | G68: 24.5 | H68: 17 | I68: 26 | J68: 24.5 | K68: 22 | L68: 25.5 | M68: 210 | N68: ناجح | O68: 0.7777777778 | P68: جيد جدا
A69: 59 | B69: محمد هشام حامد على ابوخطيطه | C69: 10 - 4 | D69: 29.5 | E69: 25 | F69: 26.5 | G69: 29.5 | H69: 30 | I69: 29 | J69: 26 | K69: 27.5 | L69: 27 | M69: 250 | N69: ناجح | O69: 0.9259259259 | P69: ممتاز
A70: 60 | B70: حسن محمود ابراهيم علي البنا | C70: 10 - 5 | D70: 29 | E70: 28 | F70: 28.5 | G70: 29 | H70: 28 | I70: 27 | J70: 29 | K70: 26.5 | L70: 22 | M70: 247 | N70: ناجح | O70: 0.9148148148 | P70: ممتاز
A71: 61 | B71: زياد مصطفى كامل محمد ابوالبها | C71: 10 - 5 | D71: 29.5 | E71: 25.5 | F71: 22 | G71: 20 | H71: 28 | I71: 23 | J71: 20 | K71: 23.5 | L71: 25.5 | M71: 217 | N71: ناجح | O71: 0.8037037037 | P71: جيد جدا
A72: 62 | B72: سعيد محمد سالم عمار خوار | C72: 10 - 5 | D72: 23 | E72: 21 | F72: 22 | G72: 21.5 | H72: 26 | I72: 26.5 | J72: 25 | K72: 21.5 | L72: 20.5 | M72: 207 | N72: ناجح | O72: 0.7666666667 | P72: جيد جدا
A73: 63 | B73: عبدالله فهد عبدالله عبدالعزيز الرميحى | C73: 10 - 5 | D73: 22 | E73: 24 | F73: 20 | G73: 20 | H73: 24 | I73: 21.5 | J73: 25.5 | K73: 23 | L73: 23 | M73: 203 | N73: ناجح | O73: 0.7518518519 | P73: جيد جدا
A74: 64 | B74: عبدالله فؤاد حازم شريف | C74: 10 - 5 | D74: 26.5 | E74: 21.5 | F74: 20.5 | G74: 24 | H74: 24 | I74: 26 | J74: 24 | K74: 21.5 | L74: 20.5 | M74: 208.5 | N74: ناجح | O74: 0.7722222222 | P74: جيد جدا
A75: 65 | B75: محمد جابر محمد الصعاق المرى | C75: 10 - 5 | D75: 16.5 | E75: 18.5 | F75: 15 | G75: 21.5 | H75: 17 | I75: 17 | J75: 22 | K75: 22 | L75: 18 | M75: 167.5 | N75: ناجح | O75: 0.6203703704 | P75: مقبول
A76: 66 | B76: مصطفى اسامه محمد زهدي سيد | C76: 10 - 5 | D76: 24.5 | E76: 25.5 | F76: 26.5 | G76: 23.5 | H76: 26 | I76: 19 | J76: 22.5 | K76: 18.5 | L76: 26 | M76: 212 | N76: ناجح | O76: 0.7851851852 | P76: جيد جدا
A77: 67 | B77: مهند عمر سمير كلباني | C77: 10 - 5 | D77: 23 | E77: 21.5 | F77: 21 | G77: 16.5 | H77: 27 | I77: 22 | J77: 19.5 | K77: 24 | L77: 27 | M77: 201.5 | N77: ناجح | O77: 0.7462962963 | P77: جيد
A78: 68 | B78: شفيع فهد على شفيع الفهيده | C78: 10 - 6 | D78: 28 | E78: 29 | F78: 28 | G78: 23 | H78: 30 | I78: 23 | J78: 26.5 | K78: 26 | L78: 21 | M78: 234.5 | N78: ناجح | O78: 0.8685185185 | P78: ممتاز
A79: 69 | B79: عبدالرحمن مرتضى عبدالعال ساتى الحسن | C79: 10 - 6 | D79: 28 | E79: 18 | F79: 26 | G79: 24 | H79: 29 | I79: 20 | J79: 19 | K79: 15.5 | L79: 24.5 | M79: 204 | N79: ناجح | O79: 0.7555555556 | P79: جيد جدا
A80: 70 | B80: عبدالقادر انس العمر | C80: 10 - 6 | D80: 30 | E80: 30 | F80: 26 | G80: 29 | H80: 28 | I80: 30 | J80: 28 | K80: 28 | L80: 17.5 | M80: 246.5 | N80: ناجح | O80: 0.912962963 | P80: ممتاز
A81: 71 | B81: عبدالله حمد سالم العيسائى اليافعى | C81: 10 - 6 | D81: 24.5 | E81: 21 | F81: 21.5 | G81: 24 | H81: 29 | I81: 21 | J81: 24 | K81: 18 | L81: 23 | M81: 206 | N81: ناجح | O81: 0.762962963 | P81: جيد جدا
A82: 72 | B82: عبدالله على عبدالمحسن راشد الهميمى | C82: 10 - 6 | D82: 27.5 | E82: 20.5 | F82: 29 | G82: 28 | H82: 27 | I82: 22 | J82: 21 | K82: 20 | L82: 21.5 | M82: 216.5 | N82: ناجح | O82: 0.8018518519 | P82: جيد جدا
A83: 73 | B83: على احمد عبدالله احمد العبدالله | C83: 10 - 6 | D83: 23.5 | E83: 22 | F83: 20.5 | G83: 22 | H83: 20.5 | I83: 16.5 | J83: 20 | K83: 17 | L83: 18.5 | M83: 180.5 | N83: ناجح | O83: 0.6685185185 | P83: جيد
A84: 74 | B84: محمد الفاضل يوسف محمد | C84: 10 - 6 | D84: 21 | E84: 21 | F84: 17 | G84: 25 | H84: 18 | I84: 20 | J84: 25 | K84: 20 | L84: 23.5 | M84: 190.5 | N84: ناجح | O84: 0.7055555556 | P84: جيد
A85: 75 | B85: محمد حمد حسين بن عباس الخزاعى | C85: 10 - 6 | D85: 30 | E85: 26 | F85: 20 | G85: 25 | H85: 22 | I85: 16 | J85: 22 | K85: 20 | L85: 26.5 | M85: 207.5 | N85: ناجح | O85: 0.7685185185 | P85: جيد جدا
A86: 76 | B86: محمد محمود صلاح الدين محمود محمد | C86: 10 - 6 | D86: 29 | E86: 19 | F86: 28.5 | G86: 20.5 | H86: 22 | I86: 21 | J86: 23 | K86: 19 | L86: 18.5 | M86: 200.5 | N86: ناجح | O86: 0.7425925926 | P86: جيد
A87: 77 | B87: محمد وليد سيد حسن عبدالمجيد | C87: 10 - 6 | D87: 30 | E87: 27 | F87: 29 | G87: 27 | H87: 26 | I87: 28.5 | J87: 28 | K87: 27 | L87: 27.5 | M87: 250 | N87: ناجح | O87: 0.9259259259 | P87: ممتاز
A88: 78 | B88: محمدنذير محمداياد الحريري | C88: 10 - 6 | D88: 28 | E88: 17.5 | F88: 29 | G88: 23.5 | H88: 29 | I88: 25 | J88: 26 | K88: 21.5 | L88: 26 | M88: 225.5 | N88: ناجح | O88: 0.8351851852 | P88: جيد جدا
A89: 79 | B89: يوسف عادل احمد محمد مدني | C89: 10 - 6 | D89: 29 | E89: 19.5 | F89: 17.5 | G89: 26.5 | H89: 21 | I89: 20 | J89: 23 | K89: 20 | L89: 26 | M89: 202.5 | N89: ناجح | O89: 0.75 | P89: جيد جدا
A90: 80 | B90: السيدهاشم جعفر علي شبر الوداعي | C90: 10 - 7 | D90: 19.5 | E90: 21 | F90: 26.5 | G90: 16.5 | H90: 26 | I90: 25 | J90: 26 | K90: 18 | L90: 26 | M90: 204.5 | N90: ناجح | O90: 0.7574074074 | P90: جيد جدا
A91: 81 | B91: جوعان حمد محمد على بن نوره | C91: 10 - 7 | D91: 29.5 | E91: 25 | F91: 29 | G91: 27 | H91: 26 | I91: 24 | J91: 23 | K91: 22 | L91: 25 | M91: 230.5 | N91: ناجح | O91: 0.8537037037 | P91: ممتاز
A92: 82 | B92: على سالم محمد ابوعرقوه المرى | C92: 10 - 7 | D92: 16.5 | E92: 22.5 | F92: 27 | G92: 25 | H92: 26 | I92: 27 | J92: 24 | K92: 22 | L92: 25 | M92: 215 | N92: ناجح | O92: 0.7962962963 | P92: جيد جدا
A93: 83 | B93: مجتبى كامل عبدالله محمد | C93: 10 - 7 | D93: 25 | E93: 15 | F93: 20 | G93: 18 | H93: 18 | I93: 18 | J93: 22 | K93: 21 | L93: 25 | M93: 182 | N93: ناجح | O93: 0.6740740741 | P93: جيد
A94: 84 | B94: محمد راشد عبدالمحسن راشد الهميمى | C94: 10 - 7 | D94: 30 | E94: 29 | F94: 30 | G94: 28 | H94: 28 | I94: 30 | J94: 29 | K94: 28 | L94: 26 | M94: 258 | N94: ناجح | O94: 0.9555555556 | P94: ممتاز
A95: 85 | B95: محمد سعيد سعد خالد مقبل | C95: 10 - 7 | D95: 21 | E95: 28 | F95: 26 | G95: 23 | H95: 26 | I95: 24 | J95: 24 | K95: 20 | L95: 20 | M95: 212 | N95: ناجح | O95: 0.7851851852 | P95: جيد جدا
A96: 86 | B96: محمد واصف عارف حيدر | C96: 10 - 7 | D96: 29 | E96: 25 | F96: 27.5 | G96: 29 | H96: 30 | I96: 26 | J96: 25 | K96: 26 | L96: 23 | M96: 240.5 | N96: ناجح | O96: 0.8907407407 | P96: ممتاز

Sheet دور ثانى
F3: الراسبون
A8: رقم الجلوس | B8: اسم الطالب | C8: الصف | D8: الرياضيات | E8: الدراسات الاجتماعية | F8: الحوسبة وتكنولوجيا المعلومات | G8: الكيمياء | H8: الفيزياء | I8: الأحياء | J8: التربية الإسلامية | K8: اللغة العربية | L8: اللغة الإنجليزية | M8: المجموع الكلي | N8: نتيجة الطالب | O8: النسبة المئوية | P8: التقدير العام للطالب | Q8: الترتيب | R8: مواد الدور الثاني
D10: 30 | E10: 30 | F10: 30 | G10: 30 | H10: 30 | I10: 30 | J10: 30 | K10: 30 | L10: 30 | M10: =SUM(D10:L10) -> 270
A11: 1 | B11: عبدالله فتحي سيد محمد جمعه | C11: 10 - 1 | D11: 3 | E11: 30 | F11: 30 | G11: 26.5 | H11: 30 | I11: 28 | J11: 30 | K11: 30 | L11: 24.5 | M11: 232 | N11: دور ثانى | O11: 0.8592592593 | P11: ممتاز | R11: الرياضيات /
A12: 2 | B12: عمر عبدالباسط ابراهيم محمد | C12: 10 - 1 | D12: 26.5 | E12: 23.5 | F12: 28.5 | G12: 25 | H12: 30 | I12: 14.5 | J12: 26.5 | K12: 27 | L12: 29.5 | M12: 231 | N12: دور ثانى | O12: 0.8555555556 | P12: ممتاز | R12: الأحياء /
A13: 3 | B13: معتز احمد كامل على خوالده | C13: 10 - 1 | D13: 30 | E13: 30 | F13: 28 | G13: غ | H13: 28 | I13: 26 | J13: 29 | K13: 29 | L13: 25 | M13: 225 | N13: دور ثانى | O13: 0.8333333333 | P13: جيد جدا | R13: الكيمياء /
A14: 4 | B14: مهنا احمد محمد سيف النعيمى | C14: 10 - 1 | D14: غ | E14: 12 | F14: غ | G14: 8 | H14: 8 | I14: 8 | J14: غ | K14: 17 | L14: 18 | M14: 71 | N14: دور ثانى | O14: 0.262962963 | P14: دون المستوى | R14: الرياضيات / الدراسات الاجتماعية / الحوسبة وتكنولوجيا المعلومات / الكيمياء / الفيزياء / الأحياء / التربية الإسلامية /
A15: 5 | B15: مؤمن شريف محمد التاج | C15: 10 - 1 | D15: 29.5 | E15: 30 | F15: 29.5 | G15: غ | H15: 28 | I15: 29 | J15: 30 | K15: 30 | L15: 24.5 | M15: 230.5 | N15: دور ثانى | O15: 0.8537037037 | P15: ممتاز | R15: الكيمياء /
A16: 6 | B16: ياسين احمد صلاح عبداللطيف | C16: 10 - 1 | D16: غ | E16: غ | F16: غ | G16: غ | H16: غ | I16: غ | J16: غ | K16: غ | L16: غ | M16: غ | N16: دور ثانى | O16: غ | P16: غ | R16: الرياضيات / الدراسات الاجتماعية / الحوسبة وتكنولوجيا المعلومات / الكيمياء / الفيزياء / الأحياء / التربية الإسلامية / اللغة العربية / اللغة الإنجليزية /
A17: 7 | B17: بريك سالم دغش الجربوعى المرى | C17: 10 - 2 | D17: 18 | E17: 24 | F17: 17 | G17: 14.5 | H17: 23 | I17: 21 | J17: 18 | K17: 17 | L17: 22 | M17: 174.5 | N17: دور ثانى | O17: 0.6462962963 | P17: مقبول | R17: الكيمياء /
A18: 8 | B18: خالد طارق عبدالرحمن فوزي رامون | C18: 10 - 2 | D18: غ | E18: غ | F18: غ | G18: غ | H18: غ | I18: غ | J18: غ | K18: غ | L18: غ | M18: غ | N18: دور ثانى | O18: غ | P18: غ | R18: الرياضيات / الدراسات الاجتماعية / الحوسبة وتكنولوجيا المعلومات / الكيمياء / الفيزياء / الأحياء / التربية الإسلامية / اللغة العربية / اللغة الإنجليزية /
A19: 9 | B19: خالد ناصر محمد ناصر الدهيمى | C19: 10 - 2 | D19: 14 | E19: 27 | F19: 19.5 | G19: 19.5 | H19: 23 | I19: 25 | J19: 25 | K19: 24.5 | L19: 26 | M19: 203.5 | N19: دور ثانى | O19: 0.7537037037 | P19: جيد جدا | R19: الرياضيات /
A20: 10 | B20: زيد محمود احمد خشان | C20: 10 - 2 | D20: 23.5 | E20: 29 | F20: 21 | G20: 20.5 | H20: 29 | I20: 14 | J20: 29 | K20: 25.5 | L20: 24 | M20: 215.5 | N20: دور ثانى | O20: 0.7981481481 | P20: جيد جدا | R20: الأحياء /
A21: 11 | B21: سالم محمد سالم البطى الكعبى | C21: 10 - 2 | D21: 8 | E21: 27 | F21: 21 | G21: 16 | H21: 22 | I21: 19 | J21: 19.5 | K21: 20 | L21: 14 | M21: 166.5 | N21: دور ثانى | O21: 0.6166666667 | P21: مقبول | R21: الرياضيات / اللغة الإنجليزية /
A22: 12 | B22: سيف فهد موسى حسن على | C22: 10 - 2 | D22: 14.5 | E22: 24 | F22: 24 | G22: 17.5 | H22: 17 | I22: 22 | J22: 21.5 | K22: 15.5 | L22: 18 | M22: 174 | N22: دور ثانى | O22: 0.6444444444 | P22: مقبول | R22: الرياضيات /
A23: 13 | B23: عبدالرحمن اشرف فتحى سالم نصار | C23: 10 - 2 | D23: غ | E23: غ | F23: غ | G23: غ | H23: غ | I23: غ | J23: غ | K23: غ | L23: غ | M23: غ | N23: دور ثانى | O23: غ | P23: غ | R23: الرياضيات / الدراسات الاجتماعية / الحوسبة وتكنولوجيا المعلومات / الكيمياء / الفيزياء / الأحياء / التربية الإسلامية / اللغة العربية / اللغة الإنجليزية /
A24: 14 | B24: عبدالرحمن جمال على صالح سيد | C24: 10 - 2 | D24: 23.5 | E24: 28 | F24: 18 | G24: 13.5 | H24: 27 | I24: 22 | J24: 24.5 | K24: 21 | L24: 25 | M24: 202.5 | N24: دور ثانى | O24: 0.75 | P24: جيد جدا | R24: الكيمياء /
A25: 15 | B25: عبدالرحيم محمد رشيد الديرشوى | C25: 10 - 2 | D25: 13.5 | E25: 26 | F25: 20 | G25: 22 | H25: 25 | I25: 27.5 | J25: 24.5 | K25: 23.5 | L25: 18 | M25: 200 | N25: دور ثانى | O25: 0.7407407407 | P25: جيد | R25: الرياضيات /
A26: 16 | B26: عبدالعزيز عوض احمد محمد اليافعى | C26: 10 - 2 | D26: 17 | E26: 23 | F26: 16 | G26: 11 | H26: 25 | I26: 14.5 | J26: 25.5 | K26: 21 | L26: 19 | M26: 172 | N26: دور ثانى | O26: 0.637037037 | P26: مقبول | R26: الكيمياء / الأحياء /
A27: 17 | B27: على نائل محمد عبدالله الخالدى | C27: 10 - 2 | D27: 20 | E27: 20.5 | F27: غ | G27: 6 | H27: 10.5 | I27: 17 | J27: 16.5 | K27: 13 | L27: 24 | M27: 127.5 | N27: دور ثانى | O27: 0.4722222222 | P27: دون المستوى | R27: الحوسبة وتكنولوجيا المعلومات / الكيمياء / الفيزياء / اللغة العربية /
A28: 18 | B28: محمد محمود فاروق العبد | C28: 10 - 2 | D28: 17.5 | E28: 25 | F28: 26 | G28: 14.5 | H28: 20 | I28: 17 | J28: 25 | K28: 22.5 | L28: 26 | M28: 193.5 | N28: دور ثانى | O28: 0.7166666667 | P28: جيد | R28: الكيمياء /
A29: 19 | B29: احمد حافظ محمد ابوالكلام كبيرالدين | C29: 10 - 3 | D29: 9.5 | E29: 18.5 | F29: 20.5 | G29: 12 | H29: 16 | I29: 11 | J29: 20 | K29: 15 | L29: 17 | M29: 139.5 | N29: دور ثانى | O29: 0.5166666667 | P29: مقبول | R29: الرياضيات / الكيمياء / الأحياء /
A30: 20 | B30: احمد محمد احمد قنبر بلال | C30: 10 - 3 | D30: 16 | E30: 24 | F30: 22.5 | G30: 11 | H30: 16 | I30: 14 | J30: 17.5 | K30: 8 | L30: 12.5 | M30: 141.5 | N30: دور ثانى | O30: 0.5240740741 | P30: مقبول | R30: الكيمياء / الأحياء / اللغة العربية / اللغة الإنجليزية /
A31: 21 | B31: امان رشيد خان جول جنان | C31: 10 - 3 | D31: 12.5 | E31: 15.5 | F31: 21.5 | G31: 11 | H31: 10.5 | I31: 14 | J31: 13 | K31: 13 | L31: 15 | M31: 126 | N31: دور ثانى | O31: 0.4666666667 | P31: دون المستوى | R31: الرياضيات / الكيمياء / الفيزياء / الأحياء / التربية الإسلامية / اللغة العربية /
A32: 22 | B32: ايسر جهاد عبدالفتاح كراز | C32: 10 - 3 | D32: 5 | E32: 18.5 | F32: 24.5 | G32: 15 | H32: 10.5 | I32: 14 | J32: 16 | K32: 15 | L32: 8 | M32: 126.5 | N32: دور ثانى | O32: 0.4685185185 | P32: دون المستوى | R32: الرياضيات / الفيزياء / الأحياء / اللغة الإنجليزية /
A33: 23 | B33: بخيت مبخوت سالم سعيد خوار | C33: 10 - 3 | D33: 22.5 | E33: 16 | F33: 25.5 | G33: 17.5 | H33: 21 | I33: 13 | J33: 14 | K33: 17 | L33: 14.5 | M33: 161 | N33: دور ثانى | O33: 0.5962962963 | P33: مقبول | R33: الأحياء / التربية الإسلامية / اللغة الإنجليزية /
A34: 24 | B34: تميم محمد ابراهيم محمد فلامرزى | C34: 10 - 3 | D34: 10.5 | E34: 8 | F34: 19.5 | G34: 14 | H34: 15 | I34: 7.5 | J34: 11 | K34: 13 | L34: 12 | M34: 110.5 | N34: دور ثانى | O34: 0.4092592593 | P34: دون المستوى | R34: الرياضيات / الدراسات الاجتماعية / الكيمياء / الأحياء / التربية الإسلامية / اللغة العربية / اللغة الإنجليزية /
A35: 25 | B35: جابر سعد سالم النابت المرى | C35: 10 - 3 | D35: 11 | E35: 19 | F35: 18.5 | G35: 13 | H35: 15.5 | I35: 6.5 | J35: 14 | K35: 15 | L35: 9.5 | M35: 122 | N35: دور ثانى | O35: 0.4518518519 | P35: دون المستوى | R35: الرياضيات / الكيمياء / الأحياء / التربية الإسلامية / اللغة الإنجليزية /
A36: 26 | B36: جاسم عبدالله خالد عبدالله الكثيرى | C36: 10 - 3 | D36: 19 | E36: 17.5 | F36: 18 | G36: 9.5 | H36: 15 | I36: 13 | J36: 15.5 | K36: 16 | L36: 6 | M36: 129.5 | N36: دور ثانى | O36: 0.4796296296 | P36: دون المستوى | R36: الكيمياء / الأحياء / اللغة الإنجليزية /
A37: 27 | B37: حمد راشد حمد ال شابل المرى | C37: 10 - 3 | D37: 20 | E37: 16 | F37: 16 | G37: 12 | H37: 19 | I37: 11 | J37: 20 | K37: 18.5 | L37: 8.5 | M37: 141 | N37: دور ثانى | O37: 0.5222222222 | P37: مقبول | R37: الكيمياء / الأحياء / اللغة الإنجليزية /
A38: 28 | B38: خالد حسين بلوج زنى | C38: 10 - 3 | D38: 7.5 | E38: 5.5 | F38: 20.5 | G38: 6 | H38: 11 | I38: 8 | J38: 14.5 | K38: 14 | L38: 14 | M38: 101 | N38: دور ثانى | O38: 0.3740740741 | P38: دون المستوى | R38: الرياضيات / الدراسات الاجتماعية / الكيمياء / الفيزياء / الأحياء / التربية الإسلامية / اللغة العربية / اللغة الإنجليزية /
A39: 29 | B39: خلف فرحان عقيل الرويلى العنزى | C39: 10 - 3 | D39: 13 | E39: 13.5 | F39: 21.5 | G39: 7 | H39: 14.5 | I39: 11 | J39: 12 | K39: 9 | L39: 10 | M39: 111.5 | N39: دور ثانى | O39: 0.412962963 | P39: دون المستوى | R39: الرياضيات / الدراسات الاجتماعية / الكيمياء / الفيزياء / الأحياء / التربية الإسلامية / اللغة العربية / اللغة الإنجليزية /
A40: 30 | B40: راشد خالد على محمد النديله | C40: 10 - 3 | D40: 24 | E40: 12 | F40: 21 | G40: 17.5 | H40: 23 | I40: 18 | J40: 19 | K40: 20 | L40: 16.5 | M40: 171 | N40: دور ثانى | O40: 0.6333333333 | P40: مقبول | R40: الدراسات الاجتماعية /
A41: 31 | B41: سالم سعد سالم النابت المرى | C41: 10 - 3 | D41: 4.5 | E41: 15 | F41: 19 | G41: 13 | H41: 18.5 | I41: 11.5 | J41: 11 | K41: 12 | L41: 6.5 | M41: 111 | N41: دور ثانى | O41: 0.4111111111 | P41: دون المستوى | R41: الرياضيات / الكيمياء / الأحياء / التربية الإسلامية / اللغة العربية / اللغة الإنجليزية /
A42: 32 | B42: سالم على محمد سالم خوار | C42: 10 - 3 | D42: 10 | E42: 15 | F42: 20.5 | G42: 9 | H42: 17 | I42: 8 | J42: 13.5 | K42: 14 | L42: غ | M42: 107 | N42: دور ثانى | O42: 0.3962962963 | P42: دون المستوى | R42: الرياضيات / الكيمياء / الأحياء / التربية الإسلامية / اللغة العربية / اللغة الإنجليزية /
A43: 33 | B43: سعيد حسين ناصر ال شافعه المرى | C43: 10 - 3 | D43: 16.5 | E43: 13.5 | F43: 21.5 | G43: 9 | H43: 16 | I43: 12 | J43: 18.5 | K43: 16 | L43: 16 | M43: 139 | N43: دور ثانى | O43: 0.5148148148 | P43: مقبول | R43: الدراسات الاجتماعية / الكيمياء / الأحياء /
A44: 34 | B44: شاهين علي | C44: 10 - 3 | D44: 20 | E44: 10 | F44: 22 | G44: 8 | H44: 13 | I44: 10 | J44: 12 | K44: 11 | L44: 24.5 | M44: 130.5 | N44: دور ثانى | O44: 0.4833333333 | P44: دون المستوى | R44: الدراسات الاجتماعية / الكيمياء / الفيزياء / الأحياء / التربية الإسلامية / اللغة العربية /
A45: 35 | B45: عبدالرحمن فرج محمد المشعلى القحطانى | C45: 10 - 3 | D45: 15.5 | E45: 12.5 | F45: 21 | G45: 12 | H45: 26 | I45: 13 | J45: 26.5 | K45: 18 | L45: 17.5 | M45: 162 | N45: دور ثانى | O45: 0.6 | P45: مقبول | R45: الدراسات الاجتماعية / الكيمياء / الأحياء /
A46: 36 | B46: عبدالرشيد حسين عبدي | C46: 10 - 3 | D46: 12 | E46: 16.5 | F46: 22 | G46: 7 | H46: 16 | I46: 7.5 | J46: 12 | K46: 15 | L46: 8 | M46: 116 | N46: دور ثانى | O46: 0.4296296296 | P46: دون المستوى | R46: الرياضيات / الكيمياء / الأحياء / التربية الإسلامية / اللغة الإنجليزية /
A47: 37 | B47: عبدالله سعيد بخيت سعيد خوار | C47: 10 - 3 | D47: 15 | E47: 11.5 | F47: 14 | G47: 13.5 | H47: 20 | I47: 13.5 | J47: 18.5 | K47: 22 | L47: 15.5 | M47: 143.5 | N47: دور ثانى | O47: 0.5314814815 | P47: مقبول | R47: الدراسات الاجتماعية / الحوسبة وتكنولوجيا المعلومات / الكيمياء / الأحياء /
A48: 38 | B48: عبدالله سعيد عبدالله آل نابت المرى | C48: 10 - 3 | D48: 22.5 | E48: 15.5 | F48: 15 | G48: 15.5 | H48: 22.5 | I48: 11 | J48: 14 | K48: 14 | L48: 16.5 | M48: 146.5 | N48: دور ثانى | O48: 0.5425925926 | P48: مقبول | R48: الأحياء / التربية الإسلامية / اللغة العربية /
A49: 39 | B49: عبدالله عادل خصيف | C49: 10 - 3 | D49: غ | E49: غ | F49: غ | G49: غ | H49: غ | I49: غ | J49: غ | K49: غ | L49: غ | M49: غ | N49: دور ثانى | O49: غ | P49: غ | R49: الرياضيات / الدراسات الاجتماعية / الحوسبة وتكنولوجيا المعلومات / الكيمياء / الفيزياء / الأحياء / التربية الإسلامية / اللغة العربية / اللغة الإنجليزية /
A50: 40 | B50: عبدالله مبارك سالم بطى الكعبى | C50: 10 - 3 | D50: 20.5 | E50: 21 | F50: 18 | G50: 16.5 | H50: 29 | I50: 13 | J50: 16 | K50: 17.5 | L50: 19 | M50: 170.5 | N50: دور ثانى | O50: 0.6314814815 | P50: مقبول | R50: الأحياء /
A51: 41 | B51: على عجيم على عجيم الحبابى | C51: 10 - 3 | D51: 15 | E51: 26.5 | F51: 21 | G51: 19 | H51: 19 | I51: 11.5 | J51: 12 | K51: 15 | L51: 19 | M51: 158 | N51: دور ثانى | O51: 0.5851851852 | P51: مقبول | R51: الأحياء / التربية الإسلامية /
A52: 42 | B52: على فهد على احمد محمد | C52: 10 - 3 | D52: 15 | E52: 10.5 | F52: 15 | G52: 9 | H52: 18 | I52: 9 | J52: 17 | K52: 19 | L52: 16.5 | M52: 129 | N52: دور ثانى | O52: 0.4777777778 | P52: دون المستوى | R52: الدراسات الاجتماعية / الكيمياء / الأحياء /
A53: 43 | B53: عمر عبيدالله روح الامين مريضا | C53: 10 - 3 | D53: 11 | E53: 8.5 | F53: 19.5 | G53: 10 | H53: 9 | I53: 10.5 | J53: 18.5 | K53: 13 | L53: 25.5 | M53: 125.5 | N53: دور ثانى | O53: 0.4648148148 | P53: دون المستوى | R53: الرياضيات / الدراسات الاجتماعية / الكيمياء / الفيزياء / الأحياء / اللغة العربية /
A54: 44 | B54: ماجد صلاح خميس يوسف ابراهيم | C54: 10 - 3 | D54: غ | E54: غ | F54: غ | G54: غ | H54: غ | I54: 6 | J54: 11 | K54: غ | L54: 5 | M54: 22 | N54: دور ثانى | O54: 0.08148148148 | P54: دون المستوى | R54: الرياضيات / الدراسات الاجتماعية / الحوسبة وتكنولوجيا المعلومات / الكيمياء / الفيزياء / الأحياء / التربية الإسلامية / اللغة العربية / اللغة الإنجليزية /
A55: 45 | B55: محمد عبدالله عبدالله ابراهيم الخليفى | C55: 10 - 3 | D55: 19.5 | E55: 14.5 | F55: 23 | G55: 15.5 | H55: 13 | I55: 5 | J55: 13 | K55: 12 | L55: 15.5 | M55: 131 | N55: دور ثانى | O55: 0.4851851852 | P55: دون المستوى | R55: الدراسات الاجتماعية / الفيزياء / الأحياء / التربية الإسلامية / اللغة العربية /
A56: 46 | B56: محمد عبدالله محمد جاسم السويدى | C56: 10 - 3 | D56: 22.5 | E56: 13 | F56: 17 | G56: 19 | H56: 11 | I56: 0 | J56: 14.5 | K56: 17 | L56: 16.5 | M56: 130.5 | N56: دور ثانى | O56: 0.4833333333 | P56: دون المستوى | R56: الدراسات الاجتماعية / الفيزياء / الأحياء / التربية الإسلامية /
A57: 47 | B57: محمدزين عبدالحميد المبارك على | C57: 10 - 3 | D57: 12 | E57: 14.5 | F57: 13 | G57: 16 | H57: 15 | I57: 8 | J57: 12 | K57: 17 | L57: 14.5 | M57: 122 | N57: دور ثانى | O57: 0.4518518519 | P57: دون المستوى | R57: الرياضيات / الدراسات الاجتماعية / الحوسبة وتكنولوجيا المعلومات / الأحياء / التربية الإسلامية / اللغة الإنجليزية /
A58: 48 | B58: محمود اسعد الحاج الخلف | C58: 10 - 3 | D58: 10.5 | E58: 17.5 | F58: 16 | G58: 7 | H58: 19 | I58: 12 | J58: 17.5 | K58: 17.5 | L58: 18 | M58: 135 | N58: دور ثانى | O58: 0.5 | P58: مقبول | R58: الرياضيات / الكيمياء / الأحياء /
A59: 49 | B59: مسفر سعد محمد ذفال الحبابى | C59: 10 - 3 | D59: غ | E59: غ | F59: غ | G59: غ | H59: غ | I59: 12 | J59: 13 | K59: غ | L59: 13 | M59: 38 | N59: دور ثانى | O59: 0.1407407407 | P59: دون المستوى | R59: الرياضيات / الدراسات الاجتماعية / الحوسبة وتكنولوجيا المعلومات / الكيمياء / الفيزياء / الأحياء / التربية الإسلامية / اللغة العربية / اللغة الإنجليزية /
A60: 50 | B60: ناصر جهان بخش مرادك درزاده | C60: 10 - 3 | D60: 7.5 | E60: 7 | F60: 20 | G60: 15 | H60: 11 | I60: 13.5 | J60: 15.5 | K60: 17.5 | L60: 14 | M60: 121 | N60: دور ثانى | O60: 0.4481481481 | P60: دون المستوى | R60: الرياضيات / الدراسات الاجتماعية / الفيزياء / الأحياء / اللغة الإنجليزية /
A61: 51 | B61: ناصر محمد خالد احمد الغانم | C61: 10 - 3 | D61: 8 | E61: 10 | F61: 20 | G61: 11 | H61: 20 | I61: 9.5 | J61: 17 | K61: 14 | L61: 12 | M61: 121.5 | N61: دور ثانى | O61: 0.45 | P61: دون المستوى | R61: الرياضيات / الدراسات الاجتماعية / الكيمياء / الأحياء / اللغة العربية / اللغة الإنجليزية /
A62: 52 | B62: يوسف صالح على عبدالعزيز على | C62: 10 - 3 | D62: 23 | E62: 10 | F62: 18.5 | G62: 16.5 | H62: 23 | I62: 15.5 | J62: 10 | K62: 16 | L62: 23.5 | M62: 156 | N62: دور ثانى | O62: 0.5777777778 | P62: مقبول | R62: الدراسات الاجتماعية / التربية الإسلامية /
A63: 53 | B63: احمد رائد سليمان المومني | C63: 10 - 4 | D63: 11.5 | E63: 21 | F63: 27 | G63: 11.5 | H63: 20 | I63: 10.5 | J63: 22 | K63: 22 | L63: 18.5 | M63: 164 | N63: دور ثانى | O63: 0.6074074074 | P63: مقبول | R63: الرياضيات / الكيمياء / الأحياء /
A64: 54 | B64: أحمد نافذ حماده حموده | C64: 10 - 4 | D64: 12 | E64: 22 | F64: 18 | G64: 20.5 | H64: 17 | I64: 12 | J64: 23 | K64: 17.5 | L64: 18 | M64: 160 | N64: دور ثانى | O64: 0.5925925926 | P64: مقبول | R64: الرياضيات / الأحياء /
A65: 55 | B65: تميم سالم راشد الصعاق المرى | C65: 10 - 4 | D65: 14 | E65: 11 | F65: 17 | G65: 13.5 | H65: 20 | I65: 6 | J65: 17 | K65: 14.5 | L65: 6.5 | M65: 119.5 | N65: دور ثانى | O65: 0.4425925926 | P65: دون المستوى | R65: الرياضيات / الدراسات الاجتماعية / الكيمياء / الأحياء / اللغة العربية / اللغة الإنجليزية /
A66: 56 | B66: جابر سعيد جابر سالم اليربوعى | C66: 10 - 4 | D66: 13.5 | E66: 12.5 | F66: 19 | G66: 17 | H66: 7 | I66: 8 | J66: 15 | K66: 15 | L66: غ | M66: 107 | N66: دور ثانى | O66: 0.3962962963 | P66: دون المستوى | R66: الرياضيات / الدراسات الاجتماعية / الفيزياء / الأحياء / اللغة الإنجليزية /
A67: 57 | B67: جاسم محمود محمد عبداللهي | C67: 10 - 4 | D67: 20.5 | E67: 26 | F67: 16 | G67: 20 | H67: 20 | I67: 14 | J67: 24 | K67: 23.5 | L67: 18 | M67: 182 | N67: دور ثانى | O67: 0.6740740741 | P67: جيد | R67: الأحياء /
A68: 58 | B68: حمد محمد بخيت تويم المرى | C68: 10 - 4 | D68: 19 | E68: 15.5 | F68: 11 | G68: 12 | H68: 20 | I68: 7 | J68: 20.5 | K68: 18 | L68: 16.5 | M68: 139.5 | N68: دور ثانى | O68: 0.5166666667 | P68: مقبول | R68: الحوسبة وتكنولوجيا المعلومات / الكيمياء / الأحياء /
A69: 59 | B69: خالد سعيد محمد البريكان المرى | C69: 10 - 4 | D69: 14 | E69: 24 | F69: 18.5 | G69: 22 | H69: 22 | I69: 21 | J69: 24 | K69: 23 | L69: 15.5 | M69: 184 | N69: دور ثانى | O69: 0.6814814815 | P69: جيد | R69: الرياضيات /
A70: 60 | B70: خميس محمد سيف خميس الريامي | C70: 10 - 4 | D70: 18 | E70: 19.5 | F70: 21.5 | G70: 17 | H70: 15 | I70: 11.5 | J70: 24.5 | K70: 15 | L70: 12.5 | M70: 154.5 | N70: دور ثانى | O70: 0.5722222222 | P70: مقبول | R70: الأحياء / اللغة الإنجليزية /
A71: 61 | B71: راشد حمد راشد سالم خادم | C71: 10 - 4 | D71: 14.5 | E71: 9.5 | F71: 19 | G71: 7.5 | H71: 13 | I71: 8.5 | J71: 13 | K71: 8 | L71: غ | M71: 93 | N71: دور ثانى | O71: 0.3444444444 | P71: دون المستوى | R71: الرياضيات / الدراسات الاجتماعية / الكيمياء / الفيزياء / الأحياء / التربية الإسلامية / اللغة العربية / اللغة الإنجليزية /
A72: 62 | B72: سالم حمد سالم اليربوعى المرى | C72: 10 - 4 | D72: غ | E72: غ | F72: غ | G72: غ | H72: غ | I72: غ | J72: غ | K72: غ | L72: غ | M72: غ | N72: دور ثانى | O72: غ | P72: غ | R72: الرياضيات / الدراسات الاجتماعية / الحوسبة وتكنولوجيا المعلومات / الكيمياء / الفيزياء / الأحياء / التربية الإسلامية / اللغة العربية / اللغة الإنجليزية /
A73: 63 | B73: سليمان حسن علي سليمان موسى | C73: 10 - 4 | D73: 17.5 | E73: 16 | F73: 19.5 | G73: 16 | H73: 18.5 | I73: 13.5 | J73: 26 | K73: 19 | L73: 15.5 | M73: 161.5 | N73: دور ثانى | O73: 0.5981481481 | P73: مقبول | R73: الأحياء /
A74: 64 | B74: شعيب عبدي قرني قلديد | C74: 10 - 4 | D74: 10 | E74: 11.5 | F74: 17 | G74: 13 | H74: 19 | I74: 11.5 | J74: 20 | K74: 17.5 | L74: 9.5 | M74: 129 | N74: دور ثانى | O74: 0.4777777778 | P74: دون المستوى | R74: الرياضيات / الدراسات الاجتماعية / الكيمياء / الأحياء / اللغة الإنجليزية /
A75: 65 | B75: عابدين حافظ عابدين موسى | C75: 10 - 4 | D75: 10 | E75: 18.5 | F75: 20.5 | G75: 15 | H75: 19 | I75: 11.5 | J75: 18 | K75: 17.5 | L75: 18.5 | M75: 148.5 | N75: دور ثانى | O75: 0.55 | P75: مقبول | R75: الرياضيات / الأحياء /
A76: 66 | B76: عبدالرحمن صبرى عثمان محسن اليهرى | C76: 10 - 4 | D76: 17.5 | E76: 24 | F76: 21 | G76: 15.5 | H76: 22 | I76: 12.5 | J76: 21 | K76: 17.5 | L76: 12 | M76: 163 | N76: دور ثانى | O76: 0.6037037037 | P76: مقبول | R76: الأحياء / اللغة الإنجليزية /
A77: 67 | B77: عبدالله سالم محمد سالم خوار | C77: 10 - 4 | D77: 9 | E77: 17 | F77: 20.5 | G77: 24 | H77: 13.5 | I77: 8 | J77: 14 | K77: 9 | L77: غ | M77: 115 | N77: دور ثانى | O77: 0.4259259259 | P77: دون المستوى | R77: الرياضيات / الفيزياء / الأحياء / التربية الإسلامية / اللغة العربية / اللغة الإنجليزية /
A78: 68 | B78: على محمد عويض الصقور المرى | C78: 10 - 4 | D78: 12 | E78: 13 | F78: 15.5 | G78: 16 | H78: 10.5 | I78: 11 | J78: 17 | K78: 18 | L78: 17.5 | M78: 130.5 | N78: دور ثانى | O78: 0.4833333333 | P78: دون المستوى | R78: الرياضيات / الدراسات الاجتماعية / الفيزياء / الأحياء /
A79: 69 | B79: علي عاطف سالم ابراهيم سالم | C79: 10 - 4 | D79: 11.5 | E79: 19 | F79: 20 | G79: 16 | H79: 7 | I79: 13 | J79: 24 | K79: 21 | L79: 24 | M79: 155.5 | N79: دور ثانى | O79: 0.5759259259 | P79: مقبول | R79: الرياضيات / الفيزياء / الأحياء /
A80: 70 | B80: علي محمد عبدالله احمد شمس | C80: 10 - 4 | D80: 20.5 | E80: 12 | F80: 17.5 | G80: 24 | H80: 18 | I80: 16 | J80: 21 | K80: 21.5 | L80: 17.5 | M80: 168 | N80: دور ثانى | O80: 0.6222222222 | P80: مقبول | R80: الدراسات الاجتماعية /
A81: 71 | B81: فهد سويد سلطان محمد الخوار | C81: 10 - 4 | D81: 10 | E81: 19 | F81: 18 | G81: 10.5 | H81: 12 | I81: 7.5 | J81: 20 | K81: 15 | L81: 17.5 | M81: 129.5 | N81: دور ثانى | O81: 0.4796296296 | P81: دون المستوى | R81: الرياضيات / الكيمياء / الفيزياء / الأحياء /
A82: 72 | B82: محمد حافظ محمد ابوالكلام كبيرالدين | C82: 10 - 4 | D82: 8 | E82: 24 | F82: 22 | G82: 12 | H82: 16 | I82: 16 | J82: 20 | K82: 20.5 | L82: 21.5 | M82: 160 | N82: دور ثانى | O82: 0.5925925926 | P82: مقبول | R82: الرياضيات / الكيمياء /
A83: 73 | B83: محمد حسن حسن ناجى الجدره | C83: 10 - 4 | D83: 17 | E83: 20.5 | F83: 19 | G83: 12 | H83: 14 | I83: 14 | J83: 22.5 | K83: 19.5 | L83: 16 | M83: 154.5 | N83: دور ثانى | O83: 0.5722222222 | P83: مقبول | R83: الكيمياء / الفيزياء / الأحياء /
A84: 74 | B84: محمد حمد محمد صالح الصرامى | C84: 10 - 4 | D84: 12 | E84: 10 | F84: 19.5 | G84: 14 | H84: 24 | I84: 10 | J84: 24 | K84: 20 | L84: 21 | M84: 154.5 | N84: دور ثانى | O84: 0.5722222222 | P84: مقبول | R84: الرياضيات / الدراسات الاجتماعية / الكيمياء / الأحياء /
A85: 75 | B85: محمد يوسف محمد ابراهيم محمد | C85: 10 - 4 | D85: 5 | E85: 16.5 | F85: 15 | G85: 10.5 | H85: 11.5 | I85: 10 | J85: 17 | K85: 16 | L85: 11.5 | M85: 113 | N85: دور ثانى | O85: 0.4185185185 | P85: دون المستوى | R85: الرياضيات / الكيمياء / الفيزياء / الأحياء / اللغة الإنجليزية /
A86: 76 | B86: محمد يونس محمد زحمت كش | C86: 10 - 4 | D86: 11.5 | E86: 17.5 | F86: 15 | G86: 17.5 | H86: 21 | I86: 13 | J86: 21.5 | K86: 15 | L86: 14.5 | M86: 146.5 | N86: دور ثانى | O86: 0.5425925926 | P86: مقبول | R86: الرياضيات / الأحياء / اللغة الإنجليزية /
A87: 77 | B87: بدر ناصر جابر سهل المرى | C87: 10 - 5 | D87: 20.5 | E87: 11 | F87: 16 | G87: 13 | H87: 18 | I87: 17 | J87: 12 | K87: 16 | L87: 16 | M87: 139.5 | N87: دور ثانى | O87: 0.5166666667 | P87: مقبول | R87: الدراسات الاجتماعية / الكيمياء / التربية الإسلامية /
A88: 78 | B88: حزام زيد راشد المري | C88: 10 - 5 | D88: 12 | E88: 16 | F88: 10.5 | G88: 16 | H88: 19 | I88: 19.5 | J88: 14 | K88: 14 | L88: 15 | M88: 136 | N88: دور ثانى | O88: 0.5037037037 | P88: مقبول | R88: الرياضيات / الحوسبة وتكنولوجيا المعلومات / التربية الإسلامية / اللغة العربية /
A89: 79 | B89: حمد سعيد سويلم سعد الخوار | C89: 10 - 5 | D89: 15 | E89: 9 | F89: 6.5 | G89: 8 | H89: 15 | I89: 2 | J89: 13.5 | K89: 12.5 | L89: 15.5 | M89: 97 | N89: دور ثانى | O89: 0.3592592593 | P89: دون المستوى | R89: الدراسات الاجتماعية / الحوسبة وتكنولوجيا المعلومات / الكيمياء / الأحياء / التربية الإسلامية / اللغة العربية /
A90: 80 | B90: حمد مبارك مفتاح فرج العبدالله | C90: 10 - 5 | D90: 9 | E90: 8 | F90: 14.5 | G90: 13 | H90: 11 | I90: 9.5 | J90: 16 | K90: 12 | L90: 8 | M90: 101 | N90: دور ثانى | O90: 0.3740740741 | P90: دون المستوى | R90: الرياضيات / الدراسات الاجتماعية / الحوسبة وتكنولوجيا المعلومات / الكيمياء / الفيزياء / الأحياء / اللغة العربية / اللغة الإنجليزية /
A91: 81 | B91: خالد عزيز حسن عبدربه حسن | C91: 10 - 5 | D91: 20 | E91: 17 | F91: 15 | G91: 9 | H91: 21 | I91: 20.5 | J91: 23 | K91: 21.5 | L91: 18 | M91: 165 | N91: دور ثانى | O91: 0.6111111111 | P91: مقبول | R91: الكيمياء /
A92: 82 | B92: دغش بريك دغش الجربوعى المرى | C92: 10 - 5 | D92: 12.5 | E92: 19 | F92: 21 | G92: 22 | H92: 17 | I92: 18.5 | J92: 16 | K92: 18.5 | L92: 15 | M92: 159.5 | N92: دور ثانى | O92: 0.5907407407 | P92: مقبول | R92: الرياضيات /
A93: 83 | B93: راشد حمد ناصر المري | C93: 10 - 5 | D93: 8 | E93: 18 | F93: 17 | G93: 15.5 | H93: 22 | I93: 13.5 | J93: 19.5 | K93: 17 | L93: 20 | M93: 150.5 | N93: دور ثانى | O93: 0.5574074074 | P93: مقبول | R93: الرياضيات / الأحياء /
A94: 84 | B94: راشد شريف خان عيسى خان | C94: 10 - 5 | D94: 19 | E94: 16 | F94: 8.5 | G94: 16 | H94: 19 | I94: 16 | J94: 17 | K94: 16 | L94: 23 | M94: 150.5 | N94: دور ثانى | O94: 0.5574074074 | P94: مقبول | R94: الحوسبة وتكنولوجيا المعلومات /
A95: 85 | B95: سالم محمد راشد طفله الفهيده | C95: 10 - 5 | D95: 8.5 | E95: 11 | F95: 18.5 | G95: 8 | H95: 13 | I95: 5 | J95: 16 | K95: 10 | L95: 10 | M95: 100 | N95: دور ثانى | O95: 0.3703703704 | P95: دون المستوى | R95: الرياضيات / الدراسات الاجتماعية / الكيمياء / الفيزياء / الأحياء / اللغة العربية / اللغة الإنجليزية /
A96: 86 | B96: سعد حمد سعد البويصم المرى | C96: 10 - 5 | D96: 16 | E96: 15 | F96: 13.5 | G96: 15 | H96: 20 | I96: 13.5 | J96: 19 | K96: 20.5 | L96: 16 | M96: 148.5 | N96: دور ثانى | O96: 0.55 | P96: مقبول | R96: الحوسبة وتكنولوجيا المعلومات / الأحياء /
A97: 87 | B97: صلاح عارف احمد عبده جمن | C97: 10 - 5 | D97: 15 | E97: 18 | F97: 15 | G97: 13.5 | H97: 21 | I97: 20 | J97: 19 | K97: 20 | L97: 23 | M97: 164.5 | N97: دور ثانى | O97: 0.6092592593 | P97: مقبول | R97: الكيمياء /
A98: 88 | B98: عبدالعزيز نايف عبدالله نايف | C98: 10 - 5 | D98: 17 | E98: 22 | F98: 26.5 | G98: 21 | H98: 26 | I98: 20 | J98: 26.5 | K98: 26 | L98: 13 | M98: 198 | N98: دور ثانى | O98: 0.7333333333 | P98: جيد | R98: اللغة الإنجليزية /
A99: 89 | B99: عبدالله عبدالرحمن | C99: 10 - 5 | D99: 15.5 | E99: 15 | F99: 14.5 | G99: 16.5 | H99: 22 | I99: 12 | J99: 15 | K99: 20 | L99: 20 | M99: 150.5 | N99: دور ثانى | O99: 0.5574074074 | P99: مقبول | R99: الحوسبة وتكنولوجيا المعلومات / الأحياء /
A100: 90 | B100: عبدالمحسن عادل عبدالمحسن محمد الدهنيم | C100: 10 - 5 | D100: 14 | E100: 19 | F100: 14.5 | G100: 15 | H100: 18.5 | I100: 18 | J100: 17 | K100: 17 | L100: 18 | M100: 151 | N100: دور ثانى | O100: 0.5592592593 | P100: مقبول | R100: الرياضيات / الحوسبة وتكنولوجيا المعلومات /
A101: 91 | B101: على حسن مبخوت سعيد الراشدى | C101: 10 - 5 | D101: 16 | E101: 10.5 | F101: 8.5 | G101: 14 | H101: 17.5 | I101: 12 | J101: 9.5 | K101: 16 | L101: 11 | M101: 115 | N101: دور ثانى | O101: 0.4259259259 | P101: دون المستوى | R101: الدراسات الاجتماعية / الحوسبة وتكنولوجيا المعلومات / الكيمياء / الأحياء / التربية الإسلامية / اللغة الإنجليزية /
A102: 92 | B102: على سالم ظافر ال حثيث الاحبابى | C102: 10 - 5 | D102: 23 | E102: 23 | F102: 21.5 | G102: 17.5 | H102: 28 | I102: 12.5 | J102: 15.5 | K102: 19 | L102: 17.5 | M102: 177.5 | N102: دور ثانى | O102: 0.6574074074 | P102: جيد | R102: الأحياء /
A103: 93 | B103: عمر شادي نعيم زهران | C103: 10 - 5 | D103: غ | E103: غ | F103: غ | G103: غ | H103: غ | I103: غ | J103: غ | K103: غ | L103: غ | M103: غ | N103: دور ثانى | O103: غ | P103: غ | R103: الرياضيات / الدراسات الاجتماعية / الحوسبة وتكنولوجيا المعلومات / الكيمياء / الفيزياء / الأحياء / التربية الإسلامية / اللغة العربية / اللغة الإنجليزية /
A104: 94 | B104: غانم حمد صالح سعيد القريصى | C104: 10 - 5 | D104: 10 | E104: 7 | F104: 11.5 | G104: 9 | H104: 9 | I104: 11 | J104: 11 | K104: 9 | L104: 9 | M104: 86.5 | N104: دور ثانى | O104: 0.3203703704 | P104: دون المستوى | R104: الرياضيات / الدراسات الاجتماعية / الحوسبة وتكنولوجيا المعلومات / الكيمياء / الفيزياء / الأحياء / التربية الإسلامية / اللغة العربية / اللغة الإنجليزية /
A105: 95 | B105: فهد سعد سعيد بخيت الخوار | C105: 10 - 5 | D105: 13.5 | E105: 12.5 | F105: 21.5 | G105: 10 | H105: 17 | I105: 10 | J105: 10 | K105: 13 | L105: 8.5 | M105: 116 | N105: دور ثانى | O105: 0.4296296296 | P105: دون المستوى | R105: الرياضيات / الدراسات الاجتماعية / الكيمياء / الأحياء / التربية الإسلامية / اللغة العربية / اللغة الإنجليزية /
A106: 96 | B106: قصي محمد داود ابراهيم ابوديه | C106: 10 - 5 | D106: 11.5 | E106: 26.5 | F106: 18 | G106: 20 | H106: 20 | I106: 17.5 | J106: 22.5 | K106: 21 | L106: 13 | M106: 170 | N106: دور ثانى | O106: 0.6296296296 | P106: مقبول | R106: الرياضيات / اللغة الإنجليزية /
A107: 97 | B107: محمد امين بن عادل قنوني | C107: 10 - 5 | D107: 15.5 | E107: 22 | F107: 14.5 | G107: 9.5 | H107: 26 | I107: 12 | J107: 18.5 | K107: 24 | L107: 15 | M107: 157 | N107: دور ثانى | O107: 0.5814814815 | P107: مقبول | R107: الحوسبة وتكنولوجيا المعلومات / الكيمياء / الأحياء /
A108: 98 | B108: محمد سعيد جابر سالم اليربوعى | C108: 10 - 5 | D108: غ | E108: غ | F108: غ | G108: غ | H108: غ | I108: غ | J108: غ | K108: غ | L108: غ | M108: غ | N108: دور ثانى | O108: غ | P108: غ | R108: الرياضيات / الدراسات الاجتماعية / الحوسبة وتكنولوجيا المعلومات / الكيمياء / الفيزياء / الأحياء / التربية الإسلامية / اللغة العربية / اللغة الإنجليزية /
A109: 99 | B109: محمد طارق الحاج | C109: 10 - 5 | D109: 20.5 | E109: 23 | F109: 18.5 | G109: 17 | H109: 21.5 | I109: 19 | J109: 20 | K109: 13 | L109: 20 | M109: 172.5 | N109: دور ثانى | O109: 0.6388888889 | P109: مقبول | R109: اللغة العربية /
A110: 100 | B110: محمد عبدالله شيخ محمد | C110: 10 - 5 | D110: 17 | E110: 21 | F110: 13 | G110: 24 | H110: 28 | I110: 23 | J110: 24.5 | K110: 22 | L110: 22 | M110: 194.5 | N110: دور ثانى | O110: 0.7203703704 | P110: جيد | R110: الحوسبة وتكنولوجيا المعلومات /
A111: 101 | B111: محمد محسن محمد دخيل اليربوعى | C111: 10 - 5 | D111: 8.5 | E111: 13 | F111: 11 | G111: 5.5 | H111: 11 | I111: 8 | J111: 6 | K111: 13 | L111: 9 | M111: 85 | N111: دور ثانى | O111: 0.3148148148 | P111: دون المستوى | R111: الرياضيات / الدراسات الاجتماعية / الحوسبة وتكنولوجيا المعلومات / الكيمياء / الفيزياء / الأحياء / التربية الإسلامية / اللغة العربية / اللغة الإنجليزية /
A112: 102 | B112: نصر على نصر على النصر | C112: 10 - 5 | D112: 7 | E112: 16 | F112: 16 | G112: 9 | H112: 15 | I112: 12.5 | J112: 12 | K112: 14 | L112: 10 | M112: 111.5 | N112: دور ثانى | O112: 0.412962963 | P112: دون المستوى | R112: الرياضيات / الكيمياء / الأحياء / التربية الإسلامية / اللغة العربية / اللغة الإنجليزية /
A113: 103 | B113: حمد اصغر خان نواب خان | C113: 10 - 6 | D113: 7 | E113: 6 | F113: غ | G113: 4 | H113: 10 | I113: 6.5 | J113: 8 | K113: 7 | L113: 19 | M113: 67.5 | N113: دور ثانى | O113: 0.25 | P113: دون المستوى | R113: الرياضيات / الدراسات الاجتماعية / الحوسبة وتكنولوجيا المعلومات / الكيمياء / الفيزياء / الأحياء / التربية الإسلامية / اللغة العربية /
A114: 104 | B114: خالد سلطان حسن عباس الجمالى | C114: 10 - 6 | D114: 21.5 | E114: 15.5 | F114: 26 | G114: 12 | H114: 20 | I114: 14 | J114: 17 | K114: 13 | L114: 18 | M114: 157 | N114: دور ثانى | O114: 0.5814814815 | P114: مقبول | R114: الكيمياء / الأحياء / اللغة العربية /
A115: 105 | B115: عبدالرجمن يارمحمد معين خان | C115: 10 - 6 | D115: 19.5 | E115: 10 | F115: 1 | G115: 17 | H115: 24 | I115: 14 | J115: 18.5 | K115: 15 | L115: 13.5 | M115: 132.5 | N115: دور ثانى | O115: 0.4907407407 | P115: دون المستوى | R115: الدراسات الاجتماعية / الحوسبة وتكنولوجيا المعلومات / الأحياء / اللغة الإنجليزية /
A116: 106 | B116: عبدالرحمن جاسم محمد قاسم العمادى | C116: 10 - 6 | D116: 19.5 | E116: 15.5 | F116: 9 | G116: 10 | H116: 17 | I116: 14.5 | J116: 15 | K116: 13 | L116: 19.5 | M116: 133 | N116: دور ثانى | O116: 0.4925925926 | P116: دون المستوى | R116: الحوسبة وتكنولوجيا المعلومات / الكيمياء / الأحياء / اللغة العربية /
A117: 107 | B117: عبدالرحمن حسين عبدي | C117: 10 - 6 | D117: 18 | E117: 7 | F117: 3 | G117: 8 | H117: 15 | I117: 9.5 | J117: 17.5 | K117: 12 | L117: 21 | M117: 111 | N117: دور ثانى | O117: 0.4111111111 | P117: دون المستوى | R117: الدراسات الاجتماعية / الحوسبة وتكنولوجيا المعلومات / الكيمياء / الأحياء / اللغة العربية /
A118: 108 | B118: عبدالرحمن محماس غزاى المقاطى العتيبى | C118: 10 - 6 | D118: 11.5 | E118: 10 | F118: غ | G118: 9 | H118: 12 | I118: 8.5 | J118: 18 | K118: 20 | L118: 9 | M118: 98 | N118: دور ثانى | O118: 0.362962963 | P118: دون المستوى | R118: الرياضيات / الدراسات الاجتماعية / الحوسبة وتكنولوجيا المعلومات / الكيمياء / الفيزياء / الأحياء / اللغة الإنجليزية /
A119: 109 | B119: عبدالعزيز جهان بخش مرادك درزاده | C119: 10 - 6 | D119: 14 | E119: 7 | F119: 8 | G119: 10 | H119: 16 | I119: 12.5 | J119: 16.5 | K119: 11 | L119: 15 | M119: 110 | N119: دور ثانى | O119: 0.4074074074 | P119: دون المستوى | R119: الرياضيات / الدراسات الاجتماعية / الحوسبة وتكنولوجيا المعلومات / الكيمياء / الأحياء / اللغة العربية /
A120: 110 | B120: عبدالعزيز سلطان حسن سالم الكثيرى | C120: 10 - 6 | D120: 20.5 | E120: 16.5 | F120: 16 | G120: 21 | H120: 19 | I120: 13 | J120: 22 | K120: 17 | L120: 17.5 | M120: 162.5 | N120: دور ثانى | O120: 0.6018518519 | P120: مقبول | R120: الأحياء /
A121: 111 | B121: عبدالغني عثمان عمر ورسمة | C121: 10 - 6 | D121: 18 | E121: 18.5 | F121: 1.5 | G121: 16 | H121: 17 | I121: 14 | J121: 18 | K121: 12 | L121: 13.5 | M121: 128.5 | N121: دور ثانى | O121: 0.4759259259 | P121: دون المستوى | R121: الحوسبة وتكنولوجيا المعلومات / الأحياء / اللغة العربية / اللغة الإنجليزية /
A122: 112 | B122: عبدالله جاسم على محمد القايد | C122: 10 - 6 | D122: 25.5 | E122: 17 | F122: 12.5 | G122: 15 | H122: 18 | I122: 10 | J122: 22.5 | K122: 15 | L122: 18.5 | M122: 154 | N122: دور ثانى | O122: 0.5703703704 | P122: مقبول | R122: الحوسبة وتكنولوجيا المعلومات / الأحياء /
A123: 113 | B123: عبدالله محماس غزاى المقاطى العتيبى | C123: 10 - 6 | D123: 12.5 | E123: 11 | F123: 9.5 | G123: 21 | H123: 19 | I123: 9.5 | J123: 12 | K123: 19 | L123: 7.5 | M123: 121 | N123: دور ثانى | O123: 0.4481481481 | P123: دون المستوى | R123: الرياضيات / الدراسات الاجتماعية / الحوسبة وتكنولوجيا المعلومات / الأحياء / التربية الإسلامية / اللغة الإنجليزية /
A124: 114 | B124: عبدالله ناصر عبده السعدى اليافعى | C124: 10 - 6 | D124: 25 | E124: 18 | F124: 12 | G124: 19 | H124: 24 | I124: 16 | J124: 23 | K124: 17 | L124: 25 | M124: 179 | N124: دور ثانى | O124: 0.662962963 | P124: جيد | R124: الحوسبة وتكنولوجيا المعلومات /
A125: 115 | B125: على فهد على شفيع الفهيده | C125: 10 - 6 | D125: 17 | E125: 28 | F125: 7 | G125: 14 | H125: 23 | I125: 18.5 | J125: 19 | K125: 19 | L125: 18 | M125: 163.5 | N125: دور ثانى | O125: 0.6055555556 | P125: مقبول | R125: الحوسبة وتكنولوجيا المعلومات / الكيمياء /
A126: 116 | B126: فارس وليد محي الدين | C126: 10 - 6 | D126: 15.5 | E126: 14.5 | F126: 21.5 | G126: 15 | H126: 18 | I126: 10.5 | J126: 16 | K126: 18 | L126: 25.5 | M126: 154.5 | N126: دور ثانى | O126: 0.5722222222 | P126: مقبول | R126: الدراسات الاجتماعية / الأحياء /
A127: 117 | B127: قطبى ياسر القطبي ادريس | C127: 10 - 6 | D127: غ | E127: غ | F127: غ | G127: غ | H127: غ | I127: غ | J127: غ | K127: غ | L127: غ | M127: غ | N127: دور ثانى | O127: غ | P127: غ | R127: الرياضيات / الدراسات الاجتماعية / الحوسبة وتكنولوجيا المعلومات / الكيمياء / الفيزياء / الأحياء / التربية الإسلامية / اللغة العربية / اللغة الإنجليزية /
A128: 118 | B128: محمد جابر حسين على الجرحب | C128: 10 - 6 | D128: 18.5 | E128: 21 | F128: 24 | G128: 12 | H128: 16 | I128: 17 | J128: 18 | K128: 17 | L128: 14.5 | M128: 158 | N128: دور ثانى | O128: 0.5851851852 | P128: مقبول | R128: الكيمياء / اللغة الإنجليزية /
A129: 119 | B129: محمد على سالم حمد جبران | C129: 10 - 6 | D129: 5.5 | E129: 13 | F129: 7 | G129: 3 | H129: 16 | I129: 12 | J129: 17 | K129: 13.5 | L129: 12.5 | M129: 99.5 | N129: دور ثانى | O129: 0.3685185185 | P129: دون المستوى | R129: الرياضيات / الدراسات الاجتماعية / الحوسبة وتكنولوجيا المعلومات / الكيمياء / الأحياء / اللغة العربية / اللغة الإنجليزية /
A130: 120 | B130: مشعل عبدالرحمن عبدالله عبدالعزيز الاسحاق | C130: 10 - 6 | D130: 22 | E130: 17.5 | F130: 26 | G130: 18 | H130: 13 | I130: 13.5 | J130: 18.5 | K130: 15 | L130: 21.5 | M130: 165 | N130: دور ثانى | O130: 0.6111111111 | P130: مقبول | R130: الفيزياء / الأحياء /
A131: 121 | B131: مصطفى محمد مصطفى العبيد احمد | C131: 10 - 6 | D131: 20.5 | E131: 29 | F131: 15 | G131: 26.5 | H131: 23 | I131: 23.5 | J131: 25.5 | K131: 20 | L131: 14.5 | M131: 197.5 | N131: دور ثانى | O131: 0.7314814815 | P131: جيد | R131: اللغة الإنجليزية /
A132: 122 | B132: نايف حسن احمد الحيى النعيمى | C132: 10 - 6 | D132: 7.5 | E132: 10 | F132: 1.5 | G132: 8.5 | H132: 8 | I132: 7 | J132: 18.5 | K132: 16 | L132: 7 | M132: 84 | N132: دور ثانى | O132: 0.3111111111 | P132: دون المستوى | R132: الرياضيات / الدراسات الاجتماعية / الحوسبة وتكنولوجيا المعلومات / الكيمياء / الفيزياء / الأحياء / اللغة الإنجليزية /
A133: 123 | B133: نواف على هادى الجربوعى المرى | C133: 10 - 6 | D133: 19 | E133: 7.5 | F133: 1 | G133: 15 | H133: 15 | I133: 15 | J133: 20 | K133: 10 | L133: 7 | M133: 109.5 | N133: دور ثانى | O133: 0.4055555556 | P133: دون المستوى | R133: الدراسات الاجتماعية / الحوسبة وتكنولوجيا المعلومات / اللغة العربية / اللغة الإنجليزية /
A134: 124 | B134: يوسف خالد ناصر عبدالكريم مثنى | C134: 10 - 6 | D134: 12 | E134: 9 | F134: 5.5 | G134: 11.5 | H134: 18 | I134: 13.5 | J134: 15 | K134: 9 | L134: 9 | M134: 102.5 | N134: دور ثانى | O134: 0.3796296296 | P134: دون المستوى | R134: الرياضيات / الدراسات الاجتماعية / الحوسبة وتكنولوجيا المعلومات / الكيمياء / الأحياء / اللغة العربية / اللغة الإنجليزية /
A135: 125 | B135: بلال ابراهيم | C135: 10 - 7 | D135: غ | E135: غ | F135: غ | G135: غ | H135: غ | I135: غ | J135: غ | K135: غ | L135: غ | M135: غ | N135: دور ثانى | O135: غ | P135: غ | R135: الرياضيات / الدراسات الاجتماعية / الحوسبة وتكنولوجيا المعلومات / الكيمياء / الفيزياء / الأحياء / التربية الإسلامية / اللغة العربية / اللغة الإنجليزية /
A136: 126 | B136: تركى مبارك تركى سعد التركى | C136: 10 - 7 | D136: 10.5 | E136: 25 | F136: 10 | G136: 10 | H136: 23 | I136: 17 | J136: 16 | K136: 16 | L136: 10 | M136: 137.5 | N136: دور ثانى | O136: 0.5092592593 | P136: مقبول | R136: الرياضيات / الحوسبة وتكنولوجيا المعلومات / الكيمياء / اللغة الإنجليزية /
A137: 127 | B137: تميم على يوسف محمد الحمادى | C137: 10 - 7 | D137: 14 | E137: 13.5 | F137: 21.5 | G137: 11.5 | H137: 18 | I137: 16 | J137: 12.5 | K137: 8 | L137: 7.5 | M137: 122.5 | N137: دور ثانى | O137: 0.4537037037 | P137: دون المستوى | R137: الرياضيات / الدراسات الاجتماعية / الكيمياء / التربية الإسلامية / اللغة العربية / اللغة الإنجليزية /
A138: 128 | B138: جاسم حسين جاسم على بوكربل | C138: 10 - 7 | D138: 22.5 | E138: 14 | F138: 15 | G138: 20 | H138: 22 | I138: 27 | J138: 24 | K138: 21.5 | L138: 18.5 | M138: 184.5 | N138: دور ثانى | O138: 0.6833333333 | P138: جيد | R138: الدراسات الاجتماعية /
A139: 129 | B139: جاسم محمد فرج البريص المري | C139: 10 - 7 | D139: 13 | E139: 14 | F139: 11.5 | G139: 8 | H139: 16 | I139: 11 | J139: 18.5 | K139: 16 | L139: غ | M139: 108 | N139: دور ثانى | O139: 0.4 | P139: دون المستوى | R139: الرياضيات / الدراسات الاجتماعية / الحوسبة وتكنولوجيا المعلومات / الكيمياء / الأحياء / اللغة الإنجليزية /
A140: 130 | B140: خالد ناصر محمد اللواء المرى | C140: 10 - 7 | D140: 10.5 | E140: 11 | F140: 21.5 | G140: 19.5 | H140: 17 | I140: 11.5 | J140: 14 | K140: 13 | L140: 19 | M140: 137 | N140: دور ثانى | O140: 0.5074074074 | P140: مقبول | R140: الرياضيات / الدراسات الاجتماعية / الأحياء / التربية الإسلامية / اللغة العربية /
A141: 131 | B141: سالم عبدالله سالم سعيد خوار | C141: 10 - 7 | D141: 15 | E141: 19 | F141: 16.5 | G141: 16 | H141: 16 | I141: 6.5 | J141: 14.5 | K141: 12.5 | L141: 13 | M141: 129 | N141: دور ثانى | O141: 0.4777777778 | P141: دون المستوى | R141: الأحياء / التربية الإسلامية / اللغة العربية / اللغة الإنجليزية /
A142: 132 | B142: سعد مبارك تركى سعد التركى | C142: 10 - 7 | D142: 13 | E142: 23 | F142: 7.5 | G142: 9 | H142: 23 | I142: 11.5 | J142: 21 | K142: 15.5 | L142: 11.5 | M142: 135 | N142: دور ثانى | O142: 0.5 | P142: مقبول | R142: الرياضيات / الحوسبة وتكنولوجيا المعلومات / الكيمياء / الأحياء / اللغة الإنجليزية /
A143: 133 | B143: سعود خالد محمود بومحمود الشيخ | C143: 10 - 7 | D143: 16.5 | E143: 11.5 | F143: 21 | G143: 16.5 | H143: 14 | I143: 20 | J143: 15 | K143: 18 | L143: 15.5 | M143: 148 | N143: دور ثانى | O143: 0.5481481481 | P143: مقبول | R143: الدراسات الاجتماعية / الفيزياء /
A144: 134 | B144: سلطان سعيد سالم غلفيص النابت | C144: 10 - 7 | D144: 5 | E144: 11.5 | F144: 18.5 | G144: 9.5 | H144: 11 | I144: 8.5 | J144: 13.5 | K144: 15.5 | L144: 10 | M144: 103 | N144: دور ثانى | O144: 0.3814814815 | P144: دون المستوى | R144: الرياضيات / الدراسات الاجتماعية / الكيمياء / الفيزياء / الأحياء / التربية الإسلامية / اللغة الإنجليزية /
A145: 135 | B145: عبدالرحمن عبدالحميد محمد صالح العمودى | C145: 10 - 7 | D145: 14 | E145: 25 | F145: 8.5 | G145: 14.5 | H145: 20 | I145: 12 | J145: 20.5 | K145: 8 | L145: غ | M145: 122.5 | N145: دور ثانى | O145: 0.4537037037 | P145: دون المستوى | R145: الرياضيات / الحوسبة وتكنولوجيا المعلومات / الكيمياء / الأحياء / اللغة العربية / اللغة الإنجليزية /
A146: 136 | B146: عبدالله راشد محسن حزام انديله | C146: 10 - 7 | D146: 22.5 | E146: 18.5 | F146: 22.5 | G146: 21.5 | H146: 25 | I146: 12 | J146: 21 | K146: 15.5 | L146: غ | M146: 158.5 | N146: دور ثانى | O146: 0.587037037 | P146: مقبول | R146: الأحياء / اللغة الإنجليزية /
A147: 137 | B147: على ناصر على ال مشروم المرى | C147: 10 - 7 | D147: 27 | E147: 26 | F147: 25.5 | G147: 26.5 | H147: 22 | I147: 18.5 | J147: 22.5 | K147: 13 | L147: 23 | M147: 204 | N147: دور ثانى | O147: 0.7555555556 | P147: جيد جدا | R147: اللغة العربية /
A148: 138 | B148: عمر عصام الدين محي حسن | C148: 10 - 7 | D148: غ | E148: غ | F148: غ | G148: غ | H148: غ | I148: غ | J148: غ | K148: غ | L148: غ | M148: غ | N148: دور ثانى | O148: غ | P148: غ | R148: الرياضيات / الدراسات الاجتماعية / الحوسبة وتكنولوجيا المعلومات / الكيمياء / الفيزياء / الأحياء / التربية الإسلامية / اللغة العربية / اللغة الإنجليزية /
A149: 139 | B149: عيسى محمد عبد الله عامرى | C149: 10 - 7 | D149: 14.5 | E149: 23.5 | F149: 20.5 | G149: 21 | H149: 19 | I149: 18 | J149: 20 | K149: 20.5 | L149: 18 | M149: 175 | N149: دور ثانى | O149: 0.6481481481 | P149: مقبول | R149: الرياضيات /
A150: 140 | B150: فارس سالم حسن سالم الكثيرى | C150: 10 - 7 | D150: 18 | E150: 25.5 | F150: 19 | G150: 19.5 | H150: 17 | I150: 14 | J150: 22 | K150: 24 | L150: 27.5 | M150: 186.5 | N150: دور ثانى | O150: 0.6907407407 | P150: جيد | R150: الأحياء /
A151: 141 | B151: فهد ابوبكر محمد مبخوت الصيعرى | C151: 10 - 7 | D151: 10 | E151: 7.5 | F151: 2.5 | G151: 13 | H151: 15.5 | I151: 4 | J151: 13.5 | K151: 13 | L151: 14 | M151: 93 | N151: دور ثانى | O151: 0.3444444444 | P151: دون المستوى | R151: الرياضيات / الدراسات الاجتماعية / الحوسبة وتكنولوجيا المعلومات / الكيمياء / الأحياء / التربية الإسلامية / اللغة العربية / اللغة الإنجليزية /
A152: 142 | B152: مبارك سالم مبارك النابت المرى | C152: 10 - 7 | D152: 12.5 | E152: 15 | F152: 10 | G152: 18.5 | H152: 16 | I152: 12.5 | J152: 17 | K152: 7 | L152: 14 | M152: 122.5 | N152: دور ثانى | O152: 0.4537037037 | P152: دون المستوى | R152: الرياضيات / الحوسبة وتكنولوجيا المعلومات / الأحياء / اللغة العربية / اللغة الإنجليزية /
A153: 143 | B153: محمد احمد جمعه احمد السبيعى | C153: 10 - 7 | D153: 16 | E153: 12 | F153: 20.5 | G153: 10.5 | H153: 22 | I153: 15.5 | J153: 14.5 | K153: 17 | L153: 17.5 | M153: 145.5 | N153: دور ثانى | O153: 0.5388888889 | P153: مقبول | R153: الدراسات الاجتماعية / الكيمياء / التربية الإسلامية /
A154: 144 | B154: محمد بدرالدين ميرغنى ادم على | C154: 10 - 7 | D154: 10.5 | E154: 10.5 | F154: 17.5 | G154: 18 | H154: 12 | I154: 14.5 | J154: 21 | K154: 24 | L154: 15 | M154: 143 | N154: دور ثانى | O154: 0.5296296296 | P154: مقبول | R154: الرياضيات / الدراسات الاجتماعية / الفيزياء / الأحياء /
A155: 145 | B155: محمد راشد سالم صالح لحيمر | C155: 10 - 7 | D155: 14 | E155: 22 | F155: 19.5 | G155: 16 | H155: 14 | I155: 16 | J155: 16.5 | K155: 17 | L155: 16 | M155: 151 | N155: دور ثانى | O155: 0.5592592593 | P155: مقبول | R155: الرياضيات / الفيزياء /
A156: 146 | B156: محمد رائد عبدالرحيم | C156: 10 - 7 | D156: 13 | E156: 19.5 | F156: 25 | G156: 19 | H156: 13 | I156: 11.5 | J156: 18 | K156: 18 | L156: 19.5 | M156: 156.5 | N156: دور ثانى | O156: 0.5796296296 | P156: مقبول | R156: الرياضيات / الفيزياء / الأحياء /
A157: 147 | B157: محمد عادل عبدالله محمد الخورى | C157: 10 - 7 | D157: 8 | E157: 6.5 | F157: 10 | G157: 15 | H157: 13 | I157: 9.5 | J157: 18.5 | K157: 12 | L157: 11 | M157: 103.5 | N157: دور ثانى | O157: 0.3833333333 | P157: دون المستوى | R157: الرياضيات / الدراسات الاجتماعية / الحوسبة وتكنولوجيا المعلومات / الفيزياء / الأحياء / اللغة العربية / اللغة الإنجليزية /
A158: 148 | B158: محمد عبدالله محمد امين ابراهيم | C158: 10 - 7 | D158: 22.5 | E158: 11 | F158: 25 | G158: 16 | H158: 26.5 | I158: 15 | J158: 22.5 | K158: 22.5 | L158: 23 | M158: 184 | N158: دور ثانى | O158: 0.6814814815 | P158: جيد | R158: الدراسات الاجتماعية /
A159: 149 | B159: مشعل خالد احمد سليمان الهيل | C159: 10 - 7 | D159: 19.5 | E159: 16 | F159: 21 | G159: 22.5 | H159: 27 | I159: 14 | J159: 24 | K159: 18 | L159: 23 | M159: 185 | N159: دور ثانى | O159: 0.6851851852 | P159: جيد | R159: الأحياء /
A160: 150 | B160: ناصر راشد على العلى المعاضيد | C160: 10 - 7 | D160: 12.5 | E160: 14.5 | F160: 15 | G160: 15 | H160: 17 | I160: 7 | J160: 13 | K160: 13 | L160: 11 | M160: 118 | N160: دور ثانى | O160: 0.437037037 | P160: دون المستوى | R160: الرياضيات / الدراسات الاجتماعية / الأحياء / التربية الإسلامية / اللغة العربية / اللغة الإنجليزية /
A161: 151 | B161: نايف على هادف انديله الحسناء | C161: 10 - 7 | D161: 8.5 | E161: 12.5 | F161: 13 | G161: 10.5 | H161: 17 | I161: 10.5 | J161: 14 | K161: 16 | L161: 10 | M161: 112 | N161: دور ثانى | O161: 0.4148148148 | P161: دون المستوى | R161: الرياضيات / الدراسات الاجتماعية / الحوسبة وتكنولوجيا المعلومات / الكيمياء / الأحياء / التربية الإسلامية / اللغة الإنجليزية /

Sheet كشف بالتلاميذ الناجحين
D3: كشف الطلاب الناجحين
D4: م | E4: اسم الطالب | F4: الصف | G4: المجموع | H4: النسبة المئوية
D5: =ROW()-4 -> 1 | E5: =VLOOKUP(D5,ناجح!A11:P100,2,0) -> احمد حسن احمد سليمان الهيل | F5: =VLOOKUP(D5,ناجح!A11:P100,3,0) -> 10 - 1 | G5: =VLOOKUP(D5,ناجح!A11:P100,13,0) -> 186 | H5: =VLOOKUP(D5,ناجح!A11:P100,15,0) -> 0.6888888889
D6: 2 | E6: =VLOOKUP(D6,ناجح!A12:P101,2,0) -> احمد عبداللاه احمد يحيى عبدالاله | F6: =VLOOKUP(D6,ناجح!A12:P101,3,0) -> 10 - 1 | G6: =VLOOKUP(D6,ناجح!A12:P101,13,0) -> 224 | H6: =VLOOKUP(D6,ناجح!A12:P101,15,0) -> 0.8296296296
D7: 3 | E7: =VLOOKUP(D7,ناجح!A13:P102,2,0) -> احمد محمود احمد عبدالسميع عثمان | F7: =VLOOKUP(D7,ناجح!A13:P102,3,0) -> 10 - 1 | G7: =VLOOKUP(D7,ناجح!A13:P102,13,0) -> 253 | H7: =VLOOKUP(D7,ناجح!A13:P102,15,0) -> 0.937037037
D8: 4 | E8: =VLOOKUP(D8,ناجح!A14:P103,2,0) -> جمال عبدالغفار كمال على | F8: =VLOOKUP(D8,ناجح!A14:P103,3,0) -> 10 - 1 | G8: =VLOOKUP(D8,ناجح!A14:P103,13,0) -> 228 | H8: =VLOOKUP(D8,ناجح!A14:P103,15,0) -> 0.8444444444
D9: 5 | E9: =VLOOKUP(D9,ناجح!A15:P104,2,0) -> حسن محمد العبود الصالح | F9: =VLOOKUP(D9,ناجح!A15:P104,3,0) -> 10 - 1 | G9: =VLOOKUP(D9,ناجح!A15:P104,13,0) -> 243 | H9: =VLOOKUP(D9,ناجح!A15:P104,15,0) -> 0.9
D10: 6 | E10: =VLOOKUP(D10,ناجح!A16:P105,2,0) -> خالد مصعب خضر عبدالله تايه | F10: =VLOOKUP(D10,ناجح!A16:P105,3,0) -> 10 - 1 | G10: =VLOOKUP(D10,ناجح!A16:P105,13,0) -> 267 | H10: =VLOOKUP(D10,ناجح!A16:P105,15,0) -> 0.9888888889
D11: 7 | E11: =VLOOKUP(D11,ناجح!A17:P106,2,0) -> سيف سعيد احمد عبدالمجيد عبدالرحيم | F11: =VLOOKUP(D11,ناجح!A17:P106,3,0) -> 10 - 1 | G11: =VLOOKUP(D11,ناجح!A17:P106,13,0) -> 240.5 | H11: =VLOOKUP(D11,ناجح!A17:P106,15,0) -> 0.8907407407
D12: 8 | E12: =VLOOKUP(D12,ناجح!A18:P107,2,0) -> شعيب خالد شعيب جاب الله | F12: =VLOOKUP(D12,ناجح!A18:P107,3,0) -> 10 - 1 | G12: =VLOOKUP(D12,ناجح!A18:P107,13,0) -> 241.5 | H12: =VLOOKUP(D12,ناجح!A18:P107,15,0) -> 0.8944444444
D13: 9 | E13: =VLOOKUP(D13,ناجح!A19:P108,2,0) -> عادل سعيد فتحي مصطفى عوض الله | F13: =VLOOKUP(D13,ناجح!A19:P108,3,0) -> 10 - 1 | G13: =VLOOKUP(D13,ناجح!A19:P108,13,0) -> 238.5 | H13: =VLOOKUP(D13,ناجح!A19:P108,15,0) -> 0.8833333333
D14: 10 | E14: =VLOOKUP(D14,ناجح!A20:P109,2,0) -> عامر محمد عمر عجيز | F14: =VLOOKUP(D14,ناجح!A20:P109,3,0) -> 10 - 1 | G14: =VLOOKUP(D14,ناجح!A20:P109,13,0) -> 228 | H14: =VLOOKUP(D14,ناجح!A20:P109,15,0) -> 0.8444444444
D15: 11 | E15: =VLOOKUP(D15,ناجح!A21:P110,2,0) -> عبدالرحمن خالد محمد سليمان الشيخ | F15: =VLOOKUP(D15,ناجح!A21:P110,3,0) -> 10 - 1 | G15: =VLOOKUP(D15,ناجح!A21:P110,13,0) -> 249 | H15: =VLOOKUP(D15,ناجح!A21:P110,15,0) -> 0.9222222222
D16: 12 | E16: =VLOOKUP(D16,ناجح!A22:P111,2,0) -> عبدالرحمن قارى محمد اقبال | F16: =VLOOKUP(D16,ناجح!A22:P111,3,0) -> 10 - 1 | G16: =VLOOKUP(D16,ناجح!A22:P111,13,0) -> 238 | H16: =VLOOKUP(D16,ناجح!A22:P111,15,0) -> 0.8814814815
D17: 13 | E17: =VLOOKUP(D17,ناجح!A23:P112,2,0) -> عدنان محمد رضا كرار سليمان | F17: =VLOOKUP(D17,ناجح!A23:P112,3,0) -> 10 - 1 | G17: =VLOOKUP(D17,ناجح!A23:P112,13,0) -> 228.5 | H17: =VLOOKUP(D17,ناجح!A23:P112,15,0) -> 0.8462962963
D18: 14 | E18: =VLOOKUP(D18,ناجح!A24:P113,2,0) -> على هصام حامد على الحبابى | F18: =VLOOKUP(D18,ناجح!A24:P113,3,0) -> 10 - 1 | G18: =VLOOKUP(D18,ناجح!A24:P113,13,0) -> 211 | H18: =VLOOKUP(D18,ناجح!A24:P113,15,0) -> 0.7814814815
D19: 15 | E19: =VLOOKUP(D19,ناجح!A25:P114,2,0) -> عمر فؤاد اسماعيل ثابت | F19: =VLOOKUP(D19,ناجح!A25:P114,3,0) -> 10 - 1 | G19: =VLOOKUP(D19,ناجح!A25:P114,13,0) -> 232.5 | H19: =VLOOKUP(D19,ناجح!A25:P114,15,0) -> 0.8611111111
D20: 16 | E20: =VLOOKUP(D20,ناجح!A26:P115,2,0) -> عمر مصطفى محمد عوه | F20: =VLOOKUP(D20,ناجح!A26:P115,3,0) -> 10 - 1 | G20: =VLOOKUP(D20,ناجح!A26:P115,13,0) -> 242.5 | H20: =VLOOKUP(D20,ناجح!A26:P115,15,0) -> 0.8981481481
D21: 17 | E21: =VLOOKUP(D21,ناجح!A27:P116,2,0) -> عمر هشام على بحيرى ابوالخير | F21: =VLOOKUP(D21,ناجح!A27:P116,3,0) -> 10 - 1 | G21: =VLOOKUP(D21,ناجح!A27:P116,13,0) -> 259.5 | H21: =VLOOKUP(D21,ناجح!A27:P116,15,0) -> 0.9611111111
D22: 18 | E22: =VLOOKUP(D22,ناجح!A28:P117,2,0) -> فادي عدنان احمد عبدالجليل | F22: =VLOOKUP(D22,ناجح!A28:P117,3,0) -> 10 - 1 | G22: =VLOOKUP(D22,ناجح!A28:P117,13,0) -> 255 | H22: =VLOOKUP(D22,ناجح!A28:P117,15,0) -> 0.9444444444
D23: 19 | E23: =VLOOKUP(D23,ناجح!A29:P118,2,0) -> مازن محمود السيد عبدالله عبدالوهاب | F23: =VLOOKUP(D23,ناجح!A29:P118,3,0) -> 10 - 1 | G23: =VLOOKUP(D23,ناجح!A29:P118,13,0) -> 235.5 | H23: =VLOOKUP(D23,ناجح!A29:P118,15,0) -> 0.8722222222
D24: 20 | E24: =VLOOKUP(D24,ناجح!A30:P119,2,0) -> محمد احمد محمود شناق | F24: =VLOOKUP(D24,ناجح!A30:P119,3,0) -> 10 - 1 | G24: =VLOOKUP(D24,ناجح!A30:P119,13,0) -> 246 | H24: =VLOOKUP(D24,ناجح!A30:P119,15,0) -> 0.9111111111
D25: 21 | E25: =VLOOKUP(D25,ناجح!A31:P120,2,0) -> محمد عبدالله السيد بيومي حسن | F25: =VLOOKUP(D25,ناجح!A31:P120,3,0) -> 10 - 1 | G25: =VLOOKUP(D25,ناجح!A31:P120,13,0) -> 256 | H25: =VLOOKUP(D25,ناجح!A31:P120,15,0) -> 0.9481481481
D26: 22 | E26: =VLOOKUP(D26,ناجح!A32:P121,2,0) -> محمد عقيل عدنان سيد احمد | F26: =VLOOKUP(D26,ناجح!A32:P121,3,0) -> 10 - 1 | G26: =VLOOKUP(D26,ناجح!A32:P121,13,0) -> 241 | H26: =VLOOKUP(D26,ناجح!A32:P121,15,0) -> 0.8925925926
D27: 23 | E27: =VLOOKUP(D27,ناجح!A33:P122,2,0) -> محمد علي عطيت الله ابراهيم عبداللاه | F27: =VLOOKUP(D27,ناجح!A33:P122,3,0) -> 10 - 1 | G27: =VLOOKUP(D27,ناجح!A33:P122,13,0) -> 232 | H27: =VLOOKUP(D27,ناجح!A33:P122,15,0) -> 0.8592592593
D28: 24 | E28: =VLOOKUP(D28,ناجح!A34:P123,2,0) -> محمد عمر عبدالرحيم على | F28: =VLOOKUP(D28,ناجح!A34:P123,3,0) -> 10 - 1 | G28: =VLOOKUP(D28,ناجح!A34:P123,13,0) -> 257.5 | H28: =VLOOKUP(D28,ناجح!A34:P123,15,0) -> 0.9537037037
D29: 25 | E29: =VLOOKUP(D29,ناجح!A35:P124,2,0) -> محمد عمر فتحى عبدالتواب عبدالمقصود | F29: =VLOOKUP(D29,ناجح!A35:P124,3,0) -> 10 - 1 | G29: =VLOOKUP(D29,ناجح!A35:P124,13,0) -> 257.5 | H29: =VLOOKUP(D29,ناجح!A35:P124,15,0) -> 0.9537037037
D30: 26 | E30: =VLOOKUP(D30,ناجح!A36:P125,2,0) -> محمود حبيب الله | F30: =VLOOKUP(D30,ناجح!A36:P125,3,0) -> 10 - 1 | G30: =VLOOKUP(D30,ناجح!A36:P125,13,0) -> 253 | H30: =VLOOKUP(D30,ناجح!A36:P125,15,0) -> 0.937037037
D31: 27 | E31: =VLOOKUP(D31,ناجح!A37:P126,2,0) -> محمود عادل عبدالمحسن محمد | F31: =VLOOKUP(D31,ناجح!A37:P126,3,0) -> 10 - 1 | G31: =VLOOKUP(D31,ناجح!A37:P126,13,0) -> 260 | H31: =VLOOKUP(D31,ناجح!A37:P126,15,0) -> 0.962962963
D32: 28 | E32: =VLOOKUP(D32,ناجح!A38:P127,2,0) -> يوسف محمد سليمان موسى عامر | F32: =VLOOKUP(D32,ناجح!A38:P127,3,0) -> 10 - 1 | G32: =VLOOKUP(D32,ناجح!A38:P127,13,0) -> 249.5 | H32: =VLOOKUP(D32,ناجح!A38:P127,15,0) -> 0.9240740741
D33: 29 | E33: =VLOOKUP(D33,ناجح!A39:P128,2,0) -> احمد اسامه جميل ابوالعلا | F33: =VLOOKUP(D33,ناجح!A39:P128,3,0) -> 10 - 2 | G33: =VLOOKUP(D33,ناجح!A39:P128,13,0) -> 234.5 | H33: =VLOOKUP(D33,ناجح!A39:P128,15,0) -> 0.8685185185
D34: 30 | E34: =VLOOKUP(D34,ناجح!A40:P129,2,0) -> أحمد اقبال ابواصبع | F34: =VLOOKUP(D34,ناجح!A40:P129,3,0) -> 10 - 2 | G34: =VLOOKUP(D34,ناجح!A40:P129,13,0) -> 258.5 | H34: =VLOOKUP(D34,ناجح!A40:P129,15,0) -> 0.9574074074
D35: 31 | E35: =VLOOKUP(D35,ناجح!A41:P130,2,0) -> احمد شريف ابراهيم الدسوقى عوض | F35: =VLOOKUP(D35,ناجح!A41:P130,3,0) -> 10 - 2 | G35: =VLOOKUP(D35,ناجح!A41:P130,13,0) -> 224.5 | H35: =VLOOKUP(D35,ناجح!A41:P130,15,0) -> 0.8314814815
D36: 32 | E36: =VLOOKUP(D36,ناجح!A42:P131,2,0) -> امين بن المنذر بن عثمان | F36: =VLOOKUP(D36,ناجح!A42:P131,3,0) -> 10 - 2 | G36: =VLOOKUP(D36,ناجح!A42:P131,13,0) -> 175 | H36: =VLOOKUP(D36,ناجح!A42:P131,15,0) -> 0.6481481481
D37: =ROW()-4 -> 33 | E37: =VLOOKUP(D37,ناجح!A43:P132,2,0) -> براء اشرف سعيد زكي السيد | F37: =VLOOKUP(D37,ناجح!A43:P132,3,0) -> 10 - 2 | G37: =VLOOKUP(D37,ناجح!A43:P132,13,0) -> 210 | H37: =VLOOKUP(D37,ناجح!A43:P132,15,0) -> 0.7777777778
D38: 34 | E38: =VLOOKUP(D38,ناجح!A44:P133,2,0) -> جوين عماد عبدالحليم داود | F38: =VLOOKUP(D38,ناجح!A44:P133,3,0) -> 10 - 2 | G38: =VLOOKUP(D38,ناجح!A44:P133,13,0) -> 192.5 | H38: =VLOOKUP(D38,ناجح!A44:P133,15,0) -> 0.712962963
D39: 35 | E39: =VLOOKUP(D39,ناجح!A45:P134,2,0) -> حمد ناجى مسعد احمد الطيرى | F39: =VLOOKUP(D39,ناجح!A45:P134,3,0) -> 10 - 2 | G39: =VLOOKUP(D39,ناجح!A45:P134,13,0) -> 219.5 | H39: =VLOOKUP(D39,ناجح!A45:P134,15,0) -> 0.812962963
D40: 36 | E40: =VLOOKUP(D40,ناجح!A46:P135,2,0) -> راشد حمد على البكرى اليافعى | F40: =VLOOKUP(D40,ناجح!A46:P135,3,0) -> 10 - 2 | G40: =VLOOKUP(D40,ناجح!A46:P135,13,0) -> 194 | H40: =VLOOKUP(D40,ناجح!A46:P135,15,0) -> 0.7185185185
D41: 37 | E41: =VLOOKUP(D41,ناجح!A47:P136,2,0) -> رامي سعد فراج فرج علي | F41: =VLOOKUP(D41,ناجح!A47:P136,3,0) -> 10 - 2 | G41: =VLOOKUP(D41,ناجح!A47:P136,13,0) -> 221 | H41: =VLOOKUP(D41,ناجح!A47:P136,15,0) -> 0.8185185185
D42: 38 | E42: =VLOOKUP(D42,ناجح!A48:P137,2,0) -> زكي واءلئ شحده عطيه ابوعيده | F42: =VLOOKUP(D42,ناجح!A48:P137,3,0) -> 10 - 2 | G42: =VLOOKUP(D42,ناجح!A48:P137,13,0) -> 211 | H42: =VLOOKUP(D42,ناجح!A48:P137,15,0) -> 0.7814814815
D43: 39 | E43: =VLOOKUP(D43,ناجح!A49:P138,2,0) -> سلمان محمد اسلام ناصر احمد | F43: =VLOOKUP(D43,ناجح!A49:P138,3,0) -> 10 - 2 | G43: =VLOOKUP(D43,ناجح!A49:P138,13,0) -> 183 | H43: =VLOOKUP(D43,ناجح!A49:P138,15,0) -> 0.6777777778
D44: 40 | E44: =VLOOKUP(D44,ناجح!A50:P139,2,0) -> عبدالرحمن محمد محسن البكري | F44: =VLOOKUP(D44,ناجح!A50:P139,3,0) -> 10 - 2 | G44: =VLOOKUP(D44,ناجح!A50:P139,13,0) -> 196.5 | H44: =VLOOKUP(D44,ناجح!A50:P139,15,0) -> 0.7277777778
D45: 41 | E45: =VLOOKUP(D45,ناجح!A51:P140,2,0) -> عبدالرحمن هيثم اديب ابودلو | F45: =VLOOKUP(D45,ناجح!A51:P140,3,0) -> 10 - 2 | G45: =VLOOKUP(D45,ناجح!A51:P140,13,0) -> 225 | H45: =VLOOKUP(D45,ناجح!A51:P140,15,0) -> 0.8333333333
D46: 42 | E46: =VLOOKUP(D46,ناجح!A52:P141,2,0) -> على عبدالحافظ على منصر منيف | F46: =VLOOKUP(D46,ناجح!A52:P141,3,0) -> 10 - 2 | G46: =VLOOKUP(D46,ناجح!A52:P141,13,0) -> 214.5 | H46: =VLOOKUP(D46,ناجح!A52:P141,15,0) -> 0.7944444444
D47: 43 | E47: =VLOOKUP(D47,ناجح!A53:P142,2,0) -> فيصل محمد راشد جخدب الهميمى | F47: =VLOOKUP(D47,ناجح!A53:P142,3,0) -> 10 - 2 | G47: =VLOOKUP(D47,ناجح!A53:P142,13,0) -> 232 | H47: =VLOOKUP(D47,ناجح!A53:P142,15,0) -> 0.8592592593
D48: 44 | E48: =VLOOKUP(D48,ناجح!A54:P143,2,0) -> قيس محمد داود ابراهيم ابوديه | F48: =VLOOKUP(D48,ناجح!A54:P143,3,0) -> 10 - 2 | G48: =VLOOKUP(D48,ناجح!A54:P143,13,0) -> 252 | H48: =VLOOKUP(D48,ناجح!A54:P143,15,0) -> 0.9333333333
D49: 45 | E49: =VLOOKUP(D49,ناجح!A55:P144,2,0) -> لؤي ايهاب محمد احمد محمد | F49: =VLOOKUP(D49,ناجح!A55:P144,3,0) -> 10 - 2 | G49: =VLOOKUP(D49,ناجح!A55:P144,13,0) -> 221 | H49: =VLOOKUP(D49,ناجح!A55:P144,15,0) -> 0.8185185185
D50: 46 | E50: =VLOOKUP(D50,ناجح!A56:P145,2,0) -> محمد على راشد محمد انديله | F50: =VLOOKUP(D50,ناجح!A56:P145,3,0) -> 10 - 2 | G50: =VLOOKUP(D50,ناجح!A56:P145,13,0) -> 204 | H50: =VLOOKUP(D50,ناجح!A56:P145,15,0) -> 0.7555555556
D51: 47 | E51: =VLOOKUP(D51,ناجح!A57:P146,2,0) -> محمدخير حسين رغفان | F51: =VLOOKUP(D51,ناجح!A57:P146,3,0) -> 10 - 2 | G51: =VLOOKUP(D51,ناجح!A57:P146,13,0) -> 223.5 | H51: =VLOOKUP(D51,ناجح!A57:P146,15,0) -> 0.8277777778
D52: 48 | E52: =VLOOKUP(D52,ناجح!A58:P147,2,0) -> وليد الامين عثمان | F52: =VLOOKUP(D52,ناجح!A58:P147,3,0) -> 10 - 2 | G52: =VLOOKUP(D52,ناجح!A58:P147,13,0) -> 208.5 | H52: =VLOOKUP(D52,ناجح!A58:P147,15,0) -> 0.7722222222
D53: 49 | E53: =VLOOKUP(D53,ناجح!A59:P148,2,0) -> يزيد سامح حسنى محيسن | F53: =VLOOKUP(D53,ناجح!A59:P148,3,0) -> 10 - 2 | G53: =VLOOKUP(D53,ناجح!A59:P148,13,0) -> 250.5 | H53: =VLOOKUP(D53,ناجح!A59:P148,15,0) -> 0.9277777778
D54: 50 | E54: =VLOOKUP(D54,ناجح!A60:P149,2,0) -> يوسف محمد عطيه عطيه حسن | F54: =VLOOKUP(D54,ناجح!A60:P149,3,0) -> 10 - 2 | G54: =VLOOKUP(D54,ناجح!A60:P149,13,0) -> 249 | H54: =VLOOKUP(D54,ناجح!A60:P149,15,0) -> 0.9222222222
D55: 51 | E55: =VLOOKUP(D55,ناجح!A61:P150,2,0) -> أحمد يوسف خالد يوسف شراب | F55: =VLOOKUP(D55,ناجح!A61:P150,3,0) -> 10 - 4 | G55: =VLOOKUP(D55,ناجح!A61:P150,13,0) -> 164 | H55: =VLOOKUP(D55,ناجح!A61:P150,15,0) -> 0.6074074074
D56: 52 | E56: =VLOOKUP(D56,ناجح!A62:P151,2,0) -> جاسم ناصر جاسم محمد المفتاح | F56: =VLOOKUP(D56,ناجح!A62:P151,3,0) -> 10 - 4 | G56: =VLOOKUP(D56,ناجح!A62:P151,13,0) -> 191 | H56: =VLOOKUP(D56,ناجح!A62:P151,15,0) -> 0.7074074074
D57: 53 | E57: =VLOOKUP(D57,ناجح!A63:P152,2,0) -> عبدالله ضيف الله برمان الدوسري | F57: =VLOOKUP(D57,ناجح!A63:P152,3,0) -> 10 - 4 | G57: =VLOOKUP(D57,ناجح!A63:P152,13,0) -> 219.5 | H57: =VLOOKUP(D57,ناجح!A63:P152,15,0) -> 0.812962963
D58: 54 | E58: =VLOOKUP(D58,ناجح!A64:P153,2,0) -> عدي فريد احمد حسين | F58: =VLOOKUP(D58,ناجح!A64:P153,3,0) -> 10 - 4 | G58: =VLOOKUP(D58,ناجح!A64:P153,13,0) -> 200 | H58: =VLOOKUP(D58,ناجح!A64:P153,15,0) -> 0.7407407407
D59: 55 | E59: =VLOOKUP(D59,ناجح!A65:P154,2,0) -> عزيز خالد سالم ابو شنار | F59: =VLOOKUP(D59,ناجح!A65:P154,3,0) -> 10 - 4 | G59: =VLOOKUP(D59,ناجح!A65:P154,13,0) -> 201 | H59: =VLOOKUP(D59,ناجح!A65:P154,15,0) -> 0.7444444444
D60: 56 | E60: =VLOOKUP(D60,ناجح!A66:P155,2,0) -> عمر محمد محمود ابوزاهر | F60: =VLOOKUP(D60,ناجح!A66:P155,3,0) -> 10 - 4 | G60: =VLOOKUP(D60,ناجح!A66:P155,13,0) -> 254.5 | H60: =VLOOKUP(D60,ناجح!A66:P155,15,0) -> 0.9425925926
D61: 57 | E61: =VLOOKUP(D61,ناجح!A67:P156,2,0) -> محمد عبدالعزيز عبدالكريم يحى يعقوب | F61: =VLOOKUP(D61,ناجح!A67:P156,3,0) -> 10 - 4 | G61: =VLOOKUP(D61,ناجح!A67:P156,13,0) -> 209 | H61: =VLOOKUP(D61,ناجح!A67:P156,15,0) -> 0.7740740741
D62: 58 | E62: =VLOOKUP(D62,ناجح!A68:P157,2,0) -> محمد عبدالله بخيت محمد المهيري | F62: =VLOOKUP(D62,ناجح!A68:P157,3,0) -> 10 - 4 | G62: =VLOOKUP(D62,ناجح!A68:P157,13,0) -> 210 | H62: =VLOOKUP(D62,ناجح!A68:P157,15,0) -> 0.7777777778
D63: 59 | E63: =VLOOKUP(D63,ناجح!A69:P158,2,0) -> محمد هشام حامد على ابوخطيطه | F63: =VLOOKUP(D63,ناجح!A69:P158,3,0) -> 10 - 4 | G63: =VLOOKUP(D63,ناجح!A69:P158,13,0) -> 250 | H63: =VLOOKUP(D63,ناجح!A69:P158,15,0) -> 0.9259259259
D64: 60 | E64: =VLOOKUP(D64,ناجح!A70:P159,2,0) -> حسن محمود ابراهيم علي البنا | F64: =VLOOKUP(D64,ناجح!A70:P159,3,0) -> 10 - 5 | G64: =VLOOKUP(D64,ناجح!A70:P159,13,0) -> 247 | H64: =VLOOKUP(D64,ناجح!A70:P159,15,0) -> 0.9148148148
D65: 61 | E65: =VLOOKUP(D65,ناجح!A71:P160,2,0) -> زياد مصطفى كامل محمد ابوالبها | F65: =VLOOKUP(D65,ناجح!A71:P160,3,0) -> 10 - 5 | G65: =VLOOKUP(D65,ناجح!A71:P160,13,0) -> 217 | H65: =VLOOKUP(D65,ناجح!A71:P160,15,0) -> 0.8037037037
D66: 62 | E66: =VLOOKUP(D66,ناجح!A72:P161,2,0) -> سعيد محمد سالم عمار خوار | F66: =VLOOKUP(D66,ناجح!A72:P161,3,0) -> 10 - 5 | G66: =VLOOKUP(D66,ناجح!A72:P161,13,0) -> 207 | H66: =VLOOKUP(D66,ناجح!A72:P161,15,0) -> 0.7666666667
D67: 63 | E67: =VLOOKUP(D67,ناجح!A73:P162,2,0) -> عبدالله فهد عبدالله عبدالعزيز الرميحى | F67: =VLOOKUP(D67,ناجح!A73:P162,3,0) -> 10 - 5 | G67: =VLOOKUP(D67,ناجح!A73:P162,13,0) -> 203 | H67: =VLOOKUP(D67,ناجح!A73:P162,15,0) -> 0.7518518519
D68: 64 | E68: =VLOOKUP(D68,ناجح!A74:P163,2,0) -> عبدالله فؤاد حازم شريف | F68: =VLOOKUP(D68,ناجح!A74:P163,3,0) -> 10 - 5 | G68: =VLOOKUP(D68,ناجح!A74:P163,13,0) -> 208.5 | H68: =VLOOKUP(D68,ناجح!A74:P163,15,0) -> 0.7722222222
D69: =ROW()-4 -> 65 | E69: =VLOOKUP(D69,ناجح!A75:P164,2,0) -> محمد جابر محمد الصعاق المرى | F69: =VLOOKUP(D69,ناجح!A75:P164,3,0) -> 10 - 5 | G69: =VLOOKUP(D69,ناجح!A75:P164,13,0) -> 167.5 | H69: =VLOOKUP(D69,ناجح!A75:P164,15,0) -> 0.6203703704
D70: 66 | E70: =VLOOKUP(D70,ناجح!A76:P165,2,0) -> مصطفى اسامه محمد زهدي سيد | F70: =VLOOKUP(D70,ناجح!A76:P165,3,0) -> 10 - 5 | G70: =VLOOKUP(D70,ناجح!A76:P165,13,0) -> 212 | H70: =VLOOKUP(D70,ناجح!A76:P165,15,0) -> 0.7851851852
D71: 67 | E71: =VLOOKUP(D71,ناجح!A77:P166,2,0) -> مهند عمر سمير كلباني | F71: =VLOOKUP(D71,ناجح!A77:P166,3,0) -> 10 - 5 | G71: =VLOOKUP(D71,ناجح!A77:P166,13,0) -> 201.5 | H71: =VLOOKUP(D71,ناجح!A77:P166,15,0) -> 0.7462962963
D72: 68 | E72: =VLOOKUP(D72,ناجح!A78:P167,2,0) -> شفيع فهد على شفيع الفهيده | F72: =VLOOKUP(D72,ناجح!A78:P167,3,0) -> 10 - 6 | G72: =VLOOKUP(D72,ناجح!A78:P167,13,0) -> 234.5 | H72: =VLOOKUP(D72,ناجح!A78:P167,15,0) -> 0.8685185185
D73: 69 | E73: =VLOOKUP(D73,ناجح!A79:P168,2,0) -> عبدالرحمن مرتضى عبدالعال ساتى الحسن | F73: =VLOOKUP(D73,ناجح!A79:P168,3,0) -> 10 - 6 | G73: =VLOOKUP(D73,ناجح!A79:P168,13,0) -> 204 | H73: =VLOOKUP(D73,ناجح!A79:P168,15,0) -> 0.7555555556
D74: 70 | E74: =VLOOKUP(D74,ناجح!A80:P169,2,0) -> عبدالقادر انس العمر | F74: =VLOOKUP(D74,ناجح!A80:P169,3,0) -> 10 - 6 | G74: =VLOOKUP(D74,ناجح!A80:P169,13,0) -> 246.5 | H74: =VLOOKUP(D74,ناجح!A80:P169,15,0) -> 0.912962963
D75: 71 | E75: =VLOOKUP(D75,ناجح!A81:P170,2,0) -> عبدالله حمد سالم العيسائى اليافعى | F75: =VLOOKUP(D75,ناجح!A81:P170,3,0) -> 10 - 6 | G75: =VLOOKUP(D75,ناجح!A81:P170,13,0) -> 206 | H75: =VLOOKUP(D75,ناجح!A81:P170,15,0) -> 0.762962963
D76: 72 | E76: =VLOOKUP(D76,ناجح!A82:P171,2,0) -> عبدالله على عبدالمحسن راشد الهميمى | F76: =VLOOKUP(D76,ناجح!A82:P171,3,0) -> 10 - 6 | G76: =VLOOKUP(D76,ناجح!A82:P171,13,0) -> 216.5 | H76: =VLOOKUP(D76,ناجح!A82:P171,15,0) -> 0.8018518519
D77: 73 | E77: =VLOOKUP(D77,ناجح!A83:P172,2,0) -> على احمد عبدالله احمد العبدالله | F77: =VLOOKUP(D77,ناجح!A83:P172,3,0) -> 10 - 6 | G77: =VLOOKUP(D77,ناجح!A83:P172,13,0) -> 180.5 | H77: =VLOOKUP(D77,ناجح!A83:P172,15,0) -> 0.6685185185
D78: 74 | E78: =VLOOKUP(D78,ناجح!A84:P173,2,0) -> محمد الفاضل يوسف محمد | F78: =VLOOKUP(D78,ناجح!A84:P173,3,0) -> 10 - 6 | G78: =VLOOKUP(D78,ناجح!A84:P173,13,0) -> 190.5 | H78: =VLOOKUP(D78,ناجح!A84:P173,15,0) -> 0.7055555556
D79: 75 | E79: =VLOOKUP(D79,ناجح!A85:P174,2,0) -> محمد حمد حسين بن عباس الخزاعى | F79: =VLOOKUP(D79,ناجح!A85:P174,3,0) -> 10 - 6 | G79: =VLOOKUP(D79,ناجح!A85:P174,13,0) -> 207.5 | H79: =VLOOKUP(D79,ناجح!A85:P174,15,0) -> 0.7685185185
D80: 76 | E80: =VLOOKUP(D80,ناجح!A86:P175,2,0) -> محمد محمود صلاح الدين محمود محمد | F80: =VLOOKUP(D80,ناجح!A86:P175,3,0) -> 10 - 6 | G80: =VLOOKUP(D80,ناجح!A86:P175,13,0) -> 200.5 | H80: =VLOOKUP(D80,ناجح!A86:P175,15,0) -> 0.7425925926
D81: 77 | E81: =VLOOKUP(D81,ناجح!A87:P176,2,0) -> محمد وليد سيد حسن عبدالمجيد | F81: =VLOOKUP(D81,ناجح!A87:P176,3,0) -> 10 - 6 | G81: =VLOOKUP(D81,ناجح!A87:P176,13,0) -> 250 | H81: =VLOOKUP(D81,ناجح!A87:P176,15,0) -> 0.9259259259
D82: 78 | E82: =VLOOKUP(D82,ناجح!A88:P177,2,0) -> محمدنذير محمداياد الحريري | F82: =VLOOKUP(D82,ناجح!A88:P177,3,0) -> 10 - 6 | G82: =VLOOKUP(D82,ناجح!A88:P177,13,0) -> 225.5 | H82: =VLOOKUP(D82,ناجح!A88:P177,15,0) -> 0.8351851852
D83: 79 | E83: =VLOOKUP(D83,ناجح!A89:P178,2,0) -> يوسف عادل احمد محمد مدني | F83: =VLOOKUP(D83,ناجح!A89:P178,3,0) -> 10 - 6 | G83: =VLOOKUP(D83,ناجح!A89:P178,13,0) -> 202.5 | H83: =VLOOKUP(D83,ناجح!A89:P178,15,0) -> 0.75
D84: 80 | E84: =VLOOKUP(D84,ناجح!A90:P179,2,0) -> السيدهاشم جعفر علي شبر الوداعي | F84: =VLOOKUP(D84,ناجح!A90:P179,3,0) -> 10 - 7 | G84: =VLOOKUP(D84,ناجح!A90:P179,13,0) -> 204.5 | H84: =VLOOKUP(D84,ناجح!A90:P179,15,0) -> 0.7574074074
D85: 81 | E85: =VLOOKUP(D85,ناجح!A91:P180,2,0) -> جوعان حمد محمد على بن نوره | F85: =VLOOKUP(D85,ناجح!A91:P180,3,0) -> 10 - 7 | G85: =VLOOKUP(D85,ناجح!A91:P180,13,0) -> 230.5 | H85: =VLOOKUP(D85,ناجح!A91:P180,15,0) -> 0.8537037037
D86: 82 | E86: =VLOOKUP(D86,ناجح!A92:P181,2,0) -> على سالم محمد ابوعرقوه المرى | F86: =VLOOKUP(D86,ناجح!A92:P181,3,0) -> 10 - 7 | G86: =VLOOKUP(D86,ناجح!A92:P181,13,0) -> 215 | H86: =VLOOKUP(D86,ناجح!A92:P181,15,0) -> 0.7962962963
D87: 83 | E87: =VLOOKUP(D87,ناجح!A93:P182,2,0) -> مجتبى كامل عبدالله محمد | F87: =VLOOKUP(D87,ناجح!A93:P182,3,0) -> 10 - 7 | G87: =VLOOKUP(D87,ناجح!A93:P182,13,0) -> 182 | H87: =VLOOKUP(D87,ناجح!A93:P182,15,0) -> 0.6740740741
D88: 84 | E88: =VLOOKUP(D88,ناجح!A94:P183,2,0) -> محمد راشد عبدالمحسن راشد الهميمى | F88: =VLOOKUP(D88,ناجح!A94:P183,3,0) -> 10 - 7 | G88: =VLOOKUP(D88,ناجح!A94:P183,13,0) -> 258 | H88: =VLOOKUP(D88,ناجح!A94:P183,15,0) -> 0.9555555556
D89: 85 | E89: =VLOOKUP(D89,ناجح!A95:P184,2,0) -> محمد سعيد سعد خالد مقبل | F89: =VLOOKUP(D89,ناجح!A95:P184,3,0) -> 10 - 7 | G89: =VLOOKUP(D89,ناجح!A95:P184,13,0) -> 212 | H89: =VLOOKUP(D89,ناجح!A95:P184,15,0) -> 0.7851851852
D90: 86 | E90: =VLOOKUP(D90,ناجح!A96:P185,2,0) -> محمد واصف عارف حيدر | F90: =VLOOKUP(D90,ناجح!A96:P185,3,0) -> 10 - 7 | G90: =VLOOKUP(D90,ناجح!A96:P185,13,0) -> 240.5 | H90: =VLOOKUP(D90,ناجح!A96:P185,15,0) -> 0.8907407407

Sheet كشف مواد الدور الثاني
D3: كشف الطلاب الراسبين
C4: م | D4: رقم الجلوس | E4: اسم الطالب | F4: الصف | G4: مواد الدور الثانى
C5: =ROW()-4 -> 1 | D5: =VLOOKUP(C5,'دور ثانى'!$A$11:$R$170,1,0) -> 1 | E5: =VLOOKUP(C5,'دور ثانى'!$A$11:$R$170,2,0) -> عبدالله فتحي سيد محمد جمعه | F5: =VLOOKUP(C5,'دور ثانى'!$A$11:$R$170,3,0) -> 10 - 1 | G5: =VLOOKUP(C5,'دور ثانى'!$A$11:$R$170,18,0) -> الرياضيات /
C6: =ROW()-4 -> 2 | D6: =VLOOKUP(C6,'دور ثانى'!$A$11:$R$170,1,0) -> 2 | E6: =VLOOKUP(C6,'دور ثانى'!$A$11:$R$170,2,0) -> عمر عبدالباسط ابراهيم محمد | F6: =VLOOKUP(C6,'دور ثانى'!$A$11:$R$170,3,0) -> 10 - 1 | G6: =VLOOKUP(C6,'دور ثانى'!$A$11:$R$170,18,0) -> الأحياء /
C7: 3 | D7: =VLOOKUP(C7,'دور ثانى'!$A$11:$R$170,1,0) -> 3 | E7: =VLOOKUP(C7,'دور ثانى'!$A$11:$R$170,2,0) -> معتز احمد كامل على خوالده | F7: =VLOOKUP(C7,'دور ثانى'!$A$11:$R$170,3,0) -> 10 - 1 | G7: =VLOOKUP(C7,'دور ثانى'!$A$11:$R$170,18,0) -> الكيمياء /
C8: 4 | D8: =VLOOKUP(C8,'دور ثانى'!$A$11:$R$170,1,0) -> 4 | E8: =VLOOKUP(C8,'دور ثانى'!$A$11:$R$170,2,0) -> مهنا احمد محمد سيف النعيمى | F8: =VLOOKUP(C8,'دور ثانى'!$A$11:$R$170,3,0) -> 10 - 1 | G8: =VLOOKUP(C8,'دور ثانى'!$A$11:$R$170,18,0) -> الرياضيات / الدراسات الاجتماعية / الحوسبة وتكنولوجيا المعلومات / الكيمياء / الفيزياء / الأحياء / التربية الإسلامية /
C9: 5 | D9: =VLOOKUP(C9,'دور ثانى'!$A$11:$R$170,1,0) -> 5 | E9: =VLOOKUP(C9,'دور ثانى'!$A$11:$R$170,2,0) -> مؤمن شريف محمد التاج | F9: =VLOOKUP(C9,'دور ثانى'!$A$11:$R$170,3,0) -> 10 - 1 | G9: =VLOOKUP(C9,'دور ثانى'!$A$11:$R$170,18,0) -> الكيمياء /
C10: 6 | D10: =VLOOKUP(C10,'دور ثانى'!$A$11:$R$170,1,0) -> 6 | E10: =VLOOKUP(C10,'دور ثانى'!$A$11:$R$170,2,0) -> ياسين احمد صلاح عبداللطيف | F10: =VLOOKUP(C10,'دور ثانى'!$A$11:$R$170,3,0) -> 10 - 1 | G10: =VLOOKUP(C10,'دور ثانى'!$A$11:$R$170,18,0) -> الرياضيات / الدراسات الاجتماعية / الحوسبة وتكنولوجيا المعلومات / الكيمياء / الفيزياء / الأحياء / التربية الإسلامية / اللغة العربية / اللغة الإنجليزية /
C11: 7 | D11: =VLOOKUP(C11,'دور ثانى'!$A$11:$R$170,1,0) -> 7 | E11: =VLOOKUP(C11,'دور ثانى'!$A$11:$R$170,2,0) -> بريك سالم دغش الجربوعى المرى | F11: =VLOOKUP(C11,'دور ثانى'!$A$11:$R$170,3,0) -> 10 - 2 | G11: =VLOOKUP(C11,'دور ثانى'!$A$11:$R$170,18,0) -> الكيمياء /
C12: 8 | D12: =VLOOKUP(C12,'دور ثانى'!$A$11:$R$170,1,0) -> 8 | E12: =VLOOKUP(C12,'دور ثانى'!$A$11:$R$170,2,0) -> خالد طارق عبدالرحمن فوزي رامون | F12: =VLOOKUP(C12,'دور ثانى'!$A$11:$R$170,3,0) -> 10 - 2 | G12: =VLOOKUP(C12,'دور ثانى'!$A$11:$R$170,18,0) -> الرياضيات / الدراسات الاجتماعية / الحوسبة وتكنولوجيا المعلومات / الكيمياء / الفيزياء / الأحياء / التربية الإسلامية / اللغة العربية / اللغة الإنجليزية /
C13: 9 | D13: =VLOOKUP(C13,'دور ثانى'!$A$11:$R$170,1,0) -> 9 | E13: =VLOOKUP(C13,'دور ثانى'!$A$11:$R$170,2,0) -> خالد ناصر محمد ناصر الدهيمى | F13: =VLOOKUP(C13,'دور ثانى'!$A$11:$R$170,3,0) -> 10 - 2 | G13: =VLOOKUP(C13,'دور ثانى'!$A$11:$R$170,18,0) -> الرياضيات /
C14: 10 | D14: =VLOOKUP(C14,'دور ثانى'!$A$11:$R$170,1,0) -> 10 | E14: =VLOOKUP(C14,'دور ثانى'!$A$11:$R$170,2,0) -> زيد محمود احمد خشان | F14: =VLOOKUP(C14,'دور ثانى'!$A$11:$R$170,3,0) -> 10 - 2 | G14: =VLOOKUP(C14,'دور ثانى'!$A$11:$R$170,18,0) -> الأحياء /
C15: 11 | D15: =VLOOKUP(C15,'دور ثانى'!$A$11:$R$170,1,0) -> 11 | E15: =VLOOKUP(C15,'دور ثانى'!$A$11:$R$170,2,0) -> سالم محمد سالم البطى الكعبى | F15: =VLOOKUP(C15,'دور ثانى'!$A$11:$R$170,3,0) -> 10 - 2 | G15: =VLOOKUP(C15,'دور ثانى'!$A$11:$R$170,18,0) -> الرياضيات / اللغة الإنجليزية /
C16: 12 | D16: =VLOOKUP(C16,'دور ثانى'!$A$11:$R$170,1,0) -> 12 | E16: =VLOOKUP(C16,'دور ثانى'!$A$11:$R$170,2,0) -> سيف فهد موسى حسن على | F16: =VLOOKUP(C16,'دور ثانى'!$A$11:$R$170,3,0) -> 10 - 2 | G16: =VLOOKUP(C16,'دور ثانى'!$A$11:$R$170,18,0) -> الرياضيات /
C17: 13 | D17: =VLOOKUP(C17,'دور ثانى'!$A$11:$R$170,1,0) -> 13 | E17: =VLOOKUP(C17,'دور ثانى'!$A$11:$R$170,2,0) -> عبدالرحمن اشرف فتحى سالم نصار | F17: =VLOOKUP(C17,'دور ثانى'!$A$11:$R$170,3,0) -> 10 - 2 | G17: =VLOOKUP(C17,'دور ثانى'!$A$11:$R$170,18,0) -> الرياضيات / الدراسات الاجتماعية / الحوسبة وتكنولوجيا المعلومات / الكيمياء / الفيزياء / الأحياء / التربية الإسلامية / اللغة العربية / اللغة الإنجليزية /
C18: 14 | D18: =VLOOKUP(C18,'دور ثانى'!$A$11:$R$170,1,0) -> 14 | E18: =VLOOKUP(C18,'دور ثانى'!$A$11:$R$170,2,0) -> عبدالرحمن جمال على صالح سيد | F18: =VLOOKUP(C18,'دور ثانى'!$A$11:$R$170,3,0) -> 10 - 2 | G18: =VLOOKUP(C18,'دور ثانى'!$A$11:$R$170,18,0) -> الكيمياء /
C19: 15 | D19: =VLOOKUP(C19,'دور ثانى'!$A$11:$R$170,1,0) -> 15 | E19: =VLOOKUP(C19,'دور ثانى'!$A$11:$R$170,2,0) -> عبدالرحيم محمد رشيد الديرشوى | F19: =VLOOKUP(C19,'دور ثانى'!$A$11:$R$170,3,0) -> 10 - 2 | G19: =VLOOKUP(C19,'دور ثانى'!$A$11:$R$170,18,0) -> الرياضيات /
C20: 16 | D20: =VLOOKUP(C20,'دور ثانى'!$A$11:$R$170,1,0) -> 16 | E20: =VLOOKUP(C20,'دور ثانى'!$A$11:$R$170,2,0) -> عبدالعزيز عوض احمد محمد اليافعى | F20: =VLOOKUP(C20,'دور ثانى'!$A$11:$R$170,3,0) -> 10 - 2 | G20: =VLOOKUP(C20,'دور ثانى'!$A$11:$R$170,18,0) -> الكيمياء / الأحياء /
C21: 17 | D21: =VLOOKUP(C21,'دور ثانى'!$A$11:$R$170,1,0) -> 17 | E21: =VLOOKUP(C21,'دور ثانى'!$A$11:$R$170,2,0) -> على نائل محمد عبدالله الخالدى | F21: =VLOOKUP(C21,'دور ثانى'!$A$11:$R$170,3,0) -> 10 - 2 | G21: =VLOOKUP(C21,'دور ثانى'!$A$11:$R$170,18,0) -> الحوسبة وتكنولوجيا المعلومات / الكيمياء / الفيزياء / اللغة العربية /
C22: 18 | D22: =VLOOKUP(C22,'دور ثانى'!$A$11:$R$170,1,0) -> 18 | E22: =VLOOKUP(C22,'دور ثانى'!$A$11:$R$170,2,0) -> محمد محمود فاروق العبد | F22: =VLOOKUP(C22,'دور ثانى'!$A$11:$R$170,3,0) -> 10 - 2 | G22: =VLOOKUP(C22,'دور ثانى'!$A$11:$R$170,18,0) -> الكيمياء /
C23: 19 | D23: =VLOOKUP(C23,'دور ثانى'!$A$11:$R$170,1,0) -> 19 | E23: =VLOOKUP(C23,'دور ثانى'!$A$11:$R$170,2,0) -> احمد حافظ محمد ابوالكلام كبيرالدين | F23: =VLOOKUP(C23,'دور ثانى'!$A$11:$R$170,3,0) -> 10 - 3 | G23: =VLOOKUP(C23,'دور ثانى'!$A$11:$R$170,18,0) -> الرياضيات / الكيمياء / الأحياء /
C24: 20 | D24: =VLOOKUP(C24,'دور ثانى'!$A$11:$R$170,1,0) -> 20 | E24: =VLOOKUP(C24,'دور ثانى'!$A$11:$R$170,2,0) -> احمد محمد احمد قنبر بلال | F24: =VLOOKUP(C24,'دور ثانى'!$A$11:$R$170,3,0) -> 10 - 3 | G24: =VLOOKUP(C24,'دور ثانى'!$A$11:$R$170,18,0) -> الكيمياء / الأحياء / اللغة العربية / اللغة الإنجليزية /
C25: 21 | D25: =VLOOKUP(C25,'دور ثانى'!$A$11:$R$170,1,0) -> 21 | E25: =VLOOKUP(C25,'دور ثانى'!$A$11:$R$170,2,0) -> امان رشيد خان جول جنان | F25: =VLOOKUP(C25,'دور ثانى'!$A$11:$R$170,3,0) -> 10 - 3 | G25: =VLOOKUP(C25,'دور ثانى'!$A$11:$R$170,18,0) -> الرياضيات / الكيمياء / الفيزياء / الأحياء / التربية الإسلامية / اللغة العربية /
C26: 22 | D26: =VLOOKUP(C26,'دور ثانى'!$A$11:$R$170,1,0) -> 22 | E26: =VLOOKUP(C26,'دور ثانى'!$A$11:$R$170,2,0) -> ايسر جهاد عبدالفتاح كراز | F26: =VLOOKUP(C26,'دور ثانى'!$A$11:$R$170,3,0) -> 10 - 3 | G26: =VLOOKUP(C26,'دور ثانى'!$A$11:$R$170,18,0) -> الرياضيات / الفيزياء / الأحياء / اللغة الإنجليزية /
C27: 23 | D27: =VLOOKUP(C27,'دور ثانى'!$A$11:$R$170,1,0) -> 23 | E27: =VLOOKUP(C27,'دور ثانى'!$A$11:$R$170,2,0) -> بخيت مبخوت سالم سعيد خوار | F27: =VLOOKUP(C27,'دور ثانى'!$A$11:$R$170,3,0) -> 10 - 3 | G27: =VLOOKUP(C27,'دور ثانى'!$A$11:$R$170,18,0) -> الأحياء / التربية الإسلامية / اللغة الإنجليزية /
C28: 24 | D28: =VLOOKUP(C28,'دور ثانى'!$A$11:$R$170,1,0) -> 24 | E28: =VLOOKUP(C28,'دور ثانى'!$A$11:$R$170,2,0) -> تميم محمد ابراهيم محمد فلامرزى | F28: =VLOOKUP(C28,'دور ثانى'!$A$11:$R$170,3,0) -> 10 - 3 | G28: =VLOOKUP(C28,'دور ثانى'!$A$11:$R$170,18,0) -> الرياضيات / الدراسات الاجتماعية / الكيمياء / الأحياء / التربية الإسلامية / اللغة العربية / اللغة الإنجليزية /
C29: 25 | D29: =VLOOKUP(C29,'دور ثانى'!$A$11:$R$170,1,0) -> 25 | E29: =VLOOKUP(C29,'دور ثانى'!$A$11:$R$170,2,0) -> جابر سعد سالم النابت المرى | F29: =VLOOKUP(C29,'دور ثانى'!$A$11:$R$170,3,0) -> 10 - 3 | G29: =VLOOKUP(C29,'دور ثانى'!$A$11:$R$170,18,0) -> الرياضيات / الكيمياء / الأحياء / التربية الإسلامية / اللغة الإنجليزية /
C30: 26 | D30: =VLOOKUP(C30,'دور ثانى'!$A$11:$R$170,1,0) -> 26 | E30: =VLOOKUP(C30,'دور ثانى'!$A$11:$R$170,2,0) -> جاسم عبدالله خالد عبدالله الكثيرى | F30: =VLOOKUP(C30,'دور ثانى'!$A$11:$R$170,3,0) -> 10 - 3 | G30: =VLOOKUP(C30,'دور ثانى'!$A$11:$R$170,18,0) -> الكيمياء / الأحياء / اللغة الإنجليزية /
C31: 27 | D31: =VLOOKUP(C31,'دور ثانى'!$A$11:$R$170,1,0) -> 27 | E31: =VLOOKUP(C31,'دور ثانى'!$A$11:$R$170,2,0) -> حمد راشد حمد ال شابل المرى | F31: =VLOOKUP(C31,'دور ثانى'!$A$11:$R$170,3,0) -> 10 - 3 | G31: =VLOOKUP(C31,'دور ثانى'!$A$11:$R$170,18,0) -> الكيمياء / الأحياء / اللغة الإنجليزية /
C32: 28 | D32: =VLOOKUP(C32,'دور ثانى'!$A$11:$R$170,1,0) -> 28 | E32: =VLOOKUP(C32,'دور ثانى'!$A$11:$R$170,2,0) -> خالد حسين بلوج زنى | F32: =VLOOKUP(C32,'دور ثانى'!$A$11:$R$170,3,0) -> 10 - 3 | G32: =VLOOKUP(C32,'دور ثانى'!$A$11:$R$170,18,0) -> الرياضيات / الدراسات الاجتماعية / الكيمياء / الفيزياء / الأحياء / التربية الإسلامية / اللغة العربية / اللغة الإنجليزية /
C33: 29 | D33: =VLOOKUP(C33,'دور ثانى'!$A$11:$R$170,1,0) -> 29 | E33: =VLOOKUP(C33,'دور ثانى'!$A$11:$R$170,2,0) -> خلف فرحان عقيل الرويلى العنزى | F33: =VLOOKUP(C33,'دور ثانى'!$A$11:$R$170,3,0) -> 10 - 3 | G33: =VLOOKUP(C33,'دور ثانى'!$A$11:$R$170,18,0) -> الرياضيات / الدراسات الاجتماعية / الكيمياء / الفيزياء / الأحياء / التربية الإسلامية / اللغة العربية / اللغة الإنجليزية /
C34: 30 | D34: =VLOOKUP(C34,'دور ثانى'!$A$11:$R$170,1,0) -> 30 | E34: =VLOOKUP(C34,'دور ثانى'!$A$11:$R$170,2,0) -> راشد خالد على محمد النديله | F34: =VLOOKUP(C34,'دور ثانى'!$A$11:$R$170,3,0) -> 10 - 3 | G34: =VLOOKUP(C34,'دور ثانى'!$A$11:$R$170,18,0) -> الدراسات الاجتماعية /
C35: 31 | D35: =VLOOKUP(C35,'دور ثانى'!$A$11:$R$170,1,0) -> 31 | E35: =VLOOKUP(C35,'دور ثانى'!$A$11:$R$170,2,0) -> سالم سعد سالم النابت المرى | F35: =VLOOKUP(C35,'دور ثانى'!$A$11:$R$170,3,0) -> 10 - 3 | G35: =VLOOKUP(C35,'دور ثانى'!$A$11:$R$170,18,0) -> الرياضيات / الكيمياء / الأحياء / التربية الإسلامية / اللغة العربية / اللغة الإنجليزية /
C36: 32 | D36: =VLOOKUP(C36,'دور ثانى'!$A$11:$R$170,1,0) -> 32 | E36: =VLOOKUP(C36,'دور ثانى'!$A$11:$R$170,2,0) -> سالم على محمد سالم خوار | F36: =VLOOKUP(C36,'دور ثانى'!$A$11:$R$170,3,0) -> 10 - 3 | G36: =VLOOKUP(C36,'دور ثانى'!$A$11:$R$170,18,0) -> الرياضيات / الكيمياء / الأحياء / التربية الإسلامية / اللغة العربية / اللغة الإنجليزية /
C37: 33 | D37: =VLOOKUP(C37,'دور ثانى'!$A$11:$R$170,1,0) -> 33 | E37: =VLOOKUP(C37,'دور ثانى'!$A$11:$R$170,2,0) -> سعيد حسين ناصر ال شافعه المرى | F37: =VLOOKUP(C37,'دور ثانى'!$A$11:$R$170,3,0) -> 10 - 3 | G37: =VLOOKUP(C37,'دور ثانى'!$A$11:$R$170,18,0) -> الدراسات الاجتماعية / الكيمياء / الأحياء /
C38: 34 | D38: =VLOOKUP(C38,'دور ثانى'!$A$11:$R$170,1,0) -> 34 | E38: =VLOOKUP(C38,'دور ثانى'!$A$11:$R$170,2,0) -> شاهين علي | F38: =VLOOKUP(C38,'دور ثانى'!$A$11:$R$170,3,0) -> 10 - 3 | G38: =VLOOKUP(C38,'دور ثانى'!$A$11:$R$170,18,0) -> الدراسات الاجتماعية / الكيمياء / الفيزياء / الأحياء / التربية الإسلامية / اللغة العربية /
C39: 35 | D39: =VLOOKUP(C39,'دور ثانى'!$A$11:$R$170,1,0) -> 35 | E39: =VLOOKUP(C39,'دور ثانى'!$A$11:$R$170,2,0) -> عبدالرحمن فرج محمد المشعلى القحطانى | F39: =VLOOKUP(C39,'دور ثانى'!$A$11:$R$170,3,0) -> 10 - 3 | G39: =VLOOKUP(C39,'دور ثانى'!$A$11:$R$170,18,0) -> الدراسات الاجتماعية / الكيمياء / الأحياء /
C40: 36 | D40: =VLOOKUP(C40,'دور ثانى'!$A$11:$R$170,1,0) -> 36 | E40: =VLOOKUP(C40,'دور ثانى'!$A$11:$R$170,2,0) -> عبدالرشيد حسين عبدي | F40: =VLOOKUP(C40,'دور ثانى'!$A$11:$R$170,3,0) -> 10 - 3 | G40: =VLOOKUP(C40,'دور ثانى'!$A$11:$R$170,18,0) -> الرياضيات / الكيمياء / الأحياء / التربية الإسلامية / اللغة الإنجليزية /
C41: 37 | D41: =VLOOKUP(C41,'دور ثانى'!$A$11:$R$170,1,0) -> 37 | E41: =VLOOKUP(C41,'دور ثانى'!$A$11:$R$170,2,0) -> عبدالله سعيد بخيت سعيد خوار | F41: =VLOOKUP(C41,'دور ثانى'!$A$11:$R$170,3,0) -> 10 - 3 | G41: =VLOOKUP(C41,'دور ثانى'!$A$11:$R$170,18,0) -> الدراسات الاجتماعية / الحوسبة وتكنولوجيا المعلومات / الكيمياء / الأحياء /
C42: 38 | D42: =VLOOKUP(C42,'دور ثانى'!$A$11:$R$170,1,0) -> 38 | E42: =VLOOKUP(C42,'دور ثانى'!$A$11:$R$170,2,0) -> عبدالله سعيد عبدالله آل نابت المرى | F42: =VLOOKUP(C42,'دور ثانى'!$A$11:$R$170,3,0) -> 10 - 3 | G42: =VLOOKUP(C42,'دور ثانى'!$A$11:$R$170,18,0) -> الأحياء / التربية الإسلامية / اللغة العربية /
C43: 39 | D43: =VLOOKUP(C43,'دور ثانى'!$A$11:$R$170,1,0) -> 39 | E43: =VLOOKUP(C43,'دور ثانى'!$A$11:$R$170,2,0) -> عبدالله عادل خصيف | F43: =VLOOKUP(C43,'دور ثانى'!$A$11:$R$170,3,0) -> 10 - 3 | G43: =VLOOKUP(C43,'دور ثانى'!$A$11:$R$170,18,0) -> الرياضيات / الدراسات الاجتماعية / الحوسبة وتكنولوجيا المعلومات / الكيمياء / الفيزياء / الأحياء / التربية الإسلامية / اللغة العربية / اللغة الإنجليزية /
C44: 40 | D44: =VLOOKUP(C44,'دور ثانى'!$A$11:$R$170,1,0) -> 40 | E44: =VLOOKUP(C44,'دور ثانى'!$A$11:$R$170,2,0) -> عبدالله مبارك سالم بطى الكعبى | F44: =VLOOKUP(C44,'دور ثانى'!$A$11:$R$170,3,0) -> 10 - 3 | G44: =VLOOKUP(C44,'دور ثانى'!$A$11:$R$170,18,0) -> الأحياء /
C45: 41 | D45: =VLOOKUP(C45,'دور ثانى'!$A$11:$R$170,1,0) -> 41 | E45: =VLOOKUP(C45,'دور ثانى'!$A$11:$R$170,2,0) -> على عجيم على عجيم الحبابى | F45: =VLOOKUP(C45,'دور ثانى'!$A$11:$R$170,3,0) -> 10 - 3 | G45: =VLOOKUP(C45,'دور ثانى'!$A$11:$R$170,18,0) -> الأحياء / التربية الإسلامية /
C46: 42 | D46: =VLOOKUP(C46,'دور ثانى'!$A$11:$R$170,1,0) -> 42 | E46: =VLOOKUP(C46,'دور ثانى'!$A$11:$R$170,2,0) -> على فهد على احمد محمد | F46: =VLOOKUP(C46,'دور ثانى'!$A$11:$R$170,3,0) -> 10 - 3 | G46: =VLOOKUP(C46,'دور ثانى'!$A$11:$R$170,18,0) -> الدراسات الاجتماعية / الكيمياء / الأحياء /
C47: 43 | D47: =VLOOKUP(C47,'دور ثانى'!$A$11:$R$170,1,0) -> 43 | E47: =VLOOKUP(C47,'دور ثانى'!$A$11:$R$170,2,0) -> عمر عبيدالله روح الامين مريضا | F47: =VLOOKUP(C47,'دور ثانى'!$A$11:$R$170,3,0) -> 10 - 3 | G47: =VLOOKUP(C47,'دور ثانى'!$A$11:$R$170,18,0) -> الرياضيات / الدراسات الاجتماعية / الكيمياء / الفيزياء / الأحياء / اللغة العربية /
C48: 44 | D48: =VLOOKUP(C48,'دور ثانى'!$A$11:$R$170,1,0) -> 44 | E48: =VLOOKUP(C48,'دور ثانى'!$A$11:$R$170,2,0) -> ماجد صلاح خميس يوسف ابراهيم | F48: =VLOOKUP(C48,'دور ثانى'!$A$11:$R$170,3,0) -> 10 - 3 | G48: =VLOOKUP(C48,'دور ثانى'!$A$11:$R$170,18,0) -> الرياضيات / الدراسات الاجتماعية / الحوسبة وتكنولوجيا المعلومات / الكيمياء / الفيزياء / الأحياء / التربية الإسلامية / اللغة العربية / اللغة الإنجليزية /
C49: 45 | D49: =VLOOKUP(C49,'دور ثانى'!$A$11:$R$170,1,0) -> 45 | E49: =VLOOKUP(C49,'دور ثانى'!$A$11:$R$170,2,0) -> محمد عبدالله عبدالله ابراهيم الخليفى | F49: =VLOOKUP(C49,'دور ثانى'!$A$11:$R$170,3,0) -> 10 - 3 | G49: =VLOOKUP(C49,'دور ثانى'!$A$11:$R$170,18,0) -> الدراسات الاجتماعية / الفيزياء / الأحياء / التربية الإسلامية / اللغة العربية /
C50: 46 | D50: =VLOOKUP(C50,'دور ثانى'!$A$11:$R$170,1,0) -> 46 | E50: =VLOOKUP(C50,'دور ثانى'!$A$11:$R$170,2,0) -> محمد عبدالله محمد جاسم السويدى | F50: =VLOOKUP(C50,'دور ثانى'!$A$11:$R$170,3,0) -> 10 - 3 | G50: =VLOOKUP(C50,'دور ثانى'!$A$11:$R$170,18,0) -> الدراسات الاجتماعية / الفيزياء / الأحياء / التربية الإسلامية /
C51: 47 | D51: =VLOOKUP(C51,'دور ثانى'!$A$11:$R$170,1,0) -> 47 | E51: =VLOOKUP(C51,'دور ثانى'!$A$11:$R$170,2,0) -> محمدزين عبدالحميد المبارك على | F51: =VLOOKUP(C51,'دور ثانى'!$A$11:$R$170,3,0) -> 10 - 3 | G51: =VLOOKUP(C51,'دور ثانى'!$A$11:$R$170,18,0) -> الرياضيات / الدراسات الاجتماعية / الحوسبة وتكنولوجيا المعلومات / الأحياء / التربية الإسلامية / اللغة الإنجليزية /
C52: 48 | D52: =VLOOKUP(C52,'دور ثانى'!$A$11:$R$170,1,0) -> 48 | E52: =VLOOKUP(C52,'دور ثانى'!$A$11:$R$170,2,0) -> محمود اسعد الحاج الخلف | F52: =VLOOKUP(C52,'دور ثانى'!$A$11:$R$170,3,0) -> 10 - 3 | G52: =VLOOKUP(C52,'دور ثانى'!$A$11:$R$170,18,0) -> الرياضيات / الكيمياء / الأحياء /
C53: 49 | D53: =VLOOKUP(C53,'دور ثانى'!$A$11:$R$170,1,0) -> 49 | E53: =VLOOKUP(C53,'دور ثانى'!$A$11:$R$170,2,0) -> مسفر سعد محمد ذفال الحبابى | F53: =VLOOKUP(C53,'دور ثانى'!$A$11:$R$170,3,0) -> 10 - 3 | G53: =VLOOKUP(C53,'دور ثانى'!$A$11:$R$170,18,0) -> الرياضيات / الدراسات الاجتماعية / الحوسبة وتكنولوجيا المعلومات / الكيمياء / الفيزياء / الأحياء / التربية الإسلامية / اللغة العربية / اللغة الإنجليزية /
C54: 50 | D54: =VLOOKUP(C54,'دور ثانى'!$A$11:$R$170,1,0) -> 50 | E54: =VLOOKUP(C54,'دور ثانى'!$A$11:$R$170,2,0) -> ناصر جهان بخش مرادك درزاده | F54: =VLOOKUP(C54,'دور ثانى'!$A$11:$R$170,3,0) -> 10 - 3 | G54: =VLOOKUP(C54,'دور ثانى'!$A$11:$R$170,18,0) -> الرياضيات / الدراسات الاجتماعية / الفيزياء / الأحياء / اللغة الإنجليزية /
C55: 51 | D55: =VLOOKUP(C55,'دور ثانى'!$A$11:$R$170,1,0) -> 51 | E55: =VLOOKUP(C55,'دور ثانى'!$A$11:$R$170,2,0) -> ناصر محمد خالد احمد الغانم | F55: =VLOOKUP(C55,'دور ثانى'!$A$11:$R$170,3,0) -> 10 - 3 | G55: =VLOOKUP(C55,'دور ثانى'!$A$11:$R$170,18,0) -> الرياضيات / الدراسات الاجتماعية / الكيمياء / الأحياء / اللغة العربية / اللغة الإنجليزية /
C56: 52 | D56: =VLOOKUP(C56,'دور ثانى'!$A$11:$R$170,1,0) -> 52 | E56: =VLOOKUP(C56,'دور ثانى'!$A$11:$R$170,2,0) -> يوسف صالح على عبدالعزيز على | F56: =VLOOKUP(C56,'دور ثانى'!$A$11:$R$170,3,0) -> 10 - 3 | G56: =VLOOKUP(C56,'دور ثانى'!$A$11:$R$170,18,0) -> الدراسات الاجتماعية / التربية الإسلامية /
C57: 53 | D57: =VLOOKUP(C57,'دور ثانى'!$A$11:$R$170,1,0) -> 53 | E57: =VLOOKUP(C57,'دور ثانى'!$A$11:$R$170,2,0) -> احمد رائد سليمان المومني | F57: =VLOOKUP(C57,'دور ثانى'!$A$11:$R$170,3,0) -> 10 - 4 | G57: =VLOOKUP(C57,'دور ثانى'!$A$11:$R$170,18,0) -> الرياضيات / الكيمياء / الأحياء /
C58: 54 | D58: =VLOOKUP(C58,'دور ثانى'!$A$11:$R$170,1,0) -> 54 | E58: =VLOOKUP(C58,'دور ثانى'!$A$11:$R$170,2,0) -> أحمد نافذ حماده حموده | F58: =VLOOKUP(C58,'دور ثانى'!$A$11:$R$170,3,0) -> 10 - 4 | G58: =VLOOKUP(C58,'دور ثانى'!$A$11:$R$170,18,0) -> الرياضيات / الأحياء /
C59: 55 | D59: =VLOOKUP(C59,'دور ثانى'!$A$11:$R$170,1,0) -> 55 | E59: =VLOOKUP(C59,'دور ثانى'!$A$11:$R$170,2,0) -> تميم سالم راشد الصعاق المرى | F59: =VLOOKUP(C59,'دور ثانى'!$A$11:$R$170,3,0) -> 10 - 4 | G59: =VLOOKUP(C59,'دور ثانى'!$A$11:$R$170,18,0) -> الرياضيات / الدراسات الاجتماعية / الكيمياء / الأحياء / اللغة العربية / اللغة الإنجليزية /
C60: 56 | D60: =VLOOKUP(C60,'دور ثانى'!$A$11:$R$170,1,0) -> 56 | E60: =VLOOKUP(C60,'دور ثانى'!$A$11:$R$170,2,0) -> جابر سعيد جابر سالم اليربوعى | F60: =VLOOKUP(C60,'دور ثانى'!$A$11:$R$170,3,0) -> 10 - 4 | G60: =VLOOKUP(C60,'دور ثانى'!$A$11:$R$170,18,0) -> الرياضيات / الدراسات الاجتماعية / الفيزياء / الأحياء / اللغة الإنجليزية /
C61: 57 | D61: =VLOOKUP(C61,'دور ثانى'!$A$11:$R$170,1,0) -> 57 | E61: =VLOOKUP(C61,'دور ثانى'!$A$11:$R$170,2,0) -> جاسم محمود محمد عبداللهي | F61: =VLOOKUP(C61,'دور ثانى'!$A$11:$R$170,3,0) -> 10 - 4 | G61: =VLOOKUP(C61,'دور ثانى'!$A$11:$R$170,18,0) -> الأحياء /
C62: 58 | D62: =VLOOKUP(C62,'دور ثانى'!$A$11:$R$170,1,0) -> 58 | E62: =VLOOKUP(C62,'دور ثانى'!$A$11:$R$170,2,0) -> حمد محمد بخيت تويم المرى | F62: =VLOOKUP(C62,'دور ثانى'!$A$11:$R$170,3,0) -> 10 - 4 | G62: =VLOOKUP(C62,'دور ثانى'!$A$11:$R$170,18,0) -> الحوسبة وتكنولوجيا المعلومات / الكيمياء / الأحياء /
C63: 59 | D63: =VLOOKUP(C63,'دور ثانى'!$A$11:$R$170,1,0) -> 59 | E63: =VLOOKUP(C63,'دور ثانى'!$A$11:$R$170,2,0) -> خالد سعيد محمد البريكان المرى | F63: =VLOOKUP(C63,'دور ثانى'!$A$11:$R$170,3,0) -> 10 - 4 | G63: =VLOOKUP(C63,'دور ثانى'!$A$11:$R$170,18,0) -> الرياضيات /
C64: 60 | D64: =VLOOKUP(C64,'دور ثانى'!$A$11:$R$170,1,0) -> 60 | E64: =VLOOKUP(C64,'دور ثانى'!$A$11:$R$170,2,0) -> خميس محمد سيف خميس الريامي | F64: =VLOOKUP(C64,'دور ثانى'!$A$11:$R$170,3,0) -> 10 - 4 | G64: =VLOOKUP(C64,'دور ثانى'!$A$11:$R$170,18,0) -> الأحياء / اللغة الإنجليزية /
C65: 61 | D65: =VLOOKUP(C65,'دور ثانى'!$A$11:$R$170,1,0) -> 61 | E65: =VLOOKUP(C65,'دور ثانى'!$A$11:$R$170,2,0) -> راشد حمد راشد سالم خادم | F65: =VLOOKUP(C65,'دور ثانى'!$A$11:$R$170,3,0) -> 10 - 4 | G65: =VLOOKUP(C65,'دور ثانى'!$A$11:$R$170,18,0) -> الرياضيات / الدراسات الاجتماعية / الكيمياء / الفيزياء / الأحياء / التربية الإسلامية / اللغة العربية / اللغة الإنجليزية /
C66: 62 | D66: =VLOOKUP(C66,'دور ثانى'!$A$11:$R$170,1,0) -> 62 | E66: =VLOOKUP(C66,'دور ثانى'!$A$11:$R$170,2,0) -> سالم حمد سالم اليربوعى المرى | F66: =VLOOKUP(C66,'دور ثانى'!$A$11:$R$170,3,0) -> 10 - 4 | G66: =VLOOKUP(C66,'دور ثانى'!$A$11:$R$170,18,0) -> الرياضيات / الدراسات الاجتماعية / الحوسبة وتكنولوجيا المعلومات / الكيمياء / الفيزياء / الأحياء / التربية الإسلامية / اللغة العربية / اللغة الإنجليزية /
C67: 63 | D67: =VLOOKUP(C67,'دور ثانى'!$A$11:$R$170,1,0) -> 63 | E67: =VLOOKUP(C67,'دور ثانى'!$A$11:$R$170,2,0) -> سليمان حسن علي سليمان موسى | F67: =VLOOKUP(C67,'دور ثانى'!$A$11:$R$170,3,0) -> 10 - 4 | G67: =VLOOKUP(C67,'دور ثانى'!$A$11:$R$170,18,0) -> الأحياء /
C68: 64 | D68: =VLOOKUP(C68,'دور ثانى'!$A$11:$R$170,1,0) -> 64 | E68: =VLOOKUP(C68,'دور ثانى'!$A$11:$R$170,2,0) -> شعيب عبدي قرني قلديد | F68: =VLOOKUP(C68,'دور ثانى'!$A$11:$R$170,3,0) -> 10 - 4 | G68: =VLOOKUP(C68,'دور ثانى'!$A$11:$R$170,18,0) -> الرياضيات / الدراسات الاجتماعية / الكيمياء / الأحياء / اللغة الإنجليزية /
C69: 65 | D69: =VLOOKUP(C69,'دور ثانى'!$A$11:$R$170,1,0) -> 65 | E69: =VLOOKUP(C69,'دور ثانى'!$A$11:$R$170,2,0) -> عابدين حافظ عابدين موسى | F69: =VLOOKUP(C69,'دور ثانى'!$A$11:$R$170,3,0) -> 10 - 4 | G69: =VLOOKUP(C69,'دور ثانى'!$A$11:$R$170,18,0) -> الرياضيات / الأحياء /
C70: =ROW()-4 -> 66 | D70: =VLOOKUP(C70,'دور ثانى'!$A$11:$R$170,1,0) -> 66 | E70: =VLOOKUP(C70,'دور ثانى'!$A$11:$R$170,2,0) -> عبدالرحمن صبرى عثمان محسن اليهرى | F70: =VLOOKUP(C70,'دور ثانى'!$A$11:$R$170,3,0) -> 10 - 4 | G70: =VLOOKUP(C70,'دور ثانى'!$A$11:$R$170,18,0) -> الأحياء / اللغة الإنجليزية /
C71: 67 | D71: =VLOOKUP(C71,'دور ثانى'!$A$11:$R$170,1,0) -> 67 | E71: =VLOOKUP(C71,'دور ثانى'!$A$11:$R$170,2,0) -> عبدالله سالم محمد سالم خوار | F71: =VLOOKUP(C71,'دور ثانى'!$A$11:$R$170,3,0) -> 10 - 4 | G71: =VLOOKUP(C71,'دور ثانى'!$A$11:$R$170,18,0) -> الرياضيات / الفيزياء / الأحياء / التربية الإسلامية / اللغة العربية / اللغة الإنجليزية /
C72: 68 | D72: =VLOOKUP(C72,'دور ثانى'!$A$11:$R$170,1,0) -> 68 | E72: =VLOOKUP(C72,'دور ثانى'!$A$11:$R$170,2,0) -> على محمد عويض الصقور المرى | F72: =VLOOKUP(C72,'دور ثانى'!$A$11:$R$170,3,0) -> 10 - 4 | G72: =VLOOKUP(C72,'دور ثانى'!$A$11:$R$170,18,0) -> الرياضيات / الدراسات الاجتماعية / الفيزياء / الأحياء /
C73: 69 | D73: =VLOOKUP(C73,'دور ثانى'!$A$11:$R$170,1,0) -> 69 | E73: =VLOOKUP(C73,'دور ثانى'!$A$11:$R$170,2,0) -> علي عاطف سالم ابراهيم سالم | F73: =VLOOKUP(C73,'دور ثانى'!$A$11:$R$170,3,0) -> 10 - 4 | G73: =VLOOKUP(C73,'دور ثانى'!$A$11:$R$170,18,0) -> الرياضيات / الفيزياء / الأحياء /
C74: 70 | D74: =VLOOKUP(C74,'دور ثانى'!$A$11:$R$170,1,0) -> 70 | E74: =VLOOKUP(C74,'دور ثانى'!$A$11:$R$170,2,0) -> علي محمد عبدالله احمد شمس | F74: =VLOOKUP(C74,'دور ثانى'!$A$11:$R$170,3,0) -> 10 - 4 | G74: =VLOOKUP(C74,'دور ثانى'!$A$11:$R$170,18,0) -> الدراسات الاجتماعية /
C75: 71 | D75: =VLOOKUP(C75,'دور ثانى'!$A$11:$R$170,1,0) -> 71 | E75: =VLOOKUP(C75,'دور ثانى'!$A$11:$R$170,2,0) -> فهد سويد سلطان محمد الخوار | F75: =VLOOKUP(C75,'دور ثانى'!$A$11:$R$170,3,0) -> 10 - 4 | G75: =VLOOKUP(C75,'دور ثانى'!$A$11:$R$170,18,0) -> الرياضيات / الكيمياء / الفيزياء / الأحياء /
C76: 72 | D76: =VLOOKUP(C76,'دور ثانى'!$A$11:$R$170,1,0) -> 72 | E76: =VLOOKUP(C76,'دور ثانى'!$A$11:$R$170,2,0) -> محمد حافظ محمد ابوالكلام كبيرالدين | F76: =VLOOKUP(C76,'دور ثانى'!$A$11:$R$170,3,0) -> 10 - 4 | G76: =VLOOKUP(C76,'دور ثانى'!$A$11:$R$170,18,0) -> الرياضيات / الكيمياء /
C77: 73 | D77: =VLOOKUP(C77,'دور ثانى'!$A$11:$R$170,1,0) -> 73 | E77: =VLOOKUP(C77,'دور ثانى'!$A$11:$R$170,2,0) -> محمد حسن حسن ناجى الجدره | F77: =VLOOKUP(C77,'دور ثانى'!$A$11:$R$170,3,0) -> 10 - 4 | G77: =VLOOKUP(C77,'دور ثانى'!$A$11:$R$170,18,0) -> الكيمياء / الفيزياء / الأحياء /
C78: 74 | D78: =VLOOKUP(C78,'دور ثانى'!$A$11:$R$170,1,0) -> 74 | E78: =VLOOKUP(C78,'دور ثانى'!$A$11:$R$170,2,0) -> محمد حمد محمد صالح الصرامى | F78: =VLOOKUP(C78,'دور ثانى'!$A$11:$R$170,3,0) -> 10 - 4 | G78: =VLOOKUP(C78,'دور ثانى'!$A$11:$R$170,18,0) -> الرياضيات / الدراسات الاجتماعية / الكيمياء / الأحياء /
C79: 75 | D79: =VLOOKUP(C79,'دور ثانى'!$A$11:$R$170,1,0) -> 75 | E79: =VLOOKUP(C79,'دور ثانى'!$A$11:$R$170,2,0) -> محمد يوسف محمد ابراهيم محمد | F79: =VLOOKUP(C79,'دور ثانى'!$A$11:$R$170,3,0) -> 10 - 4 | G79: =VLOOKUP(C79,'دور ثانى'!$A$11:$R$170,18,0) -> الرياضيات / الكيمياء / الفيزياء / الأحياء / اللغة الإنجليزية /
C80: 76 | D80: =VLOOKUP(C80,'دور ثانى'!$A$11:$R$170,1,0) -> 76 | E80: =VLOOKUP(C80,'دور ثانى'!$A$11:$R$170,2,0) -> محمد يونس محمد زحمت كش | F80: =VLOOKUP(C80,'دور ثانى'!$A$11:$R$170,3,0) -> 10 - 4 | G80: =VLOOKUP(C80,'دور ثانى'!$A$11:$R$170,18,0) -> الرياضيات / الأحياء / اللغة الإنجليزية /
C81: 77 | D81: =VLOOKUP(C81,'دور ثانى'!$A$11:$R$170,1,0) -> 77 | E81: =VLOOKUP(C81,'دور ثانى'!$A$11:$R$170,2,0) -> بدر ناصر جابر سهل المرى | F81: =VLOOKUP(C81,'دور ثانى'!$A$11:$R$170,3,0) -> 10 - 5 | G81: =VLOOKUP(C81,'دور ثانى'!$A$11:$R$170,18,0) -> الدراسات الاجتماعية / الكيمياء / التربية الإسلامية /
C82: 78 | D82: =VLOOKUP(C82,'دور ثانى'!$A$11:$R$170,1,0) -> 78 | E82: =VLOOKUP(C82,'دور ثانى'!$A$11:$R$170,2,0) -> حزام زيد راشد المري | F82: =VLOOKUP(C82,'دور ثانى'!$A$11:$R$170,3,0) -> 10 - 5 | G82: =VLOOKUP(C82,'دور ثانى'!$A$11:$R$170,18,0) -> الرياضيات / الحوسبة وتكنولوجيا المعلومات / التربية الإسلامية / اللغة العربية /
C83: 79 | D83: =VLOOKUP(C83,'دور ثانى'!$A$11:$R$170,1,0) -> 79 | E83: =VLOOKUP(C83,'دور ثانى'!$A$11:$R$170,2,0) -> حمد سعيد سويلم سعد الخوار | F83: =VLOOKUP(C83,'دور ثانى'!$A$11:$R$170,3,0) -> 10 - 5 | G83: =VLOOKUP(C83,'دور ثانى'!$A$11:$R$170,18,0) -> الدراسات الاجتماعية / الحوسبة وتكنولوجيا المعلومات / الكيمياء / الأحياء / التربية الإسلامية / اللغة العربية /
C84: 80 | D84: =VLOOKUP(C84,'دور ثانى'!$A$11:$R$170,1,0) -> 80 | E84: =VLOOKUP(C84,'دور ثانى'!$A$11:$R$170,2,0) -> حمد مبارك مفتاح فرج العبدالله | F84: =VLOOKUP(C84,'دور ثانى'!$A$11:$R$170,3,0) -> 10 - 5 | G84: =VLOOKUP(C84,'دور ثانى'!$A$11:$R$170,18,0) -> الرياضيات / الدراسات الاجتماعية / الحوسبة وتكنولوجيا المعلومات / الكيمياء / الفيزياء / الأحياء / اللغة العربية / اللغة الإنجليزية /
C85: 81 | D85: =VLOOKUP(C85,'دور ثانى'!$A$11:$R$170,1,0) -> 81 | E85: =VLOOKUP(C85,'دور ثانى'!$A$11:$R$170,2,0) -> خالد عزيز حسن عبدربه حسن | F85: =VLOOKUP(C85,'دور ثانى'!$A$11:$R$170,3,0) -> 10 - 5 | G85: =VLOOKUP(C85,'دور ثانى'!$A$11:$R$170,18,0) -> الكيمياء /
C86: 82 | D86: =VLOOKUP(C86,'دور ثانى'!$A$11:$R$170,1,0) -> 82 | E86: =VLOOKUP(C86,'دور ثانى'!$A$11:$R$170,2,0) -> دغش بريك دغش الجربوعى المرى | F86: =VLOOKUP(C86,'دور ثانى'!$A$11:$R$170,3,0) -> 10 - 5 | G86: =VLOOKUP(C86,'دور ثانى'!$A$11:$R$170,18,0) -> الرياضيات /
C87: 83 | D87: =VLOOKUP(C87,'دور ثانى'!$A$11:$R$170,1,0) -> 83 | E87: =VLOOKUP(C87,'دور ثانى'!$A$11:$R$170,2,0) -> راشد حمد ناصر المري | F87: =VLOOKUP(C87,'دور ثانى'!$A$11:$R$170,3,0) -> 10 - 5 | G87: =VLOOKUP(C87,'دور ثانى'!$A$11:$R$170,18,0) -> الرياضيات / الأحياء /
C88: 84 | D88: =VLOOKUP(C88,'دور ثانى'!$A$11:$R$170,1,0) -> 84 | E88: =VLOOKUP(C88,'دور ثانى'!$A$11:$R$170,2,0) -> راشد شريف خان عيسى خان | F88: =VLOOKUP(C88,'دور ثانى'!$A$11:$R$170,3,0) -> 10 - 5 | G88: =VLOOKUP(C88,'دور ثانى'!$A$11:$R$170,18,0) -> الحوسبة وتكنولوجيا المعلومات /
C89: 85 | D89: =VLOOKUP(C89,'دور ثانى'!$A$11:$R$170,1,0) -> 85 | E89: =VLOOKUP(C89,'دور ثانى'!$A$11:$R$170,2,0) -> سالم محمد راشد طفله الفهيده | F89: =VLOOKUP(C89,'دور ثانى'!$A$11:$R$170,3,0) -> 10 - 5 | G89: =VLOOKUP(C89,'دور ثانى'!$A$11:$R$170,18,0) -> الرياضيات / الدراسات الاجتماعية / الكيمياء / الفيزياء / الأحياء / اللغة العربية / اللغة الإنجليزية /
C90: 86 | D90: =VLOOKUP(C90,'دور ثانى'!$A$11:$R$170,1,0) -> 86 | E90: =VLOOKUP(C90,'دور ثانى'!$A$11:$R$170,2,0) -> سعد حمد سعد البويصم المرى | F90: =VLOOKUP(C90,'دور ثانى'!$A$11:$R$170,3,0) -> 10 - 5 | G90: =VLOOKUP(C90,'دور ثانى'!$A$11:$R$170,18,0) -> الحوسبة وتكنولوجيا المعلومات / الأحياء /
C91: 87 | D91: =VLOOKUP(C91,'دور ثانى'!$A$11:$R$170,1,0) -> 87 | E91: =VLOOKUP(C91,'دور ثانى'!$A$11:$R$170,2,0) -> صلاح عارف احمد عبده جمن | F91: =VLOOKUP(C91,'دور ثانى'!$A$11:$R$170,3,0) -> 10 - 5 | G91: =VLOOKUP(C91,'دور ثانى'!$A$11:$R$170,18,0) -> الكيمياء /
C92: 88 | D92: =VLOOKUP(C92,'دور ثانى'!$A$11:$R$170,1,0) -> 88 | E92: =VLOOKUP(C92,'دور ثانى'!$A$11:$R$170,2,0) -> عبدالعزيز نايف عبدالله نايف | F92: =VLOOKUP(C92,'دور ثانى'!$A$11:$R$170,3,0) -> 10 - 5 | G92: =VLOOKUP(C92,'دور ثانى'!$A$11:$R$170,18,0) -> اللغة الإنجليزية /
C93: 89 | D93: =VLOOKUP(C93,'دور ثانى'!$A$11:$R$170,1,0) -> 89 | E93: =VLOOKUP(C93,'دور ثانى'!$A$11:$R$170,2,0) -> عبدالله عبدالرحمن | F93: =VLOOKUP(C93,'دور ثانى'!$A$11:$R$170,3,0) -> 10 - 5 | G93: =VLOOKUP(C93,'دور ثانى'!$A$11:$R$170,18,0) -> الحوسبة وتكنولوجيا المعلومات / الأحياء /
C94: 90 | D94: =VLOOKUP(C94,'دور ثانى'!$A$11:$R$170,1,0) -> 90 | E94: =VLOOKUP(C94,'دور ثانى'!$A$11:$R$170,2,0) -> عبدالمحسن عادل عبدالمحسن محمد الدهنيم | F94: =VLOOKUP(C94,'دور ثانى'!$A$11:$R$170,3,0) -> 10 - 5 | G94: =VLOOKUP(C94,'دور ثانى'!$A$11:$R$170,18,0) -> الرياضيات / الحوسبة وتكنولوجيا المعلومات /
C95: 91 | D95: =VLOOKUP(C95,'دور ثانى'!$A$11:$R$170,1,0) -> 91 | E95: =VLOOKUP(C95,'دور ثانى'!$A$11:$R$170,2,0) -> على حسن مبخوت سعيد الراشدى | F95: =VLOOKUP(C95,'دور ثانى'!$A$11:$R$170,3,0) -> 10 - 5 | G95: =VLOOKUP(C95,'دور ثانى'!$A$11:$R$170,18,0) -> الدراسات الاجتماعية / الحوسبة وتكنولوجيا المعلومات / الكيمياء / الأحياء / التربية الإسلامية / اللغة الإنجليزية /
C96: 92 | D96: =VLOOKUP(C96,'دور ثانى'!$A$11:$R$170,1,0) -> 92 | E96: =VLOOKUP(C96,'دور ثانى'!$A$11:$R$170,2,0) -> على سالم ظافر ال حثيث الاحبابى | F96: =VLOOKUP(C96,'دور ثانى'!$A$11:$R$170,3,0) -> 10 - 5 | G96: =VLOOKUP(C96,'دور ثانى'!$A$11:$R$170,18,0) -> الأحياء /
C97: 93 | D97: =VLOOKUP(C97,'دور ثانى'!$A$11:$R$170,1,0) -> 93 | E97: =VLOOKUP(C97,'دور ثانى'!$A$11:$R$170,2,0) -> عمر شادي نعيم زهران | F97: =VLOOKUP(C97,'دور ثانى'!$A$11:$R$170,3,0) -> 10 - 5 | G97: =VLOOKUP(C97,'دور ثانى'!$A$11:$R$170,18,0) -> الرياضيات / الدراسات الاجتماعية / الحوسبة وتكنولوجيا المعلومات / الكيمياء / الفيزياء / الأحياء / التربية الإسلامية / اللغة العربية / اللغة الإنجليزية /
C98: 94 | D98: =VLOOKUP(C98,'دور ثانى'!$A$11:$R$170,1,0) -> 94 | E98: =VLOOKUP(C98,'دور ثانى'!$A$11:$R$170,2,0) -> غانم حمد صالح سعيد القريصى | F98: =VLOOKUP(C98,'دور ثانى'!$A$11:$R$170,3,0) -> 10 - 5 | G98: =VLOOKUP(C98,'دور ثانى'!$A$11:$R$170,18,0) -> الرياضيات / الدراسات الاجتماعية / الحوسبة وتكنولوجيا المعلومات / الكيمياء / الفيزياء / الأحياء / التربية الإسلامية / اللغة العربية / اللغة الإنجليزية /
C99: 95 | D99: =VLOOKUP(C99,'دور ثانى'!$A$11:$R$170,1,0) -> 95 | E99: =VLOOKUP(C99,'دور ثانى'!$A$11:$R$170,2,0) -> فهد سعد سعيد بخيت الخوار | F99: =VLOOKUP(C99,'دور ثانى'!$A$11:$R$170,3,0) -> 10 - 5 | G99: =VLOOKUP(C99,'دور ثانى'!$A$11:$R$170,18,0) -> الرياضيات / الدراسات الاجتماعية / الكيمياء / الأحياء / التربية الإسلامية / اللغة العربية / اللغة الإنجليزية /
C100: 96 | D100: =VLOOKUP(C100,'دور ثانى'!$A$11:$R$170,1,0) -> 96 | E100: =VLOOKUP(C100,'دور ثانى'!$A$11:$R$170,2,0) -> قصي محمد داود ابراهيم ابوديه | F100: =VLOOKUP(C100,'دور ثانى'!$A$11:$R$170,3,0) -> 10 - 5 | G100: =VLOOKUP(C100,'دور ثانى'!$A$11:$R$170,18,0) -> الرياضيات / اللغة الإنجليزية /
C101: 97 | D101: =VLOOKUP(C101,'دور ثانى'!$A$11:$R$170,1,0) -> 97 | E101: =VLOOKUP(C101,'دور ثانى'!$A$11:$R$170,2,0) -> محمد امين بن عادل قنوني | F101: =VLOOKUP(C101,'دور ثانى'!$A$11:$R$170,3,0) -> 10 - 5 | G101: =VLOOKUP(C101,'دور ثانى'!$A$11:$R$170,18,0) -> الحوسبة وتكنولوجيا المعلومات / الكيمياء / الأحياء /
C102: 98 | D102: =VLOOKUP(C102,'دور ثانى'!$A$11:$R$170,1,0) -> 98 | E102: =VLOOKUP(C102,'دور ثانى'!$A$11:$R$170,2,0) -> محمد سعيد جابر سالم اليربوعى | F102: =VLOOKUP(C102,'دور ثانى'!$A$11:$R$170,3,0) -> 10 - 5 | G102: =VLOOKUP(C102,'دور ثانى'!$A$11:$R$170,18,0) -> الرياضيات / الدراسات الاجتماعية / الحوسبة وتكنولوجيا المعلومات / الكيمياء / الفيزياء / الأحياء / التربية الإسلامية / اللغة العربية / اللغة الإنجليزية /
C103: 99 | D103: =VLOOKUP(C103,'دور ثانى'!$A$11:$R$170,1,0) -> 99 | E103: =VLOOKUP(C103,'دور ثانى'!$A$11:$R$170,2,0) -> محمد طارق الحاج | F103: =VLOOKUP(C103,'دور ثانى'!$A$11:$R$170,3,0) -> 10 - 5 | G103: =VLOOKUP(C103,'دور ثانى'!$A$11:$R$170,18,0) -> اللغة العربية /
C104: 100 | D104: =VLOOKUP(C104,'دور ثانى'!$A$11:$R$170,1,0) -> 100 | E104: =VLOOKUP(C104,'دور ثانى'!$A$11:$R$170,2,0) -> محمد عبدالله شيخ محمد | F104: =VLOOKUP(C104,'دور ثانى'!$A$11:$R$170,3,0) -> 10 - 5 | G104: =VLOOKUP(C104,'دور ثانى'!$A$11:$R$170,18,0) -> الحوسبة وتكنولوجيا المعلومات /
C105: 101 | D105: =VLOOKUP(C105,'دور ثانى'!$A$11:$R$170,1,0) -> 101 | E105: =VLOOKUP(C105,'دور ثانى'!$A$11:$R$170,2,0) -> محمد محسن محمد دخيل اليربوعى | F105: =VLOOKUP(C105,'دور ثانى'!$A$11:$R$170,3,0) -> 10 - 5 | G105: =VLOOKUP(C105,'دور ثانى'!$A$11:$R$170,18,0) -> الرياضيات / الدراسات الاجتماعية / الحوسبة وتكنولوجيا المعلومات / الكيمياء / الفيزياء / الأحياء / التربية الإسلامية / اللغة العربية / اللغة الإنجليزية /
C106: 102 | D106: =VLOOKUP(C106,'دور ثانى'!$A$11:$R$170,1,0) -> 102 | E106: =VLOOKUP(C106,'دور ثانى'!$A$11:$R$170,2,0) -> نصر على نصر على النصر | F106: =VLOOKUP(C106,'دور ثانى'!$A$11:$R$170,3,0) -> 10 - 5 | G106: =VLOOKUP(C106,'دور ثانى'!$A$11:$R$170,18,0) -> الرياضيات / الكيمياء / الأحياء / التربية الإسلامية / اللغة العربية / اللغة الإنجليزية /
C107: 103 | D107: =VLOOKUP(C107,'دور ثانى'!$A$11:$R$170,1,0) -> 103 | E107: =VLOOKUP(C107,'دور ثانى'!$A$11:$R$170,2,0) -> حمد اصغر خان نواب خان | F107: =VLOOKUP(C107,'دور ثانى'!$A$11:$R$170,3,0) -> 10 - 6 | G107: =VLOOKUP(C107,'دور ثانى'!$A$11:$R$170,18,0) -> الرياضيات / الدراسات الاجتماعية / الحوسبة وتكنولوجيا المعلومات / الكيمياء / الفيزياء / الأحياء / التربية الإسلامية / اللغة العربية /
C108: 104 | D108: =VLOOKUP(C108,'دور ثانى'!$A$11:$R$170,1,0) -> 104 | E108: =VLOOKUP(C108,'دور ثانى'!$A$11:$R$170,2,0) -> خالد سلطان حسن عباس الجمالى | F108: =VLOOKUP(C108,'دور ثانى'!$A$11:$R$170,3,0) -> 10 - 6 | G108: =VLOOKUP(C108,'دور ثانى'!$A$11:$R$170,18,0) -> الكيمياء / الأحياء / اللغة العربية /
C109: 105 | D109: =VLOOKUP(C109,'دور ثانى'!$A$11:$R$170,1,0) -> 105 | E109: =VLOOKUP(C109,'دور ثانى'!$A$11:$R$170,2,0) -> عبدالرجمن يارمحمد معين خان | F109: =VLOOKUP(C109,'دور ثانى'!$A$11:$R$170,3,0) -> 10 - 6 | G109: =VLOOKUP(C109,'دور ثانى'!$A$11:$R$170,18,0) -> الدراسات الاجتماعية / الحوسبة وتكنولوجيا المعلومات / الأحياء / اللغة الإنجليزية /
C110: 106 | D110: =VLOOKUP(C110,'دور ثانى'!$A$11:$R$170,1,0) -> 106 | E110: =VLOOKUP(C110,'دور ثانى'!$A$11:$R$170,2,0) -> عبدالرحمن جاسم محمد قاسم العمادى | F110: =VLOOKUP(C110,'دور ثانى'!$A$11:$R$170,3,0) -> 10 - 6 | G110: =VLOOKUP(C110,'دور ثانى'!$A$11:$R$170,18,0) -> الحوسبة وتكنولوجيا المعلومات / الكيمياء / الأحياء / اللغة العربية /
C111: 107 | D111: =VLOOKUP(C111,'دور ثانى'!$A$11:$R$170,1,0) -> 107 | E111: =VLOOKUP(C111,'دور ثانى'!$A$11:$R$170,2,0) -> عبدالرحمن حسين عبدي | F111: =VLOOKUP(C111,'دور ثانى'!$A$11:$R$170,3,0) -> 10 - 6 | G111: =VLOOKUP(C111,'دور ثانى'!$A$11:$R$170,18,0) -> الدراسات الاجتماعية / الحوسبة وتكنولوجيا المعلومات / الكيمياء / الأحياء / اللغة العربية /
C112: 108 | D112: =VLOOKUP(C112,'دور ثانى'!$A$11:$R$170,1,0) -> 108 | E112: =VLOOKUP(C112,'دور ثانى'!$A$11:$R$170,2,0) -> عبدالرحمن محماس غزاى المقاطى العتيبى | F112: =VLOOKUP(C112,'دور ثانى'!$A$11:$R$170,3,0) -> 10 - 6 | G112: =VLOOKUP(C112,'دور ثانى'!$A$11:$R$170,18,0) -> الرياضيات / الدراسات الاجتماعية / الحوسبة وتكنولوجيا المعلومات / الكيمياء / الفيزياء / الأحياء / اللغة الإنجليزية /
C113: 109 | D113: =VLOOKUP(C113,'دور ثانى'!$A$11:$R$170,1,0) -> 109 | E113: =VLOOKUP(C113,'دور ثانى'!$A$11:$R$170,2,0) -> عبدالعزيز جهان بخش مرادك درزاده | F113: =VLOOKUP(C113,'دور ثانى'!$A$11:$R$170,3,0) -> 10 - 6 | G113: =VLOOKUP(C113,'دور ثانى'!$A$11:$R$170,18,0) -> الرياضيات / الدراسات الاجتماعية / الحوسبة وتكنولوجيا المعلومات / الكيمياء / الأحياء / اللغة العربية /
C114: 110 | D114: =VLOOKUP(C114,'دور ثانى'!$A$11:$R$170,1,0) -> 110 | E114: =VLOOKUP(C114,'دور ثانى'!$A$11:$R$170,2,0) -> عبدالعزيز سلطان حسن سالم الكثيرى | F114: =VLOOKUP(C114,'دور ثانى'!$A$11:$R$170,3,0) -> 10 - 6 | G114: =VLOOKUP(C114,'دور ثانى'!$A$11:$R$170,18,0) -> الأحياء /
C115: 111 | D115: =VLOOKUP(C115,'دور ثانى'!$A$11:$R$170,1,0) -> 111 | E115: =VLOOKUP(C115,'دور ثانى'!$A$11:$R$170,2,0) -> عبدالغني عثمان عمر ورسمة | F115: =VLOOKUP(C115,'دور ثانى'!$A$11:$R$170,3,0) -> 10 - 6 | G115: =VLOOKUP(C115,'دور ثانى'!$A$11:$R$170,18,0) -> الحوسبة وتكنولوجيا المعلومات / الأحياء / اللغة العربية / اللغة الإنجليزية /
C116: 112 | D116: =VLOOKUP(C116,'دور ثانى'!$A$11:$R$170,1,0) -> 112 | E116: =VLOOKUP(C116,'دور ثانى'!$A$11:$R$170,2,0) -> عبدالله جاسم على محمد القايد | F116: =VLOOKUP(C116,'دور ثانى'!$A$11:$R$170,3,0) -> 10 - 6 | G116: =VLOOKUP(C116,'دور ثانى'!$A$11:$R$170,18,0) -> الحوسبة وتكنولوجيا المعلومات / الأحياء /
C117: 113 | D117: =VLOOKUP(C117,'دور ثانى'!$A$11:$R$170,1,0) -> 113 | E117: =VLOOKUP(C117,'دور ثانى'!$A$11:$R$170,2,0) -> عبدالله محماس غزاى المقاطى العتيبى | F117: =VLOOKUP(C117,'دور ثانى'!$A$11:$R$170,3,0) -> 10 - 6 | G117: =VLOOKUP(C117,'دور ثانى'!$A$11:$R$170,18,0) -> الرياضيات / الدراسات الاجتماعية / الحوسبة وتكنولوجيا المعلومات / الأحياء / التربية الإسلامية / اللغة الإنجليزية /
C118: 114 | D118: =VLOOKUP(C118,'دور ثانى'!$A$11:$R$170,1,0) -> 114 | E118: =VLOOKUP(C118,'دور ثانى'!$A$11:$R$170,2,0) -> عبدالله ناصر عبده السعدى اليافعى | F118: =VLOOKUP(C118,'دور ثانى'!$A$11:$R$170,3,0) -> 10 - 6 | G118: =VLOOKUP(C118,'دور ثانى'!$A$11:$R$170,18,0) -> الحوسبة وتكنولوجيا المعلومات /
C119: 115 | D119: =VLOOKUP(C119,'دور ثانى'!$A$11:$R$170,1,0) -> 115 | E119: =VLOOKUP(C119,'دور ثانى'!$A$11:$R$170,2,0) -> على فهد على شفيع الفهيده | F119: =VLOOKUP(C119,'دور ثانى'!$A$11:$R$170,3,0) -> 10 - 6 | G119: =VLOOKUP(C119,'دور ثانى'!$A$11:$R$170,18,0) -> الحوسبة وتكنولوجيا المعلومات / الكيمياء /
C120: 116 | D120: =VLOOKUP(C120,'دور ثانى'!$A$11:$R$170,1,0) -> 116 | E120: =VLOOKUP(C120,'دور ثانى'!$A$11:$R$170,2,0) -> فارس وليد محي الدين | F120: =VLOOKUP(C120,'دور ثانى'!$A$11:$R$170,3,0) -> 10 - 6 | G120: =VLOOKUP(C120,'دور ثانى'!$A$11:$R$170,18,0) -> الدراسات الاجتماعية / الأحياء /
C121: 117 | D121: =VLOOKUP(C121,'دور ثانى'!$A$11:$R$170,1,0) -> 117 | E121: =VLOOKUP(C121,'دور ثانى'!$A$11:$R$170,2,0) -> قطبى ياسر القطبي ادريس | F121: =VLOOKUP(C121,'دور ثانى'!$A$11:$R$170,3,0) -> 10 - 6 | G121: =VLOOKUP(C121,'دور ثانى'!$A$11:$R$170,18,0) -> الرياضيات / الدراسات الاجتماعية / الحوسبة وتكنولوجيا المعلومات / الكيمياء / الفيزياء / الأحياء / التربية الإسلامية / اللغة العربية / اللغة الإنجليزية /
C122: 118 | D122: =VLOOKUP(C122,'دور ثانى'!$A$11:$R$170,1,0) -> 118 | E122: =VLOOKUP(C122,'دور ثانى'!$A$11:$R$170,2,0) -> محمد جابر حسين على الجرحب | F122: =VLOOKUP(C122,'دور ثانى'!$A$11:$R$170,3,0) -> 10 - 6 | G122: =VLOOKUP(C122,'دور ثانى'!$A$11:$R$170,18,0) -> الكيمياء / اللغة الإنجليزية /
C123: 119 | D123: =VLOOKUP(C123,'دور ثانى'!$A$11:$R$170,1,0) -> 119 | E123: =VLOOKUP(C123,'دور ثانى'!$A$11:$R$170,2,0) -> محمد على سالم حمد جبران | F123: =VLOOKUP(C123,'دور ثانى'!$A$11:$R$170,3,0) -> 10 - 6 | G123: =VLOOKUP(C123,'دور ثانى'!$A$11:$R$170,18,0) -> الرياضيات / الدراسات الاجتماعية / الحوسبة وتكنولوجيا المعلومات / الكيمياء / الأحياء / اللغة العربية / اللغة الإنجليزية /
C124: 120 | D124: =VLOOKUP(C124,'دور ثانى'!$A$11:$R$170,1,0) -> 120 | E124: =VLOOKUP(C124,'دور ثانى'!$A$11:$R$170,2,0) -> مشعل عبدالرحمن عبدالله عبدالعزيز الاسحاق | F124: =VLOOKUP(C124,'دور ثانى'!$A$11:$R$170,3,0) -> 10 - 6 | G124: =VLOOKUP(C124,'دور ثانى'!$A$11:$R$170,18,0) -> الفيزياء / الأحياء /
C125: 121 | D125: =VLOOKUP(C125,'دور ثانى'!$A$11:$R$170,1,0) -> 121 | E125: =VLOOKUP(C125,'دور ثانى'!$A$11:$R$170,2,0) -> مصطفى محمد مصطفى العبيد احمد | F125: =VLOOKUP(C125,'دور ثانى'!$A$11:$R$170,3,0) -> 10 - 6 | G125: =VLOOKUP(C125,'دور ثانى'!$A$11:$R$170,18,0) -> اللغة الإنجليزية /
C126: 122 | D126: =VLOOKUP(C126,'دور ثانى'!$A$11:$R$170,1,0) -> 122 | E126: =VLOOKUP(C126,'دور ثانى'!$A$11:$R$170,2,0) -> نايف حسن احمد الحيى النعيمى | F126: =VLOOKUP(C126,'دور ثانى'!$A$11:$R$170,3,0) -> 10 - 6 | G126: =VLOOKUP(C126,'دور ثانى'!$A$11:$R$170,18,0) -> الرياضيات / الدراسات الاجتماعية / الحوسبة وتكنولوجيا المعلومات / الكيمياء / الفيزياء / الأحياء / اللغة الإنجليزية /
C127: 123 | D127: =VLOOKUP(C127,'دور ثانى'!$A$11:$R$170,1,0) -> 123 | E127: =VLOOKUP(C127,'دور ثانى'!$A$11:$R$170,2,0) -> نواف على هادى الجربوعى المرى | F127: =VLOOKUP(C127,'دور ثانى'!$A$11:$R$170,3,0) -> 10 - 6 | G127: =VLOOKUP(C127,'دور ثانى'!$A$11:$R$170,18,0) -> الدراسات الاجتماعية / الحوسبة وتكنولوجيا المعلومات / اللغة العربية / اللغة الإنجليزية /
C128: 124 | D128: =VLOOKUP(C128,'دور ثانى'!$A$11:$R$170,1,0) -> 124 | E128: =VLOOKUP(C128,'دور ثانى'!$A$11:$R$170,2,0) -> يوسف خالد ناصر عبدالكريم مثنى | F128: =VLOOKUP(C128,'دور ثانى'!$A$11:$R$170,3,0) -> 10 - 6 | G128: =VLOOKUP(C128,'دور ثانى'!$A$11:$R$170,18,0) -> الرياضيات / الدراسات الاجتماعية / الحوسبة وتكنولوجيا المعلومات / الكيمياء / الأحياء / اللغة العربية / اللغة الإنجليزية /
C129: 125 | D129: =VLOOKUP(C129,'دور ثانى'!$A$11:$R$170,1,0) -> 125 | E129: =VLOOKUP(C129,'دور ثانى'!$A$11:$R$170,2,0) -> بلال ابراهيم | F129: =VLOOKUP(C129,'دور ثانى'!$A$11:$R$170,3,0) -> 10 - 7 | G129: =VLOOKUP(C129,'دور ثانى'!$A$11:$R$170,18,0) -> الرياضيات / الدراسات الاجتماعية / الحوسبة وتكنولوجيا المعلومات / الكيمياء / الفيزياء / الأحياء / التربية الإسلامية / اللغة العربية / اللغة الإنجليزية /
C130: 126 | D130: =VLOOKUP(C130,'دور ثانى'!$A$11:$R$170,1,0) -> 126 | E130: =VLOOKUP(C130,'دور ثانى'!$A$11:$R$170,2,0) -> تركى مبارك تركى سعد التركى | F130: =VLOOKUP(C130,'دور ثانى'!$A$11:$R$170,3,0) -> 10 - 7 | G130: =VLOOKUP(C130,'دور ثانى'!$A$11:$R$170,18,0) -> الرياضيات / الحوسبة وتكنولوجيا المعلومات / الكيمياء / اللغة الإنجليزية /
C131: 127 | D131: =VLOOKUP(C131,'دور ثانى'!$A$11:$R$170,1,0) -> 127 | E131: =VLOOKUP(C131,'دور ثانى'!$A$11:$R$170,2,0) -> تميم على يوسف محمد الحمادى | F131: =VLOOKUP(C131,'دور ثانى'!$A$11:$R$170,3,0) -> 10 - 7 | G131: =VLOOKUP(C131,'دور ثانى'!$A$11:$R$170,18,0) -> الرياضيات / الدراسات الاجتماعية / الكيمياء / التربية الإسلامية / اللغة العربية / اللغة الإنجليزية /
C132: 128 | D132: =VLOOKUP(C132,'دور ثانى'!$A$11:$R$170,1,0) -> 128 | E132: =VLOOKUP(C132,'دور ثانى'!$A$11:$R$170,2,0) -> جاسم حسين جاسم على بوكربل | F132: =VLOOKUP(C132,'دور ثانى'!$A$11:$R$170,3,0) -> 10 - 7 | G132: =VLOOKUP(C132,'دور ثانى'!$A$11:$R$170,18,0) -> الدراسات الاجتماعية /
C133: 129 | D133: =VLOOKUP(C133,'دور ثانى'!$A$11:$R$170,1,0) -> 129 | E133: =VLOOKUP(C133,'دور ثانى'!$A$11:$R$170,2,0) -> جاسم محمد فرج البريص المري | F133: =VLOOKUP(C133,'دور ثانى'!$A$11:$R$170,3,0) -> 10 - 7 | G133: =VLOOKUP(C133,'دور ثانى'!$A$11:$R$170,18,0) -> الرياضيات / الدراسات الاجتماعية / الحوسبة وتكنولوجيا المعلومات / الكيمياء / الأحياء / اللغة الإنجليزية /
C134: =ROW()-4 -> 130 | D134: =VLOOKUP(C134,'دور ثانى'!$A$11:$R$170,1,0) -> 130 | E134: =VLOOKUP(C134,'دور ثانى'!$A$11:$R$170,2,0) -> خالد ناصر محمد اللواء المرى | F134: =VLOOKUP(C134,'دور ثانى'!$A$11:$R$170,3,0) -> 10 - 7 | G134: =VLOOKUP(C134,'دور ثانى'!$A$11:$R$170,18,0) -> الرياضيات / الدراسات الاجتماعية / الأحياء / التربية الإسلامية / اللغة العربية /
C135: 131 | D135: =VLOOKUP(C135,'دور ثانى'!$A$11:$R$170,1,0) -> 131 | E135: =VLOOKUP(C135,'دور ثانى'!$A$11:$R$170,2,0) -> سالم عبدالله سالم سعيد خوار | F135: =VLOOKUP(C135,'دور ثانى'!$A$11:$R$170,3,0) -> 10 - 7 | G135: =VLOOKUP(C135,'دور ثانى'!$A$11:$R$170,18,0) -> الأحياء / التربية الإسلامية / اللغة العربية / اللغة الإنجليزية /
C136: 132 | D136: =VLOOKUP(C136,'دور ثانى'!$A$11:$R$170,1,0) -> 132 | E136: =VLOOKUP(C136,'دور ثانى'!$A$11:$R$170,2,0) -> سعد مبارك تركى سعد التركى | F136: =VLOOKUP(C136,'دور ثانى'!$A$11:$R$170,3,0) -> 10 - 7 | G136: =VLOOKUP(C136,'دور ثانى'!$A$11:$R$170,18,0) -> الرياضيات / الحوسبة وتكنولوجيا المعلومات / الكيمياء / الأحياء / اللغة الإنجليزية /
C137: 133 | D137: =VLOOKUP(C137,'دور ثانى'!$A$11:$R$170,1,0) -> 133 | E137: =VLOOKUP(C137,'دور ثانى'!$A$11:$R$170,2,0) -> سعود خالد محمود بومحمود الشيخ | F137: =VLOOKUP(C137,'دور ثانى'!$A$11:$R$170,3,0) -> 10 - 7 | G137: =VLOOKUP(C137,'دور ثانى'!$A$11:$R$170,18,0) -> الدراسات الاجتماعية / الفيزياء /
C138: 134 | D138: =VLOOKUP(C138,'دور ثانى'!$A$11:$R$170,1,0) -> 134 | E138: =VLOOKUP(C138,'دور ثانى'!$A$11:$R$170,2,0) -> سلطان سعيد سالم غلفيص النابت | F138: =VLOOKUP(C138,'دور ثانى'!$A$11:$R$170,3,0) -> 10 - 7 | G138: =VLOOKUP(C138,'دور ثانى'!$A$11:$R$170,18,0) -> الرياضيات / الدراسات الاجتماعية / الكيمياء / الفيزياء / الأحياء / التربية الإسلامية / اللغة الإنجليزية /
C139: 135 | D139: =VLOOKUP(C139,'دور ثانى'!$A$11:$R$170,1,0) -> 135 | E139: =VLOOKUP(C139,'دور ثانى'!$A$11:$R$170,2,0) -> عبدالرحمن عبدالحميد محمد صالح العمودى | F139: =VLOOKUP(C139,'دور ثانى'!$A$11:$R$170,3,0) -> 10 - 7 | G139: =VLOOKUP(C139,'دور ثانى'!$A$11:$R$170,18,0) -> الرياضيات / الحوسبة وتكنولوجيا المعلومات / الكيمياء / الأحياء / اللغة العربية / اللغة الإنجليزية /
C140: 136 | D140: =VLOOKUP(C140,'دور ثانى'!$A$11:$R$170,1,0) -> 136 | E140: =VLOOKUP(C140,'دور ثانى'!$A$11:$R$170,2,0) -> عبدالله راشد محسن حزام انديله | F140: =VLOOKUP(C140,'دور ثانى'!$A$11:$R$170,3,0) -> 10 - 7 | G140: =VLOOKUP(C140,'دور ثانى'!$A$11:$R$170,18,0) -> الأحياء / اللغة الإنجليزية /
C141: 137 | D141: =VLOOKUP(C141,'دور ثانى'!$A$11:$R$170,1,0) -> 137 | E141: =VLOOKUP(C141,'دور ثانى'!$A$11:$R$170,2,0) -> على ناصر على ال مشروم المرى | F141: =VLOOKUP(C141,'دور ثانى'!$A$11:$R$170,3,0) -> 10 - 7 | G141: =VLOOKUP(C141,'دور ثانى'!$A$11:$R$170,18,0) -> اللغة العربية /
C142: 138 | D142: =VLOOKUP(C142,'دور ثانى'!$A$11:$R$170,1,0) -> 138 | E142: =VLOOKUP(C142,'دور ثانى'!$A$11:$R$170,2,0) -> عمر عصام الدين محي حسن | F142: =VLOOKUP(C142,'دور ثانى'!$A$11:$R$170,3,0) -> 10 - 7 | G142: =VLOOKUP(C142,'دور ثانى'!$A$11:$R$170,18,0) -> الرياضيات / الدراسات الاجتماعية / الحوسبة وتكنولوجيا المعلومات / الكيمياء / الفيزياء / الأحياء / التربية الإسلامية / اللغة العربية / اللغة الإنجليزية /
C143: 139 | D143: =VLOOKUP(C143,'دور ثانى'!$A$11:$R$170,1,0) -> 139 | E143: =VLOOKUP(C143,'دور ثانى'!$A$11:$R$170,2,0) -> عيسى محمد عبد الله عامرى | F143: =VLOOKUP(C143,'دور ثانى'!$A$11:$R$170,3,0) -> 10 - 7 | G143: =VLOOKUP(C143,'دور ثانى'!$A$11:$R$170,18,0) -> الرياضيات /
C144: 140 | D144: =VLOOKUP(C144,'دور ثانى'!$A$11:$R$170,1,0) -> 140 | E144: =VLOOKUP(C144,'دور ثانى'!$A$11:$R$170,2,0) -> فارس سالم حسن سالم الكثيرى | F144: =VLOOKUP(C144,'دور ثانى'!$A$11:$R$170,3,0) -> 10 - 7 | G144: =VLOOKUP(C144,'دور ثانى'!$A$11:$R$170,18,0) -> الأحياء /
C145: 141 | D145: =VLOOKUP(C145,'دور ثانى'!$A$11:$R$170,1,0) -> 141 | E145: =VLOOKUP(C145,'دور ثانى'!$A$11:$R$170,2,0) -> فهد ابوبكر محمد مبخوت الصيعرى | F145: =VLOOKUP(C145,'دور ثانى'!$A$11:$R$170,3,0) -> 10 - 7 | G145: =VLOOKUP(C145,'دور ثانى'!$A$11:$R$170,18,0) -> الرياضيات / الدراسات الاجتماعية / الحوسبة وتكنولوجيا المعلومات / الكيمياء / الأحياء / التربية الإسلامية / اللغة العربية / اللغة الإنجليزية /
C146: 142 | D146: =VLOOKUP(C146,'دور ثانى'!$A$11:$R$170,1,0) -> 142 | E146: =VLOOKUP(C146,'دور ثانى'!$A$11:$R$170,2,0) -> مبارك سالم مبارك النابت المرى | F146: =VLOOKUP(C146,'دور ثانى'!$A$11:$R$170,3,0) -> 10 - 7 | G146: =VLOOKUP(C146,'دور ثانى'!$A$11:$R$170,18,0) -> الرياضيات / الحوسبة وتكنولوجيا المعلومات / الأحياء / اللغة العربية / اللغة الإنجليزية /
C147: 143 | D147: =VLOOKUP(C147,'دور ثانى'!$A$11:$R$170,1,0) -> 143 | E147: =VLOOKUP(C147,'دور ثانى'!$A$11:$R$170,2,0) -> محمد احمد جمعه احمد السبيعى | F147: =VLOOKUP(C147,'دور ثانى'!$A$11:$R$170,3,0) -> 10 - 7 | G147: =VLOOKUP(C147,'دور ثانى'!$A$11:$R$170,18,0) -> الدراسات الاجتماعية / الكيمياء / التربية الإسلامية /
C148: 144 | D148: =VLOOKUP(C148,'دور ثانى'!$A$11:$R$170,1,0) -> 144 | E148: =VLOOKUP(C148,'دور ثانى'!$A$11:$R$170,2,0) -> محمد بدرالدين ميرغنى ادم على | F148: =VLOOKUP(C148,'دور ثانى'!$A$11:$R$170,3,0) -> 10 - 7 | G148: =VLOOKUP(C148,'دور ثانى'!$A$11:$R$170,18,0) -> الرياضيات / الدراسات الاجتماعية / الفيزياء / الأحياء /
C149: 145 | D149: =VLOOKUP(C149,'دور ثانى'!$A$11:$R$170,1,0) -> 145 | E149: =VLOOKUP(C149,'دور ثانى'!$A$11:$R$170,2,0) -> محمد راشد سالم صالح لحيمر | F149: =VLOOKUP(C149,'دور ثانى'!$A$11:$R$170,3,0) -> 10 - 7 | G149: =VLOOKUP(C149,'دور ثانى'!$A$11:$R$170,18,0) -> الرياضيات / الفيزياء /
C150: 146 | D150: =VLOOKUP(C150,'دور ثانى'!$A$11:$R$170,1,0) -> 146 | E150: =VLOOKUP(C150,'دور ثانى'!$A$11:$R$170,2,0) -> محمد رائد عبدالرحيم | F150: =VLOOKUP(C150,'دور ثانى'!$A$11:$R$170,3,0) -> 10 - 7 | G150: =VLOOKUP(C150,'دور ثانى'!$A$11:$R$170,18,0) -> الرياضيات / الفيزياء / الأحياء /
C151: 147 | D151: =VLOOKUP(C151,'دور ثانى'!$A$11:$R$170,1,0) -> 147 | E151: =VLOOKUP(C151,'دور ثانى'!$A$11:$R$170,2,0) -> محمد عادل عبدالله محمد الخورى | F151: =VLOOKUP(C151,'دور ثانى'!$A$11:$R$170,3,0) -> 10 - 7 | G151: =VLOOKUP(C151,'دور ثانى'!$A$11:$R$170,18,0) -> الرياضيات / الدراسات الاجتماعية / الحوسبة وتكنولوجيا المعلومات / الفيزياء / الأحياء / اللغة العربية / اللغة الإنجليزية /
C152: 148 | D152: =VLOOKUP(C152,'دور ثانى'!$A$11:$R$170,1,0) -> 148 | E152: =VLOOKUP(C152,'دور ثانى'!$A$11:$R$170,2,0) -> محمد عبدالله محمد امين ابراهيم | F152: =VLOOKUP(C152,'دور ثانى'!$A$11:$R$170,3,0) -> 10 - 7 | G152: =VLOOKUP(C152,'دور ثانى'!$A$11:$R$170,18,0) -> الدراسات الاجتماعية /
C153: 149 | D153: =VLOOKUP(C153,'دور ثانى'!$A$11:$R$170,1,0) -> 149 | E153: =VLOOKUP(C153,'دور ثانى'!$A$11:$R$170,2,0) -> مشعل خالد احمد سليمان الهيل | F153: =VLOOKUP(C153,'دور ثانى'!$A$11:$R$170,3,0) -> 10 - 7 | G153: =VLOOKUP(C153,'دور ثانى'!$A$11:$R$170,18,0) -> الأحياء /
C154: 150 | D154: =VLOOKUP(C154,'دور ثانى'!$A$11:$R$170,1,0) -> 150 | E154: =VLOOKUP(C154,'دور ثانى'!$A$11:$R$170,2,0) -> ناصر راشد على العلى المعاضيد | F154: =VLOOKUP(C154,'دور ثانى'!$A$11:$R$170,3,0) -> 10 - 7 | G154: =VLOOKUP(C154,'دور ثانى'!$A$11:$R$170,18,0) -> الرياضيات / الدراسات الاجتماعية / الأحياء / التربية الإسلامية / اللغة العربية / اللغة الإنجليزية /
C155: 151 | D155: =VLOOKUP(C155,'دور ثانى'!$A$11:$R$170,1,0) -> 151 | E155: =VLOOKUP(C155,'دور ثانى'!$A$11:$R$170,2,0) -> نايف على هادف انديله الحسناء | F155: =VLOOKUP(C155,'دور ثانى'!$A$11:$R$170,3,0) -> 10 - 7 | G155: =VLOOKUP(C155,'دور ثانى'!$A$11:$R$170,18,0) -> الرياضيات / الدراسات الاجتماعية / الحوسبة وتكنولوجيا المعلومات / الكيمياء / الأحياء / التربية الإسلامية / اللغة الإنجليزية /

Sheet الغائبين عن الاختبار
B5: م | C5: رقم الجلوس | D5: اسم الطالب | E5: الدرجة
E6: 30
B7: 1 | C7: =IF($B7="","",INDEX(شيت!A$11:A$247,SMALL(IF(شيت!$D$11:$D$247="غ",ROW($10:$59)-13),$B7))) ->  | D7: =IF($B7="","",INDEX(شيت!B$11:B$247,SMALL(IF(شيت!$D$11:$D$247="غ",ROW($10:$59)-13),$B7))) -> 
B8: =IF(ROW($B2)<=COUNTIF(شيت!$D$11:$D$60,"غ"),ROW($B2),"") -> 2 | C8: =IF($B8="","",INDEX(شيت!A$11:A$247,SMALL(IF(شيت!$D$11:$D$247="غ",ROW($10:$59)-13),$B8))) ->  | D8: =IF($B8="","",INDEX(شيت!B$11:B$247,SMALL(IF(شيت!$D$11:$D$247="غ",ROW($10:$59)-13),$B8))) -> 
B9: =IF(ROW($B3)<=COUNTIF(شيت!$D$11:$D$60,"غ"),ROW($B3),"") -> 3 | C9: =IF($B9="","",INDEX(شيت!A$11:A$247,SMALL(IF(شيت!$D$11:$D$247="غ",ROW($10:$59)-13),$B9))) ->  | D9: =IF($B9="","",INDEX(شيت!B$11:B$247,SMALL(IF(شيت!$D$11:$D$247="غ",ROW($10:$59)-13),$B9))) -> 
B10: =IF(ROW($B4)<=COUNTIF(شيت!$D$11:$D$60,"غ"),ROW($B4),"") ->  | C10: =IF($B10="","",INDEX(شيت!A$11:A$247,SMALL(IF(شيت!$D$11:$D$247="غ",ROW($10:$59)-13),$B10))) ->  | D10: =IF($B10="","",INDEX(شيت!B$11:B$247,SMALL(IF(شيت!$D$11:$D$247="غ",ROW($10:$59)-13),$B10))) -> 
B11: =IF(ROW($B5)<=COUNTIF(شيت!$D$11:$D$60,"غ"),ROW($B5),"") ->  | C11: =IF($B11="","",INDEX(شيت!A$11:A$247,SMALL(IF(شيت!$D$11:$D$247="غ",ROW($10:$59)-13),$B11))) ->  | D11: =IF($B11="","",INDEX(شيت!B$11:B$247,SMALL(IF(شيت!$D$11:$D$247="غ",ROW($10:$59)-13),$B11))) -> 
B12: =IF(ROW($B6)<=COUNTIF(شيت!$D$11:$D$60,"غ"),ROW($B6),"") ->  | C12: =IF($B12="","",INDEX(شيت!A$11:A$247,SMALL(IF(شيت!$D$11:$D$247="غ",ROW($10:$59)-13),$B12))) ->  | D12: =IF($B12="","",INDEX(شيت!B$11:B$247,SMALL(IF(شيت!$D$11:$D$247="غ",ROW($10:$59)-13),$B12))) -> 
B13: =IF(ROW($B7)<=COUNTIF(شيت!$D$11:$D$60,"غ"),ROW($B7),"") ->  | C13: =IF($B13="","",INDEX(شيت!A$11:A$247,SMALL(IF(شيت!$D$11:$D$247="غ",ROW($10:$59)-13),$B13))) ->  | D13: =IF($B13="","",INDEX(شيت!B$11:B$247,SMALL(IF(شيت!$D$11:$D$247="غ",ROW($10:$59)-13),$B13))) -> 
B14: =IF(ROW($B8)<=COUNTIF(شيت!$D$11:$D$60,"غ"),ROW($B8),"") ->  | C14: =IF($B14="","",INDEX(شيت!A$11:A$247,SMALL(IF(شيت!$D$11:$D$247="غ",ROW($10:$59)-13),$B14))) ->  | D14: =IF($B14="","",INDEX(شيت!B$11:B$247,SMALL(IF(شيت!$D$11:$D$247="غ",ROW($10:$59)-13),$B14))) -> 
B15: =IF(ROW($B9)<=COUNTIF(شيت!$D$11:$D$60,"غ"),ROW($B9),"") ->  | C15: =IF($B15="","",INDEX(شيت!A$11:A$247,SMALL(IF(شيت!$D$11:$D$247="غ",ROW($10:$59)-13),$B15))) ->  | D15: =IF($B15="","",INDEX(شيت!B$11:B$247,SMALL(IF(شيت!$D$11:$D$247="غ",ROW($10:$59)-13),$B15))) -> 
B16: =IF(ROW($B10)<=COUNTIF(شيت!$D$11:$D$60,"غ"),ROW($B10),"") ->  | C16: =IF($B16="","",INDEX(شيت!A$11:A$247,SMALL(IF(شيت!$D$11:$D$247="غ",ROW($10:$59)-13),$B16))) ->  | D16: =IF($B16="","",INDEX(شيت!B$11:B$247,SMALL(IF(شيت!$D$11:$D$247="غ",ROW($10:$59)-13),$B16))) -> 
B17: =IF(ROW($B11)<=COUNTIF(شيت!$D$11:$D$60,"غ"),ROW($B11),"") ->  | C17: =IF($B17="","",INDEX(شيت!A$11:A$247,SMALL(IF(شيت!$D$11:$D$247="غ",ROW($10:$59)-13),$B17))) ->  | D17: =IF($B17="","",INDEX(شيت!B$11:B$247,SMALL(IF(شيت!$D$11:$D$247="غ",ROW($10:$59)-13),$B17))) -> 
B18: =IF(ROW($B12)<=COUNTIF(شيت!$D$11:$D$60,"غ"),ROW($B12),"") ->  | C18: =IF($B18="","",INDEX(شيت!A$11:A$247,SMALL(IF(شيت!$D$11:$D$247="غ",ROW($10:$59)-13),$B18))) ->  | D18: =IF($B18="","",INDEX(شيت!B$11:B$247,SMALL(IF(شيت!$D$11:$D$247="غ",ROW($10:$59)-13),$B18))) -> 
B19: =IF(ROW($B13)<=COUNTIF(شيت!$D$11:$D$60,"غ"),ROW($B13),"") ->  | C19: =IF($B19="","",INDEX(شيت!A$11:A$247,SMALL(IF(شيت!$D$11:$D$247="غ",ROW($10:$59)-13),$B19))) ->  | D19: =IF($B19="","",INDEX(شيت!B$11:B$247,SMALL(IF(شيت!$D$11:$D$247="غ",ROW($10:$59)-13),$B19))) -> 
B20: =IF(ROW($B14)<=COUNTIF(شيت!$D$11:$D$60,"غ"),ROW($B14),"") ->  | C20: =IF($B20="","",INDEX(شيت!A$11:A$247,SMALL(IF(شيت!$D$11:$D$247="غ",ROW($10:$59)-13),$B20))) ->  | D20: =IF($B20="","",INDEX(شيت!B$11:B$247,SMALL(IF(شيت!$D$11:$D$247="غ",ROW($10:$59)-13),$B20))) -> 
B21: =IF(ROW($B15)<=COUNTIF(شيت!$D$11:$D$60,"غ"),ROW($B15),"") ->  | C21: =IF($B21="","",INDEX(شيت!A$11:A$247,SMALL(IF(شيت!$D$11:$D$247="غ",ROW($10:$59)-13),$B21))) ->  | D21: =IF($B21="","",INDEX(شيت!B$11:B$247,SMALL(IF(شيت!$D$11:$D$247="غ",ROW($10:$59)-13),$B21))) -> 
B22: =IF(ROW($B16)<=COUNTIF(شيت!$D$11:$D$60,"غ"),ROW($B16),"") ->  | C22: =IF($B22="","",INDEX(شيت!A$11:A$247,SMALL(IF(شيت!$D$11:$D$247="غ",ROW($10:$59)-13),$B22))) ->  | D22: =IF($B22="","",INDEX(شيت!B$11:B$247,SMALL(IF(شيت!$D$11:$D$247="غ",ROW($10:$59)-13),$B22))) -> 
B23: =IF(ROW($B17)<=COUNTIF(شيت!$D$11:$D$60,"غ"),ROW($B17),"") ->  | C23: =IF($B23="","",INDEX(شيت!A$11:A$247,SMALL(IF(شيت!$D$11:$D$247="غ",ROW($10:$59)-13),$B23))) ->  | D23: =IF($B23="","",INDEX(شيت!B$11:B$247,SMALL(IF(شيت!$D$11:$D$247="غ",ROW($10:$59)-13),$B23))) -> 
B24: =IF(ROW($B18)<=COUNTIF(شيت!$D$11:$D$60,"غ"),ROW($B18),"") ->  | C24: =IF($B24="","",INDEX(شيت!A$11:A$247,SMALL(IF(شيت!$D$11:$D$247="غ",ROW($10:$59)-13),$B24))) ->  | D24: =IF($B24="","",INDEX(شيت!B$11:B$247,SMALL(IF(شيت!$D$11:$D$247="غ",ROW($10:$59)-13),$B24))) -> 
B25: =IF(ROW($B19)<=COUNTIF(شيت!$D$11:$D$60,"غ"),ROW($B19),"") ->  | C25: =IF($B25="","",INDEX(شيت!A$11:A$247,SMALL(IF(شيت!$D$11:$D$247="غ",ROW($10:$59)-13),$B25))) ->  | D25: =IF($B25="","",INDEX(شيت!B$11:B$247,SMALL(IF(شيت!$D$11:$D$247="غ",ROW($10:$59)-13),$B25))) -> 
B26: =IF(ROW($B20)<=COUNTIF(شيت!$D$11:$D$60,"غ"),ROW($B20),"") ->  | C26: =IF($B26="","",INDEX(شيت!A$11:A$247,SMALL(IF(شيت!$D$11:$D$247="غ",ROW($10:$59)-13),$B26))) ->  | D26: =IF($B26="","",INDEX(شيت!B$11:B$247,SMALL(IF(شيت!$D$11:$D$247="غ",ROW($10:$59)-13),$B26))) -> 
B27: =IF(ROW($B21)<=COUNTIF(شيت!$D$11:$D$60,"غ"),ROW($B21),"") ->  | C27: =IF($B27="","",INDEX(شيت!A$11:A$247,SMALL(IF(شيت!$D$11:$D$247="غ",ROW($10:$59)-13),$B27))) ->  | D27: =IF($B27="","",INDEX(شيت!B$11:B$247,SMALL(IF(شيت!$D$11:$D$247="غ",ROW($10:$59)-13),$B27))) -> 
B28: =IF(ROW($B22)<=COUNTIF(شيت!$D$11:$D$60,"غ"),ROW($B22),"") ->  | C28: =IF($B28="","",INDEX(شيت!A$11:A$247,SMALL(IF(شيت!$D$11:$D$247="غ",ROW($10:$59)-13),$B28))) ->  | D28: =IF($B28="","",INDEX(شيت!B$11:B$247,SMALL(IF(شيت!$D$11:$D$247="غ",ROW($10:$59)-13),$B28))) -> 
B29: =IF(ROW($B23)<=COUNTIF(شيت!$D$11:$D$60,"غ"),ROW($B23),"") ->  | C29: =IF($B29="","",INDEX(شيت!A$11:A$247,SMALL(IF(شيت!$D$11:$D$247="غ",ROW($10:$59)-13),$B29))) ->  | D29: =IF($B29="","",INDEX(شيت!B$11:B$247,SMALL(IF(شيت!$D$11:$D$247="غ",ROW($10:$59)-13),$B29))) -> 
B30: =IF(ROW($B24)<=COUNTIF(شيت!$D$11:$D$60,"غ"),ROW($B24),"") ->  | C30: =IF($B30="","",INDEX(شيت!A$11:A$247,SMALL(IF(شيت!$D$11:$D$247="غ",ROW($10:$59)-13),$B30))) ->  | D30: =IF($B30="","",INDEX(شيت!B$11:B$247,SMALL(IF(شيت!$D$11:$D$247="غ",ROW($10:$59)-13),$B30))) -> 
B31: =IF(ROW($B25)<=COUNTIF(شيت!$D$11:$D$60,"غ"),ROW($B25),"") ->  | C31: =IF($B31="","",INDEX(شيت!A$11:A$247,SMALL(IF(شيت!$D$11:$D$247="غ",ROW($10:$59)-13),$B31))) ->  | D31: =IF($B31="","",INDEX(شيت!B$11:B$247,SMALL(IF(شيت!$D$11:$D$247="غ",ROW($10:$59)-13),$B31))) -> 

Sheet إحصاء نتيجة الدور الأول جميع ال
E2: إحصاء نتيجة جميع المواد | N2: إحصاء نتيجة الراسبين
C3: الرياضيات | D3: الدراسات الاجتماعية | E3: الحوسبة وتكنولوجيا المعلومات | F3: الكيمياء | G3: الفيزياء | H3: الأحياء | I3: التربية الإسلامية | J3: اللغة العربية | K3: اللغة الإنجليزية | M3: عدد الطلاب | N3: حاضر | O3: غائب | P3: ناجح | Q3: راسب | R3: نسبة الناجحين | S3: نسبة الراسبين
B4: عدد الطلاب | C4: 237 | D4: 237 | E4: 237 | F4: 237 | G4: 237 | H4: 237 | I4: 237 | J4: 237 | K4: 238 | M4: 237 | N4: =M4-O4 -> 227 | O4: =COUNTIF(شيت!M11:M247,"غ") -> 10 | P4: =COUNTIF(شيت!N11:N247,"ناجح") -> 86 | Q4: =COUNTIF(شيت!N11:N247,"دور ثانى") -> 151 | R4: =P4/M4*100/100 -> 0.3628691983 | S4: =Q4/M4*100/100 -> 0.6371308017
B5: حاضر | C5: =C4-C6 -> 224 | D5: 225 | E5: 221 | F5: 223 | G5: 225 | H5: 227 | I5: 226 | J5: 225 | K5: =K4-K6 -> 221
B6: غائب | C6: =IF(شيت!B11="","",COUNTIF(شيت!D11:D247,"غ")) -> 13 | D6: =IF(شيت!C11="","",COUNTIF(شيت!E11:E247,"غ")) -> 12 | E6: =IF(شيت!D11="","",COUNTIF(شيت!F11:F247,"غ")) -> 16 | F6: =IF(شيت!E11="","",COUNTIF(شيت!G11:G247,"غ")) -> 14 | G6: =IF(شيت!F11="","",COUNTIF(شيت!H11:H247,"غ")) -> 12 | H6: =IF(شيت!G11="","",COUNTIF(شيت!I11:I247,"غ")) -> 10 | I6: =IF(شيت!H11="","",COUNTIF(شيت!J11:J247,"غ")) -> 11 | J6: =IF(شيت!I11="","",COUNTIF(شيت!K11:K247,"غ")) -> 12 | K6: =IF(شيت!J11="","",COUNTIF(شيت!L11:L247,"غ")) -> 17
B7: ناجح | C7: =C4-C8 -> 154 | D7: 169 | E7: 185 | F7: 155 | G7: 192 | H7: 127 | I7: 188 | J7: 182 | K7: 169
B8: دور ثان | C8: =شيت!T8 -> 83 | D8: =شيت!U8 -> 68 | E8: =شيت!V8 -> 52 | F8: =شيت!W8 -> 82 | G8: =شيت!X8 -> 45 | H8: =شيت!Y8 -> 110 | I8: =شيت!Z8 -> 49 | J8: =شيت!AA8 -> 55 | K8: =شيت!AB8 -> 69
B9: نسبة النجاح | C9: =C7/C4*100/100 -> 0.6497890295 | D9: 0.7130801688 | E9: 0.7805907173 | F9: 0.6540084388 | G9: 0.8101265823 | H9: 0.5358649789 | I9: 0.7932489451 | J9: 0.7679324895 | K9: 0.7100840336
B10: نسبة الدور الثاني | C10: =C8/C4*100/100 -> 0.3502109705 | D10: 0.2869198312 | E10: 0.2194092827 | F10: 0.3459915612 | G10: 0.1898734177 | H10: 0.4641350211 | I10: 0.2067510549 | J10: 0.2320675105 | K10: 0.2899159664

Sheet الأوائل العشرة
B2: نتيجة العشرة الأوائل
B3: م | C3: رقم الجلوس | D3: اسم الطالب | E3: المجموع | F3: الترتيب | G3: المركـــز
B4: 1 | C4: =VLOOKUP(B4,شيت!AV11:BB20,2,0) -> 6 | D4: =VLOOKUP(C4,شيت!AW11:BC20,2,0) -> خالد مصعب خضر عبدالله تايه | E4: =VLOOKUP(D4,شيت!AX11:BD20,2,0) -> 267 | F4: =VLOOKUP(E4,شيت!AY11:BE20,2,0) -> 1 | G4: =IF(F4=1,"الأول"," ") -> الأول
B5: 2 | C5: =VLOOKUP(B5,شيت!AV12:BB21,2,0) -> 29 | D5: =VLOOKUP(C5,شيت!AW12:BC21,2,0) -> محمود عادل عبدالمحسن محمد | E5: =VLOOKUP(D5,شيت!AX12:BD21,2,0) -> 260 | F5: =VLOOKUP(E5,شيت!AY12:BE21,2,0) -> 2 | G5: =IF(F5=F4,G4&" مكرر ",IF(F5=2," الثاني "," ")) -> الثاني
B6: 3 | C6: =VLOOKUP(B6,شيت!AV13:BB22,2,0) -> 19 | D6: =VLOOKUP(C6,شيت!AW13:BC22,2,0) -> عمر هشام على بحيرى ابوالخير | E6: =VLOOKUP(D6,شيت!AX13:BD22,2,0) -> 259.5 | F6: =VLOOKUP(E6,شيت!AY13:BE22,2,0) -> 3 | G6: =IF(F6=F5,G5&" مكرر ",IF(F6=3," الثالث "," ")) -> الثالث
B7: 4 | C7: =VLOOKUP(B7,شيت!AV14:BB23,2,0) -> 36 | D7: =VLOOKUP(C7,شيت!AW14:BC23,2,0) -> أحمد اقبال ابواصبع | E7: =VLOOKUP(D7,شيت!AX14:BD23,2,0) -> 258.5 | F7: =VLOOKUP(E7,شيت!AY14:BE23,2,0) -> 4 | G7: =IF(F7=F6,G6&" "&" مكرر",IF(F7=4," الرابع "," ")) -> الرابع
B8: 5 | C8: =VLOOKUP(B8,شيت!AV15:BB24,2,0) -> 229 | D8: =VLOOKUP(C8,شيت!AW15:BC24,2,0) -> محمد راشد عبدالمحسن راشد الهميمى | E8: =VLOOKUP(D8,شيت!AX15:BD24,2,0) -> 258 | F8: =VLOOKUP(E8,شيت!AY15:BE24,2,0) -> 5 | G8: =IF(F8=F7,G7&" "&" مكرر",IF(F8=5," الخامس "," ")) -> الخامس
B9: 6 | C9: =VLOOKUP(B9,شيت!AV16:BB25,2,0) -> 26 | D9: =VLOOKUP(C9,شيت!AW16:BC25,2,0) -> محمد عمر عبدالرحيم على | E9: =VLOOKUP(D9,شيت!AX16:BD25,2,0) -> 257.5 | F9: =VLOOKUP(E9,شيت!AY16:BE25,2,0) -> 6 | G9: =IF(F9=F8,G8&"مكرر",IF(F9=6," السادس "," ")) -> السادس
B10: 7 | C10: =VLOOKUP(B10,شيت!AV17:BB26,2,0) -> 27 | D10: =VLOOKUP(C10,شيت!AW17:BC26,2,0) -> محمد عمر فتحى عبدالتواب عبدالمقصود | E10: =VLOOKUP(D10,شيت!AX17:BD26,2,0) -> 257.5 | F10: =VLOOKUP(E10,شيت!AY17:BE26,2,0) -> 6 | G10: =IF(F10=F9,G9&"مكرر",IF(F10=7," السابع "," ")) -> السادس مكرر
B11: 8 | C11: =VLOOKUP(B11,شيت!AV18:BB27,2,0) -> 23 | D11: =VLOOKUP(C11,شيت!AW18:BC27,2,0) -> محمد عبدالله السيد بيومي حسن | E11: =VLOOKUP(D11,شيت!AX18:BD27,2,0) -> 256 | F11: =VLOOKUP(E11,شيت!AY18:BE27,2,0) -> 8 | G11: =IF(F11=F10,G10&"مكرر",IF(F11=8,"الثامن"," ")) -> الثامن
B12: 9 | C12: =VLOOKUP(B12,شيت!AV19:BB28,2,0) -> 20 | D12: =VLOOKUP(C12,شيت!AW19:BC28,2,0) -> فادي عدنان احمد عبدالجليل | E12: =VLOOKUP(D12,شيت!AX19:BD28,2,0) -> 255 | F12: =VLOOKUP(E12,شيت!AY19:BE28,2,0) -> 9 | G12: =IF(F12=F11,G11&" مكرر",IF(F12=9,"التاسع"," ")) -> التاسع
B13: 10 | C13: =VLOOKUP(B13,شيت!AV20:BB29,2,0) -> 126 | D13: =VLOOKUP(C13,شيت!AW20:BC29,2,0) -> عمر محمد محمود ابوزاهر | E13: =VLOOKUP(D13,شيت!AX20:BD29,2,0) -> 254.5 | F13: =VLOOKUP(E13,شيت!AY20:BE29,2,0) -> 10 | G13: =IF(F13=F12,G12&" مكرر",IF(F13=10,"العاشر"," ")) -> العاشر
